Workbook

Sheet Deckblatt

Sheet Impressum
F1: Langzeitarbeitslosigkeit
A4: Impressum
A7: Produktlinie/Reihe: | C7: Tabellen
A9: Titel: | C9: Langzeitarbeitslosigkeit (Monatszahlen)
A11: Region: | C11: Deutschland, Länder und Regionaldirektionen, Kreise und kreisfreie Städte
A13: Berichtsmonat: | C13: 2018-11-01
A15: Erstellungsdatum: | C15: 2018-11-28
A17: Periodizität: | C17: monatlich
A19: Hinweise: | C19: Bedienhinweis: Nach Auswahl des Bundeslandes in der linken Klappleiste,
C20: können die dazugehörigen Kreise in der rechten Klappleiste ausgewählt werden.
A21: Nächster Veröffentlichungstermin: | C21: 2019-01-04
A23: Herausgeberin: | C23: Bundesagentur für Arbeit
C24: Statistik
A26: Rückfragen an: | C26: Zentraler Statistik-Service
C27: Regensburger Straße 104
C28: 90478 Nürnberg
A29: E-Mail: | C29: Zentraler-Statistik-Service@arbeitsagentur.de
A30: Hotline: | C30: 0911/179-3632
A31: Fax: | C31: 0911/179-1131
A35: Weiterführende statistische Informationen
A37: Internet: | C37: http://statistik.arbeitsagentur.de
C38: Register: "Statistik nach Themen"
C39: http://statistik.arbeitsagentur.de/Navigation/Statistik/Statistik-nach-Themen/Statistik-nach-Themen-Nav.html
A41: Zitierhinweis: | C41: Statistik der Bundesagentur für Arbeit
A44: Nutzungsbedingungen: | C44: © Statistik der Bundesagentur für Arbeit
C45: Sie können Informationen speichern, (auch auszugsweise) mit Quellen-
C46: angabe weitergeben, vervielfältigen und verbreiten. Die Inhalte dürfen
C47: nicht verändert oder verfälscht werden. Eigene Berechnungen sind
C48: erlaubt, jedoch als solche kenntlich zu machen.
C49: Im Falle einer Zugänglichmachung im Internet soll dies in Form einer
C50: Verlinkung auf die Homepage der Statistik der Bundesagentur für Arbeit
C51: erfolgen.
C52: Die Nutzung der Inhalte für gewerbliche Zwecke, ausgenommen Presse,
C53: Rundfunk und Fernsehen und wissenschaftliche Publikationen, bedarf
C54: der Genehmigung durch die Statistik der Bundesagentur für Arbeit.

Sheet Inhalt
C1: Langzeitarbeitslosigkeit
A4: Inhaltsverzeichnis
A7: Langzeitarbeitslosigkeit (Monatszahlen)
A8: Deutschland, Länder und Regionaldirektionen (RD), Kreise und kreisfreie Städte
A9: 2018-11-01
A11: Tabelle
A12: 1 | B12: Langzeitarbeitslosigkeit und Langzeitleistungsbezug auf einen Blick
A13: 2 | B13: Entwicklung der Arbeitslosigkeit / Langzeitarbeitslosigkeit im Zeitverlauf
A14: 3 | B14: Entwicklung der Arbeitslosigkeit nach Kreisen
A15: 4 | B15: Entwicklung der Arbeitslosigkeit nach Dauern
A16: 5 | B16: Entwicklung der Arbeitslosigkeit / Langzeitarbeitslosigkeit nach soziodemografischen Merkmalen
A17: 6 | B17: Zu- und Abgang in und aus Langzeitarbeitslosigkeit
A18: 7 | B18: Abgang aus Arbeitslosigkeit in Beschäftigung am 1. Arbeitsmarkt nach Wirtschaftszweigen (unmittelbar nach Abgang)
A19: 8 | B19: Abgang aus Arbeitslosigkeit in Beschäftigung am 1. Arbeitsmarkt nach Einmündungsberufen (unmittelbar nach Abgang)
A20: 9 | B20: Abgang aus Arbeitslosigkeit in Beschäftigung am 1. Arbeitsmarkt (Verbleib unmittelbar nach Abgang sowie nach 6 und 12 Monaten)
A21: 10 | B21: Eintritte und Bestand an Teilnehmenden in ausgewählten arbeitsmarktpolitischen Instrumenten
A22: 11 | B22: Kumulierte Austritte von Teilnehmenden aus ausgewählten arbeitsmarktpolitischen Instrumenten untersucht 6 Monate nach Austritt hinsichtlich sozialversicherungspflichtiger Beschäftigung
A23: 12 | B23: Bestand Erwerbsfähige Leistungsberechtigte und Langzeitleistungsbezieher nach ausgewählten Strukturmerkmalen
A26: Abkürzungen und Zeichenerklärungen
A27: - | B27: nichts vorhanden (Zahlenwert genau Null)
A28: * | B28: Zahlenwerte kleiner 3 oder korrespondierende Werte
A29: 0 | B29: mehr als nichts, aber weniger als die Hälfte der kleinsten Einheit, die in der Tabelle zur Darstellung gebracht werden kann
A30: . | B30: kein Nachweis vorhanden
A31: ... | B31: Angaben fallen später an
A32: X | B32: Nachweis ist nicht sinnvoll
A33: .X | B33: Veränderungswert >250%
A34: x | B34: Daten können aufgrund unplausibler Datenlieferungen eines Trägers nicht ausgewiesen werden
A35: RD | B35: Regionaldirektion
A36: SGB | B36: Sozialgesetzbuch
A37: Sp. | B37: Spalte
A38: SVB | B38: Sozialversicherungspflichtig Beschäftigte
A39: WZ | B39: Wirtschaftszweig
A40: JD | B40: Jahresdurchschnitt
A41: JS | B41: Jahressumme

Sheet 1
F1: Langzeitarbeitslosigkeit
A3: 1. Langzeitarbeitslosigkeit und Langzeitleistungsbezug auf einen Blick
A4: =(IF(MID(OFFSET(Strg!F6,Strg!F5-1,0),4,1)="L",MID(OFFSET(Strg!F6,Strg!F5-1,0),4,50),(IF(MID(OFFSET(Strg!F6,Strg!F5-1,0),5,1)="R",MID(OFFSET(Strg!F6,Strg!F5-1,0),5,50),(IF(LEFT(OFFSET(Strg!F6,Strg!F5-1,0),1)="D",OFFSET(Strg!F6,Strg!F5-1,0),MID(OFFSET(Strg!F6,Strg!F5-1,0),7,50))))))&" (Gebietsstand "&TEXT(Impressum!C13,"MMMM JJJJ")&")") -> Deutschland (Gebietsstand November 2018)
A5: November 2018, Datenstand: November 2018
A7: Merkmale | B7: Aktueller Berichtsmonat bzw. gleitende Jahressumme | C7: Anteil in % (Spalte 1) | D7: Vorjahresmonat / Vorjahreszeitraum | E7: Veränderung zum Vorjahresmonat / Vorjahreszeitraum
E8: absolut | F8: in %
B9: 1 | C9: 2 | D9: 3 | E9: 4 | F9: 5
A10: Arbeitslosigkeit
A11: Arbeitslose | B11: =INDEX(roh4B!$A$1:$FF$11882,MATCH(Strg!$H$5&$A$11&"Insgesamt",roh4B!$A$1:$A$11882&roh4B!$D$1:$D$11882&roh4B!$C$1:$C$11882,0),MATCH(Impressum!$C$13,roh4B!$A$1:$FF$1,0)) -> 2186109 | C11: . | D11: =INDEX(roh4B!$A$1:$FF$11882,MATCH(Strg!$H$5&$A$11&"Insgesamt",roh4B!$A$1:$A$11882&roh4B!$D$1:$D$11882&roh4B!$C$1:$C$11882,0),MATCH(EDATE(Impressum!$C$13,-12),roh4B!$A$1:$FF$1,0)) -> 2368411 | E11: =IF(OR(B11="*",D11="*"),"*",IFERROR(B11-D11,"X")) -> -182302 | F11: =IFERROR(IF(OR(B11="*",D11="*"),"*",(IF(OR(100/D11*(B11-D11)>250,100/D11*(B11-D11)<-250),".X",(100/D11*(B11-D11))))),"X") -> -7.697228226
A12: unter 12 Monate | B12: =INDEX(roh4B!$A$1:$FF$11882,MATCH(Strg!$H$5&"Nicht-Langzeitarbeitslose"&"Insgesamt",roh4B!$A$1:$A$11882&roh4B!$D$1:$D$11882&roh4B!$C$1:$C$11882,0),MATCH(Impressum!$C$13,roh4B!$A$1:$FF$1,0)) -> 1421656 | C12: . | D12: =INDEX(roh4B!$A$1:$FF$11882,MATCH(Strg!$H$5&"Nicht-Langzeitarbeitslose"&"Insgesamt",roh4B!$A$1:$A$11882&roh4B!$D$1:$D$11882&roh4B!$C$1:$C$11882,0),MATCH(EDATE(Impressum!$C$13,-12),roh4B!$A$1:$FF$1,0)) -> 1506759 | E12: =IF(OR(B12="*",D12="*"),"*",IFERROR(B12-D12,"X")) -> -85103 | F12: =IFERROR(IF(OR(B12="*",D12="*"),"*",(IF(OR(100/D12*(B12-D12)>250,100/D12*(B12-D12)<-250),".X",(100/D12*(B12-D12))))),"X") -> -5.648083071
A13: Langzeitarbeitslose | B13: =INDEX(roh4B!$A$1:$FF$11882,MATCH(Strg!$H$5&$A$13&"Insgesamt",roh4B!$A$1:$A$11882&roh4B!$D$1:$D$11882&roh4B!$C$1:$C$11882,0),MATCH(Impressum!$C$13,roh4B!$A$1:$FF$1,0)) -> 764453 | C13: 100 | D13: =INDEX(roh4B!$A$1:$FF$11882,MATCH(Strg!$H$5&$A$13&"Insgesamt",roh4B!$A$1:$A$11882&roh4B!$D$1:$D$11882&roh4B!$C$1:$C$11882,0),MATCH(EDATE(Impressum!$C$13,-12),roh4B!$A$1:$FF$1,0)) -> 861652 | E13: =IF(OR(B13="*",D13="*"),"*",IFERROR(B13-D13,"X")) -> -97199 | F13: =IFERROR(IF(OR(B13="*",D13="*"),"*",(IF(OR(100/D13*(B13-D13)>250,100/D13*(B13-D13)<-250),".X",(100/D13*(B13-D13))))),"X") -> -11.28054017
A14: 12 bis unter 24 Monate | B14: =INDEX(roh4B!$A$1:$FF$11882,MATCH(Strg!$H$5&"1 bis unter 2 Jahren"&"Insgesamt",roh4B!$A$1:$A$11882&roh4B!$D$1:$D$11882&roh4B!$C$1:$C$11882,0),MATCH(Impressum!$C$13,roh4B!$A$1:$FF$1,0)) -> 331577 | C14: =IF(OR($B$13="*",B14="*"),"*",IFERROR(100/$B$13*B14,"X")) -> 43.37441282 | D14: =INDEX(roh4B!$A$1:$FF$11882,MATCH(Strg!$H$5&"1 bis unter 2 Jahren"&"Insgesamt",roh4B!$A$1:$A$11882&roh4B!$D$1:$D$11882&roh4B!$C$1:$C$11882,0),MATCH(EDATE(Impressum!$C$13,-12),roh4B!$A$1:$FF$1,0)) -> 370499 | E14: =IF(OR(B14="*",D14="*"),"*",IFERROR(IFERROR(IF(OR((INDEX(Sch!$A$5:$G$25,MATCH(Strg!$H$5,Sch!$A$5:$A$25,0),6)>0),(INDEX(Sch!$A$5:$G$25,MATCH(Strg!$H$5,Sch!$A$5:$A$25,0),7)>0)),"x",B14-D14),B14-D14),"x")) -> -38922 | F14: =IFERROR(IF(E14="*","*",IF(E14="x","x",IF(OR(100/D14*(B14-D14)>250,100/D14*(B14-D14)<-250),".X",(100/D14*(B14-D14))))),"X") -> -10.50529151
A15: 24 bis unter 36 Monate | B15: =INDEX(roh4B!$A$1:$FF$11882,MATCH(Strg!$H$5&"2 bis unter 3 Jahren"&"Insgesamt",roh4B!$A$1:$A$11882&roh4B!$D$1:$D$11882&roh4B!$C$1:$C$11882,0),MATCH(Impressum!$C$13,roh4B!$A$1:$FF$1,0)) -> 144291 | C15: =IF(OR($B$13="*",B15="*"),"*",IFERROR(100/$B$13*B15,"X")) -> 18.87506492 | D15: =INDEX(roh4B!$A$1:$FF$11882,MATCH(Strg!$H$5&"2 bis unter 3 Jahren"&"Insgesamt",roh4B!$A$1:$A$11882&roh4B!$D$1:$D$11882&roh4B!$C$1:$C$11882,0),MATCH(EDATE(Impressum!$C$13,-12),roh4B!$A$1:$FF$1,0)) -> 171230 | E15: =IF(OR(B15="*",D15="*"),"*",IFERROR(IFERROR(IF(OR((INDEX(Sch!$A$5:$G$25,MATCH(Strg!$H$5,Sch!$A$5:$A$25,0),6)>0),(INDEX(Sch!$A$5:$G$25,MATCH(Strg!$H$5,Sch!$A$5:$A$25,0),7)>0)),"x",B15-D15),B15-D15),"x")) -> -26939 | F15: =IFERROR(IF(E15="*","*",IF(E15="x","x",IF(OR(100/D15*(B15-D15)>250,100/D15*(B15-D15)<-250),".X",(100/D15*(B15-D15))))),"X") -> -15.73264031
A16: 36 bis unter 48 Monate | B16: =INDEX(roh4B!$A$1:$FF$11882,MATCH(Strg!$H$5&"3 bis unter 4 Jahren"&"Insgesamt",roh4B!$A$1:$A$11882&roh4B!$D$1:$D$11882&roh4B!$C$1:$C$11882,0),MATCH(Impressum!$C$13,roh4B!$A$1:$FF$1,0)) -> 89630 | C16: =IF(OR($B$13="*",B16="*"),"*",IFERROR(100/$B$13*B16,"X")) -> 11.72472343 | D16: =INDEX(roh4B!$A$1:$FF$11882,MATCH(Strg!$H$5&"3 bis unter 4 Jahren"&"Insgesamt",roh4B!$A$1:$A$11882&roh4B!$D$1:$D$11882&roh4B!$C$1:$C$11882,0),MATCH(EDATE(Impressum!$C$13,-12),roh4B!$A$1:$FF$1,0)) -> 101247 | E16: =IF(OR(B16="*",D16="*"),"*",IFERROR(IFERROR(IF(OR((INDEX(Sch!$A$5:$G$25,MATCH(Strg!$H$5,Sch!$A$5:$A$25,0),6)>0),(INDEX(Sch!$A$5:$G$25,MATCH(Strg!$H$5,Sch!$A$5:$A$25,0),7)>0)),"x",B16-D16),B16-D16),"x")) -> -11617 | F16: =IFERROR(IF(E16="*","*",IF(E16="x","x",IF(OR(100/D16*(B16-D16)>250,100/D16*(B16-D16)<-250),".X",(100/D16*(B16-D16))))),"X") -> -11.47392021
A17: 48 Monate und länger | B17: =IF(B14="x","x",IF(OR(INDEX('4'!$A$134:$J$157,MATCH(Impressum!$C$13,'4'!$A$134:$A$157,0),9)="*",INDEX('4'!$A$134:$J$157,MATCH(Impressum!$C$13,'4'!$A$134:$A$157,0),10)="*"),"*",INDEX('4'!$A$134:$J$157,MATCH(Impressum!$C$13,'4'!$A$134:$A$157,0),9)+INDEX('4'!$A$134:$J$157,MATCH(Impressum!$C$13,'4'!$A$134:$A$157,0),10))) -> 198412 | C17: =IF(OR($B$13="*",B17="*"),"*",IFERROR(100/$B$13*B17,"X")) -> 25.95476766 | D17: =IF(D14="x","x",IF(OR(INDEX('4'!$A$134:$J$157,MATCH(EDATE(Impressum!$C$13,-12),'4'!$A$134:$A$157,0),9)="*",INDEX('4'!$A$134:$J$157,MATCH(EDATE(Impressum!$C$13,-12),'4'!$A$134:$A$157,0),10)="*"),"*",INDEX('4'!$A$134:$J$157,MATCH(EDATE(Impressum!$C$13,-12),'4'!$A$134:$A$157,0),9)+INDEX('4'!$A$134:$J$157,MATCH(EDATE(Impressum!$C$13,-12),'4'!$A$134:$A$157,0),10))) -> 218676 | E17: =IF(OR(B17="*",D17="*"),"*",IFERROR(IFERROR(IF(OR((INDEX(Sch!$A$5:$G$25,MATCH(Strg!$H$5,Sch!$A$5:$A$25,0),6)>0),(INDEX(Sch!$A$5:$G$25,MATCH(Strg!$H$5,Sch!$A$5:$A$25,0),7)>0)),"x",B17-D17),B17-D17),"x")) -> -20264 | F17: =IFERROR(IF(E17="*","*",IF(E17="x","x",IF(OR(100/D17*(B17-D17)>250,100/D17*(B17-D17)<-250),".X",(100/D17*(B17-D17))))),"X") -> -9.266677642
A18: Zugang in Langzeitarbeitslosigkeit (Dezember 2017 bis November 2018) | B18: ='6'!H13 -> 1149091 | C18: 100 | D18: ='6'!I13 -> 1270398 | E18: ='6'!J13 -> -121307 | F18: ='6'!K13 -> -9.548739844
A19: dar. Unterbrecher | B19: ='6'!H14 -> 569758 | C19: =IF(OR($B$18="*",B19="*"),"*",IFERROR(100/$B$18*B19,"X")) -> 49.58336633 | D19: ='6'!I14 -> 632805 | E19: ='6'!J14 -> -63047 | F19: ='6'!K14 -> -9.963100797
A20: Übertritte | B20: ='6'!H15 -> 579333 | C20: =IF(OR($B$18="*",B20="*"),"*",IFERROR(100/$B$18*B20,"X")) -> 50.41663367 | D20: ='6'!I15 -> 637593 | E20: ='6'!J15 -> -58260 | F20: ='6'!K15 -> -9.137490531
A21: Abgang aus Langzeitarbeitslosigkeit (Dezember 2017 bis November 2018) | B21: ='6'!H16 -> 1246290 | C21: 100 | D21: ='6'!I16 -> 1352082 | E21: ='6'!J16 -> -105792 | F21: ='6'!K16 -> -7.824377516
A22: dar. in Beschäftigung am 1. Arbeitsmarkt | B22: ='6'!H18 -> 146692 | C22: =IF(OR($B$21="*",B22="*"),"*",IFERROR(100/$B$21*B22,"X")) -> 11.77029423 | D22: ='6'!I18 -> 163324 | E22: ='6'!J18 -> -16632 | F22: =IFERROR(IF(E22="x","x",IF(OR(B22="*",D22="*"),"*",(IF(OR(100/D22*(B22-D22)>250,100/D22*(B22-D22)<-250),".X",(100/D22*(B22-D22)))))),"X") -> -10.18343905
A23: dar. in Beschäftigung am 2. Arbeitsmarkt | B23: ='6'!H19 -> 40761 | C23: =IF(OR($B$21="*",B23="*"),"*",IFERROR(100/$B$21*B23,"X")) -> 3.270587103 | D23: ='6'!I19 -> 48230 | E23: ='6'!J19 -> -7469 | F23: ='6'!K19 -> -15.4862119
A24: dar. in Ausbildung und sonstige Maßnahmeteilnahme | B24: ='6'!H23 -> 268107 | C24: =IF(OR($B$21="*",B24="*"),"*",IFERROR(100/$B$21*B24,"X")) -> 21.51240883 | D24: ='6'!I23 -> 295326 | E24: ='6'!J23 -> -27219 | F24: ='6'!K23 -> -9.216594543
A25: dar. Nichterwerbstätigkeit (ohne Ausbildung) und sonstige Gründe/keine Angabe | B25: =IFERROR((IF(OR('6'!H27="*",'6'!H32="*"),"*",(IF(OR('6'!H27="x",'6'!H32="x"),"x",'6'!H27+'6'!H32)))),".") -> 779632 | C25: =IF(OR($B$21="*",B25="*"),"*",IFERROR(100/$B$21*B25,"X")) -> 62.55622688 | D25: =IFERROR((IF(OR('6'!I27="*",'6'!I32="*"),"*",(IF(OR('6'!I27="x",'6'!I32="x"),"x",'6'!I27+'6'!I32)))),".") -> 832412 | E25: =IFERROR((IF(OR('6'!J27="*",'6'!J32="*"),"*",(IF(OR('6'!J27="x",'6'!J32="x"),"x",'6'!J27+'6'!J32)))),".") -> -52780 | F25: =IFERROR(IF(E25="x","x",IF(OR(B25="*",D25="*"),"*",(IF(OR(100/D25*(B25-D25)>250,100/D25*(B25-D25)<-250),".X",(100/D25*(B25-D25)))))),"X") -> -6.340610179
A26: Langzeitarbeitslose nach ausgewählten Merkmalen
A27: Altersstruktur
A28: 15 bis unter 25 Jahre | B28: =OFFSET(INDEX('roh5'!$A$1:$W$14117,MATCH(Strg!$H$5&"Insgesamt",'roh5'!$A$1:$A$14117&'roh5'!$C$1:$C$14117,0),MATCH("Insg"&"4",'roh5'!$E$1:$W$1&'roh5'!$E$5:$W$5,0)),ROW()-25,4) -> 19207 | C28: =IF(OR($B$13="*",B28="*"),"*",IFERROR(100/$B$13*B28,"X")) -> 2.512515485 | D28: =OFFSET(INDEX('roh5'!$A$1:$W$14117,MATCH(Strg!$H$5&"Insgesamt",'roh5'!$A$1:$A$14117&'roh5'!$C$1:$C$14117,0),MATCH("Insg"&"8",'roh5'!$E$1:$W$1&'roh5'!$E$5:$W$5,0)),ROW()-25,4) -> 22259 | E28: =OFFSET(INDEX('roh5'!$A$1:$W$14117,MATCH(Strg!$H$5&"Insgesamt",'roh5'!$A$1:$A$14117&'roh5'!$C$1:$C$14117,0),MATCH("Insg"&"5",'roh5'!$E$1:$W$1&'roh5'!$E$5:$W$5,0)),ROW()-25,4) -> -3052 | F28: =OFFSET(INDEX('roh5'!$A$1:$W$14117,MATCH(Strg!$H$5&"Insgesamt",'roh5'!$A$1:$A$14117&'roh5'!$C$1:$C$14117,0),MATCH("Insg"&"6",'roh5'!$E$1:$W$1&'roh5'!$E$5:$W$5,0)),ROW()-25,4) -> -13.71130779
A29: 25 bis unter 35 Jahre | B29: =OFFSET(INDEX('roh5'!$A$1:$W$14117,MATCH(Strg!$H$5&"Insgesamt",'roh5'!$A$1:$A$14117&'roh5'!$C$1:$C$14117,0),MATCH("Insg"&"4",'roh5'!$E$1:$W$1&'roh5'!$E$5:$W$5,0)),ROW()-25,4) -> 136337 | C29: =IF(OR($B$13="*",B29="*"),"*",IFERROR(100/$B$13*B29,"X")) -> 17.83458237 | D29: =OFFSET(INDEX('roh5'!$A$1:$W$14117,MATCH(Strg!$H$5&"Insgesamt",'roh5'!$A$1:$A$14117&'roh5'!$C$1:$C$14117,0),MATCH("Insg"&"8",'roh5'!$E$1:$W$1&'roh5'!$E$5:$W$5,0)),ROW()-25,4) -> 157475 | E29: =OFFSET(INDEX('roh5'!$A$1:$W$14117,MATCH(Strg!$H$5&"Insgesamt",'roh5'!$A$1:$A$14117&'roh5'!$C$1:$C$14117,0),MATCH("Insg"&"5",'roh5'!$E$1:$W$1&'roh5'!$E$5:$W$5,0)),ROW()-25,4) -> -21138 | F29: =OFFSET(INDEX('roh5'!$A$1:$W$14117,MATCH(Strg!$H$5&"Insgesamt",'roh5'!$A$1:$A$14117&'roh5'!$C$1:$C$14117,0),MATCH("Insg"&"6",'roh5'!$E$1:$W$1&'roh5'!$E$5:$W$5,0)),ROW()-25,4) -> -13.42308303
A30: 35 bis unter 45 Jahre | B30: =OFFSET(INDEX('roh5'!$A$1:$W$14117,MATCH(Strg!$H$5&"Insgesamt",'roh5'!$A$1:$A$14117&'roh5'!$C$1:$C$14117,0),MATCH("Insg"&"4",'roh5'!$E$1:$W$1&'roh5'!$E$5:$W$5,0)),ROW()-25,4) -> 176618 | C30: =IF(OR($B$13="*",B30="*"),"*",IFERROR(100/$B$13*B30,"X")) -> 23.10384026 | D30: =OFFSET(INDEX('roh5'!$A$1:$W$14117,MATCH(Strg!$H$5&"Insgesamt",'roh5'!$A$1:$A$14117&'roh5'!$C$1:$C$14117,0),MATCH("Insg"&"8",'roh5'!$E$1:$W$1&'roh5'!$E$5:$W$5,0)),ROW()-25,4) -> 197675 | E30: =OFFSET(INDEX('roh5'!$A$1:$W$14117,MATCH(Strg!$H$5&"Insgesamt",'roh5'!$A$1:$A$14117&'roh5'!$C$1:$C$14117,0),MATCH("Insg"&"5",'roh5'!$E$1:$W$1&'roh5'!$E$5:$W$5,0)),ROW()-25,4) -> -21057 | F30: =OFFSET(INDEX('roh5'!$A$1:$W$14117,MATCH(Strg!$H$5&"Insgesamt",'roh5'!$A$1:$A$14117&'roh5'!$C$1:$C$14117,0),MATCH("Insg"&"6",'roh5'!$E$1:$W$1&'roh5'!$E$5:$W$5,0)),ROW()-25,4) -> -10.65233338
A31: 45 bis unter 55 Jahre | B31: =OFFSET(INDEX('roh5'!$A$1:$W$14117,MATCH(Strg!$H$5&"Insgesamt",'roh5'!$A$1:$A$14117&'roh5'!$C$1:$C$14117,0),MATCH("Insg"&"4",'roh5'!$E$1:$W$1&'roh5'!$E$5:$W$5,0)),ROW()-25,4) -> 207480 | C31: =IF(OR($B$13="*",B31="*"),"*",IFERROR(100/$B$13*B31,"X")) -> 27.14097531 | D31: =OFFSET(INDEX('roh5'!$A$1:$W$14117,MATCH(Strg!$H$5&"Insgesamt",'roh5'!$A$1:$A$14117&'roh5'!$C$1:$C$14117,0),MATCH("Insg"&"8",'roh5'!$E$1:$W$1&'roh5'!$E$5:$W$5,0)),ROW()-25,4) -> 240849 | E31: =OFFSET(INDEX('roh5'!$A$1:$W$14117,MATCH(Strg!$H$5&"Insgesamt",'roh5'!$A$1:$A$14117&'roh5'!$C$1:$C$14117,0),MATCH("Insg"&"5",'roh5'!$E$1:$W$1&'roh5'!$E$5:$W$5,0)),ROW()-25,4) -> -33369 | F31: =OFFSET(INDEX('roh5'!$A$1:$W$14117,MATCH(Strg!$H$5&"Insgesamt",'roh5'!$A$1:$A$14117&'roh5'!$C$1:$C$14117,0),MATCH("Insg"&"6",'roh5'!$E$1:$W$1&'roh5'!$E$5:$W$5,0)),ROW()-25,4) -> -13.85473886
A32: 55 Jahre und älter | B32: =OFFSET(INDEX('roh5'!$A$1:$W$14117,MATCH(Strg!$H$5&"Insgesamt",'roh5'!$A$1:$A$14117&'roh5'!$C$1:$C$14117,0),MATCH("Insg"&"4",'roh5'!$E$1:$W$1&'roh5'!$E$5:$W$5,0)),ROW()-25,4) -> 224683 | C32: =IF(OR($B$13="*",B32="*"),"*",IFERROR(100/$B$13*B32,"X")) -> 29.39134257 | D32: =OFFSET(INDEX('roh5'!$A$1:$W$14117,MATCH(Strg!$H$5&"Insgesamt",'roh5'!$A$1:$A$14117&'roh5'!$C$1:$C$14117,0),MATCH("Insg"&"8",'roh5'!$E$1:$W$1&'roh5'!$E$5:$W$5,0)),ROW()-25,4) -> 243284 | E32: =OFFSET(INDEX('roh5'!$A$1:$W$14117,MATCH(Strg!$H$5&"Insgesamt",'roh5'!$A$1:$A$14117&'roh5'!$C$1:$C$14117,0),MATCH("Insg"&"5",'roh5'!$E$1:$W$1&'roh5'!$E$5:$W$5,0)),ROW()-25,4) -> -18601 | F32: =OFFSET(INDEX('roh5'!$A$1:$W$14117,MATCH(Strg!$H$5&"Insgesamt",'roh5'!$A$1:$A$14117&'roh5'!$C$1:$C$14117,0),MATCH("Insg"&"6",'roh5'!$E$1:$W$1&'roh5'!$E$5:$W$5,0)),ROW()-25,4) -> -7.645796682
A33: Staatsangehörigkeit
A34: Deutsche | B34: =OFFSET(INDEX('roh5'!$A$1:$W$14117,MATCH(Strg!$H$5&"Insgesamt",'roh5'!$A$1:$A$14117&'roh5'!$C$1:$C$14117,0),MATCH("Insg"&"4",'roh5'!$E$1:$W$1&'roh5'!$E$5:$W$5,0)),ROW()-24,4) -> 587173 | C34: =IF(OR($B$13="*",B34="*"),"*",IFERROR(100/$B$13*B34,"X")) -> 76.80956187 | D34: =OFFSET(INDEX('roh5'!$A$1:$W$14117,MATCH(Strg!$H$5&"Insgesamt",'roh5'!$A$1:$A$14117&'roh5'!$C$1:$C$14117,0),MATCH("Insg"&"8",'roh5'!$E$1:$W$1&'roh5'!$E$5:$W$5,0)),ROW()-24,4) -> 666036 | E34: =OFFSET(INDEX('roh5'!$A$1:$W$14117,MATCH(Strg!$H$5&"Insgesamt",'roh5'!$A$1:$A$14117&'roh5'!$C$1:$C$14117,0),MATCH("Insg"&"5",'roh5'!$E$1:$W$1&'roh5'!$E$5:$W$5,0)),ROW()-24,4) -> -78863 | F34: =OFFSET(INDEX('roh5'!$A$1:$W$14117,MATCH(Strg!$H$5&"Insgesamt",'roh5'!$A$1:$A$14117&'roh5'!$C$1:$C$14117,0),MATCH("Insg"&"6",'roh5'!$E$1:$W$1&'roh5'!$E$5:$W$5,0)),ROW()-24,4) -> -11.84065126
A35: Ausländer | B35: =OFFSET(INDEX('roh5'!$A$1:$W$14117,MATCH(Strg!$H$5&"Insgesamt",'roh5'!$A$1:$A$14117&'roh5'!$C$1:$C$14117,0),MATCH("Insg"&"4",'roh5'!$E$1:$W$1&'roh5'!$E$5:$W$5,0)),ROW()-24,4) -> 175543 | C35: =IF(OR($B$13="*",B35="*"),"*",IFERROR(100/$B$13*B35,"X")) -> 22.96321684 | D35: =OFFSET(INDEX('roh5'!$A$1:$W$14117,MATCH(Strg!$H$5&"Insgesamt",'roh5'!$A$1:$A$14117&'roh5'!$C$1:$C$14117,0),MATCH("Insg"&"8",'roh5'!$E$1:$W$1&'roh5'!$E$5:$W$5,0)),ROW()-24,4) -> 193838 | E35: =OFFSET(INDEX('roh5'!$A$1:$W$14117,MATCH(Strg!$H$5&"Insgesamt",'roh5'!$A$1:$A$14117&'roh5'!$C$1:$C$14117,0),MATCH("Insg"&"5",'roh5'!$E$1:$W$1&'roh5'!$E$5:$W$5,0)),ROW()-24,4) -> -18295 | F35: =OFFSET(INDEX('roh5'!$A$1:$W$14117,MATCH(Strg!$H$5&"Insgesamt",'roh5'!$A$1:$A$14117&'roh5'!$C$1:$C$14117,0),MATCH("Insg"&"6",'roh5'!$E$1:$W$1&'roh5'!$E$5:$W$5,0)),ROW()-24,4) -> -9.438293833
A36: Letzte abgeschlossene Berufsausbildung
A37: ohne abgeschl. Berufsausbildung | B37: =OFFSET(INDEX('roh5'!$A$1:$W$14117,MATCH(Strg!$H$5&"Insgesamt",'roh5'!$A$1:$A$14117&'roh5'!$C$1:$C$14117,0),MATCH("Insg"&"4",'roh5'!$E$1:$W$1&'roh5'!$E$5:$W$5,0)),ROW()-17,4) -> 433842 | C37: =IF(OR($B$13="*",B37="*"),"*",IFERROR(100/$B$13*B37,"X")) -> 56.75195205 | D37: =OFFSET(INDEX('roh5'!$A$1:$W$14117,MATCH(Strg!$H$5&"Insgesamt",'roh5'!$A$1:$A$14117&'roh5'!$C$1:$C$14117,0),MATCH("Insg"&"8",'roh5'!$E$1:$W$1&'roh5'!$E$5:$W$5,0)),ROW()-17,4) -> 462880 | E37: =OFFSET(INDEX('roh5'!$A$1:$W$14117,MATCH(Strg!$H$5&"Insgesamt",'roh5'!$A$1:$A$14117&'roh5'!$C$1:$C$14117,0),MATCH("Insg"&"5",'roh5'!$E$1:$W$1&'roh5'!$E$5:$W$5,0)),ROW()-17,4) -> -29038 | F37: =OFFSET(INDEX('roh5'!$A$1:$W$14117,MATCH(Strg!$H$5&"Insgesamt",'roh5'!$A$1:$A$14117&'roh5'!$C$1:$C$14117,0),MATCH("Insg"&"6",'roh5'!$E$1:$W$1&'roh5'!$E$5:$W$5,0)),ROW()-17,4) -> -6.273332181
A38: betriebliche/schulische Ausbildung | B38: =OFFSET(INDEX('roh5'!$A$1:$W$14117,MATCH(Strg!$H$5&"Insgesamt",'roh5'!$A$1:$A$14117&'roh5'!$C$1:$C$14117,0),MATCH("Insg"&"4",'roh5'!$E$1:$W$1&'roh5'!$E$5:$W$5,0)),ROW()-17,4) -> 286703 | C38: =IF(OR($B$13="*",B38="*"),"*",IFERROR(100/$B$13*B38,"X")) -> 37.50433316 | D38: =OFFSET(INDEX('roh5'!$A$1:$W$14117,MATCH(Strg!$H$5&"Insgesamt",'roh5'!$A$1:$A$14117&'roh5'!$C$1:$C$14117,0),MATCH("Insg"&"8",'roh5'!$E$1:$W$1&'roh5'!$E$5:$W$5,0)),ROW()-17,4) -> 329520 | E38: =OFFSET(INDEX('roh5'!$A$1:$W$14117,MATCH(Strg!$H$5&"Insgesamt",'roh5'!$A$1:$A$14117&'roh5'!$C$1:$C$14117,0),MATCH("Insg"&"5",'roh5'!$E$1:$W$1&'roh5'!$E$5:$W$5,0)),ROW()-17,4) -> -42817 | F38: =OFFSET(INDEX('roh5'!$A$1:$W$14117,MATCH(Strg!$H$5&"Insgesamt",'roh5'!$A$1:$A$14117&'roh5'!$C$1:$C$14117,0),MATCH("Insg"&"6",'roh5'!$E$1:$W$1&'roh5'!$E$5:$W$5,0)),ROW()-17,4) -> -12.99374848
A39: akademische Ausbildung | B39: =OFFSET(INDEX('roh5'!$A$1:$W$14117,MATCH(Strg!$H$5&"Insgesamt",'roh5'!$A$1:$A$14117&'roh5'!$C$1:$C$14117,0),MATCH("Insg"&"4",'roh5'!$E$1:$W$1&'roh5'!$E$5:$W$5,0)),ROW()-17,4) -> 35571 | C39: =IF(OR($B$13="*",B39="*"),"*",IFERROR(100/$B$13*B39,"X")) -> 4.653131062 | D39: =OFFSET(INDEX('roh5'!$A$1:$W$14117,MATCH(Strg!$H$5&"Insgesamt",'roh5'!$A$1:$A$14117&'roh5'!$C$1:$C$14117,0),MATCH("Insg"&"8",'roh5'!$E$1:$W$1&'roh5'!$E$5:$W$5,0)),ROW()-17,4) -> 39624 | E39: =OFFSET(INDEX('roh5'!$A$1:$W$14117,MATCH(Strg!$H$5&"Insgesamt",'roh5'!$A$1:$A$14117&'roh5'!$C$1:$C$14117,0),MATCH("Insg"&"5",'roh5'!$E$1:$W$1&'roh5'!$E$5:$W$5,0)),ROW()-17,4) -> -4053 | F39: =OFFSET(INDEX('roh5'!$A$1:$W$14117,MATCH(Strg!$H$5&"Insgesamt",'roh5'!$A$1:$A$14117&'roh5'!$C$1:$C$14117,0),MATCH("Insg"&"6",'roh5'!$E$1:$W$1&'roh5'!$E$5:$W$5,0)),ROW()-17,4) -> -10.2286493
A40: ohne Angabe | B40: =OFFSET(INDEX('roh5'!$A$1:$W$14117,MATCH(Strg!$H$5&"Insgesamt",'roh5'!$A$1:$A$14117&'roh5'!$C$1:$C$14117,0),MATCH("Insg"&"4",'roh5'!$E$1:$W$1&'roh5'!$E$5:$W$5,0)),ROW()-17,4) -> 8337 | C40: =IF(OR($B$13="*",B40="*"),"*",IFERROR(100/$B$13*B40,"X")) -> 1.090583725 | D40: =OFFSET(INDEX('roh5'!$A$1:$W$14117,MATCH(Strg!$H$5&"Insgesamt",'roh5'!$A$1:$A$14117&'roh5'!$C$1:$C$14117,0),MATCH("Insg"&"8",'roh5'!$E$1:$W$1&'roh5'!$E$5:$W$5,0)),ROW()-17,4) -> 29628 | E40: =OFFSET(INDEX('roh5'!$A$1:$W$14117,MATCH(Strg!$H$5&"Insgesamt",'roh5'!$A$1:$A$14117&'roh5'!$C$1:$C$14117,0),MATCH("Insg"&"5",'roh5'!$E$1:$W$1&'roh5'!$E$5:$W$5,0)),ROW()-17,4) -> -21291 | F40: =OFFSET(INDEX('roh5'!$A$1:$W$14117,MATCH(Strg!$H$5&"Insgesamt",'roh5'!$A$1:$A$14117&'roh5'!$C$1:$C$14117,0),MATCH("Insg"&"6",'roh5'!$E$1:$W$1&'roh5'!$E$5:$W$5,0)),ROW()-17,4) -> -71.86107736
A42: Merkmale | B42: Juli 2018 | C42: Anteil in % | D42: Vorjahresmonat | E42: Veränderung zum Vorjahresmonat
E43: absolut | F43: in %
B44: 1 | C44: 2 | D44: 3 | E44: 4 | F44: 5
A45: Leistungsbezug (Daten mit einer Wartezeit von 3 Monaten)
A46: Erwerbsfähige Leistungsberechtigte | B46: ='12'!B15 -> 4145693 | C46: 100 | D46: ='12'!E15 -> 4395152 | E46: =IFERROR(IF(OR(B46="*",D46="*"),"*",B46-D46),"X") -> -249459 | F46: =IFERROR(IF(OR(B46="*",D46="*"),"*",(IF(OR(100/D46*(B46-D46)>250,100/D46*(B46-D46)<-250),".X",100/D46*(B46-D46)))),"X") -> -5.675776401
A47: dar. Arbeitslose | B47: ='12'!C15 -> 1529227 | C47: =IFERROR(IF(OR($B$46="*",B47="*"),"*",100/$B$46*B47),"X") -> 36.88712599 | D47: ='12'!F15 -> 1665360.537 | E47: -136133.5371 | F47: -8.174418338
A48: dar. Langzeitarbeitslose | B48: ='12'!D15 -> 690834 | C48: =IFERROR(IF(OR($B$46="*",B48="*"),"*",100/$B$46*B48),"X") -> 16.66389672 | D48: ='12'!G15 -> 767099.4407 | E48: -76265.44071 | F48: -9.942054011
A49: Langzeitleistungsbezieher | B49: ='12'!B34 -> 2795950.837 | C49: =IFERROR(IF(OR($B$46="*",B49="*"),"*",100/$B$46*B49),"X") -> 67.44230306 | D49: ='12'!E34 -> 2763404.833 | E49: 32546.00346 | F49: 1.17775011
A50: dar. Arbeitslose | B50: ='12'!C34 -> 1091680.766 | C50: =IFERROR(IF(OR($B$46="*",B50="*"),"*",100/$B$46*B50),"X") -> 26.33288974 | D50: ='12'!F34 -> 1133495.988 | E50: -41815.22171 | F50: -3.689048938
A51: dar. Langzeitarbeitslose | B51: ='12'!D34 -> 607441.4226 | C51: =IFERROR(IF(OR($B$46="*",B51="*"),"*",100/$B$46*B51),"X") -> 14.65234938 | D51: ='12'!G34 -> 669483.1864 | E51: -62041.7638 | F51: -9.26711306
A52: Erstellungsdatum: 28.11.2018, Statistik der Bundesagentur für Arbeit | F52: © Statistik der Bundesagentur für Arbeit
A54: *) Aus Datenschutzgründen und Gründen der statistischen Geheimhaltung werden Zahlenwerte von 1 oder 2 und Daten, aus denen rechnerisch auf einen solchen Zahlenwert geschlossen werden kann, anonymisiert.
A55: x) Bei unvollständigen oder unplausiblen Datenlieferungen zugelassener kommunaler Träger (zkT) werden nicht alle Merkmale geschätzt. Sie werden in diesem Fall der Ausprägung "keine/ohne Angabe" zugeordnet. Näheres kann den Methodischen Hinweisen "Schätzungen in der Statistik der Arbeitslosen und Arbeitsuchenden" entnommen werden.

Sheet 2
M1: Langzeitarbeitslosigkeit
A3: ="2. Entwicklung der Arbeitslosigkeit im Zeitverlauf "&CHAR(151)&" "&OFFSET(Strg!A6,Strg!A5-1,0) -> 2. Entwicklung der Arbeitslosigkeit im Zeitverlauf — Rechtskreis Insgesamt
A4: ='1'!A4 -> Deutschland (Gebietsstand November 2018)
A5: Januar 2008 bis November 2018, Berichtsmonate und Jahresdurchschnitte (JD), Datenstand: November 2018
A7: Datenrevisionen können zu Abweichungen gegenüber Auswertungen mit früherem Erstellungsdatum führen.
A9: Jahresdurchschnitt / Berichtsmonat | B9: Arbeitslose1) | C9: Vorjahresveränderung | E9: dar. (Sp. 1) | F9: Vorjahresveränderung | H9: dar. (Sp. 1) | I9: Vorjahresveränderung | K9: Anteil Langzeit- arbeitslose an Insgesamt (Sp. 7 an Sp. 1) | L9: Arbeitslosen- quote2) | M9: Anteilige LZA-Quote3)
C10: absolut | D10: in % | E10: Nicht-Langzeit- arbeitslose | F10: absolut | G10: in % | H10: Langzeit- arbeitslose | I10: absolut | J10: in %
B11: 1 | C11: 2 | D11: 3 | E11: 4 | F11: 5 | G11: 6 | H11: 7 | I11: 8 | J11: 9 | K11: 10 | L11: 11 | M11: 12
A12: Jahresdurchschnitt
A13: 2008 | B13: =SUM(B25:B36)/12 -> 3258953.583 | C13: =IFERROR((SUM(C25:C36)/12),".") -> -501632.3333 | D13: =IFERROR(IF(OR(100/(B13-C13)*C13>250,100/(B13-C13)*C13<-250),".X",100/(B13-C13)*C13),"X") -> -13.33920683 | E13: =SUM(E25:E36)/12 -> 1932414 | F13: =IFERROR((SUM(F25:F36)/12),".") -> -95145.75 | G13: =IFERROR(IF(OR(100/(E13-F13)*F13>250,100/(E13-F13)*F13<-250),".X",100/(E13-F13)*F13),"X") -> -4.692623732 | H13: =SUM(H25:H36)/12 -> 1326539.583 | I13: =IFERROR((SUM(I25:I36)/12),".") -> -406486.5833 | J13: =IFERROR(IF(OR(100/(H13-I13)*I13>250,100/(H13-I13)*I13<-250),".X",100/(H13-I13)*I13),"X") -> -23.45530559 | K13: =IFERROR(100/B13*H13,"X") -> 40.70446385 | L13: =IFERROR((ROUND(100/(INDEX(Bzg!$A$1:$FC$438,MATCH(Strg!$H$5,Bzg!$A$1:$A$438,0),MATCH('2'!$A13,Bzg!$A$1:$FC$1,0)))*'2'!$B13,1)),".") -> 7.8 | M13: =IFERROR((ROUND(100/(INDEX(Bzg!$A$1:$FC$438,MATCH(Strg!$H$5,Bzg!$A$1:$A$438,0),MATCH('2'!$A13,Bzg!$A$1:$FC$1,0)))*'2'!$H13,1)),".") -> 3.2
A14: 2009 | B14: =SUM(B37:B48)/12 -> 3414991.583 | C14: =IFERROR(B14-B13,".") -> 156038 | D14: =IFERROR(IF(OR(100/B13*(B14-B13)>250,100/B13*(B14-B13)<-250),".X",100/B13*(B14-B13)),"X") -> 4.787978595 | E14: =SUM(E37:E48)/12 -> 2276860 | F14: =IFERROR(E14-E13,".") -> 344446 | G14: =IFERROR(IF(OR(100/E13*(E14-E13)>250,100/E13*(E14-E13)<-250),".X",100/E13*(E14-E13)),"X") -> 17.82464834 | H14: =SUM(H37:H48)/12 -> 1138131.583 | I14: =IFERROR(H14-H13,".") -> -188408 | J14: =IFERROR(IF(OR(100/H13*(H14-H13)>250,100/H13*(H14-H13)<-250),".X",100/H13*(H14-H13)),"X") -> -14.20296856 | K14: =IFERROR(100/B14*H14,"X") -> 33.32750771 | L14: =IFERROR((ROUND(100/(INDEX(Bzg!$A$1:$FC$438,MATCH(Strg!$H$5,Bzg!$A$1:$A$438,0),MATCH('2'!$A14,Bzg!$A$1:$FC$1,0)))*'2'!$B14,1)),".") -> 8.1 | M14: =IFERROR((ROUND(100/(INDEX(Bzg!$A$1:$FC$438,MATCH(Strg!$H$5,Bzg!$A$1:$A$438,0),MATCH('2'!$A14,Bzg!$A$1:$FC$1,0)))*'2'!$H14,1)),".") -> 2.7
A15: 2010 | B15: =SUM(B49:B60)/12 -> 3238964.583 | C15: -176027 | D15: =IFERROR(IF(OR(100/B14*(B15-B14)>250,100/B14*(B15-B14)<-250),".X",100/B14*(B15-B14)),"X") -> -5.154536862 | E15: =SUM(E49:E60)/12 -> 2098596.333 | F15: -178263.6667 | G15: =IFERROR(IF(OR(100/E14*(E15-E14)>250,100/E14*(E15-E14)<-250),".X",100/E14*(E15-E14)),"X") -> -7.829364417 | H15: =SUM(H49:H60)/12 -> 1140368.25 | I15: 2236.666667 | J15: =IFERROR(IF(OR(100/H14*(H15-H14)>250,100/H14*(H15-H14)<-250),".X",100/H14*(H15-H14)),"X") -> 0.1965209207 | K15: 35.20780239 | L15: =IFERROR((ROUND(100/(INDEX(Bzg!$A$1:$FC$438,MATCH(Strg!$H$5,Bzg!$A$1:$A$438,0),MATCH('2'!$A15,Bzg!$A$1:$FC$1,0)))*'2'!$B15,1)),".") -> 7.7 | M15: =IFERROR((ROUND(100/(INDEX(Bzg!$A$1:$FC$438,MATCH(Strg!$H$5,Bzg!$A$1:$A$438,0),MATCH('2'!$A15,Bzg!$A$1:$FC$1,0)))*'2'!$H15,1)),".") -> 2.7
A16: 2011 | B16: =SUM(B61:B72)/12 -> 2976487.667 | C16: -262476.9167 | D16: -8.103729137 | E16: =SUM(E61:E72)/12 -> 1908358.167 | F16: -190238.1667 | G16: -9.065019492 | H16: =SUM(H61:H72)/12 -> 1068129.5 | I16: -72238.75 | J16: -6.334686186 | K16: 35.88556781 | L16: =IFERROR((ROUND(100/(INDEX(Bzg!$A$1:$FC$438,MATCH(Strg!$H$5,Bzg!$A$1:$A$438,0),MATCH('2'!$A16,Bzg!$A$1:$FC$1,0)))*'2'!$B16,1)),".") -> 7.1 | M16: =IFERROR((ROUND(100/(INDEX(Bzg!$A$1:$FC$438,MATCH(Strg!$H$5,Bzg!$A$1:$A$438,0),MATCH('2'!$A16,Bzg!$A$1:$FC$1,0)))*'2'!$H16,1)),".") -> 2.5
A17: 2012 | B17: =SUM(B73:B84)/12 -> 2897126.417 | C17: -79361.25 | D17: -2.666271757 | E17: =SUM(E73:E84)/12 -> 1850491 | F17: -57867.16667 | G17: -3.032301152 | H17: =SUM(H73:H84)/12 -> 1046635.417 | I17: -21494.08333 | J17: -2.012310617 | K17: 36.12667403 | L17: =IFERROR((ROUND(100/(INDEX(Bzg!$A$1:$FC$438,MATCH(Strg!$H$5,Bzg!$A$1:$A$438,0),MATCH('2'!$A17,Bzg!$A$1:$FC$1,0)))*'2'!$B17,1)),".") -> 6.8 | M17: =IFERROR((ROUND(100/(INDEX(Bzg!$A$1:$FC$438,MATCH(Strg!$H$5,Bzg!$A$1:$A$438,0),MATCH('2'!$A17,Bzg!$A$1:$FC$1,0)))*'2'!$H17,1)),".") -> 2.5
A18: 2013 | B18: =SUM(B85:B96)/12 -> 2950337.5 | C18: 53211.08333 | D18: 1.836684897 | E18: =SUM(E85:E96)/12 -> 1880616.333 | F18: 30125.33333 | G18: 1.627964326 | H18: =SUM(H85:H96)/12 -> 1069721.167 | I18: 23085.75 | J18: 2.20571076 | K18: 36.25758635 | L18: =IFERROR((ROUND(100/(INDEX(Bzg!$A$1:$FC$438,MATCH(Strg!$H$5,Bzg!$A$1:$A$438,0),MATCH('2'!$A18,Bzg!$A$1:$FC$1,0)))*'2'!$B18,1)),".") -> 6.9 | M18: =IFERROR((ROUND(100/(INDEX(Bzg!$A$1:$FC$438,MATCH(Strg!$H$5,Bzg!$A$1:$A$438,0),MATCH('2'!$A18,Bzg!$A$1:$FC$1,0)))*'2'!$H18,1)),".") -> 2.5
A19: 2014 | B19: =SUM(B97:B108)/12 -> 2898388.083 | C19: -51949.41667 | D19: -1.760795728 | E19: =SUM(E97:E108)/12 -> 1821636.5 | F19: -58979.83333 | G19: -3.136197016 | H19: =SUM(H97:H108)/12 -> 1076751.583 | I19: 7030.416667 | J19: 0.6572195527 | K19: 37.15001416 | L19: =IFERROR((ROUND(100/(INDEX(Bzg!$A$1:$FC$438,MATCH(Strg!$H$5,Bzg!$A$1:$A$438,0),MATCH('2'!$A19,Bzg!$A$1:$FC$1,0)))*'2'!$B19,1)),".") -> 6.7 | M19: =IFERROR((ROUND(100/(INDEX(Bzg!$A$1:$FC$438,MATCH(Strg!$H$5,Bzg!$A$1:$A$438,0),MATCH('2'!$A19,Bzg!$A$1:$FC$1,0)))*'2'!$H19,1)),".") -> 2.5
A20: 2015 | B20: =SUM(B109:B120)/12 -> 2794664.167 | C20: -103723.9167 | D20: -3.578675929 | E20: =SUM(E109:E120)/12 -> 1755383.167 | F20: -66253.33333 | G20: -3.637022717 | H20: =SUM(H109:H120)/12 -> 1039281 | I20: -37470.58333 | J20: -3.479965473 | K20: 37.18804615 | L20: =IFERROR((ROUND(100/(INDEX(Bzg!$A$1:$FC$438,MATCH(Strg!$H$5,Bzg!$A$1:$A$438,0),MATCH('2'!$A20,Bzg!$A$1:$FC$1,0)))*'2'!$B20,1)),".") -> 6.4 | M20: =IFERROR((ROUND(100/(INDEX(Bzg!$A$1:$FC$438,MATCH(Strg!$H$5,Bzg!$A$1:$A$438,0),MATCH('2'!$A20,Bzg!$A$1:$FC$1,0)))*'2'!$H20,1)),".") -> 2.4
A21: 2016 | B21: =SUM(B121:B132)/12 -> 2690974.75 | C21: -103689.4167 | D21: -3.710263935 | E21: =SUM(E121:E132)/12 -> 1697902.083 | F21: -57481.08333 | G21: -3.274560473 | H21: =SUM(H121:H132)/12 -> 993072.6667 | I21: -46208.33333 | J21: -4.446182826 | K21: 36.90382701 | L21: =IFERROR((ROUND(100/(INDEX(Bzg!$A$1:$FC$438,MATCH(Strg!$H$5,Bzg!$A$1:$A$438,0),MATCH('2'!$A21,Bzg!$A$1:$FC$1,0)))*'2'!$B21,1)),".") -> 6.1 | M21: =IFERROR((ROUND(100/(INDEX(Bzg!$A$1:$FC$438,MATCH(Strg!$H$5,Bzg!$A$1:$A$438,0),MATCH('2'!$A21,Bzg!$A$1:$FC$1,0)))*'2'!$H21,1)),".") -> 2.3
A22: 2017 | B22: =IF($A144>Impressum!$C$13,"...",SUM(B133:B144)/12) -> 2532837.333 | C22: =IFERROR((IF($A144>Impressum!$C$13,"...",B22-B21)),".") -> -158137.4167 | D22: =IF($A144>Impressum!$C$13,"...",IFERROR(IF(OR(100/B21*(B22-B21)>250,100/B21*(B22-B21)<-250),".X",100/B21*(B22-B21)),"X")) -> -5.876584931 | E22: =IF($A144>Impressum!$C$13,"...",SUM(E133:E144)/12) -> 1632092.5 | F22: =IFERROR((IF($A144>Impressum!$C$13,"...",E22-E21)),".") -> -65809.58333 | G22: =IF($A144>Impressum!$C$13,"...",IFERROR(IF(OR(100/E21*(E22-E21)>250,100/E21*(E22-E21)<-250),".X",100/E21*(E22-E21)),"X")) -> -3.875935131 | H22: =IF($A144>Impressum!$C$13,"...",SUM(H133:H144)/12) -> 900744.8333 | I22: =IFERROR((IF($A144>Impressum!$C$13,"...",H22-H21)),".") -> -92327.83333 | J22: =IF($A144>Impressum!$C$13,"...",IFERROR(IF(OR(100/H21*(H22-H21)>250,100/H21*(H22-H21)<-250),".X",100/H21*(H22-H21)),"X")) -> -9.297188054 | K22: =IF(A144>Impressum!$C$13,"...",IFERROR(100/B22*H22,"X")) -> 35.5626799 | L22: =IFERROR((IF(A144>Impressum!$C$13,"...",ROUND(100/(INDEX(Bzg!$A$1:$FC$438,MATCH(Strg!$H$5,Bzg!$A$1:$A$438,0),MATCH('2'!$A22,Bzg!$A$1:$FC$1,0)))*'2'!$B22,1))),".") -> 5.7 | M22: =IFERROR((IF(A144>Impressum!$C$13,"...",ROUND(100/(INDEX(Bzg!$A$1:$FC$438,MATCH(Strg!$H$5,Bzg!$A$1:$A$438,0),MATCH('2'!$A22,Bzg!$A$1:$FC$1,0)))*'2'!$H22,1))),".") -> 2
A23: 2018 | B23: =IF($A156>Impressum!$C$13,"...",SUM(B134:B145)/12) -> ... | C23: =IFERROR((IF($A156>Impressum!$C$13,"...",B23-B22)),".") -> ... | D23: =IF($A156>Impressum!$C$13,"...",IFERROR(IF(OR(100/B22*(B23-B22)>250,100/B22*(B23-B22)<-250),".X",100/B22*(B23-B22)),"X")) -> ... | E23: =IF($A156>Impressum!$C$13,"...",SUM(E134:E145)/12) -> ... | F23: =IFERROR((IF($A156>Impressum!$C$13,"...",E23-E22)),".") -> ... | G23: =IF($A156>Impressum!$C$13,"...",IFERROR(IF(OR(100/E22*(E23-E22)>250,100/E22*(E23-E22)<-250),".X",100/E22*(E23-E22)),"X")) -> ... | H23: =IF($A156>Impressum!$C$13,"...",SUM(H134:H145)/12) -> ... | I23: =IFERROR((IF($A156>Impressum!$C$13,"...",H23-H22)),".") -> ... | J23: =IF($A156>Impressum!$C$13,"...",IFERROR(IF(OR(100/H22*(H23-H22)>250,100/H22*(H23-H22)<-250),".X",100/H22*(H23-H22)),"X")) -> ... | K23: =IF(A156>Impressum!$C$13,"...",IFERROR(100/B23*H23,"X")) -> ... | L23: =IFERROR((IF(A156>Impressum!$C$13,"...",ROUND(100/(INDEX(Bzg!$A$1:$FC$438,MATCH(Strg!$H$5,Bzg!$A$1:$A$438,0),MATCH('2'!$A23,Bzg!$A$1:$FC$1,0)))*'2'!$B23,1))),".") -> ... | M23: =IFERROR((IF(A156>Impressum!$C$13,"...",ROUND(100/(INDEX(Bzg!$A$1:$FC$438,MATCH(Strg!$H$5,Bzg!$A$1:$A$438,0),MATCH('2'!$A23,Bzg!$A$1:$FC$1,0)))*'2'!$H23,1))),".") -> ...
A24: Berichtsmonat
A25: 2008-01-01 | B25: =INDEX('roh2-3'!$A$1:$FE$3927,MATCH(Strg!$H$5&"Insgesamt"&IF(Strg!$A$5=1,"Insgesamt",IF(Strg!$A$5=2,"III,SGB III","II,SGB II")),'roh2-3'!$B$1:$B$3927&'roh2-3'!$D$1:$D$3927&'roh2-3'!$A$1:$A$3927,0),MATCH('2'!$A25,'roh2-3'!$A$1:$FE$1,0)) -> 3647905 | C25: =IFERROR((B25-(INDEX('roh2-3'!$A$1:$FE$3927,MATCH(Strg!$H$5&"Insgesamt"&IF(Strg!$A$5=1,"Insgesamt",IF(Strg!$A$5=2,"III,SGB III","II,SGB II")),'roh2-3'!$B$1:$B$3927&'roh2-3'!$D$1:$D$3927&'roh2-3'!$A$1:$A$3927,0),MATCH(EDATE('2'!$A25,-12),'roh2-3'!$A$1:$FE$1,0)))),".") -> -614270 | D25: =IFERROR(IF(OR(100/(B25-C25)*C25>250,100/(B25-C25)*C25<-250),".X",100/(B25-C25)*C25),"X") -> -14.41212526 | E25: =INDEX('roh2-3'!$A$1:$FE$3927,MATCH(Strg!$H$5&"N,Nicht Langzeitarbeitslos"&IF(Strg!$A$5=1,"Insgesamt",IF(Strg!$A$5=2,"III,SGB III","II,SGB II")),'roh2-3'!$B$1:$B$3927&'roh2-3'!$D$1:$D$3927&'roh2-3'!$A$1:$A$3927,0),MATCH('2'!$A25,'roh2-3'!$A$1:$FE$1,0)) -> 2149785 | F25: =IFERROR((E25-(INDEX('roh2-3'!$A$1:$FE$3927,MATCH(Strg!$H$5&"N,Nicht Langzeitarbeitslos"&IF(Strg!$A$5=1,"Insgesamt",IF(Strg!$A$5=2,"III,SGB III","II,SGB II")),'roh2-3'!$B$1:$B$3927&'roh2-3'!$D$1:$D$3927&'roh2-3'!$A$1:$A$3927,0),MATCH(EDATE('2'!$A25,-12),'roh2-3'!$A$1:$FE$1,0)))),".") -> -191237 | G25: =IFERROR(IF(OR(100/(E25-F25)*F25>250,100/(E25-F25)*F25<-250),".X",100/(E25-F25)*F25),"X") -> -8.16895356 | H25: =INDEX('roh2-3'!$A$1:$FE$3927,MATCH(Strg!$H$5&"J,Langzeitarbeitslos"&IF(Strg!$A$5=1,"Insgesamt",IF(Strg!$A$5=2,"III,SGB III","II,SGB II")),'roh2-3'!$B$1:$B$3927&'roh2-3'!$D$1:$D$3927&'roh2-3'!$A$1:$A$3927,0),MATCH('2'!$A25,'roh2-3'!$A$1:$FE$1,0)) -> 1498120 | I25: =IFERROR((H25-(INDEX('roh2-3'!$A$1:$FE$3927,MATCH(Strg!$H$5&"J,Langzeitarbeitslos"&IF(Strg!$A$5=1,"Insgesamt",IF(Strg!$A$5=2,"III,SGB III","II,SGB II")),'roh2-3'!$B$1:$B$3927&'roh2-3'!$D$1:$D$3927&'roh2-3'!$A$1:$A$3927,0),MATCH(EDATE('2'!$A25,-12),'roh2-3'!$A$1:$FE$1,0)))),".") -> -423033 | J25: =IFERROR(IF(OR(100/(H25-I25)*I25>250,100/(H25-I25)*I25<-250),".X",100/(H25-I25)*I25),"X") -> -22.01974543 | K25: =IF($A25>Impressum!$C$13,"-",IFERROR(100/B25*H25,"X")) -> 41.06795544 | L25: =IFERROR((IF($A25>Impressum!$C$13,"...",ROUND(100/(INDEX(Bzg!$A$1:$FC$438,MATCH(Strg!$H$5,Bzg!$A$1:$A$438,0),MATCH('2'!$A25,Bzg!$A$1:$FC$1,0)))*'2'!$B25,1))),".") -> 8.7 | M25: =IFERROR((IF($A25>Impressum!$C$13,"...",ROUND(100/(INDEX(Bzg!$A$1:$FC$438,MATCH(Strg!$H$5,Bzg!$A$1:$A$438,0),MATCH('2'!$A25,Bzg!$A$1:$FC$1,0)))*'2'!$H25,1))),".") -> 3.6
A26: 2008-02-01 | B26: =INDEX('roh2-3'!$A$1:$FE$3927,MATCH(Strg!$H$5&"Insgesamt"&IF(Strg!$A$5=1,"Insgesamt",IF(Strg!$A$5=2,"III,SGB III","II,SGB II")),'roh2-3'!$B$1:$B$3927&'roh2-3'!$D$1:$D$3927&'roh2-3'!$A$1:$A$3927,0),MATCH('2'!$A26,'roh2-3'!$A$1:$FE$1,0)) -> 3606079 | C26: =IFERROR((B26-(INDEX('roh2-3'!$A$1:$FE$3927,MATCH(Strg!$H$5&"Insgesamt"&IF(Strg!$A$5=1,"Insgesamt",IF(Strg!$A$5=2,"III,SGB III","II,SGB II")),'roh2-3'!$B$1:$B$3927&'roh2-3'!$D$1:$D$3927&'roh2-3'!$A$1:$A$3927,0),MATCH(EDATE('2'!$A26,-12),'roh2-3'!$A$1:$FE$1,0)))),".") -> -619893 | D26: =IFERROR(IF(OR(100/(B26-C26)*C26>250,100/(B26-C26)*C26<-250),".X",100/(B26-C26)*C26),"X") -> -14.66864901 | E26: =INDEX('roh2-3'!$A$1:$FE$3927,MATCH(Strg!$H$5&"N,Nicht Langzeitarbeitslos"&IF(Strg!$A$5=1,"Insgesamt",IF(Strg!$A$5=2,"III,SGB III","II,SGB II")),'roh2-3'!$B$1:$B$3927&'roh2-3'!$D$1:$D$3927&'roh2-3'!$A$1:$A$3927,0),MATCH('2'!$A26,'roh2-3'!$A$1:$FE$1,0)) -> 2138880 | F26: =IFERROR((E26-(INDEX('roh2-3'!$A$1:$FE$3927,MATCH(Strg!$H$5&"N,Nicht Langzeitarbeitslos"&IF(Strg!$A$5=1,"Insgesamt",IF(Strg!$A$5=2,"III,SGB III","II,SGB II")),'roh2-3'!$B$1:$B$3927&'roh2-3'!$D$1:$D$3927&'roh2-3'!$A$1:$A$3927,0),MATCH(EDATE('2'!$A26,-12),'roh2-3'!$A$1:$FE$1,0)))),".") -> -196200 | G26: =IFERROR(IF(OR(100/(E26-F26)*F26>250,100/(E26-F26)*F26<-250),".X",100/(E26-F26)*F26),"X") -> -8.402281721 | H26: =INDEX('roh2-3'!$A$1:$FE$3927,MATCH(Strg!$H$5&"J,Langzeitarbeitslos"&IF(Strg!$A$5=1,"Insgesamt",IF(Strg!$A$5=2,"III,SGB III","II,SGB II")),'roh2-3'!$B$1:$B$3927&'roh2-3'!$D$1:$D$3927&'roh2-3'!$A$1:$A$3927,0),MATCH('2'!$A26,'roh2-3'!$A$1:$FE$1,0)) -> 1467199 | I26: =IFERROR((H26-(INDEX('roh2-3'!$A$1:$FE$3927,MATCH(Strg!$H$5&"J,Langzeitarbeitslos"&IF(Strg!$A$5=1,"Insgesamt",IF(Strg!$A$5=2,"III,SGB III","II,SGB II")),'roh2-3'!$B$1:$B$3927&'roh2-3'!$D$1:$D$3927&'roh2-3'!$A$1:$A$3927,0),MATCH(EDATE('2'!$A26,-12),'roh2-3'!$A$1:$FE$1,0)))),".") -> -423693 | J26: =IFERROR(IF(OR(100/(H26-I26)*I26>250,100/(H26-I26)*I26<-250),".X",100/(H26-I26)*I26),"X") -> -22.40704387 | K26: =IF($A26>Impressum!$C$13,"-",IFERROR(100/B26*H26,"X")) -> 40.68682356 | L26: =IFERROR((IF($A26>Impressum!$C$13,"...",ROUND(100/(INDEX(Bzg!$A$1:$FC$438,MATCH(Strg!$H$5,Bzg!$A$1:$A$438,0),MATCH('2'!$A26,Bzg!$A$1:$FC$1,0)))*'2'!$B26,1))),".") -> 8.6 | M26: =IFERROR((IF($A26>Impressum!$C$13,"...",ROUND(100/(INDEX(Bzg!$A$1:$FC$438,MATCH(Strg!$H$5,Bzg!$A$1:$A$438,0),MATCH('2'!$A26,Bzg!$A$1:$FC$1,0)))*'2'!$H26,1))),".") -> 3.5
A27: 2008-03-01 | B27: =INDEX('roh2-3'!$A$1:$FE$3927,MATCH(Strg!$H$5&"Insgesamt"&IF(Strg!$A$5=1,"Insgesamt",IF(Strg!$A$5=2,"III,SGB III","II,SGB II")),'roh2-3'!$B$1:$B$3927&'roh2-3'!$D$1:$D$3927&'roh2-3'!$A$1:$A$3927,0),MATCH('2'!$A27,'roh2-3'!$A$1:$FE$1,0)) -> 3496864 | C27: =IFERROR((B27-(INDEX('roh2-3'!$A$1:$FE$3927,MATCH(Strg!$H$5&"Insgesamt"&IF(Strg!$A$5=1,"Insgesamt",IF(Strg!$A$5=2,"III,SGB III","II,SGB II")),'roh2-3'!$B$1:$B$3927&'roh2-3'!$D$1:$D$3927&'roh2-3'!$A$1:$A$3927,0),MATCH(EDATE('2'!$A27,-12),'roh2-3'!$A$1:$FE$1,0)))),".") -> -607924 | D27: -14.8101193 | E27: =INDEX('roh2-3'!$A$1:$FE$3927,MATCH(Strg!$H$5&"N,Nicht Langzeitarbeitslos"&IF(Strg!$A$5=1,"Insgesamt",IF(Strg!$A$5=2,"III,SGB III","II,SGB II")),'roh2-3'!$B$1:$B$3927&'roh2-3'!$D$1:$D$3927&'roh2-3'!$A$1:$A$3927,0),MATCH('2'!$A27,'roh2-3'!$A$1:$FE$1,0)) -> 2062676 | F27: =IFERROR((E27-(INDEX('roh2-3'!$A$1:$FE$3927,MATCH(Strg!$H$5&"N,Nicht Langzeitarbeitslos"&IF(Strg!$A$5=1,"Insgesamt",IF(Strg!$A$5=2,"III,SGB III","II,SGB II")),'roh2-3'!$B$1:$B$3927&'roh2-3'!$D$1:$D$3927&'roh2-3'!$A$1:$A$3927,0),MATCH(EDATE('2'!$A27,-12),'roh2-3'!$A$1:$FE$1,0)))),".") -> -160260 | G27: -7.209384346 | H27: =INDEX('roh2-3'!$A$1:$FE$3927,MATCH(Strg!$H$5&"J,Langzeitarbeitslos"&IF(Strg!$A$5=1,"Insgesamt",IF(Strg!$A$5=2,"III,SGB III","II,SGB II")),'roh2-3'!$B$1:$B$3927&'roh2-3'!$D$1:$D$3927&'roh2-3'!$A$1:$A$3927,0),MATCH('2'!$A27,'roh2-3'!$A$1:$FE$1,0)) -> 1434188 | I27: =IFERROR((H27-(INDEX('roh2-3'!$A$1:$FE$3927,MATCH(Strg!$H$5&"J,Langzeitarbeitslos"&IF(Strg!$A$5=1,"Insgesamt",IF(Strg!$A$5=2,"III,SGB III","II,SGB II")),'roh2-3'!$B$1:$B$3927&'roh2-3'!$D$1:$D$3927&'roh2-3'!$A$1:$A$3927,0),MATCH(EDATE('2'!$A27,-12),'roh2-3'!$A$1:$FE$1,0)))),".") -> -447664 | J27: -23.78848071 | K27: =IF($A27>Impressum!$C$13,"-",IFERROR(100/B27*H27,"X")) -> 41.01354814 | L27: =IFERROR((IF($A27>Impressum!$C$13,"...",ROUND(100/(INDEX(Bzg!$A$1:$FC$438,MATCH(Strg!$H$5,Bzg!$A$1:$A$438,0),MATCH('2'!$A27,Bzg!$A$1:$FC$1,0)))*'2'!$B27,1))),".") -> 8.3 | M27: =IFERROR((IF($A27>Impressum!$C$13,"...",ROUND(100/(INDEX(Bzg!$A$1:$FC$438,MATCH(Strg!$H$5,Bzg!$A$1:$A$438,0),MATCH('2'!$A27,Bzg!$A$1:$FC$1,0)))*'2'!$H27,1))),".") -> 3.4
A28: 2008-04-01 | B28: =INDEX('roh2-3'!$A$1:$FE$3927,MATCH(Strg!$H$5&"Insgesamt"&IF(Strg!$A$5=1,"Insgesamt",IF(Strg!$A$5=2,"III,SGB III","II,SGB II")),'roh2-3'!$B$1:$B$3927&'roh2-3'!$D$1:$D$3927&'roh2-3'!$A$1:$A$3927,0),MATCH('2'!$A28,'roh2-3'!$A$1:$FE$1,0)) -> 3403667 | C28: =IFERROR((B28-(INDEX('roh2-3'!$A$1:$FE$3927,MATCH(Strg!$H$5&"Insgesamt"&IF(Strg!$A$5=1,"Insgesamt",IF(Strg!$A$5=2,"III,SGB III","II,SGB II")),'roh2-3'!$B$1:$B$3927&'roh2-3'!$D$1:$D$3927&'roh2-3'!$A$1:$A$3927,0),MATCH(EDATE('2'!$A28,-12),'roh2-3'!$A$1:$FE$1,0)))),".") -> -554544 | D28: -14.00996561 | E28: =INDEX('roh2-3'!$A$1:$FE$3927,MATCH(Strg!$H$5&"N,Nicht Langzeitarbeitslos"&IF(Strg!$A$5=1,"Insgesamt",IF(Strg!$A$5=2,"III,SGB III","II,SGB II")),'roh2-3'!$B$1:$B$3927&'roh2-3'!$D$1:$D$3927&'roh2-3'!$A$1:$A$3927,0),MATCH('2'!$A28,'roh2-3'!$A$1:$FE$1,0)) -> 1985423 | F28: =IFERROR((E28-(INDEX('roh2-3'!$A$1:$FE$3927,MATCH(Strg!$H$5&"N,Nicht Langzeitarbeitslos"&IF(Strg!$A$5=1,"Insgesamt",IF(Strg!$A$5=2,"III,SGB III","II,SGB II")),'roh2-3'!$B$1:$B$3927&'roh2-3'!$D$1:$D$3927&'roh2-3'!$A$1:$A$3927,0),MATCH(EDATE('2'!$A28,-12),'roh2-3'!$A$1:$FE$1,0)))),".") -> -93212 | G28: -4.484288968 | H28: =INDEX('roh2-3'!$A$1:$FE$3927,MATCH(Strg!$H$5&"J,Langzeitarbeitslos"&IF(Strg!$A$5=1,"Insgesamt",IF(Strg!$A$5=2,"III,SGB III","II,SGB II")),'roh2-3'!$B$1:$B$3927&'roh2-3'!$D$1:$D$3927&'roh2-3'!$A$1:$A$3927,0),MATCH('2'!$A28,'roh2-3'!$A$1:$FE$1,0)) -> 1418244 | I28: =IFERROR((H28-(INDEX('roh2-3'!$A$1:$FE$3927,MATCH(Strg!$H$5&"J,Langzeitarbeitslos"&IF(Strg!$A$5=1,"Insgesamt",IF(Strg!$A$5=2,"III,SGB III","II,SGB II")),'roh2-3'!$B$1:$B$3927&'roh2-3'!$D$1:$D$3927&'roh2-3'!$A$1:$A$3927,0),MATCH(EDATE('2'!$A28,-12),'roh2-3'!$A$1:$FE$1,0)))),".") -> -461332 | J28: -24.54447173 | K28: =IF($A28>Impressum!$C$13,"-",IFERROR(100/B28*H28,"X")) -> 41.66811853 | L28: =IFERROR((IF($A28>Impressum!$C$13,"...",ROUND(100/(INDEX(Bzg!$A$1:$FC$438,MATCH(Strg!$H$5,Bzg!$A$1:$A$438,0),MATCH('2'!$A28,Bzg!$A$1:$FC$1,0)))*'2'!$B28,1))),".") -> 8.1 | M28: =IFERROR((IF($A28>Impressum!$C$13,"...",ROUND(100/(INDEX(Bzg!$A$1:$FC$438,MATCH(Strg!$H$5,Bzg!$A$1:$A$438,0),MATCH('2'!$A28,Bzg!$A$1:$FC$1,0)))*'2'!$H28,1))),".") -> 3.4
A29: 2008-05-01 | B29: =INDEX('roh2-3'!$A$1:$FE$3927,MATCH(Strg!$H$5&"Insgesamt"&IF(Strg!$A$5=1,"Insgesamt",IF(Strg!$A$5=2,"III,SGB III","II,SGB II")),'roh2-3'!$B$1:$B$3927&'roh2-3'!$D$1:$D$3927&'roh2-3'!$A$1:$A$3927,0),MATCH('2'!$A29,'roh2-3'!$A$1:$FE$1,0)) -> 3274026 | C29: =IFERROR((B29-(INDEX('roh2-3'!$A$1:$FE$3927,MATCH(Strg!$H$5&"Insgesamt"&IF(Strg!$A$5=1,"Insgesamt",IF(Strg!$A$5=2,"III,SGB III","II,SGB II")),'roh2-3'!$B$1:$B$3927&'roh2-3'!$D$1:$D$3927&'roh2-3'!$A$1:$A$3927,0),MATCH(EDATE('2'!$A29,-12),'roh2-3'!$A$1:$FE$1,0)))),".") -> -521912 | D29: -13.74922351 | E29: =INDEX('roh2-3'!$A$1:$FE$3927,MATCH(Strg!$H$5&"N,Nicht Langzeitarbeitslos"&IF(Strg!$A$5=1,"Insgesamt",IF(Strg!$A$5=2,"III,SGB III","II,SGB II")),'roh2-3'!$B$1:$B$3927&'roh2-3'!$D$1:$D$3927&'roh2-3'!$A$1:$A$3927,0),MATCH('2'!$A29,'roh2-3'!$A$1:$FE$1,0)) -> 1894437 | F29: =IFERROR((E29-(INDEX('roh2-3'!$A$1:$FE$3927,MATCH(Strg!$H$5&"N,Nicht Langzeitarbeitslos"&IF(Strg!$A$5=1,"Insgesamt",IF(Strg!$A$5=2,"III,SGB III","II,SGB II")),'roh2-3'!$B$1:$B$3927&'roh2-3'!$D$1:$D$3927&'roh2-3'!$A$1:$A$3927,0),MATCH(EDATE('2'!$A29,-12),'roh2-3'!$A$1:$FE$1,0)))),".") -> -78445 | G29: -3.976162791 | H29: =INDEX('roh2-3'!$A$1:$FE$3927,MATCH(Strg!$H$5&"J,Langzeitarbeitslos"&IF(Strg!$A$5=1,"Insgesamt",IF(Strg!$A$5=2,"III,SGB III","II,SGB II")),'roh2-3'!$B$1:$B$3927&'roh2-3'!$D$1:$D$3927&'roh2-3'!$A$1:$A$3927,0),MATCH('2'!$A29,'roh2-3'!$A$1:$FE$1,0)) -> 1379589 | I29: =IFERROR((H29-(INDEX('roh2-3'!$A$1:$FE$3927,MATCH(Strg!$H$5&"J,Langzeitarbeitslos"&IF(Strg!$A$5=1,"Insgesamt",IF(Strg!$A$5=2,"III,SGB III","II,SGB II")),'roh2-3'!$B$1:$B$3927&'roh2-3'!$D$1:$D$3927&'roh2-3'!$A$1:$A$3927,0),MATCH(EDATE('2'!$A29,-12),'roh2-3'!$A$1:$FE$1,0)))),".") -> -443467 | J29: -24.32547327 | K29: =IF($A29>Impressum!$C$13,"-",IFERROR(100/B29*H29,"X")) -> 42.13738681 | L29: =IFERROR((IF($A29>Impressum!$C$13,"...",ROUND(100/(INDEX(Bzg!$A$1:$FC$438,MATCH(Strg!$H$5,Bzg!$A$1:$A$438,0),MATCH('2'!$A29,Bzg!$A$1:$FC$1,0)))*'2'!$B29,1))),".") -> 7.8 | M29: =IFERROR((IF($A29>Impressum!$C$13,"...",ROUND(100/(INDEX(Bzg!$A$1:$FC$438,MATCH(Strg!$H$5,Bzg!$A$1:$A$438,0),MATCH('2'!$A29,Bzg!$A$1:$FC$1,0)))*'2'!$H29,1))),".") -> 3.3
A30: 2008-06-01 | B30: =INDEX('roh2-3'!$A$1:$FE$3927,MATCH(Strg!$H$5&"Insgesamt"&IF(Strg!$A$5=1,"Insgesamt",IF(Strg!$A$5=2,"III,SGB III","II,SGB II")),'roh2-3'!$B$1:$B$3927&'roh2-3'!$D$1:$D$3927&'roh2-3'!$A$1:$A$3927,0),MATCH('2'!$A30,'roh2-3'!$A$1:$FE$1,0)) -> 3151679 | C30: =IFERROR((B30-(INDEX('roh2-3'!$A$1:$FE$3927,MATCH(Strg!$H$5&"Insgesamt"&IF(Strg!$A$5=1,"Insgesamt",IF(Strg!$A$5=2,"III,SGB III","II,SGB II")),'roh2-3'!$B$1:$B$3927&'roh2-3'!$D$1:$D$3927&'roh2-3'!$A$1:$A$3927,0),MATCH(EDATE('2'!$A30,-12),'roh2-3'!$A$1:$FE$1,0)))),".") -> -521247 | D30: -14.19160092 | E30: =INDEX('roh2-3'!$A$1:$FE$3927,MATCH(Strg!$H$5&"N,Nicht Langzeitarbeitslos"&IF(Strg!$A$5=1,"Insgesamt",IF(Strg!$A$5=2,"III,SGB III","II,SGB II")),'roh2-3'!$B$1:$B$3927&'roh2-3'!$D$1:$D$3927&'roh2-3'!$A$1:$A$3927,0),MATCH('2'!$A30,'roh2-3'!$A$1:$FE$1,0)) -> 1820955 | F30: =IFERROR((E30-(INDEX('roh2-3'!$A$1:$FE$3927,MATCH(Strg!$H$5&"N,Nicht Langzeitarbeitslos"&IF(Strg!$A$5=1,"Insgesamt",IF(Strg!$A$5=2,"III,SGB III","II,SGB II")),'roh2-3'!$B$1:$B$3927&'roh2-3'!$D$1:$D$3927&'roh2-3'!$A$1:$A$3927,0),MATCH(EDATE('2'!$A30,-12),'roh2-3'!$A$1:$FE$1,0)))),".") -> -79684 | G30: -4.192484738 | H30: =INDEX('roh2-3'!$A$1:$FE$3927,MATCH(Strg!$H$5&"J,Langzeitarbeitslos"&IF(Strg!$A$5=1,"Insgesamt",IF(Strg!$A$5=2,"III,SGB III","II,SGB II")),'roh2-3'!$B$1:$B$3927&'roh2-3'!$D$1:$D$3927&'roh2-3'!$A$1:$A$3927,0),MATCH('2'!$A30,'roh2-3'!$A$1:$FE$1,0)) -> 1330724 | I30: =IFERROR((H30-(INDEX('roh2-3'!$A$1:$FE$3927,MATCH(Strg!$H$5&"J,Langzeitarbeitslos"&IF(Strg!$A$5=1,"Insgesamt",IF(Strg!$A$5=2,"III,SGB III","II,SGB II")),'roh2-3'!$B$1:$B$3927&'roh2-3'!$D$1:$D$3927&'roh2-3'!$A$1:$A$3927,0),MATCH(EDATE('2'!$A30,-12),'roh2-3'!$A$1:$FE$1,0)))),".") -> -441563 | J30: -24.91486988 | K30: =IF($A30>Impressum!$C$13,"-",IFERROR(100/B30*H30,"X")) -> 42.22270098 | L30: =IFERROR((IF($A30>Impressum!$C$13,"...",ROUND(100/(INDEX(Bzg!$A$1:$FC$438,MATCH(Strg!$H$5,Bzg!$A$1:$A$438,0),MATCH('2'!$A30,Bzg!$A$1:$FC$1,0)))*'2'!$B30,1))),".") -> 7.5 | M30: =IFERROR((IF($A30>Impressum!$C$13,"...",ROUND(100/(INDEX(Bzg!$A$1:$FC$438,MATCH(Strg!$H$5,Bzg!$A$1:$A$438,0),MATCH('2'!$A30,Bzg!$A$1:$FC$1,0)))*'2'!$H30,1))),".") -> 3.2
A31: 2008-07-01 | B31: =INDEX('roh2-3'!$A$1:$FE$3927,MATCH(Strg!$H$5&"Insgesamt"&IF(Strg!$A$5=1,"Insgesamt",IF(Strg!$A$5=2,"III,SGB III","II,SGB II")),'roh2-3'!$B$1:$B$3927&'roh2-3'!$D$1:$D$3927&'roh2-3'!$A$1:$A$3927,0),MATCH('2'!$A31,'roh2-3'!$A$1:$FE$1,0)) -> 3201841 | C31: =IFERROR((B31-(INDEX('roh2-3'!$A$1:$FE$3927,MATCH(Strg!$H$5&"Insgesamt"&IF(Strg!$A$5=1,"Insgesamt",IF(Strg!$A$5=2,"III,SGB III","II,SGB II")),'roh2-3'!$B$1:$B$3927&'roh2-3'!$D$1:$D$3927&'roh2-3'!$A$1:$A$3927,0),MATCH(EDATE('2'!$A31,-12),'roh2-3'!$A$1:$FE$1,0)))),".") -> -499159 | D31: -13.48713861 | E31: =INDEX('roh2-3'!$A$1:$FE$3927,MATCH(Strg!$H$5&"N,Nicht Langzeitarbeitslos"&IF(Strg!$A$5=1,"Insgesamt",IF(Strg!$A$5=2,"III,SGB III","II,SGB II")),'roh2-3'!$B$1:$B$3927&'roh2-3'!$D$1:$D$3927&'roh2-3'!$A$1:$A$3927,0),MATCH('2'!$A31,'roh2-3'!$A$1:$FE$1,0)) -> 1889608 | F31: =IFERROR((E31-(INDEX('roh2-3'!$A$1:$FE$3927,MATCH(Strg!$H$5&"N,Nicht Langzeitarbeitslos"&IF(Strg!$A$5=1,"Insgesamt",IF(Strg!$A$5=2,"III,SGB III","II,SGB II")),'roh2-3'!$B$1:$B$3927&'roh2-3'!$D$1:$D$3927&'roh2-3'!$A$1:$A$3927,0),MATCH(EDATE('2'!$A31,-12),'roh2-3'!$A$1:$FE$1,0)))),".") -> -80818 | G31: -4.101549614 | H31: =INDEX('roh2-3'!$A$1:$FE$3927,MATCH(Strg!$H$5&"J,Langzeitarbeitslos"&IF(Strg!$A$5=1,"Insgesamt",IF(Strg!$A$5=2,"III,SGB III","II,SGB II")),'roh2-3'!$B$1:$B$3927&'roh2-3'!$D$1:$D$3927&'roh2-3'!$A$1:$A$3927,0),MATCH('2'!$A31,'roh2-3'!$A$1:$FE$1,0)) -> 1312233 | I31: =IFERROR((H31-(INDEX('roh2-3'!$A$1:$FE$3927,MATCH(Strg!$H$5&"J,Langzeitarbeitslos"&IF(Strg!$A$5=1,"Insgesamt",IF(Strg!$A$5=2,"III,SGB III","II,SGB II")),'roh2-3'!$B$1:$B$3927&'roh2-3'!$D$1:$D$3927&'roh2-3'!$A$1:$A$3927,0),MATCH(EDATE('2'!$A31,-12),'roh2-3'!$A$1:$FE$1,0)))),".") -> -418341 | J31: -24.17354011 | K31: =IF($A31>Impressum!$C$13,"-",IFERROR(100/B31*H31,"X")) -> 40.98370281 | L31: =IFERROR((IF($A31>Impressum!$C$13,"...",ROUND(100/(INDEX(Bzg!$A$1:$FC$438,MATCH(Strg!$H$5,Bzg!$A$1:$A$438,0),MATCH('2'!$A31,Bzg!$A$1:$FC$1,0)))*'2'!$B31,1))),".") -> 7.6 | M31: =IFERROR((IF($A31>Impressum!$C$13,"...",ROUND(100/(INDEX(Bzg!$A$1:$FC$438,MATCH(Strg!$H$5,Bzg!$A$1:$A$438,0),MATCH('2'!$A31,Bzg!$A$1:$FC$1,0)))*'2'!$H31,1))),".") -> 3.1
A32: 2008-08-01 | B32: =INDEX('roh2-3'!$A$1:$FE$3927,MATCH(Strg!$H$5&"Insgesamt"&IF(Strg!$A$5=1,"Insgesamt",IF(Strg!$A$5=2,"III,SGB III","II,SGB II")),'roh2-3'!$B$1:$B$3927&'roh2-3'!$D$1:$D$3927&'roh2-3'!$A$1:$A$3927,0),MATCH('2'!$A32,'roh2-3'!$A$1:$FE$1,0)) -> 3187764 | C32: =IFERROR((B32-(INDEX('roh2-3'!$A$1:$FE$3927,MATCH(Strg!$H$5&"Insgesamt"&IF(Strg!$A$5=1,"Insgesamt",IF(Strg!$A$5=2,"III,SGB III","II,SGB II")),'roh2-3'!$B$1:$B$3927&'roh2-3'!$D$1:$D$3927&'roh2-3'!$A$1:$A$3927,0),MATCH(EDATE('2'!$A32,-12),'roh2-3'!$A$1:$FE$1,0)))),".") -> -504126 | D32: -13.65495722 | E32: =INDEX('roh2-3'!$A$1:$FE$3927,MATCH(Strg!$H$5&"N,Nicht Langzeitarbeitslos"&IF(Strg!$A$5=1,"Insgesamt",IF(Strg!$A$5=2,"III,SGB III","II,SGB II")),'roh2-3'!$B$1:$B$3927&'roh2-3'!$D$1:$D$3927&'roh2-3'!$A$1:$A$3927,0),MATCH('2'!$A32,'roh2-3'!$A$1:$FE$1,0)) -> 1903703 | F32: =IFERROR((E32-(INDEX('roh2-3'!$A$1:$FE$3927,MATCH(Strg!$H$5&"N,Nicht Langzeitarbeitslos"&IF(Strg!$A$5=1,"Insgesamt",IF(Strg!$A$5=2,"III,SGB III","II,SGB II")),'roh2-3'!$B$1:$B$3927&'roh2-3'!$D$1:$D$3927&'roh2-3'!$A$1:$A$3927,0),MATCH(EDATE('2'!$A32,-12),'roh2-3'!$A$1:$FE$1,0)))),".") -> -99854 | G32: -4.983836247 | H32: =INDEX('roh2-3'!$A$1:$FE$3927,MATCH(Strg!$H$5&"J,Langzeitarbeitslos"&IF(Strg!$A$5=1,"Insgesamt",IF(Strg!$A$5=2,"III,SGB III","II,SGB II")),'roh2-3'!$B$1:$B$3927&'roh2-3'!$D$1:$D$3927&'roh2-3'!$A$1:$A$3927,0),MATCH('2'!$A32,'roh2-3'!$A$1:$FE$1,0)) -> 1284061 | I32: =IFERROR((H32-(INDEX('roh2-3'!$A$1:$FE$3927,MATCH(Strg!$H$5&"J,Langzeitarbeitslos"&IF(Strg!$A$5=1,"Insgesamt",IF(Strg!$A$5=2,"III,SGB III","II,SGB II")),'roh2-3'!$B$1:$B$3927&'roh2-3'!$D$1:$D$3927&'roh2-3'!$A$1:$A$3927,0),MATCH(EDATE('2'!$A32,-12),'roh2-3'!$A$1:$FE$1,0)))),".") -> -404272 | J32: -23.94503928 | K32: =IF($A32>Impressum!$C$13,"-",IFERROR(100/B32*H32,"X")) -> 40.28093046 | L32: =IFERROR((IF($A32>Impressum!$C$13,"...",ROUND(100/(INDEX(Bzg!$A$1:$FC$438,MATCH(Strg!$H$5,Bzg!$A$1:$A$438,0),MATCH('2'!$A32,Bzg!$A$1:$FC$1,0)))*'2'!$B32,1))),".") -> 7.6 | M32: =IFERROR((IF($A32>Impressum!$C$13,"...",ROUND(100/(INDEX(Bzg!$A$1:$FC$438,MATCH(Strg!$H$5,Bzg!$A$1:$A$438,0),MATCH('2'!$A32,Bzg!$A$1:$FC$1,0)))*'2'!$H32,1))),".") -> 3.1
A33: 2008-09-01 | B33: =INDEX('roh2-3'!$A$1:$FE$3927,MATCH(Strg!$H$5&"Insgesamt"&IF(Strg!$A$5=1,"Insgesamt",IF(Strg!$A$5=2,"III,SGB III","II,SGB II")),'roh2-3'!$B$1:$B$3927&'roh2-3'!$D$1:$D$3927&'roh2-3'!$A$1:$A$3927,0),MATCH('2'!$A33,'roh2-3'!$A$1:$FE$1,0)) -> 3073268 | C33: =IFERROR((B33-(INDEX('roh2-3'!$A$1:$FE$3927,MATCH(Strg!$H$5&"Insgesamt"&IF(Strg!$A$5=1,"Insgesamt",IF(Strg!$A$5=2,"III,SGB III","II,SGB II")),'roh2-3'!$B$1:$B$3927&'roh2-3'!$D$1:$D$3927&'roh2-3'!$A$1:$A$3927,0),MATCH(EDATE('2'!$A33,-12),'roh2-3'!$A$1:$FE$1,0)))),".") -> -457374 | D33: -12.95441452 | E33: =INDEX('roh2-3'!$A$1:$FE$3927,MATCH(Strg!$H$5&"N,Nicht Langzeitarbeitslos"&IF(Strg!$A$5=1,"Insgesamt",IF(Strg!$A$5=2,"III,SGB III","II,SGB II")),'roh2-3'!$B$1:$B$3927&'roh2-3'!$D$1:$D$3927&'roh2-3'!$A$1:$A$3927,0),MATCH('2'!$A33,'roh2-3'!$A$1:$FE$1,0)) -> 1830367 | F33: =IFERROR((E33-(INDEX('roh2-3'!$A$1:$FE$3927,MATCH(Strg!$H$5&"N,Nicht Langzeitarbeitslos"&IF(Strg!$A$5=1,"Insgesamt",IF(Strg!$A$5=2,"III,SGB III","II,SGB II")),'roh2-3'!$B$1:$B$3927&'roh2-3'!$D$1:$D$3927&'roh2-3'!$A$1:$A$3927,0),MATCH(EDATE('2'!$A33,-12),'roh2-3'!$A$1:$FE$1,0)))),".") -> -76752 | G33: -4.024499782 | H33: =INDEX('roh2-3'!$A$1:$FE$3927,MATCH(Strg!$H$5&"J,Langzeitarbeitslos"&IF(Strg!$A$5=1,"Insgesamt",IF(Strg!$A$5=2,"III,SGB III","II,SGB II")),'roh2-3'!$B$1:$B$3927&'roh2-3'!$D$1:$D$3927&'roh2-3'!$A$1:$A$3927,0),MATCH('2'!$A33,'roh2-3'!$A$1:$FE$1,0)) -> 1242901 | I33: =IFERROR((H33-(INDEX('roh2-3'!$A$1:$FE$3927,MATCH(Strg!$H$5&"J,Langzeitarbeitslos"&IF(Strg!$A$5=1,"Insgesamt",IF(Strg!$A$5=2,"III,SGB III","II,SGB II")),'roh2-3'!$B$1:$B$3927&'roh2-3'!$D$1:$D$3927&'roh2-3'!$A$1:$A$3927,0),MATCH(EDATE('2'!$A33,-12),'roh2-3'!$A$1:$FE$1,0)))),".") -> -380622 | J33: -23.44420128 | K33: =IF($A33>Impressum!$C$13,"-",IFERROR(100/B33*H33,"X")) -> 40.44232394 | L33: =IFERROR((IF($A33>Impressum!$C$13,"...",ROUND(100/(INDEX(Bzg!$A$1:$FC$438,MATCH(Strg!$H$5,Bzg!$A$1:$A$438,0),MATCH('2'!$A33,Bzg!$A$1:$FC$1,0)))*'2'!$B33,1))),".") -> 7.3 | M33: =IFERROR((IF($A33>Impressum!$C$13,"...",ROUND(100/(INDEX(Bzg!$A$1:$FC$438,MATCH(Strg!$H$5,Bzg!$A$1:$A$438,0),MATCH('2'!$A33,Bzg!$A$1:$FC$1,0)))*'2'!$H33,1))),".") -> 3
A34: 2008-10-01 | B34: =INDEX('roh2-3'!$A$1:$FE$3927,MATCH(Strg!$H$5&"Insgesamt"&IF(Strg!$A$5=1,"Insgesamt",IF(Strg!$A$5=2,"III,SGB III","II,SGB II")),'roh2-3'!$B$1:$B$3927&'roh2-3'!$D$1:$D$3927&'roh2-3'!$A$1:$A$3927,0),MATCH('2'!$A34,'roh2-3'!$A$1:$FE$1,0)) -> 2989231 | C34: =IFERROR((B34-(INDEX('roh2-3'!$A$1:$FE$3927,MATCH(Strg!$H$5&"Insgesamt"&IF(Strg!$A$5=1,"Insgesamt",IF(Strg!$A$5=2,"III,SGB III","II,SGB II")),'roh2-3'!$B$1:$B$3927&'roh2-3'!$D$1:$D$3927&'roh2-3'!$A$1:$A$3927,0),MATCH(EDATE('2'!$A34,-12),'roh2-3'!$A$1:$FE$1,0)))),".") -> -432161 | D34: -12.63114545 | E34: =INDEX('roh2-3'!$A$1:$FE$3927,MATCH(Strg!$H$5&"N,Nicht Langzeitarbeitslos"&IF(Strg!$A$5=1,"Insgesamt",IF(Strg!$A$5=2,"III,SGB III","II,SGB II")),'roh2-3'!$B$1:$B$3927&'roh2-3'!$D$1:$D$3927&'roh2-3'!$A$1:$A$3927,0),MATCH('2'!$A34,'roh2-3'!$A$1:$FE$1,0)) -> 1775471 | F34: =IFERROR((E34-(INDEX('roh2-3'!$A$1:$FE$3927,MATCH(Strg!$H$5&"N,Nicht Langzeitarbeitslos"&IF(Strg!$A$5=1,"Insgesamt",IF(Strg!$A$5=2,"III,SGB III","II,SGB II")),'roh2-3'!$B$1:$B$3927&'roh2-3'!$D$1:$D$3927&'roh2-3'!$A$1:$A$3927,0),MATCH(EDATE('2'!$A34,-12),'roh2-3'!$A$1:$FE$1,0)))),".") -> -69668 | G34: -3.775758899 | H34: =INDEX('roh2-3'!$A$1:$FE$3927,MATCH(Strg!$H$5&"J,Langzeitarbeitslos"&IF(Strg!$A$5=1,"Insgesamt",IF(Strg!$A$5=2,"III,SGB III","II,SGB II")),'roh2-3'!$B$1:$B$3927&'roh2-3'!$D$1:$D$3927&'roh2-3'!$A$1:$A$3927,0),MATCH('2'!$A34,'roh2-3'!$A$1:$FE$1,0)) -> 1213760 | I34: =IFERROR((H34-(INDEX('roh2-3'!$A$1:$FE$3927,MATCH(Strg!$H$5&"J,Langzeitarbeitslos"&IF(Strg!$A$5=1,"Insgesamt",IF(Strg!$A$5=2,"III,SGB III","II,SGB II")),'roh2-3'!$B$1:$B$3927&'roh2-3'!$D$1:$D$3927&'roh2-3'!$A$1:$A$3927,0),MATCH(EDATE('2'!$A34,-12),'roh2-3'!$A$1:$FE$1,0)))),".") -> -362493 | J34: -22.99713307 | K34: =IF($A34>Impressum!$C$13,"-",IFERROR(100/B34*H34,"X")) -> 40.60442301 | L34: =IFERROR((IF($A34>Impressum!$C$13,"...",ROUND(100/(INDEX(Bzg!$A$1:$FC$438,MATCH(Strg!$H$5,Bzg!$A$1:$A$438,0),MATCH('2'!$A34,Bzg!$A$1:$FC$1,0)))*'2'!$B34,1))),".") -> 7.1 | M34: =IFERROR((IF($A34>Impressum!$C$13,"...",ROUND(100/(INDEX(Bzg!$A$1:$FC$438,MATCH(Strg!$H$5,Bzg!$A$1:$A$438,0),MATCH('2'!$A34,Bzg!$A$1:$FC$1,0)))*'2'!$H34,1))),".") -> 2.9
A35: 2008-11-01 | B35: =INDEX('roh2-3'!$A$1:$FE$3927,MATCH(Strg!$H$5&"Insgesamt"&IF(Strg!$A$5=1,"Insgesamt",IF(Strg!$A$5=2,"III,SGB III","II,SGB II")),'roh2-3'!$B$1:$B$3927&'roh2-3'!$D$1:$D$3927&'roh2-3'!$A$1:$A$3927,0),MATCH('2'!$A35,'roh2-3'!$A$1:$FE$1,0)) -> 2980969 | C35: =IFERROR((B35-(INDEX('roh2-3'!$A$1:$FE$3927,MATCH(Strg!$H$5&"Insgesamt"&IF(Strg!$A$5=1,"Insgesamt",IF(Strg!$A$5=2,"III,SGB III","II,SGB II")),'roh2-3'!$B$1:$B$3927&'roh2-3'!$D$1:$D$3927&'roh2-3'!$A$1:$A$3927,0),MATCH(EDATE('2'!$A35,-12),'roh2-3'!$A$1:$FE$1,0)))),".") -> -385907 | D35: -11.46187148 | E35: =INDEX('roh2-3'!$A$1:$FE$3927,MATCH(Strg!$H$5&"N,Nicht Langzeitarbeitslos"&IF(Strg!$A$5=1,"Insgesamt",IF(Strg!$A$5=2,"III,SGB III","II,SGB II")),'roh2-3'!$B$1:$B$3927&'roh2-3'!$D$1:$D$3927&'roh2-3'!$A$1:$A$3927,0),MATCH('2'!$A35,'roh2-3'!$A$1:$FE$1,0)) -> 1801347 | F35: =IFERROR((E35-(INDEX('roh2-3'!$A$1:$FE$3927,MATCH(Strg!$H$5&"N,Nicht Langzeitarbeitslos"&IF(Strg!$A$5=1,"Insgesamt",IF(Strg!$A$5=2,"III,SGB III","II,SGB II")),'roh2-3'!$B$1:$B$3927&'roh2-3'!$D$1:$D$3927&'roh2-3'!$A$1:$A$3927,0),MATCH(EDATE('2'!$A35,-12),'roh2-3'!$A$1:$FE$1,0)))),".") -> -43296 | G35: -2.347120825 | H35: =INDEX('roh2-3'!$A$1:$FE$3927,MATCH(Strg!$H$5&"J,Langzeitarbeitslos"&IF(Strg!$A$5=1,"Insgesamt",IF(Strg!$A$5=2,"III,SGB III","II,SGB II")),'roh2-3'!$B$1:$B$3927&'roh2-3'!$D$1:$D$3927&'roh2-3'!$A$1:$A$3927,0),MATCH('2'!$A35,'roh2-3'!$A$1:$FE$1,0)) -> 1179622 | I35: =IFERROR((H35-(INDEX('roh2-3'!$A$1:$FE$3927,MATCH(Strg!$H$5&"J,Langzeitarbeitslos"&IF(Strg!$A$5=1,"Insgesamt",IF(Strg!$A$5=2,"III,SGB III","II,SGB II")),'roh2-3'!$B$1:$B$3927&'roh2-3'!$D$1:$D$3927&'roh2-3'!$A$1:$A$3927,0),MATCH(EDATE('2'!$A35,-12),'roh2-3'!$A$1:$FE$1,0)))),".") -> -342611 | J35: -22.50713261 | K35: =IF($A35>Impressum!$C$13,"-",IFERROR(100/B35*H35,"X")) -> 39.57176341 | L35: =IFERROR((IF($A35>Impressum!$C$13,"...",ROUND(100/(INDEX(Bzg!$A$1:$FC$438,MATCH(Strg!$H$5,Bzg!$A$1:$A$438,0),MATCH('2'!$A35,Bzg!$A$1:$FC$1,0)))*'2'!$B35,1))),".") -> 7.1 | M35: =IFERROR((IF($A35>Impressum!$C$13,"...",ROUND(100/(INDEX(Bzg!$A$1:$FC$438,MATCH(Strg!$H$5,Bzg!$A$1:$A$438,0),MATCH('2'!$A35,Bzg!$A$1:$FC$1,0)))*'2'!$H35,1))),".") -> 2.8
A36: 2008-12-01 | B36: =INDEX('roh2-3'!$A$1:$FE$3927,MATCH(Strg!$H$5&"Insgesamt"&IF(Strg!$A$5=1,"Insgesamt",IF(Strg!$A$5=2,"III,SGB III","II,SGB II")),'roh2-3'!$B$1:$B$3927&'roh2-3'!$D$1:$D$3927&'roh2-3'!$A$1:$A$3927,0),MATCH('2'!$A36,'roh2-3'!$A$1:$FE$1,0)) -> 3094150 | C36: =IFERROR((B36-(INDEX('roh2-3'!$A$1:$FE$3927,MATCH(Strg!$H$5&"Insgesamt"&IF(Strg!$A$5=1,"Insgesamt",IF(Strg!$A$5=2,"III,SGB III","II,SGB II")),'roh2-3'!$B$1:$B$3927&'roh2-3'!$D$1:$D$3927&'roh2-3'!$A$1:$A$3927,0),MATCH(EDATE('2'!$A36,-12),'roh2-3'!$A$1:$FE$1,0)))),".") -> -301071 | D36: -8.867493456 | E36: =INDEX('roh2-3'!$A$1:$FE$3927,MATCH(Strg!$H$5&"N,Nicht Langzeitarbeitslos"&IF(Strg!$A$5=1,"Insgesamt",IF(Strg!$A$5=2,"III,SGB III","II,SGB II")),'roh2-3'!$B$1:$B$3927&'roh2-3'!$D$1:$D$3927&'roh2-3'!$A$1:$A$3927,0),MATCH('2'!$A36,'roh2-3'!$A$1:$FE$1,0)) -> 1936316 | F36: =IFERROR((E36-(INDEX('roh2-3'!$A$1:$FE$3927,MATCH(Strg!$H$5&"N,Nicht Langzeitarbeitslos"&IF(Strg!$A$5=1,"Insgesamt",IF(Strg!$A$5=2,"III,SGB III","II,SGB II")),'roh2-3'!$B$1:$B$3927&'roh2-3'!$D$1:$D$3927&'roh2-3'!$A$1:$A$3927,0),MATCH(EDATE('2'!$A36,-12),'roh2-3'!$A$1:$FE$1,0)))),".") -> 27677 | G36: 1.450090876 | H36: =INDEX('roh2-3'!$A$1:$FE$3927,MATCH(Strg!$H$5&"J,Langzeitarbeitslos"&IF(Strg!$A$5=1,"Insgesamt",IF(Strg!$A$5=2,"III,SGB III","II,SGB II")),'roh2-3'!$B$1:$B$3927&'roh2-3'!$D$1:$D$3927&'roh2-3'!$A$1:$A$3927,0),MATCH('2'!$A36,'roh2-3'!$A$1:$FE$1,0)) -> 1157834 | I36: =IFERROR((H36-(INDEX('roh2-3'!$A$1:$FE$3927,MATCH(Strg!$H$5&"J,Langzeitarbeitslos"&IF(Strg!$A$5=1,"Insgesamt",IF(Strg!$A$5=2,"III,SGB III","II,SGB II")),'roh2-3'!$B$1:$B$3927&'roh2-3'!$D$1:$D$3927&'roh2-3'!$A$1:$A$3927,0),MATCH(EDATE('2'!$A36,-12),'roh2-3'!$A$1:$FE$1,0)))),".") -> -328748 | J36: -22.1143536 | K36: =IF($A36>Impressum!$C$13,"-",IFERROR(100/B36*H36,"X")) -> 37.42009922 | L36: =IFERROR((IF($A36>Impressum!$C$13,"...",ROUND(100/(INDEX(Bzg!$A$1:$FC$438,MATCH(Strg!$H$5,Bzg!$A$1:$A$438,0),MATCH('2'!$A36,Bzg!$A$1:$FC$1,0)))*'2'!$B36,1))),".") -> 7.4 | M36: =IFERROR((IF($A36>Impressum!$C$13,"...",ROUND(100/(INDEX(Bzg!$A$1:$FC$438,MATCH(Strg!$H$5,Bzg!$A$1:$A$438,0),MATCH('2'!$A36,Bzg!$A$1:$FC$1,0)))*'2'!$H36,1))),".") -> 2.8
A37: 2009-01-01 | B37: =INDEX('roh2-3'!$A$1:$FE$3927,MATCH(Strg!$H$5&"Insgesamt"&IF(Strg!$A$5=1,"Insgesamt",IF(Strg!$A$5=2,"III,SGB III","II,SGB II")),'roh2-3'!$B$1:$B$3927&'roh2-3'!$D$1:$D$3927&'roh2-3'!$A$1:$A$3927,0),MATCH('2'!$A37,'roh2-3'!$A$1:$FE$1,0)) -> 3480171 | C37: =IFERROR((IF($A37>Impressum!$C$13,"...",B37-B25)),".") -> -167734 | D37: =IF($A37>Impressum!$C$13,"-",IFERROR(IF(OR(100/B25*(B37-B25)>250,100/B25*(B37-B25)<-250),".X",100/B25*(B37-B25)),"X")) -> -4.598091233 | E37: =INDEX('roh2-3'!$A$1:$FE$3927,MATCH(Strg!$H$5&"N,Nicht Langzeitarbeitslos"&IF(Strg!$A$5=1,"Insgesamt",IF(Strg!$A$5=2,"III,SGB III","II,SGB II")),'roh2-3'!$B$1:$B$3927&'roh2-3'!$D$1:$D$3927&'roh2-3'!$A$1:$A$3927,0),MATCH('2'!$A37,'roh2-3'!$A$1:$FE$1,0)) -> 2294168 | F37: =IFERROR((IF($A37>Impressum!$C$13,"...",E37-E25)),".") -> 144383 | G37: =IF($A37>Impressum!$C$13,"-",IFERROR(IF(OR(100/E25*(E37-E25)>250,100/E25*(E37-E25)<-250),".X",100/E25*(E37-E25)),"X")) -> 6.716159988 | H37: =INDEX('roh2-3'!$A$1:$FE$3927,MATCH(Strg!$H$5&"J,Langzeitarbeitslos"&IF(Strg!$A$5=1,"Insgesamt",IF(Strg!$A$5=2,"III,SGB III","II,SGB II")),'roh2-3'!$B$1:$B$3927&'roh2-3'!$D$1:$D$3927&'roh2-3'!$A$1:$A$3927,0),MATCH('2'!$A37,'roh2-3'!$A$1:$FE$1,0)) -> 1186003 | I37: =IFERROR((IF($A37>Impressum!$C$13,"...",H37-H25)),".") -> -312117 | J37: =IF($A37>Impressum!$C$13,"-",IFERROR(IF(OR(100/H25*(H37-H25)>250,100/H25*(H37-H25)<-250),".X",100/H25*(H37-H25)),"X")) -> -20.83391184 | K37: =IF($A37>Impressum!$C$13,"-",IFERROR(100/B37*H37,"X")) -> 34.07887141 | L37: =IFERROR((IF($A37>Impressum!$C$13,"...",ROUND(100/(INDEX(Bzg!$A$1:$FC$438,MATCH(Strg!$H$5,Bzg!$A$1:$A$438,0),MATCH('2'!$A37,Bzg!$A$1:$FC$1,0)))*'2'!$B37,1))),".") -> 8.3 | M37: =IFERROR((IF($A37>Impressum!$C$13,"...",ROUND(100/(INDEX(Bzg!$A$1:$FC$438,MATCH(Strg!$H$5,Bzg!$A$1:$A$438,0),MATCH('2'!$A37,Bzg!$A$1:$FC$1,0)))*'2'!$H37,1))),".") -> 2.8
A38: 2009-02-01 | B38: =INDEX('roh2-3'!$A$1:$FE$3927,MATCH(Strg!$H$5&"Insgesamt"&IF(Strg!$A$5=1,"Insgesamt",IF(Strg!$A$5=2,"III,SGB III","II,SGB II")),'roh2-3'!$B$1:$B$3927&'roh2-3'!$D$1:$D$3927&'roh2-3'!$A$1:$A$3927,0),MATCH('2'!$A38,'roh2-3'!$A$1:$FE$1,0)) -> 3542602 | C38: =IFERROR((IF($A38>Impressum!$C$13,"...",B38-B26)),".") -> -63477 | D38: =IF($A38>Impressum!$C$13,"-",IFERROR(IF(OR(100/B26*(B38-B26)>250,100/B26*(B38-B26)<-250),".X",100/B26*(B38-B26)),"X")) -> -1.760277576 | E38: =INDEX('roh2-3'!$A$1:$FE$3927,MATCH(Strg!$H$5&"N,Nicht Langzeitarbeitslos"&IF(Strg!$A$5=1,"Insgesamt",IF(Strg!$A$5=2,"III,SGB III","II,SGB II")),'roh2-3'!$B$1:$B$3927&'roh2-3'!$D$1:$D$3927&'roh2-3'!$A$1:$A$3927,0),MATCH('2'!$A38,'roh2-3'!$A$1:$FE$1,0)) -> 2372267 | F38: =IFERROR((IF($A38>Impressum!$C$13,"...",E38-E26)),".") -> 233387 | G38: =IF($A38>Impressum!$C$13,"-",IFERROR(IF(OR(100/E26*(E38-E26)>250,100/E26*(E38-E26)<-250),".X",100/E26*(E38-E26)),"X")) -> 10.91164535 | H38: =INDEX('roh2-3'!$A$1:$FE$3927,MATCH(Strg!$H$5&"J,Langzeitarbeitslos"&IF(Strg!$A$5=1,"Insgesamt",IF(Strg!$A$5=2,"III,SGB III","II,SGB II")),'roh2-3'!$B$1:$B$3927&'roh2-3'!$D$1:$D$3927&'roh2-3'!$A$1:$A$3927,0),MATCH('2'!$A38,'roh2-3'!$A$1:$FE$1,0)) -> 1170335 | I38: =IFERROR((IF($A38>Impressum!$C$13,"...",H38-H26)),".") -> -296864 | J38: =IF($A38>Impressum!$C$13,"-",IFERROR(IF(OR(100/H26*(H38-H26)>250,100/H26*(H38-H26)<-250),".X",100/H26*(H38-H26)),"X")) -> -20.23338347 | K38: =IF($A38>Impressum!$C$13,"-",IFERROR(100/B38*H38,"X")) -> 33.03602832 | L38: =IFERROR((IF($A38>Impressum!$C$13,"...",ROUND(100/(INDEX(Bzg!$A$1:$FC$438,MATCH(Strg!$H$5,Bzg!$A$1:$A$438,0),MATCH('2'!$A38,Bzg!$A$1:$FC$1,0)))*'2'!$B38,1))),".") -> 8.5 | M38: =IFERROR((IF($A38>Impressum!$C$13,"...",ROUND(100/(INDEX(Bzg!$A$1:$FC$438,MATCH(Strg!$H$5,Bzg!$A$1:$A$438,0),MATCH('2'!$A38,Bzg!$A$1:$FC$1,0)))*'2'!$H38,1))),".") -> 2.8
A39: 2009-03-01 | B39: =INDEX('roh2-3'!$A$1:$FE$3927,MATCH(Strg!$H$5&"Insgesamt"&IF(Strg!$A$5=1,"Insgesamt",IF(Strg!$A$5=2,"III,SGB III","II,SGB II")),'roh2-3'!$B$1:$B$3927&'roh2-3'!$D$1:$D$3927&'roh2-3'!$A$1:$A$3927,0),MATCH('2'!$A39,'roh2-3'!$A$1:$FE$1,0)) -> 3576362 | C39: =IFERROR((IF($A39>Impressum!$C$13,"...",B39-B27)),".") -> 79498 | D39: =IF($A39>Impressum!$C$13,"-",IFERROR(IF(OR(100/B27*(B39-B27)>250,100/B27*(B39-B27)<-250),".X",100/B27*(B39-B27)),"X")) -> 2.273408403 | E39: =INDEX('roh2-3'!$A$1:$FE$3927,MATCH(Strg!$H$5&"N,Nicht Langzeitarbeitslos"&IF(Strg!$A$5=1,"Insgesamt",IF(Strg!$A$5=2,"III,SGB III","II,SGB II")),'roh2-3'!$B$1:$B$3927&'roh2-3'!$D$1:$D$3927&'roh2-3'!$A$1:$A$3927,0),MATCH('2'!$A39,'roh2-3'!$A$1:$FE$1,0)) -> 2414381 | F39: =IFERROR((IF($A39>Impressum!$C$13,"...",E39-E27)),".") -> 351705 | G39: =IF($A39>Impressum!$C$13,"-",IFERROR(IF(OR(100/E27*(E39-E27)>250,100/E27*(E39-E27)<-250),".X",100/E27*(E39-E27)),"X")) -> 17.05090863 | H39: =INDEX('roh2-3'!$A$1:$FE$3927,MATCH(Strg!$H$5&"J,Langzeitarbeitslos"&IF(Strg!$A$5=1,"Insgesamt",IF(Strg!$A$5=2,"III,SGB III","II,SGB II")),'roh2-3'!$B$1:$B$3927&'roh2-3'!$D$1:$D$3927&'roh2-3'!$A$1:$A$3927,0),MATCH('2'!$A39,'roh2-3'!$A$1:$FE$1,0)) -> 1161981 | I39: =IFERROR((IF($A39>Impressum!$C$13,"...",H39-H27)),".") -> -272207 | J39: =IF($A39>Impressum!$C$13,"-",IFERROR(IF(OR(100/H27*(H39-H27)>250,100/H27*(H39-H27)<-250),".X",100/H27*(H39-H27)),"X")) -> -18.97986875 | K39: =IF($A39>Impressum!$C$13,"-",IFERROR(100/B39*H39,"X")) -> 32.4905868 | L39: =IFERROR((IF($A39>Impressum!$C$13,"...",ROUND(100/(INDEX(Bzg!$A$1:$FC$438,MATCH(Strg!$H$5,Bzg!$A$1:$A$438,0),MATCH('2'!$A39,Bzg!$A$1:$FC$1,0)))*'2'!$B39,1))),".") -> 8.5 | M39: =IFERROR((IF($A39>Impressum!$C$13,"...",ROUND(100/(INDEX(Bzg!$A$1:$FC$438,MATCH(Strg!$H$5,Bzg!$A$1:$A$438,0),MATCH('2'!$A39,Bzg!$A$1:$FC$1,0)))*'2'!$H39,1))),".") -> 2.8
A40: 2009-04-01 | B40: =INDEX('roh2-3'!$A$1:$FE$3927,MATCH(Strg!$H$5&"Insgesamt"&IF(Strg!$A$5=1,"Insgesamt",IF(Strg!$A$5=2,"III,SGB III","II,SGB II")),'roh2-3'!$B$1:$B$3927&'roh2-3'!$D$1:$D$3927&'roh2-3'!$A$1:$A$3927,0),MATCH('2'!$A40,'roh2-3'!$A$1:$FE$1,0)) -> 3575257 | C40: =IFERROR((IF($A40>Impressum!$C$13,"...",B40-B28)),".") -> 171590 | D40: =IF($A40>Impressum!$C$13,"-",IFERROR(IF(OR(100/B28*(B40-B28)>250,100/B28*(B40-B28)<-250),".X",100/B28*(B40-B28)),"X")) -> 5.041327486 | E40: =INDEX('roh2-3'!$A$1:$FE$3927,MATCH(Strg!$H$5&"N,Nicht Langzeitarbeitslos"&IF(Strg!$A$5=1,"Insgesamt",IF(Strg!$A$5=2,"III,SGB III","II,SGB II")),'roh2-3'!$B$1:$B$3927&'roh2-3'!$D$1:$D$3927&'roh2-3'!$A$1:$A$3927,0),MATCH('2'!$A40,'roh2-3'!$A$1:$FE$1,0)) -> 2407869 | F40: =IFERROR((IF($A40>Impressum!$C$13,"...",E40-E28)),".") -> 422446 | G40: =IF($A40>Impressum!$C$13,"-",IFERROR(IF(OR(100/E28*(E40-E28)>250,100/E28*(E40-E28)<-250),".X",100/E28*(E40-E28)),"X")) -> 21.27738019 | H40: =INDEX('roh2-3'!$A$1:$FE$3927,MATCH(Strg!$H$5&"J,Langzeitarbeitslos"&IF(Strg!$A$5=1,"Insgesamt",IF(Strg!$A$5=2,"III,SGB III","II,SGB II")),'roh2-3'!$B$1:$B$3927&'roh2-3'!$D$1:$D$3927&'roh2-3'!$A$1:$A$3927,0),MATCH('2'!$A40,'roh2-3'!$A$1:$FE$1,0)) -> 1167388 | I40: =IFERROR((IF($A40>Impressum!$C$13,"...",H40-H28)),".") -> -250856 | J40: =IF($A40>Impressum!$C$13,"-",IFERROR(IF(OR(100/H28*(H40-H28)>250,100/H28*(H40-H28)<-250),".X",100/H28*(H40-H28)),"X")) -> -17.68778856 | K40: =IF($A40>Impressum!$C$13,"-",IFERROR(100/B40*H40,"X")) -> 32.65186251 | L40: =IFERROR((IF($A40>Impressum!$C$13,"...",ROUND(100/(INDEX(Bzg!$A$1:$FC$438,MATCH(Strg!$H$5,Bzg!$A$1:$A$438,0),MATCH('2'!$A40,Bzg!$A$1:$FC$1,0)))*'2'!$B40,1))),".") -> 8.5 | M40: =IFERROR((IF($A40>Impressum!$C$13,"...",ROUND(100/(INDEX(Bzg!$A$1:$FC$438,MATCH(Strg!$H$5,Bzg!$A$1:$A$438,0),MATCH('2'!$A40,Bzg!$A$1:$FC$1,0)))*'2'!$H40,1))),".") -> 2.8
A41: 2009-05-01 | B41: =INDEX('roh2-3'!$A$1:$FE$3927,MATCH(Strg!$H$5&"Insgesamt"&IF(Strg!$A$5=1,"Insgesamt",IF(Strg!$A$5=2,"III,SGB III","II,SGB II")),'roh2-3'!$B$1:$B$3927&'roh2-3'!$D$1:$D$3927&'roh2-3'!$A$1:$A$3927,0),MATCH('2'!$A41,'roh2-3'!$A$1:$FE$1,0)) -> 3449223 | C41: =IFERROR((IF($A41>Impressum!$C$13,"...",B41-B29)),".") -> 175197 | D41: =IF($A41>Impressum!$C$13,"-",IFERROR(IF(OR(100/B29*(B41-B29)>250,100/B29*(B41-B29)<-250),".X",100/B29*(B41-B29)),"X")) -> 5.351118165 | E41: =INDEX('roh2-3'!$A$1:$FE$3927,MATCH(Strg!$H$5&"N,Nicht Langzeitarbeitslos"&IF(Strg!$A$5=1,"Insgesamt",IF(Strg!$A$5=2,"III,SGB III","II,SGB II")),'roh2-3'!$B$1:$B$3927&'roh2-3'!$D$1:$D$3927&'roh2-3'!$A$1:$A$3927,0),MATCH('2'!$A41,'roh2-3'!$A$1:$FE$1,0)) -> 2308964 | F41: =IFERROR((IF($A41>Impressum!$C$13,"...",E41-E29)),".") -> 414527 | G41: =IF($A41>Impressum!$C$13,"-",IFERROR(IF(OR(100/E29*(E41-E29)>250,100/E29*(E41-E29)<-250),".X",100/E29*(E41-E29)),"X")) -> 21.8812766 | H41: =INDEX('roh2-3'!$A$1:$FE$3927,MATCH(Strg!$H$5&"J,Langzeitarbeitslos"&IF(Strg!$A$5=1,"Insgesamt",IF(Strg!$A$5=2,"III,SGB III","II,SGB II")),'roh2-3'!$B$1:$B$3927&'roh2-3'!$D$1:$D$3927&'roh2-3'!$A$1:$A$3927,0),MATCH('2'!$A41,'roh2-3'!$A$1:$FE$1,0)) -> 1140259 | I41: =IFERROR((IF($A41>Impressum!$C$13,"...",H41-H29)),".") -> -239330 | J41: =IF($A41>Impressum!$C$13,"-",IFERROR(IF(OR(100/H29*(H41-H29)>250,100/H29*(H41-H29)<-250),".X",100/H29*(H41-H29)),"X")) -> -17.34792029 | K41: =IF($A41>Impressum!$C$13,"-",IFERROR(100/B41*H41,"X")) -> 33.05843084 | L41: =IFERROR((IF($A41>Impressum!$C$13,"...",ROUND(100/(INDEX(Bzg!$A$1:$FC$438,MATCH(Strg!$H$5,Bzg!$A$1:$A$438,0),MATCH('2'!$A41,Bzg!$A$1:$FC$1,0)))*'2'!$B41,1))),".") -> 8.2 | M41: =IFERROR((IF($A41>Impressum!$C$13,"...",ROUND(100/(INDEX(Bzg!$A$1:$FC$438,MATCH(Strg!$H$5,Bzg!$A$1:$A$438,0),MATCH('2'!$A41,Bzg!$A$1:$FC$1,0)))*'2'!$H41,1))),".") -> 2.7
A42: 2009-06-01 | B42: =INDEX('roh2-3'!$A$1:$FE$3927,MATCH(Strg!$H$5&"Insgesamt"&IF(Strg!$A$5=1,"Insgesamt",IF(Strg!$A$5=2,"III,SGB III","II,SGB II")),'roh2-3'!$B$1:$B$3927&'roh2-3'!$D$1:$D$3927&'roh2-3'!$A$1:$A$3927,0),MATCH('2'!$A42,'roh2-3'!$A$1:$FE$1,0)) -> 3402047 | C42: =IFERROR((IF($A42>Impressum!$C$13,"...",B42-B30)),".") -> 250368 | D42: =IF($A42>Impressum!$C$13,"-",IFERROR(IF(OR(100/B30*(B42-B30)>250,100/B30*(B42-B30)<-250),".X",100/B30*(B42-B30)),"X")) -> 7.943956221 | E42: =INDEX('roh2-3'!$A$1:$FE$3927,MATCH(Strg!$H$5&"N,Nicht Langzeitarbeitslos"&IF(Strg!$A$5=1,"Insgesamt",IF(Strg!$A$5=2,"III,SGB III","II,SGB II")),'roh2-3'!$B$1:$B$3927&'roh2-3'!$D$1:$D$3927&'roh2-3'!$A$1:$A$3927,0),MATCH('2'!$A42,'roh2-3'!$A$1:$FE$1,0)) -> 2268103 | F42: =IFERROR((IF($A42>Impressum!$C$13,"...",E42-E30)),".") -> 447148 | G42: =IF($A42>Impressum!$C$13,"-",IFERROR(IF(OR(100/E30*(E42-E30)>250,100/E30*(E42-E30)<-250),".X",100/E30*(E42-E30)),"X")) -> 24.55568644 | H42: =INDEX('roh2-3'!$A$1:$FE$3927,MATCH(Strg!$H$5&"J,Langzeitarbeitslos"&IF(Strg!$A$5=1,"Insgesamt",IF(Strg!$A$5=2,"III,SGB III","II,SGB II")),'roh2-3'!$B$1:$B$3927&'roh2-3'!$D$1:$D$3927&'roh2-3'!$A$1:$A$3927,0),MATCH('2'!$A42,'roh2-3'!$A$1:$FE$1,0)) -> 1133944 | I42: =IFERROR((IF($A42>Impressum!$C$13,"...",H42-H30)),".") -> -196780 | J42: =IF($A42>Impressum!$C$13,"-",IFERROR(IF(OR(100/H30*(H42-H30)>250,100/H30*(H42-H30)<-250),".X",100/H30*(H42-H30)),"X")) -> -14.78743902 | K42: =IF($A42>Impressum!$C$13,"-",IFERROR(100/B42*H42,"X")) -> 33.33122676 | L42: =IFERROR((IF($A42>Impressum!$C$13,"...",ROUND(100/(INDEX(Bzg!$A$1:$FC$438,MATCH(Strg!$H$5,Bzg!$A$1:$A$438,0),MATCH('2'!$A42,Bzg!$A$1:$FC$1,0)))*'2'!$B42,1))),".") -> 8.1 | M42: =IFERROR((IF($A42>Impressum!$C$13,"...",ROUND(100/(INDEX(Bzg!$A$1:$FC$438,MATCH(Strg!$H$5,Bzg!$A$1:$A$438,0),MATCH('2'!$A42,Bzg!$A$1:$FC$1,0)))*'2'!$H42,1))),".") -> 2.7
A43: 2009-07-01 | B43: =INDEX('roh2-3'!$A$1:$FE$3927,MATCH(Strg!$H$5&"Insgesamt"&IF(Strg!$A$5=1,"Insgesamt",IF(Strg!$A$5=2,"III,SGB III","II,SGB II")),'roh2-3'!$B$1:$B$3927&'roh2-3'!$D$1:$D$3927&'roh2-3'!$A$1:$A$3927,0),MATCH('2'!$A43,'roh2-3'!$A$1:$FE$1,0)) -> 3454498 | C43: =IFERROR((IF($A43>Impressum!$C$13,"...",B43-B31)),".") -> 252657 | D43: =IF($A43>Impressum!$C$13,"-",IFERROR(IF(OR(100/B31*(B43-B31)>250,100/B31*(B43-B31)<-250),".X",100/B31*(B43-B31)),"X")) -> 7.890991464 | E43: =INDEX('roh2-3'!$A$1:$FE$3927,MATCH(Strg!$H$5&"N,Nicht Langzeitarbeitslos"&IF(Strg!$A$5=1,"Insgesamt",IF(Strg!$A$5=2,"III,SGB III","II,SGB II")),'roh2-3'!$B$1:$B$3927&'roh2-3'!$D$1:$D$3927&'roh2-3'!$A$1:$A$3927,0),MATCH('2'!$A43,'roh2-3'!$A$1:$FE$1,0)) -> 2326717 | F43: =IFERROR((IF($A43>Impressum!$C$13,"...",E43-E31)),".") -> 437109 | G43: =IF($A43>Impressum!$C$13,"-",IFERROR(IF(OR(100/E31*(E43-E31)>250,100/E31*(E43-E31)<-250),".X",100/E31*(E43-E31)),"X")) -> 23.13225812 | H43: =INDEX('roh2-3'!$A$1:$FE$3927,MATCH(Strg!$H$5&"J,Langzeitarbeitslos"&IF(Strg!$A$5=1,"Insgesamt",IF(Strg!$A$5=2,"III,SGB III","II,SGB II")),'roh2-3'!$B$1:$B$3927&'roh2-3'!$D$1:$D$3927&'roh2-3'!$A$1:$A$3927,0),MATCH('2'!$A43,'roh2-3'!$A$1:$FE$1,0)) -> 1127781 | I43: =IFERROR((IF($A43>Impressum!$C$13,"...",H43-H31)),".") -> -184452 | J43: =IF($A43>Impressum!$C$13,"-",IFERROR(IF(OR(100/H31*(H43-H31)>250,100/H31*(H43-H31)<-250),".X",100/H31*(H43-H31)),"X")) -> -14.05634518 | K43: =IF($A43>Impressum!$C$13,"-",IFERROR(100/B43*H43,"X")) -> 32.64674057 | L43: =IFERROR((IF($A43>Impressum!$C$13,"...",ROUND(100/(INDEX(Bzg!$A$1:$FC$438,MATCH(Strg!$H$5,Bzg!$A$1:$A$438,0),MATCH('2'!$A43,Bzg!$A$1:$FC$1,0)))*'2'!$B43,1))),".") -> 8.2 | M43: =IFERROR((IF($A43>Impressum!$C$13,"...",ROUND(100/(INDEX(Bzg!$A$1:$FC$438,MATCH(Strg!$H$5,Bzg!$A$1:$A$438,0),MATCH('2'!$A43,Bzg!$A$1:$FC$1,0)))*'2'!$H43,1))),".") -> 2.7
A44: 2009-08-01 | B44: =INDEX('roh2-3'!$A$1:$FE$3927,MATCH(Strg!$H$5&"Insgesamt"&IF(Strg!$A$5=1,"Insgesamt",IF(Strg!$A$5=2,"III,SGB III","II,SGB II")),'roh2-3'!$B$1:$B$3927&'roh2-3'!$D$1:$D$3927&'roh2-3'!$A$1:$A$3927,0),MATCH('2'!$A44,'roh2-3'!$A$1:$FE$1,0)) -> 3463439 | C44: =IFERROR((IF($A44>Impressum!$C$13,"...",B44-B32)),".") -> 275675 | D44: =IF($A44>Impressum!$C$13,"-",IFERROR(IF(OR(100/B32*(B44-B32)>250,100/B32*(B44-B32)<-250),".X",100/B32*(B44-B32)),"X")) -> 8.6479112 | E44: =INDEX('roh2-3'!$A$1:$FE$3927,MATCH(Strg!$H$5&"N,Nicht Langzeitarbeitslos"&IF(Strg!$A$5=1,"Insgesamt",IF(Strg!$A$5=2,"III,SGB III","II,SGB II")),'roh2-3'!$B$1:$B$3927&'roh2-3'!$D$1:$D$3927&'roh2-3'!$A$1:$A$3927,0),MATCH('2'!$A44,'roh2-3'!$A$1:$FE$1,0)) -> 2340095 | F44: =IFERROR((IF($A44>Impressum!$C$13,"...",E44-E32)),".") -> 436392 | G44: =IF($A44>Impressum!$C$13,"-",IFERROR(IF(OR(100/E32*(E44-E32)>250,100/E32*(E44-E32)<-250),".X",100/E32*(E44-E32)),"X")) -> 22.92332365 | H44: =INDEX('roh2-3'!$A$1:$FE$3927,MATCH(Strg!$H$5&"J,Langzeitarbeitslos"&IF(Strg!$A$5=1,"Insgesamt",IF(Strg!$A$5=2,"III,SGB III","II,SGB II")),'roh2-3'!$B$1:$B$3927&'roh2-3'!$D$1:$D$3927&'roh2-3'!$A$1:$A$3927,0),MATCH('2'!$A44,'roh2-3'!$A$1:$FE$1,0)) -> 1123344 | I44: =IFERROR((IF($A44>Impressum!$C$13,"...",H44-H32)),".") -> -160717 | J44: =IF($A44>Impressum!$C$13,"-",IFERROR(IF(OR(100/H32*(H44-H32)>250,100/H32*(H44-H32)<-250),".X",100/H32*(H44-H32)),"X")) -> -12.51630569 | K44: =IF($A44>Impressum!$C$13,"-",IFERROR(100/B44*H44,"X")) -> 32.4343521 | L44: =IFERROR((IF($A44>Impressum!$C$13,"...",ROUND(100/(INDEX(Bzg!$A$1:$FC$438,MATCH(Strg!$H$5,Bzg!$A$1:$A$438,0),MATCH('2'!$A44,Bzg!$A$1:$FC$1,0)))*'2'!$B44,1))),".") -> 8.2 | M44: =IFERROR((IF($A44>Impressum!$C$13,"...",ROUND(100/(INDEX(Bzg!$A$1:$FC$438,MATCH(Strg!$H$5,Bzg!$A$1:$A$438,0),MATCH('2'!$A44,Bzg!$A$1:$FC$1,0)))*'2'!$H44,1))),".") -> 2.7
A45: 2009-09-01 | B45: =INDEX('roh2-3'!$A$1:$FE$3927,MATCH(Strg!$H$5&"Insgesamt"&IF(Strg!$A$5=1,"Insgesamt",IF(Strg!$A$5=2,"III,SGB III","II,SGB II")),'roh2-3'!$B$1:$B$3927&'roh2-3'!$D$1:$D$3927&'roh2-3'!$A$1:$A$3927,0),MATCH('2'!$A45,'roh2-3'!$A$1:$FE$1,0)) -> 3338882 | C45: =IFERROR((IF($A45>Impressum!$C$13,"...",B45-B33)),".") -> 265614 | D45: =IF($A45>Impressum!$C$13,"-",IFERROR(IF(OR(100/B33*(B45-B33)>250,100/B33*(B45-B33)<-250),".X",100/B33*(B45-B33)),"X")) -> 8.642721689 | E45: =INDEX('roh2-3'!$A$1:$FE$3927,MATCH(Strg!$H$5&"N,Nicht Langzeitarbeitslos"&IF(Strg!$A$5=1,"Insgesamt",IF(Strg!$A$5=2,"III,SGB III","II,SGB II")),'roh2-3'!$B$1:$B$3927&'roh2-3'!$D$1:$D$3927&'roh2-3'!$A$1:$A$3927,0),MATCH('2'!$A45,'roh2-3'!$A$1:$FE$1,0)) -> 2219289 | F45: =IFERROR((IF($A45>Impressum!$C$13,"...",E45-E33)),".") -> 388922 | G45: =IF($A45>Impressum!$C$13,"-",IFERROR(IF(OR(100/E33*(E45-E33)>250,100/E33*(E45-E33)<-250),".X",100/E33*(E45-E33)),"X")) -> 21.24830703 | H45: =INDEX('roh2-3'!$A$1:$FE$3927,MATCH(Strg!$H$5&"J,Langzeitarbeitslos"&IF(Strg!$A$5=1,"Insgesamt",IF(Strg!$A$5=2,"III,SGB III","II,SGB II")),'roh2-3'!$B$1:$B$3927&'roh2-3'!$D$1:$D$3927&'roh2-3'!$A$1:$A$3927,0),MATCH('2'!$A45,'roh2-3'!$A$1:$FE$1,0)) -> 1119593 | I45: =IFERROR((IF($A45>Impressum!$C$13,"...",H45-H33)),".") -> -123308 | J45: =IF($A45>Impressum!$C$13,"-",IFERROR(IF(OR(100/H33*(H45-H33)>250,100/H33*(H45-H33)<-250),".X",100/H33*(H45-H33)),"X")) -> -9.920983248 | K45: =IF($A45>Impressum!$C$13,"-",IFERROR(100/B45*H45,"X")) -> 33.53197268 | L45: =IFERROR((IF($A45>Impressum!$C$13,"...",ROUND(100/(INDEX(Bzg!$A$1:$FC$438,MATCH(Strg!$H$5,Bzg!$A$1:$A$438,0),MATCH('2'!$A45,Bzg!$A$1:$FC$1,0)))*'2'!$B45,1))),".") -> 7.9 | M45: =IFERROR((IF($A45>Impressum!$C$13,"...",ROUND(100/(INDEX(Bzg!$A$1:$FC$438,MATCH(Strg!$H$5,Bzg!$A$1:$A$438,0),MATCH('2'!$A45,Bzg!$A$1:$FC$1,0)))*'2'!$H45,1))),".") -> 2.7
A46: 2009-10-01 | B46: =INDEX('roh2-3'!$A$1:$FE$3927,MATCH(Strg!$H$5&"Insgesamt"&IF(Strg!$A$5=1,"Insgesamt",IF(Strg!$A$5=2,"III,SGB III","II,SGB II")),'roh2-3'!$B$1:$B$3927&'roh2-3'!$D$1:$D$3927&'roh2-3'!$A$1:$A$3927,0),MATCH('2'!$A46,'roh2-3'!$A$1:$FE$1,0)) -> 3221207 | C46: =IFERROR((IF($A46>Impressum!$C$13,"...",B46-B34)),".") -> 231976 | D46: =IF($A46>Impressum!$C$13,"-",IFERROR(IF(OR(100/B34*(B46-B34)>250,100/B34*(B46-B34)<-250),".X",100/B34*(B46-B34)),"X")) -> 7.760390549 | E46: =INDEX('roh2-3'!$A$1:$FE$3927,MATCH(Strg!$H$5&"N,Nicht Langzeitarbeitslos"&IF(Strg!$A$5=1,"Insgesamt",IF(Strg!$A$5=2,"III,SGB III","II,SGB II")),'roh2-3'!$B$1:$B$3927&'roh2-3'!$D$1:$D$3927&'roh2-3'!$A$1:$A$3927,0),MATCH('2'!$A46,'roh2-3'!$A$1:$FE$1,0)) -> 2112153 | F46: =IFERROR((IF($A46>Impressum!$C$13,"...",E46-E34)),".") -> 336682 | G46: =IF($A46>Impressum!$C$13,"-",IFERROR(IF(OR(100/E34*(E46-E34)>250,100/E34*(E46-E34)<-250),".X",100/E34*(E46-E34)),"X")) -> 18.96296814 | H46: =INDEX('roh2-3'!$A$1:$FE$3927,MATCH(Strg!$H$5&"J,Langzeitarbeitslos"&IF(Strg!$A$5=1,"Insgesamt",IF(Strg!$A$5=2,"III,SGB III","II,SGB II")),'roh2-3'!$B$1:$B$3927&'roh2-3'!$D$1:$D$3927&'roh2-3'!$A$1:$A$3927,0),MATCH('2'!$A46,'roh2-3'!$A$1:$FE$1,0)) -> 1109054 | I46: =IFERROR((IF($A46>Impressum!$C$13,"...",H46-H34)),".") -> -104706 | J46: =IF($A46>Impressum!$C$13,"-",IFERROR(IF(OR(100/H34*(H46-H34)>250,100/H34*(H46-H34)<-250),".X",100/H34*(H46-H34)),"X")) -> -8.626581861 | K46: =IF($A46>Impressum!$C$13,"-",IFERROR(100/B46*H46,"X")) -> 34.42976499 | L46: =IFERROR((IF($A46>Impressum!$C$13,"...",ROUND(100/(INDEX(Bzg!$A$1:$FC$438,MATCH(Strg!$H$5,Bzg!$A$1:$A$438,0),MATCH('2'!$A46,Bzg!$A$1:$FC$1,0)))*'2'!$B46,1))),".") -> 7.7 | M46: =IFERROR((IF($A46>Impressum!$C$13,"...",ROUND(100/(INDEX(Bzg!$A$1:$FC$438,MATCH(Strg!$H$5,Bzg!$A$1:$A$438,0),MATCH('2'!$A46,Bzg!$A$1:$FC$1,0)))*'2'!$H46,1))),".") -> 2.6
A47: 2009-11-01 | B47: =INDEX('roh2-3'!$A$1:$FE$3927,MATCH(Strg!$H$5&"Insgesamt"&IF(Strg!$A$5=1,"Insgesamt",IF(Strg!$A$5=2,"III,SGB III","II,SGB II")),'roh2-3'!$B$1:$B$3927&'roh2-3'!$D$1:$D$3927&'roh2-3'!$A$1:$A$3927,0),MATCH('2'!$A47,'roh2-3'!$A$1:$FE$1,0)) -> 3208044 | C47: =IFERROR((IF($A47>Impressum!$C$13,"...",B47-B35)),".") -> 227075 | D47: =IF($A47>Impressum!$C$13,"-",IFERROR(IF(OR(100/B35*(B47-B35)>250,100/B35*(B47-B35)<-250),".X",100/B35*(B47-B35)),"X")) -> 7.617489481 | E47: =INDEX('roh2-3'!$A$1:$FE$3927,MATCH(Strg!$H$5&"N,Nicht Langzeitarbeitslos"&IF(Strg!$A$5=1,"Insgesamt",IF(Strg!$A$5=2,"III,SGB III","II,SGB II")),'roh2-3'!$B$1:$B$3927&'roh2-3'!$D$1:$D$3927&'roh2-3'!$A$1:$A$3927,0),MATCH('2'!$A47,'roh2-3'!$A$1:$FE$1,0)) -> 2104121 | F47: =IFERROR((IF($A47>Impressum!$C$13,"...",E47-E35)),".") -> 302774 | G47: =IF($A47>Impressum!$C$13,"-",IFERROR(IF(OR(100/E35*(E47-E35)>250,100/E35*(E47-E35)<-250),".X",100/E35*(E47-E35)),"X")) -> 16.80819964 | H47: =INDEX('roh2-3'!$A$1:$FE$3927,MATCH(Strg!$H$5&"J,Langzeitarbeitslos"&IF(Strg!$A$5=1,"Insgesamt",IF(Strg!$A$5=2,"III,SGB III","II,SGB II")),'roh2-3'!$B$1:$B$3927&'roh2-3'!$D$1:$D$3927&'roh2-3'!$A$1:$A$3927,0),MATCH('2'!$A47,'roh2-3'!$A$1:$FE$1,0)) -> 1103923 | I47: =IFERROR((IF($A47>Impressum!$C$13,"...",H47-H35)),".") -> -75699 | J47: =IF($A47>Impressum!$C$13,"-",IFERROR(IF(OR(100/H35*(H47-H35)>250,100/H35*(H47-H35)<-250),".X",100/H35*(H47-H35)),"X")) -> -6.417225179 | K47: =IF($A47>Impressum!$C$13,"-",IFERROR(100/B47*H47,"X")) -> 34.41109287 | L47: =IFERROR((IF($A47>Impressum!$C$13,"...",ROUND(100/(INDEX(Bzg!$A$1:$FC$438,MATCH(Strg!$H$5,Bzg!$A$1:$A$438,0),MATCH('2'!$A47,Bzg!$A$1:$FC$1,0)))*'2'!$B47,1))),".") -> 7.6 | M47: =IFERROR((IF($A47>Impressum!$C$13,"...",ROUND(100/(INDEX(Bzg!$A$1:$FC$438,MATCH(Strg!$H$5,Bzg!$A$1:$A$438,0),MATCH('2'!$A47,Bzg!$A$1:$FC$1,0)))*'2'!$H47,1))),".") -> 2.6
A48: 2009-12-01 | B48: =INDEX('roh2-3'!$A$1:$FE$3927,MATCH(Strg!$H$5&"Insgesamt"&IF(Strg!$A$5=1,"Insgesamt",IF(Strg!$A$5=2,"III,SGB III","II,SGB II")),'roh2-3'!$B$1:$B$3927&'roh2-3'!$D$1:$D$3927&'roh2-3'!$A$1:$A$3927,0),MATCH('2'!$A48,'roh2-3'!$A$1:$FE$1,0)) -> 3268167 | C48: =IFERROR((IF($A48>Impressum!$C$13,"...",B48-B36)),".") -> 174017 | D48: =IF($A48>Impressum!$C$13,"-",IFERROR(IF(OR(100/B36*(B48-B36)>250,100/B36*(B48-B36)<-250),".X",100/B36*(B48-B36)),"X")) -> 5.624064767 | E48: =INDEX('roh2-3'!$A$1:$FE$3927,MATCH(Strg!$H$5&"N,Nicht Langzeitarbeitslos"&IF(Strg!$A$5=1,"Insgesamt",IF(Strg!$A$5=2,"III,SGB III","II,SGB II")),'roh2-3'!$B$1:$B$3927&'roh2-3'!$D$1:$D$3927&'roh2-3'!$A$1:$A$3927,0),MATCH('2'!$A48,'roh2-3'!$A$1:$FE$1,0)) -> 2154193 | F48: =IFERROR((IF($A48>Impressum!$C$13,"...",E48-E36)),".") -> 217877 | G48: =IF($A48>Impressum!$C$13,"-",IFERROR(IF(OR(100/E36*(E48-E36)>250,100/E36*(E48-E36)<-250),".X",100/E36*(E48-E36)),"X")) -> 11.25214066 | H48: =INDEX('roh2-3'!$A$1:$FE$3927,MATCH(Strg!$H$5&"J,Langzeitarbeitslos"&IF(Strg!$A$5=1,"Insgesamt",IF(Strg!$A$5=2,"III,SGB III","II,SGB II")),'roh2-3'!$B$1:$B$3927&'roh2-3'!$D$1:$D$3927&'roh2-3'!$A$1:$A$3927,0),MATCH('2'!$A48,'roh2-3'!$A$1:$FE$1,0)) -> 1113974 | I48: =IFERROR((IF($A48>Impressum!$C$13,"...",H48-H36)),".") -> -43860 | J48: =IF($A48>Impressum!$C$13,"-",IFERROR(IF(OR(100/H36*(H48-H36)>250,100/H36*(H48-H36)<-250),".X",100/H36*(H48-H36)),"X")) -> -3.788107794 | K48: =IF($A48>Impressum!$C$13,"-",IFERROR(100/B48*H48,"X")) -> 34.08558987 | L48: =IFERROR((IF($A48>Impressum!$C$13,"...",ROUND(100/(INDEX(Bzg!$A$1:$FC$438,MATCH(Strg!$H$5,Bzg!$A$1:$A$438,0),MATCH('2'!$A48,Bzg!$A$1:$FC$1,0)))*'2'!$B48,1))),".") -> 7.8 | M48: =IFERROR((IF($A48>Impressum!$C$13,"...",ROUND(100/(INDEX(Bzg!$A$1:$FC$438,MATCH(Strg!$H$5,Bzg!$A$1:$A$438,0),MATCH('2'!$A48,Bzg!$A$1:$FC$1,0)))*'2'!$H48,1))),".") -> 2.6
A49: 2010-01-01 | B49: =INDEX('roh2-3'!$A$1:$FE$3927,MATCH(Strg!$H$5&"Insgesamt"&IF(Strg!$A$5=1,"Insgesamt",IF(Strg!$A$5=2,"III,SGB III","II,SGB II")),'roh2-3'!$B$1:$B$3927&'roh2-3'!$D$1:$D$3927&'roh2-3'!$A$1:$A$3927,0),MATCH('2'!$A49,'roh2-3'!$A$1:$FE$1,0)) -> 3610046 | C49: =IFERROR((IF($A49>Impressum!$C$13,"...",B49-B37)),".") -> 129875 | D49: =IF($A49>Impressum!$C$13,"-",IFERROR(IF(OR(100/B37*(B49-B37)>250,100/B37*(B49-B37)<-250),".X",100/B37*(B49-B37)),"X")) -> 3.731856854 | E49: =INDEX('roh2-3'!$A$1:$FE$3927,MATCH(Strg!$H$5&"N,Nicht Langzeitarbeitslos"&IF(Strg!$A$5=1,"Insgesamt",IF(Strg!$A$5=2,"III,SGB III","II,SGB II")),'roh2-3'!$B$1:$B$3927&'roh2-3'!$D$1:$D$3927&'roh2-3'!$A$1:$A$3927,0),MATCH('2'!$A49,'roh2-3'!$A$1:$FE$1,0)) -> 2437127 | F49: =IFERROR((IF($A49>Impressum!$C$13,"...",E49-E37)),".") -> 142959 | G49: =IF($A49>Impressum!$C$13,"-",IFERROR(IF(OR(100/E37*(E49-E37)>250,100/E37*(E49-E37)<-250),".X",100/E37*(E49-E37)),"X")) -> 6.231409382 | H49: =INDEX('roh2-3'!$A$1:$FE$3927,MATCH(Strg!$H$5&"J,Langzeitarbeitslos"&IF(Strg!$A$5=1,"Insgesamt",IF(Strg!$A$5=2,"III,SGB III","II,SGB II")),'roh2-3'!$B$1:$B$3927&'roh2-3'!$D$1:$D$3927&'roh2-3'!$A$1:$A$3927,0),MATCH('2'!$A49,'roh2-3'!$A$1:$FE$1,0)) -> 1172919 | I49: =IFERROR((IF($A49>Impressum!$C$13,"...",H49-H37)),".") -> -13084 | J49: =IF($A49>Impressum!$C$13,"-",IFERROR(IF(OR(100/H37*(H49-H37)>250,100/H37*(H49-H37)<-250),".X",100/H37*(H49-H37)),"X")) -> -1.103201257 | K49: =IF($A49>Impressum!$C$13,"-",IFERROR(100/B49*H49,"X")) -> 32.49041702 | L49: =IFERROR((IF($A49>Impressum!$C$13,"...",ROUND(100/(INDEX(Bzg!$A$1:$FC$438,MATCH(Strg!$H$5,Bzg!$A$1:$A$438,0),MATCH('2'!$A49,Bzg!$A$1:$FC$1,0)))*'2'!$B49,1))),".") -> 8.6 | M49: =IFERROR((IF($A49>Impressum!$C$13,"...",ROUND(100/(INDEX(Bzg!$A$1:$FC$438,MATCH(Strg!$H$5,Bzg!$A$1:$A$438,0),MATCH('2'!$A49,Bzg!$A$1:$FC$1,0)))*'2'!$H49,1))),".") -> 2.8
A50: 2010-02-01 | B50: =INDEX('roh2-3'!$A$1:$FE$3927,MATCH(Strg!$H$5&"Insgesamt"&IF(Strg!$A$5=1,"Insgesamt",IF(Strg!$A$5=2,"III,SGB III","II,SGB II")),'roh2-3'!$B$1:$B$3927&'roh2-3'!$D$1:$D$3927&'roh2-3'!$A$1:$A$3927,0),MATCH('2'!$A50,'roh2-3'!$A$1:$FE$1,0)) -> 3635346 | C50: =IFERROR((IF($A50>Impressum!$C$13,"...",B50-B38)),".") -> 92744 | D50: =IF($A50>Impressum!$C$13,"-",IFERROR(IF(OR(100/B38*(B50-B38)>250,100/B38*(B50-B38)<-250),".X",100/B38*(B50-B38)),"X")) -> 2.617962729 | E50: =INDEX('roh2-3'!$A$1:$FE$3927,MATCH(Strg!$H$5&"N,Nicht Langzeitarbeitslos"&IF(Strg!$A$5=1,"Insgesamt",IF(Strg!$A$5=2,"III,SGB III","II,SGB II")),'roh2-3'!$B$1:$B$3927&'roh2-3'!$D$1:$D$3927&'roh2-3'!$A$1:$A$3927,0),MATCH('2'!$A50,'roh2-3'!$A$1:$FE$1,0)) -> 2462561 | F50: =IFERROR((IF($A50>Impressum!$C$13,"...",E50-E38)),".") -> 90294 | G50: =IF($A50>Impressum!$C$13,"-",IFERROR(IF(OR(100/E38*(E50-E38)>250,100/E38*(E50-E38)<-250),".X",100/E38*(E50-E38)),"X")) -> 3.806232604 | H50: =INDEX('roh2-3'!$A$1:$FE$3927,MATCH(Strg!$H$5&"J,Langzeitarbeitslos"&IF(Strg!$A$5=1,"Insgesamt",IF(Strg!$A$5=2,"III,SGB III","II,SGB II")),'roh2-3'!$B$1:$B$3927&'roh2-3'!$D$1:$D$3927&'roh2-3'!$A$1:$A$3927,0),MATCH('2'!$A50,'roh2-3'!$A$1:$FE$1,0)) -> 1172785 | I50: =IFERROR((IF($A50>Impressum!$C$13,"...",H50-H38)),".") -> 2450 | J50: =IF($A50>Impressum!$C$13,"-",IFERROR(IF(OR(100/H38*(H50-H38)>250,100/H38*(H50-H38)<-250),".X",100/H38*(H50-H38)),"X")) -> 0.2093417697 | K50: =IF($A50>Impressum!$C$13,"-",IFERROR(100/B50*H50,"X")) -> 32.26061563 | L50: =IFERROR((IF($A50>Impressum!$C$13,"...",ROUND(100/(INDEX(Bzg!$A$1:$FC$438,MATCH(Strg!$H$5,Bzg!$A$1:$A$438,0),MATCH('2'!$A50,Bzg!$A$1:$FC$1,0)))*'2'!$B50,1))),".") -> 8.6 | M50: =IFERROR((IF($A50>Impressum!$C$13,"...",ROUND(100/(INDEX(Bzg!$A$1:$FC$438,MATCH(Strg!$H$5,Bzg!$A$1:$A$438,0),MATCH('2'!$A50,Bzg!$A$1:$FC$1,0)))*'2'!$H50,1))),".") -> 2.8
A51: 2010-03-01 | B51: =INDEX('roh2-3'!$A$1:$FE$3927,MATCH(Strg!$H$5&"Insgesamt"&IF(Strg!$A$5=1,"Insgesamt",IF(Strg!$A$5=2,"III,SGB III","II,SGB II")),'roh2-3'!$B$1:$B$3927&'roh2-3'!$D$1:$D$3927&'roh2-3'!$A$1:$A$3927,0),MATCH('2'!$A51,'roh2-3'!$A$1:$FE$1,0)) -> 3560493 | C51: =IFERROR((IF($A51>Impressum!$C$13,"...",B51-B39)),".") -> -15869 | D51: =IF($A51>Impressum!$C$13,"-",IFERROR(IF(OR(100/B39*(B51-B39)>250,100/B39*(B51-B39)<-250),".X",100/B39*(B51-B39)),"X")) -> -0.4437190642 | E51: =INDEX('roh2-3'!$A$1:$FE$3927,MATCH(Strg!$H$5&"N,Nicht Langzeitarbeitslos"&IF(Strg!$A$5=1,"Insgesamt",IF(Strg!$A$5=2,"III,SGB III","II,SGB II")),'roh2-3'!$B$1:$B$3927&'roh2-3'!$D$1:$D$3927&'roh2-3'!$A$1:$A$3927,0),MATCH('2'!$A51,'roh2-3'!$A$1:$FE$1,0)) -> 2384219 | F51: =IFERROR((IF($A51>Impressum!$C$13,"...",E51-E39)),".") -> -30162 | G51: =IF($A51>Impressum!$C$13,"-",IFERROR(IF(OR(100/E39*(E51-E39)>250,100/E39*(E51-E39)<-250),".X",100/E39*(E51-E39)),"X")) -> -1.249264304 | H51: =INDEX('roh2-3'!$A$1:$FE$3927,MATCH(Strg!$H$5&"J,Langzeitarbeitslos"&IF(Strg!$A$5=1,"Insgesamt",IF(Strg!$A$5=2,"III,SGB III","II,SGB II")),'roh2-3'!$B$1:$B$3927&'roh2-3'!$D$1:$D$3927&'roh2-3'!$A$1:$A$3927,0),MATCH('2'!$A51,'roh2-3'!$A$1:$FE$1,0)) -> 1176274 | I51: =IFERROR((IF($A51>Impressum!$C$13,"...",H51-H39)),".") -> 14293 | J51: =IF($A51>Impressum!$C$13,"-",IFERROR(IF(OR(100/H39*(H51-H39)>250,100/H39*(H51-H39)<-250),".X",100/H39*(H51-H39)),"X")) -> 1.230054536 | K51: =IF($A51>Impressum!$C$13,"-",IFERROR(100/B51*H51,"X")) -> 33.03682945 | L51: =IFERROR((IF($A51>Impressum!$C$13,"...",ROUND(100/(INDEX(Bzg!$A$1:$FC$438,MATCH(Strg!$H$5,Bzg!$A$1:$A$438,0),MATCH('2'!$A51,Bzg!$A$1:$FC$1,0)))*'2'!$B51,1))),".") -> 8.5 | M51: =IFERROR((IF($A51>Impressum!$C$13,"...",ROUND(100/(INDEX(Bzg!$A$1:$FC$438,MATCH(Strg!$H$5,Bzg!$A$1:$A$438,0),MATCH('2'!$A51,Bzg!$A$1:$FC$1,0)))*'2'!$H51,1))),".") -> 2.8
A52: 2010-04-01 | B52: =INDEX('roh2-3'!$A$1:$FE$3927,MATCH(Strg!$H$5&"Insgesamt"&IF(Strg!$A$5=1,"Insgesamt",IF(Strg!$A$5=2,"III,SGB III","II,SGB II")),'roh2-3'!$B$1:$B$3927&'roh2-3'!$D$1:$D$3927&'roh2-3'!$A$1:$A$3927,0),MATCH('2'!$A52,'roh2-3'!$A$1:$FE$1,0)) -> 3400163 | C52: =IFERROR((IF($A52>Impressum!$C$13,"...",B52-B40)),".") -> -175094 | D52: =IF($A52>Impressum!$C$13,"-",IFERROR(IF(OR(100/B40*(B52-B40)>250,100/B40*(B52-B40)<-250),".X",100/B40*(B52-B40)),"X")) -> -4.897382202 | E52: =INDEX('roh2-3'!$A$1:$FE$3927,MATCH(Strg!$H$5&"N,Nicht Langzeitarbeitslos"&IF(Strg!$A$5=1,"Insgesamt",IF(Strg!$A$5=2,"III,SGB III","II,SGB II")),'roh2-3'!$B$1:$B$3927&'roh2-3'!$D$1:$D$3927&'roh2-3'!$A$1:$A$3927,0),MATCH('2'!$A52,'roh2-3'!$A$1:$FE$1,0)) -> 2214297 | F52: =IFERROR((IF($A52>Impressum!$C$13,"...",E52-E40)),".") -> -193572 | G52: =IF($A52>Impressum!$C$13,"-",IFERROR(IF(OR(100/E40*(E52-E40)>250,100/E40*(E52-E40)<-250),".X",100/E40*(E52-E40)),"X")) -> -8.039141664 | H52: =INDEX('roh2-3'!$A$1:$FE$3927,MATCH(Strg!$H$5&"J,Langzeitarbeitslos"&IF(Strg!$A$5=1,"Insgesamt",IF(Strg!$A$5=2,"III,SGB III","II,SGB II")),'roh2-3'!$B$1:$B$3927&'roh2-3'!$D$1:$D$3927&'roh2-3'!$A$1:$A$3927,0),MATCH('2'!$A52,'roh2-3'!$A$1:$FE$1,0)) -> 1185866 | I52: =IFERROR((IF($A52>Impressum!$C$13,"...",H52-H40)),".") -> 18478 | J52: =IF($A52>Impressum!$C$13,"-",IFERROR(IF(OR(100/H40*(H52-H40)>250,100/H40*(H52-H40)<-250),".X",100/H40*(H52-H40)),"X")) -> 1.582849918 | K52: =IF($A52>Impressum!$C$13,"-",IFERROR(100/B52*H52,"X")) -> 34.87673973 | L52: =IFERROR((IF($A52>Impressum!$C$13,"...",ROUND(100/(INDEX(Bzg!$A$1:$FC$438,MATCH(Strg!$H$5,Bzg!$A$1:$A$438,0),MATCH('2'!$A52,Bzg!$A$1:$FC$1,0)))*'2'!$B52,1))),".") -> 8.1 | M52: =IFERROR((IF($A52>Impressum!$C$13,"...",ROUND(100/(INDEX(Bzg!$A$1:$FC$438,MATCH(Strg!$H$5,Bzg!$A$1:$A$438,0),MATCH('2'!$A52,Bzg!$A$1:$FC$1,0)))*'2'!$H52,1))),".") -> 2.8
A53: 2010-05-01 | B53: =INDEX('roh2-3'!$A$1:$FE$3927,MATCH(Strg!$H$5&"Insgesamt"&IF(Strg!$A$5=1,"Insgesamt",IF(Strg!$A$5=2,"III,SGB III","II,SGB II")),'roh2-3'!$B$1:$B$3927&'roh2-3'!$D$1:$D$3927&'roh2-3'!$A$1:$A$3927,0),MATCH('2'!$A53,'roh2-3'!$A$1:$FE$1,0)) -> 3236363 | C53: =IFERROR((IF($A53>Impressum!$C$13,"...",B53-B41)),".") -> -212860 | D53: =IF($A53>Impressum!$C$13,"-",IFERROR(IF(OR(100/B41*(B53-B41)>250,100/B41*(B53-B41)<-250),".X",100/B41*(B53-B41)),"X")) -> -6.171244944 | E53: =INDEX('roh2-3'!$A$1:$FE$3927,MATCH(Strg!$H$5&"N,Nicht Langzeitarbeitslos"&IF(Strg!$A$5=1,"Insgesamt",IF(Strg!$A$5=2,"III,SGB III","II,SGB II")),'roh2-3'!$B$1:$B$3927&'roh2-3'!$D$1:$D$3927&'roh2-3'!$A$1:$A$3927,0),MATCH('2'!$A53,'roh2-3'!$A$1:$FE$1,0)) -> 2070739 | F53: =IFERROR((IF($A53>Impressum!$C$13,"...",E53-E41)),".") -> -238225 | G53: =IF($A53>Impressum!$C$13,"-",IFERROR(IF(OR(100/E41*(E53-E41)>250,100/E41*(E53-E41)<-250),".X",100/E41*(E53-E41)),"X")) -> -10.31739776 | H53: =INDEX('roh2-3'!$A$1:$FE$3927,MATCH(Strg!$H$5&"J,Langzeitarbeitslos"&IF(Strg!$A$5=1,"Insgesamt",IF(Strg!$A$5=2,"III,SGB III","II,SGB II")),'roh2-3'!$B$1:$B$3927&'roh2-3'!$D$1:$D$3927&'roh2-3'!$A$1:$A$3927,0),MATCH('2'!$A53,'roh2-3'!$A$1:$FE$1,0)) -> 1165624 | I53: =IFERROR((IF($A53>Impressum!$C$13,"...",H53-H41)),".") -> 25365 | J53: =IF($A53>Impressum!$C$13,"-",IFERROR(IF(OR(100/H41*(H53-H41)>250,100/H41*(H53-H41)<-250),".X",100/H41*(H53-H41)),"X")) -> 2.22449461 | K53: =IF($A53>Impressum!$C$13,"-",IFERROR(100/B53*H53,"X")) -> 36.01647899 | L53: =IFERROR((IF($A53>Impressum!$C$13,"...",ROUND(100/(INDEX(Bzg!$A$1:$FC$438,MATCH(Strg!$H$5,Bzg!$A$1:$A$438,0),MATCH('2'!$A53,Bzg!$A$1:$FC$1,0)))*'2'!$B53,1))),".") -> 7.7 | M53: =IFERROR((IF($A53>Impressum!$C$13,"...",ROUND(100/(INDEX(Bzg!$A$1:$FC$438,MATCH(Strg!$H$5,Bzg!$A$1:$A$438,0),MATCH('2'!$A53,Bzg!$A$1:$FC$1,0)))*'2'!$H53,1))),".") -> 2.8
A54: 2010-06-01 | B54: =INDEX('roh2-3'!$A$1:$FE$3927,MATCH(Strg!$H$5&"Insgesamt"&IF(Strg!$A$5=1,"Insgesamt",IF(Strg!$A$5=2,"III,SGB III","II,SGB II")),'roh2-3'!$B$1:$B$3927&'roh2-3'!$D$1:$D$3927&'roh2-3'!$A$1:$A$3927,0),MATCH('2'!$A54,'roh2-3'!$A$1:$FE$1,0)) -> 3148611 | C54: =IFERROR((IF($A54>Impressum!$C$13,"...",B54-B42)),".") -> -253436 | D54: =IF($A54>Impressum!$C$13,"-",IFERROR(IF(OR(100/B42*(B54-B42)>250,100/B42*(B54-B42)<-250),".X",100/B42*(B54-B42)),"X")) -> -7.449514954 | E54: =INDEX('roh2-3'!$A$1:$FE$3927,MATCH(Strg!$H$5&"N,Nicht Langzeitarbeitslos"&IF(Strg!$A$5=1,"Insgesamt",IF(Strg!$A$5=2,"III,SGB III","II,SGB II")),'roh2-3'!$B$1:$B$3927&'roh2-3'!$D$1:$D$3927&'roh2-3'!$A$1:$A$3927,0),MATCH('2'!$A54,'roh2-3'!$A$1:$FE$1,0)) -> 1991999 | F54: =IFERROR((IF($A54>Impressum!$C$13,"...",E54-E42)),".") -> -276104 | G54: =IF($A54>Impressum!$C$13,"-",IFERROR(IF(OR(100/E42*(E54-E42)>250,100/E42*(E54-E42)<-250),".X",100/E42*(E54-E42)),"X")) -> -12.17334486 | H54: =INDEX('roh2-3'!$A$1:$FE$3927,MATCH(Strg!$H$5&"J,Langzeitarbeitslos"&IF(Strg!$A$5=1,"Insgesamt",IF(Strg!$A$5=2,"III,SGB III","II,SGB II")),'roh2-3'!$B$1:$B$3927&'roh2-3'!$D$1:$D$3927&'roh2-3'!$A$1:$A$3927,0),MATCH('2'!$A54,'roh2-3'!$A$1:$FE$1,0)) -> 1156612 | I54: =IFERROR((IF($A54>Impressum!$C$13,"...",H54-H42)),".") -> 22668 | J54: =IF($A54>Impressum!$C$13,"-",IFERROR(IF(OR(100/H42*(H54-H42)>250,100/H42*(H54-H42)<-250),".X",100/H42*(H54-H42)),"X")) -> 1.999040517 | K54: =IF($A54>Impressum!$C$13,"-",IFERROR(100/B54*H54,"X")) -> 36.73403923 | L54: =IFERROR((IF($A54>Impressum!$C$13,"...",ROUND(100/(INDEX(Bzg!$A$1:$FC$438,MATCH(Strg!$H$5,Bzg!$A$1:$A$438,0),MATCH('2'!$A54,Bzg!$A$1:$FC$1,0)))*'2'!$B54,1))),".") -> 7.5 | M54: =IFERROR((IF($A54>Impressum!$C$13,"...",ROUND(100/(INDEX(Bzg!$A$1:$FC$438,MATCH(Strg!$H$5,Bzg!$A$1:$A$438,0),MATCH('2'!$A54,Bzg!$A$1:$FC$1,0)))*'2'!$H54,1))),".") -> 2.7
A55: 2010-07-01 | B55: =INDEX('roh2-3'!$A$1:$FE$3927,MATCH(Strg!$H$5&"Insgesamt"&IF(Strg!$A$5=1,"Insgesamt",IF(Strg!$A$5=2,"III,SGB III","II,SGB II")),'roh2-3'!$B$1:$B$3927&'roh2-3'!$D$1:$D$3927&'roh2-3'!$A$1:$A$3927,0),MATCH('2'!$A55,'roh2-3'!$A$1:$FE$1,0)) -> 3186929 | C55: =IFERROR((IF($A55>Impressum!$C$13,"...",B55-B43)),".") -> -267569 | D55: =IF($A55>Impressum!$C$13,"-",IFERROR(IF(OR(100/B43*(B55-B43)>250,100/B43*(B55-B43)<-250),".X",100/B43*(B55-B43)),"X")) -> -7.74552482 | E55: =INDEX('roh2-3'!$A$1:$FE$3927,MATCH(Strg!$H$5&"N,Nicht Langzeitarbeitslos"&IF(Strg!$A$5=1,"Insgesamt",IF(Strg!$A$5=2,"III,SGB III","II,SGB II")),'roh2-3'!$B$1:$B$3927&'roh2-3'!$D$1:$D$3927&'roh2-3'!$A$1:$A$3927,0),MATCH('2'!$A55,'roh2-3'!$A$1:$FE$1,0)) -> 2039185 | F55: =IFERROR((IF($A55>Impressum!$C$13,"...",E55-E43)),".") -> -287532 | G55: =IF($A55>Impressum!$C$13,"-",IFERROR(IF(OR(100/E43*(E55-E43)>250,100/E43*(E55-E43)<-250),".X",100/E43*(E55-E43)),"X")) -> -12.35784154 | H55: =INDEX('roh2-3'!$A$1:$FE$3927,MATCH(Strg!$H$5&"J,Langzeitarbeitslos"&IF(Strg!$A$5=1,"Insgesamt",IF(Strg!$A$5=2,"III,SGB III","II,SGB II")),'roh2-3'!$B$1:$B$3927&'roh2-3'!$D$1:$D$3927&'roh2-3'!$A$1:$A$3927,0),MATCH('2'!$A55,'roh2-3'!$A$1:$FE$1,0)) -> 1147744 | I55: =IFERROR((IF($A55>Impressum!$C$13,"...",H55-H43)),".") -> 19963 | J55: =IF($A55>Impressum!$C$13,"-",IFERROR(IF(OR(100/H43*(H55-H43)>250,100/H43*(H55-H43)<-250),".X",100/H43*(H55-H43)),"X")) -> 1.770113169 | K55: =IF($A55>Impressum!$C$13,"-",IFERROR(100/B55*H55,"X")) -> 36.01410637 | L55: =IFERROR((IF($A55>Impressum!$C$13,"...",ROUND(100/(INDEX(Bzg!$A$1:$FC$438,MATCH(Strg!$H$5,Bzg!$A$1:$A$438,0),MATCH('2'!$A55,Bzg!$A$1:$FC$1,0)))*'2'!$B55,1))),".") -> 7.6 | M55: =IFERROR((IF($A55>Impressum!$C$13,"...",ROUND(100/(INDEX(Bzg!$A$1:$FC$438,MATCH(Strg!$H$5,Bzg!$A$1:$A$438,0),MATCH('2'!$A55,Bzg!$A$1:$FC$1,0)))*'2'!$H55,1))),".") -> 2.7
A56: 2010-08-01 | B56: =INDEX('roh2-3'!$A$1:$FE$3927,MATCH(Strg!$H$5&"Insgesamt"&IF(Strg!$A$5=1,"Insgesamt",IF(Strg!$A$5=2,"III,SGB III","II,SGB II")),'roh2-3'!$B$1:$B$3927&'roh2-3'!$D$1:$D$3927&'roh2-3'!$A$1:$A$3927,0),MATCH('2'!$A56,'roh2-3'!$A$1:$FE$1,0)) -> 3183217 | C56: =IFERROR((IF($A56>Impressum!$C$13,"...",B56-B44)),".") -> -280222 | D56: =IF($A56>Impressum!$C$13,"-",IFERROR(IF(OR(100/B44*(B56-B44)>250,100/B44*(B56-B44)<-250),".X",100/B44*(B56-B44)),"X")) -> -8.09085998 | E56: =INDEX('roh2-3'!$A$1:$FE$3927,MATCH(Strg!$H$5&"N,Nicht Langzeitarbeitslos"&IF(Strg!$A$5=1,"Insgesamt",IF(Strg!$A$5=2,"III,SGB III","II,SGB II")),'roh2-3'!$B$1:$B$3927&'roh2-3'!$D$1:$D$3927&'roh2-3'!$A$1:$A$3927,0),MATCH('2'!$A56,'roh2-3'!$A$1:$FE$1,0)) -> 2042215 | F56: =IFERROR((IF($A56>Impressum!$C$13,"...",E56-E44)),".") -> -297880 | G56: =IF($A56>Impressum!$C$13,"-",IFERROR(IF(OR(100/E44*(E56-E44)>250,100/E44*(E56-E44)<-250),".X",100/E44*(E56-E44)),"X")) -> -12.72939774 | H56: =INDEX('roh2-3'!$A$1:$FE$3927,MATCH(Strg!$H$5&"J,Langzeitarbeitslos"&IF(Strg!$A$5=1,"Insgesamt",IF(Strg!$A$5=2,"III,SGB III","II,SGB II")),'roh2-3'!$B$1:$B$3927&'roh2-3'!$D$1:$D$3927&'roh2-3'!$A$1:$A$3927,0),MATCH('2'!$A56,'roh2-3'!$A$1:$FE$1,0)) -> 1141002 | I56: =IFERROR((IF($A56>Impressum!$C$13,"...",H56-H44)),".") -> 17658 | J56: =IF($A56>Impressum!$C$13,"-",IFERROR(IF(OR(100/H44*(H56-H44)>250,100/H44*(H56-H44)<-250),".X",100/H44*(H56-H44)),"X")) -> 1.571913857 | K56: =IF($A56>Impressum!$C$13,"-",IFERROR(100/B56*H56,"X")) -> 35.84430468 | L56: =IFERROR((IF($A56>Impressum!$C$13,"...",ROUND(100/(INDEX(Bzg!$A$1:$FC$438,MATCH(Strg!$H$5,Bzg!$A$1:$A$438,0),MATCH('2'!$A56,Bzg!$A$1:$FC$1,0)))*'2'!$B56,1))),".") -> 7.6 | M56: =IFERROR((IF($A56>Impressum!$C$13,"...",ROUND(100/(INDEX(Bzg!$A$1:$FC$438,MATCH(Strg!$H$5,Bzg!$A$1:$A$438,0),MATCH('2'!$A56,Bzg!$A$1:$FC$1,0)))*'2'!$H56,1))),".") -> 2.7
A57: 2010-09-01 | B57: =INDEX('roh2-3'!$A$1:$FE$3927,MATCH(Strg!$H$5&"Insgesamt"&IF(Strg!$A$5=1,"Insgesamt",IF(Strg!$A$5=2,"III,SGB III","II,SGB II")),'roh2-3'!$B$1:$B$3927&'roh2-3'!$D$1:$D$3927&'roh2-3'!$A$1:$A$3927,0),MATCH('2'!$A57,'roh2-3'!$A$1:$FE$1,0)) -> 3026830 | C57: =IFERROR((IF($A57>Impressum!$C$13,"...",B57-B45)),".") -> -312052 | D57: =IF($A57>Impressum!$C$13,"-",IFERROR(IF(OR(100/B45*(B57-B45)>250,100/B45*(B57-B45)<-250),".X",100/B45*(B57-B45)),"X")) -> -9.346002644 | E57: =INDEX('roh2-3'!$A$1:$FE$3927,MATCH(Strg!$H$5&"N,Nicht Langzeitarbeitslos"&IF(Strg!$A$5=1,"Insgesamt",IF(Strg!$A$5=2,"III,SGB III","II,SGB II")),'roh2-3'!$B$1:$B$3927&'roh2-3'!$D$1:$D$3927&'roh2-3'!$A$1:$A$3927,0),MATCH('2'!$A57,'roh2-3'!$A$1:$FE$1,0)) -> 1913394 | F57: =IFERROR((IF($A57>Impressum!$C$13,"...",E57-E45)),".") -> -305895 | G57: =IF($A57>Impressum!$C$13,"-",IFERROR(IF(OR(100/E45*(E57-E45)>250,100/E45*(E57-E45)<-250),".X",100/E45*(E57-E45)),"X")) -> -13.78346849 | H57: =INDEX('roh2-3'!$A$1:$FE$3927,MATCH(Strg!$H$5&"J,Langzeitarbeitslos"&IF(Strg!$A$5=1,"Insgesamt",IF(Strg!$A$5=2,"III,SGB III","II,SGB II")),'roh2-3'!$B$1:$B$3927&'roh2-3'!$D$1:$D$3927&'roh2-3'!$A$1:$A$3927,0),MATCH('2'!$A57,'roh2-3'!$A$1:$FE$1,0)) -> 1113436 | I57: =IFERROR((IF($A57>Impressum!$C$13,"...",H57-H45)),".") -> -6157 | J57: =IF($A57>Impressum!$C$13,"-",IFERROR(IF(OR(100/H45*(H57-H45)>250,100/H45*(H57-H45)<-250),".X",100/H45*(H57-H45)),"X")) -> -0.5499319842 | K57: =IF($A57>Impressum!$C$13,"-",IFERROR(100/B57*H57,"X")) -> 36.78554792 | L57: =IFERROR((IF($A57>Impressum!$C$13,"...",ROUND(100/(INDEX(Bzg!$A$1:$FC$438,MATCH(Strg!$H$5,Bzg!$A$1:$A$438,0),MATCH('2'!$A57,Bzg!$A$1:$FC$1,0)))*'2'!$B57,1))),".") -> 7.2 | M57: =IFERROR((IF($A57>Impressum!$C$13,"...",ROUND(100/(INDEX(Bzg!$A$1:$FC$438,MATCH(Strg!$H$5,Bzg!$A$1:$A$438,0),MATCH('2'!$A57,Bzg!$A$1:$FC$1,0)))*'2'!$H57,1))),".") -> 2.6
A58: 2010-10-01 | B58: =INDEX('roh2-3'!$A$1:$FE$3927,MATCH(Strg!$H$5&"Insgesamt"&IF(Strg!$A$5=1,"Insgesamt",IF(Strg!$A$5=2,"III,SGB III","II,SGB II")),'roh2-3'!$B$1:$B$3927&'roh2-3'!$D$1:$D$3927&'roh2-3'!$A$1:$A$3927,0),MATCH('2'!$A58,'roh2-3'!$A$1:$FE$1,0)) -> 2941020 | C58: =IFERROR((IF($A58>Impressum!$C$13,"...",B58-B46)),".") -> -280187 | D58: =IF($A58>Impressum!$C$13,"-",IFERROR(IF(OR(100/B46*(B58-B46)>250,100/B46*(B58-B46)<-250),".X",100/B46*(B58-B46)),"X")) -> -8.698199153 | E58: =INDEX('roh2-3'!$A$1:$FE$3927,MATCH(Strg!$H$5&"N,Nicht Langzeitarbeitslos"&IF(Strg!$A$5=1,"Insgesamt",IF(Strg!$A$5=2,"III,SGB III","II,SGB II")),'roh2-3'!$B$1:$B$3927&'roh2-3'!$D$1:$D$3927&'roh2-3'!$A$1:$A$3927,0),MATCH('2'!$A58,'roh2-3'!$A$1:$FE$1,0)) -> 1848433 | F58: =IFERROR((IF($A58>Impressum!$C$13,"...",E58-E46)),".") -> -263720 | G58: =IF($A58>Impressum!$C$13,"-",IFERROR(IF(OR(100/E46*(E58-E46)>250,100/E46*(E58-E46)<-250),".X",100/E46*(E58-E46)),"X")) -> -12.48583791 | H58: =INDEX('roh2-3'!$A$1:$FE$3927,MATCH(Strg!$H$5&"J,Langzeitarbeitslos"&IF(Strg!$A$5=1,"Insgesamt",IF(Strg!$A$5=2,"III,SGB III","II,SGB II")),'roh2-3'!$B$1:$B$3927&'roh2-3'!$D$1:$D$3927&'roh2-3'!$A$1:$A$3927,0),MATCH('2'!$A58,'roh2-3'!$A$1:$FE$1,0)) -> 1092587 | I58: =IFERROR((IF($A58>Impressum!$C$13,"...",H58-H46)),".") -> -16467 | J58: =IF($A58>Impressum!$C$13,"-",IFERROR(IF(OR(100/H46*(H58-H46)>250,100/H46*(H58-H46)<-250),".X",100/H46*(H58-H46)),"X")) -> -1.48477892 | K58: =IF($A58>Impressum!$C$13,"-",IFERROR(100/B58*H58,"X")) -> 37.14993438 | L58: =IFERROR((IF($A58>Impressum!$C$13,"...",ROUND(100/(INDEX(Bzg!$A$1:$FC$438,MATCH(Strg!$H$5,Bzg!$A$1:$A$438,0),MATCH('2'!$A58,Bzg!$A$1:$FC$1,0)))*'2'!$B58,1))),".") -> 7 | M58: =IFERROR((IF($A58>Impressum!$C$13,"...",ROUND(100/(INDEX(Bzg!$A$1:$FC$438,MATCH(Strg!$H$5,Bzg!$A$1:$A$438,0),MATCH('2'!$A58,Bzg!$A$1:$FC$1,0)))*'2'!$H58,1))),".") -> 2.6
A59: 2010-11-01 | B59: =INDEX('roh2-3'!$A$1:$FE$3927,MATCH(Strg!$H$5&"Insgesamt"&IF(Strg!$A$5=1,"Insgesamt",IF(Strg!$A$5=2,"III,SGB III","II,SGB II")),'roh2-3'!$B$1:$B$3927&'roh2-3'!$D$1:$D$3927&'roh2-3'!$A$1:$A$3927,0),MATCH('2'!$A59,'roh2-3'!$A$1:$FE$1,0)) -> 2926971 | C59: =IFERROR((IF($A59>Impressum!$C$13,"...",B59-B47)),".") -> -281073 | D59: =IF($A59>Impressum!$C$13,"-",IFERROR(IF(OR(100/B47*(B59-B47)>250,100/B47*(B59-B47)<-250),".X",100/B47*(B59-B47)),"X")) -> -8.761507012 | E59: =INDEX('roh2-3'!$A$1:$FE$3927,MATCH(Strg!$H$5&"N,Nicht Langzeitarbeitslos"&IF(Strg!$A$5=1,"Insgesamt",IF(Strg!$A$5=2,"III,SGB III","II,SGB II")),'roh2-3'!$B$1:$B$3927&'roh2-3'!$D$1:$D$3927&'roh2-3'!$A$1:$A$3927,0),MATCH('2'!$A59,'roh2-3'!$A$1:$FE$1,0)) -> 1846046 | F59: =IFERROR((IF($A59>Impressum!$C$13,"...",E59-E47)),".") -> -258075 | G59: =IF($A59>Impressum!$C$13,"-",IFERROR(IF(OR(100/E47*(E59-E47)>250,100/E47*(E59-E47)<-250),".X",100/E47*(E59-E47)),"X")) -> -12.26521669 | H59: =INDEX('roh2-3'!$A$1:$FE$3927,MATCH(Strg!$H$5&"J,Langzeitarbeitslos"&IF(Strg!$A$5=1,"Insgesamt",IF(Strg!$A$5=2,"III,SGB III","II,SGB II")),'roh2-3'!$B$1:$B$3927&'roh2-3'!$D$1:$D$3927&'roh2-3'!$A$1:$A$3927,0),MATCH('2'!$A59,'roh2-3'!$A$1:$FE$1,0)) -> 1080925 | I59: =IFERROR((IF($A59>Impressum!$C$13,"...",H59-H47)),".") -> -22998 | J59: =IF($A59>Impressum!$C$13,"-",IFERROR(IF(OR(100/H47*(H59-H47)>250,100/H47*(H59-H47)<-250),".X",100/H47*(H59-H47)),"X")) -> -2.083297476 | K59: =IF($A59>Impressum!$C$13,"-",IFERROR(100/B59*H59,"X")) -> 36.92981584 | L59: =IFERROR((IF($A59>Impressum!$C$13,"...",ROUND(100/(INDEX(Bzg!$A$1:$FC$438,MATCH(Strg!$H$5,Bzg!$A$1:$A$438,0),MATCH('2'!$A59,Bzg!$A$1:$FC$1,0)))*'2'!$B59,1))),".") -> 6.9 | M59: =IFERROR((IF($A59>Impressum!$C$13,"...",ROUND(100/(INDEX(Bzg!$A$1:$FC$438,MATCH(Strg!$H$5,Bzg!$A$1:$A$438,0),MATCH('2'!$A59,Bzg!$A$1:$FC$1,0)))*'2'!$H59,1))),".") -> 2.6
A60: 2010-12-01 | B60: =INDEX('roh2-3'!$A$1:$FE$3927,MATCH(Strg!$H$5&"Insgesamt"&IF(Strg!$A$5=1,"Insgesamt",IF(Strg!$A$5=2,"III,SGB III","II,SGB II")),'roh2-3'!$B$1:$B$3927&'roh2-3'!$D$1:$D$3927&'roh2-3'!$A$1:$A$3927,0),MATCH('2'!$A60,'roh2-3'!$A$1:$FE$1,0)) -> 3011586 | C60: =IFERROR((IF($A60>Impressum!$C$13,"...",B60-B48)),".") -> -256581 | D60: =IF($A60>Impressum!$C$13,"-",IFERROR(IF(OR(100/B48*(B60-B48)>250,100/B48*(B60-B48)<-250),".X",100/B48*(B60-B48)),"X")) -> -7.850914595 | E60: =INDEX('roh2-3'!$A$1:$FE$3927,MATCH(Strg!$H$5&"N,Nicht Langzeitarbeitslos"&IF(Strg!$A$5=1,"Insgesamt",IF(Strg!$A$5=2,"III,SGB III","II,SGB II")),'roh2-3'!$B$1:$B$3927&'roh2-3'!$D$1:$D$3927&'roh2-3'!$A$1:$A$3927,0),MATCH('2'!$A60,'roh2-3'!$A$1:$FE$1,0)) -> 1932941 | F60: =IFERROR((IF($A60>Impressum!$C$13,"...",E60-E48)),".") -> -221252 | G60: =IF($A60>Impressum!$C$13,"-",IFERROR(IF(OR(100/E48*(E60-E48)>250,100/E48*(E60-E48)<-250),".X",100/E48*(E60-E48)),"X")) -> -10.27076033 | H60: =INDEX('roh2-3'!$A$1:$FE$3927,MATCH(Strg!$H$5&"J,Langzeitarbeitslos"&IF(Strg!$A$5=1,"Insgesamt",IF(Strg!$A$5=2,"III,SGB III","II,SGB II")),'roh2-3'!$B$1:$B$3927&'roh2-3'!$D$1:$D$3927&'roh2-3'!$A$1:$A$3927,0),MATCH('2'!$A60,'roh2-3'!$A$1:$FE$1,0)) -> 1078645 | I60: =IFERROR((IF($A60>Impressum!$C$13,"...",H60-H48)),".") -> -35329 | J60: =IF($A60>Impressum!$C$13,"-",IFERROR(IF(OR(100/H48*(H60-H48)>250,100/H48*(H60-H48)<-250),".X",100/H48*(H60-H48)),"X")) -> -3.171438472 | K60: =IF($A60>Impressum!$C$13,"-",IFERROR(100/B60*H60,"X")) -> 35.81650997 | L60: =IFERROR((IF($A60>Impressum!$C$13,"...",ROUND(100/(INDEX(Bzg!$A$1:$FC$438,MATCH(Strg!$H$5,Bzg!$A$1:$A$438,0),MATCH('2'!$A60,Bzg!$A$1:$FC$1,0)))*'2'!$B60,1))),".") -> 7.1 | M60: =IFERROR((IF($A60>Impressum!$C$13,"...",ROUND(100/(INDEX(Bzg!$A$1:$FC$438,MATCH(Strg!$H$5,Bzg!$A$1:$A$438,0),MATCH('2'!$A60,Bzg!$A$1:$FC$1,0)))*'2'!$H60,1))),".") -> 2.6
A61: 2011-01-01 | B61: =INDEX('roh2-3'!$A$1:$FE$3927,MATCH(Strg!$H$5&"Insgesamt"&IF(Strg!$A$5=1,"Insgesamt",IF(Strg!$A$5=2,"III,SGB III","II,SGB II")),'roh2-3'!$B$1:$B$3927&'roh2-3'!$D$1:$D$3927&'roh2-3'!$A$1:$A$3927,0),MATCH('2'!$A61,'roh2-3'!$A$1:$FE$1,0)) -> 3345974 | C61: =IFERROR((IF($A61>Impressum!$C$13,"...",B61-B49)),".") -> -264072 | D61: =IF($A61>Impressum!$C$13,"-",IFERROR(IF(OR(100/B49*(B61-B49)>250,100/B49*(B61-B49)<-250),".X",100/B49*(B61-B49)),"X")) -> -7.314920641 | E61: =INDEX('roh2-3'!$A$1:$FE$3927,MATCH(Strg!$H$5&"N,Nicht Langzeitarbeitslos"&IF(Strg!$A$5=1,"Insgesamt",IF(Strg!$A$5=2,"III,SGB III","II,SGB II")),'roh2-3'!$B$1:$B$3927&'roh2-3'!$D$1:$D$3927&'roh2-3'!$A$1:$A$3927,0),MATCH('2'!$A61,'roh2-3'!$A$1:$FE$1,0)) -> 2230712 | F61: =IFERROR((IF($A61>Impressum!$C$13,"...",E61-E49)),".") -> -206415 | G61: =IF($A61>Impressum!$C$13,"-",IFERROR(IF(OR(100/E49*(E61-E49)>250,100/E49*(E61-E49)<-250),".X",100/E49*(E61-E49)),"X")) -> -8.469603759 | H61: =INDEX('roh2-3'!$A$1:$FE$3927,MATCH(Strg!$H$5&"J,Langzeitarbeitslos"&IF(Strg!$A$5=1,"Insgesamt",IF(Strg!$A$5=2,"III,SGB III","II,SGB II")),'roh2-3'!$B$1:$B$3927&'roh2-3'!$D$1:$D$3927&'roh2-3'!$A$1:$A$3927,0),MATCH('2'!$A61,'roh2-3'!$A$1:$FE$1,0)) -> 1115262 | I61: =IFERROR((IF($A61>Impressum!$C$13,"...",H61-H49)),".") -> -57657 | J61: =IF($A61>Impressum!$C$13,"-",IFERROR(IF(OR(100/H49*(H61-H49)>250,100/H49*(H61-H49)<-250),".X",100/H49*(H61-H49)),"X")) -> -4.915684715 | K61: =IF($A61>Impressum!$C$13,"-",IFERROR(100/B61*H61,"X")) -> 33.33146044 | L61: =IFERROR((IF($A61>Impressum!$C$13,"...",ROUND(100/(INDEX(Bzg!$A$1:$FC$438,MATCH(Strg!$H$5,Bzg!$A$1:$A$438,0),MATCH('2'!$A61,Bzg!$A$1:$FC$1,0)))*'2'!$B61,1))),".") -> 7.9 | M61: =IFERROR((IF($A61>Impressum!$C$13,"...",ROUND(100/(INDEX(Bzg!$A$1:$FC$438,MATCH(Strg!$H$5,Bzg!$A$1:$A$438,0),MATCH('2'!$A61,Bzg!$A$1:$FC$1,0)))*'2'!$H61,1))),".") -> 2.6
A62: 2011-02-01 | B62: =INDEX('roh2-3'!$A$1:$FE$3927,MATCH(Strg!$H$5&"Insgesamt"&IF(Strg!$A$5=1,"Insgesamt",IF(Strg!$A$5=2,"III,SGB III","II,SGB II")),'roh2-3'!$B$1:$B$3927&'roh2-3'!$D$1:$D$3927&'roh2-3'!$A$1:$A$3927,0),MATCH('2'!$A62,'roh2-3'!$A$1:$FE$1,0)) -> 3313207 | C62: =IFERROR((IF($A62>Impressum!$C$13,"...",B62-B50)),".") -> -322139 | D62: =IF($A62>Impressum!$C$13,"-",IFERROR(IF(OR(100/B50*(B62-B50)>250,100/B50*(B62-B50)<-250),".X",100/B50*(B62-B50)),"X")) -> -8.861302335 | E62: =INDEX('roh2-3'!$A$1:$FE$3927,MATCH(Strg!$H$5&"N,Nicht Langzeitarbeitslos"&IF(Strg!$A$5=1,"Insgesamt",IF(Strg!$A$5=2,"III,SGB III","II,SGB II")),'roh2-3'!$B$1:$B$3927&'roh2-3'!$D$1:$D$3927&'roh2-3'!$A$1:$A$3927,0),MATCH('2'!$A62,'roh2-3'!$A$1:$FE$1,0)) -> 2206352 | F62: =IFERROR((IF($A62>Impressum!$C$13,"...",E62-E50)),".") -> -256209 | G62: =IF($A62>Impressum!$C$13,"-",IFERROR(IF(OR(100/E50*(E62-E50)>250,100/E50*(E62-E50)<-250),".X",100/E50*(E62-E50)),"X")) -> -10.40416867 | H62: =INDEX('roh2-3'!$A$1:$FE$3927,MATCH(Strg!$H$5&"J,Langzeitarbeitslos"&IF(Strg!$A$5=1,"Insgesamt",IF(Strg!$A$5=2,"III,SGB III","II,SGB II")),'roh2-3'!$B$1:$B$3927&'roh2-3'!$D$1:$D$3927&'roh2-3'!$A$1:$A$3927,0),MATCH('2'!$A62,'roh2-3'!$A$1:$FE$1,0)) -> 1106855 | I62: =IFERROR((IF($A62>Impressum!$C$13,"...",H62-H50)),".") -> -65930 | J62: =IF($A62>Impressum!$C$13,"-",IFERROR(IF(OR(100/H50*(H62-H50)>250,100/H50*(H62-H50)<-250),".X",100/H50*(H62-H50)),"X")) -> -5.621661259 | K62: =IF($A62>Impressum!$C$13,"-",IFERROR(100/B62*H62,"X")) -> 33.4073603 | L62: =IFERROR((IF($A62>Impressum!$C$13,"...",ROUND(100/(INDEX(Bzg!$A$1:$FC$438,MATCH(Strg!$H$5,Bzg!$A$1:$A$438,0),MATCH('2'!$A62,Bzg!$A$1:$FC$1,0)))*'2'!$B62,1))),".") -> 7.9 | M62: =IFERROR((IF($A62>Impressum!$C$13,"...",ROUND(100/(INDEX(Bzg!$A$1:$FC$438,MATCH(Strg!$H$5,Bzg!$A$1:$A$438,0),MATCH('2'!$A62,Bzg!$A$1:$FC$1,0)))*'2'!$H62,1))),".") -> 2.6
A63: 2011-03-01 | B63: =INDEX('roh2-3'!$A$1:$FE$3927,MATCH(Strg!$H$5&"Insgesamt"&IF(Strg!$A$5=1,"Insgesamt",IF(Strg!$A$5=2,"III,SGB III","II,SGB II")),'roh2-3'!$B$1:$B$3927&'roh2-3'!$D$1:$D$3927&'roh2-3'!$A$1:$A$3927,0),MATCH('2'!$A63,'roh2-3'!$A$1:$FE$1,0)) -> 3211229 | C63: =IFERROR((IF($A63>Impressum!$C$13,"...",B63-B51)),".") -> -349264 | D63: =IF($A63>Impressum!$C$13,"-",IFERROR(IF(OR(100/B51*(B63-B51)>250,100/B51*(B63-B51)<-250),".X",100/B51*(B63-B51)),"X")) -> -9.809428076 | E63: =INDEX('roh2-3'!$A$1:$FE$3927,MATCH(Strg!$H$5&"N,Nicht Langzeitarbeitslos"&IF(Strg!$A$5=1,"Insgesamt",IF(Strg!$A$5=2,"III,SGB III","II,SGB II")),'roh2-3'!$B$1:$B$3927&'roh2-3'!$D$1:$D$3927&'roh2-3'!$A$1:$A$3927,0),MATCH('2'!$A63,'roh2-3'!$A$1:$FE$1,0)) -> 2110638 | F63: =IFERROR((IF($A63>Impressum!$C$13,"...",E63-E51)),".") -> -273581 | G63: =IF($A63>Impressum!$C$13,"-",IFERROR(IF(OR(100/E51*(E63-E51)>250,100/E51*(E63-E51)<-250),".X",100/E51*(E63-E51)),"X")) -> -11.474659 | H63: =INDEX('roh2-3'!$A$1:$FE$3927,MATCH(Strg!$H$5&"J,Langzeitarbeitslos"&IF(Strg!$A$5=1,"Insgesamt",IF(Strg!$A$5=2,"III,SGB III","II,SGB II")),'roh2-3'!$B$1:$B$3927&'roh2-3'!$D$1:$D$3927&'roh2-3'!$A$1:$A$3927,0),MATCH('2'!$A63,'roh2-3'!$A$1:$FE$1,0)) -> 1100591 | I63: =IFERROR((IF($A63>Impressum!$C$13,"...",H63-H51)),".") -> -75683 | J63: =IF($A63>Impressum!$C$13,"-",IFERROR(IF(OR(100/H51*(H63-H51)>250,100/H51*(H63-H51)<-250),".X",100/H51*(H63-H51)),"X")) -> -6.434130143 | K63: =IF($A63>Impressum!$C$13,"-",IFERROR(100/B63*H63,"X")) -> 34.27320194 | L63: =IFERROR((IF($A63>Impressum!$C$13,"...",ROUND(100/(INDEX(Bzg!$A$1:$FC$438,MATCH(Strg!$H$5,Bzg!$A$1:$A$438,0),MATCH('2'!$A63,Bzg!$A$1:$FC$1,0)))*'2'!$B63,1))),".") -> 7.6 | M63: =IFERROR((IF($A63>Impressum!$C$13,"...",ROUND(100/(INDEX(Bzg!$A$1:$FC$438,MATCH(Strg!$H$5,Bzg!$A$1:$A$438,0),MATCH('2'!$A63,Bzg!$A$1:$FC$1,0)))*'2'!$H63,1))),".") -> 2.6
A64: 2011-04-01 | B64: =INDEX('roh2-3'!$A$1:$FE$3927,MATCH(Strg!$H$5&"Insgesamt"&IF(Strg!$A$5=1,"Insgesamt",IF(Strg!$A$5=2,"III,SGB III","II,SGB II")),'roh2-3'!$B$1:$B$3927&'roh2-3'!$D$1:$D$3927&'roh2-3'!$A$1:$A$3927,0),MATCH('2'!$A64,'roh2-3'!$A$1:$FE$1,0)) -> 3078569 | C64: =IFERROR((IF($A64>Impressum!$C$13,"...",B64-B52)),".") -> -321594 | D64: =IF($A64>Impressum!$C$13,"-",IFERROR(IF(OR(100/B52*(B64-B52)>250,100/B52*(B64-B52)<-250),".X",100/B52*(B64-B52)),"X")) -> -9.458193622 | E64: =INDEX('roh2-3'!$A$1:$FE$3927,MATCH(Strg!$H$5&"N,Nicht Langzeitarbeitslos"&IF(Strg!$A$5=1,"Insgesamt",IF(Strg!$A$5=2,"III,SGB III","II,SGB II")),'roh2-3'!$B$1:$B$3927&'roh2-3'!$D$1:$D$3927&'roh2-3'!$A$1:$A$3927,0),MATCH('2'!$A64,'roh2-3'!$A$1:$FE$1,0)) -> 1988696 | F64: =IFERROR((IF($A64>Impressum!$C$13,"...",E64-E52)),".") -> -225601 | G64: =IF($A64>Impressum!$C$13,"-",IFERROR(IF(OR(100/E52*(E64-E52)>250,100/E52*(E64-E52)<-250),".X",100/E52*(E64-E52)),"X")) -> -10.18838033 | H64: =INDEX('roh2-3'!$A$1:$FE$3927,MATCH(Strg!$H$5&"J,Langzeitarbeitslos"&IF(Strg!$A$5=1,"Insgesamt",IF(Strg!$A$5=2,"III,SGB III","II,SGB II")),'roh2-3'!$B$1:$B$3927&'roh2-3'!$D$1:$D$3927&'roh2-3'!$A$1:$A$3927,0),MATCH('2'!$A64,'roh2-3'!$A$1:$FE$1,0)) -> 1089873 | I64: =IFERROR((IF($A64>Impressum!$C$13,"...",H64-H52)),".") -> -95993 | J64: =IF($A64>Impressum!$C$13,"-",IFERROR(IF(OR(100/H52*(H64-H52)>250,100/H52*(H64-H52)<-250),".X",100/H52*(H64-H52)),"X")) -> -8.094759442 | K64: =IF($A64>Impressum!$C$13,"-",IFERROR(100/B64*H64,"X")) -> 35.40193512 | L64: =IFERROR((IF($A64>Impressum!$C$13,"...",ROUND(100/(INDEX(Bzg!$A$1:$FC$438,MATCH(Strg!$H$5,Bzg!$A$1:$A$438,0),MATCH('2'!$A64,Bzg!$A$1:$FC$1,0)))*'2'!$B64,1))),".") -> 7.3 | M64: =IFERROR((IF($A64>Impressum!$C$13,"...",ROUND(100/(INDEX(Bzg!$A$1:$FC$438,MATCH(Strg!$H$5,Bzg!$A$1:$A$438,0),MATCH('2'!$A64,Bzg!$A$1:$FC$1,0)))*'2'!$H64,1))),".") -> 2.6
A65: 2011-05-01 | B65: =INDEX('roh2-3'!$A$1:$FE$3927,MATCH(Strg!$H$5&"Insgesamt"&IF(Strg!$A$5=1,"Insgesamt",IF(Strg!$A$5=2,"III,SGB III","II,SGB II")),'roh2-3'!$B$1:$B$3927&'roh2-3'!$D$1:$D$3927&'roh2-3'!$A$1:$A$3927,0),MATCH('2'!$A65,'roh2-3'!$A$1:$FE$1,0)) -> 2960620 | C65: =IFERROR((IF($A65>Impressum!$C$13,"...",B65-B53)),".") -> -275743 | D65: =IF($A65>Impressum!$C$13,"-",IFERROR(IF(OR(100/B53*(B65-B53)>250,100/B53*(B65-B53)<-250),".X",100/B53*(B65-B53)),"X")) -> -8.520150552 | E65: =INDEX('roh2-3'!$A$1:$FE$3927,MATCH(Strg!$H$5&"N,Nicht Langzeitarbeitslos"&IF(Strg!$A$5=1,"Insgesamt",IF(Strg!$A$5=2,"III,SGB III","II,SGB II")),'roh2-3'!$B$1:$B$3927&'roh2-3'!$D$1:$D$3927&'roh2-3'!$A$1:$A$3927,0),MATCH('2'!$A65,'roh2-3'!$A$1:$FE$1,0)) -> 1881979 | F65: =IFERROR((IF($A65>Impressum!$C$13,"...",E65-E53)),".") -> -188760 | G65: =IF($A65>Impressum!$C$13,"-",IFERROR(IF(OR(100/E53*(E65-E53)>250,100/E53*(E65-E53)<-250),".X",100/E53*(E65-E53)),"X")) -> -9.115586271 | H65: =INDEX('roh2-3'!$A$1:$FE$3927,MATCH(Strg!$H$5&"J,Langzeitarbeitslos"&IF(Strg!$A$5=1,"Insgesamt",IF(Strg!$A$5=2,"III,SGB III","II,SGB II")),'roh2-3'!$B$1:$B$3927&'roh2-3'!$D$1:$D$3927&'roh2-3'!$A$1:$A$3927,0),MATCH('2'!$A65,'roh2-3'!$A$1:$FE$1,0)) -> 1078641 | I65: =IFERROR((IF($A65>Impressum!$C$13,"...",H65-H53)),".") -> -86983 | J65: =IF($A65>Impressum!$C$13,"-",IFERROR(IF(OR(100/H53*(H65-H53)>250,100/H53*(H65-H53)<-250),".X",100/H53*(H65-H53)),"X")) -> -7.462354927 | K65: =IF($A65>Impressum!$C$13,"-",IFERROR(100/B65*H65,"X")) -> 36.4329431 | L65: =IFERROR((IF($A65>Impressum!$C$13,"...",ROUND(100/(INDEX(Bzg!$A$1:$FC$438,MATCH(Strg!$H$5,Bzg!$A$1:$A$438,0),MATCH('2'!$A65,Bzg!$A$1:$FC$1,0)))*'2'!$B65,1))),".") -> 7 | M65: =IFERROR((IF($A65>Impressum!$C$13,"...",ROUND(100/(INDEX(Bzg!$A$1:$FC$438,MATCH(Strg!$H$5,Bzg!$A$1:$A$438,0),MATCH('2'!$A65,Bzg!$A$1:$FC$1,0)))*'2'!$H65,1))),".") -> 2.6
A66: 2011-06-01 | B66: =INDEX('roh2-3'!$A$1:$FE$3927,MATCH(Strg!$H$5&"Insgesamt"&IF(Strg!$A$5=1,"Insgesamt",IF(Strg!$A$5=2,"III,SGB III","II,SGB II")),'roh2-3'!$B$1:$B$3927&'roh2-3'!$D$1:$D$3927&'roh2-3'!$A$1:$A$3927,0),MATCH('2'!$A66,'roh2-3'!$A$1:$FE$1,0)) -> 2893990 | C66: =IFERROR((IF($A66>Impressum!$C$13,"...",B66-B54)),".") -> -254621 | D66: =IF($A66>Impressum!$C$13,"-",IFERROR(IF(OR(100/B54*(B66-B54)>250,100/B54*(B66-B54)<-250),".X",100/B54*(B66-B54)),"X")) -> -8.086772231 | E66: =INDEX('roh2-3'!$A$1:$FE$3927,MATCH(Strg!$H$5&"N,Nicht Langzeitarbeitslos"&IF(Strg!$A$5=1,"Insgesamt",IF(Strg!$A$5=2,"III,SGB III","II,SGB II")),'roh2-3'!$B$1:$B$3927&'roh2-3'!$D$1:$D$3927&'roh2-3'!$A$1:$A$3927,0),MATCH('2'!$A66,'roh2-3'!$A$1:$FE$1,0)) -> 1821584 | F66: =IFERROR((IF($A66>Impressum!$C$13,"...",E66-E54)),".") -> -170415 | G66: =IF($A66>Impressum!$C$13,"-",IFERROR(IF(OR(100/E54*(E66-E54)>250,100/E54*(E66-E54)<-250),".X",100/E54*(E66-E54)),"X")) -> -8.554974174 | H66: =INDEX('roh2-3'!$A$1:$FE$3927,MATCH(Strg!$H$5&"J,Langzeitarbeitslos"&IF(Strg!$A$5=1,"Insgesamt",IF(Strg!$A$5=2,"III,SGB III","II,SGB II")),'roh2-3'!$B$1:$B$3927&'roh2-3'!$D$1:$D$3927&'roh2-3'!$A$1:$A$3927,0),MATCH('2'!$A66,'roh2-3'!$A$1:$FE$1,0)) -> 1072406 | I66: =IFERROR((IF($A66>Impressum!$C$13,"...",H66-H54)),".") -> -84206 | J66: =IF($A66>Impressum!$C$13,"-",IFERROR(IF(OR(100/H54*(H66-H54)>250,100/H54*(H66-H54)<-250),".X",100/H54*(H66-H54)),"X")) -> -7.280401725 | K66: =IF($A66>Impressum!$C$13,"-",IFERROR(100/B66*H66,"X")) -> 37.05631326 | L66: =IFERROR((IF($A66>Impressum!$C$13,"...",ROUND(100/(INDEX(Bzg!$A$1:$FC$438,MATCH(Strg!$H$5,Bzg!$A$1:$A$438,0),MATCH('2'!$A66,Bzg!$A$1:$FC$1,0)))*'2'!$B66,1))),".") -> 6.9 | M66: =IFERROR((IF($A66>Impressum!$C$13,"...",ROUND(100/(INDEX(Bzg!$A$1:$FC$438,MATCH(Strg!$H$5,Bzg!$A$1:$A$438,0),MATCH('2'!$A66,Bzg!$A$1:$FC$1,0)))*'2'!$H66,1))),".") -> 2.5
A67: 2011-07-01 | B67: =INDEX('roh2-3'!$A$1:$FE$3927,MATCH(Strg!$H$5&"Insgesamt"&IF(Strg!$A$5=1,"Insgesamt",IF(Strg!$A$5=2,"III,SGB III","II,SGB II")),'roh2-3'!$B$1:$B$3927&'roh2-3'!$D$1:$D$3927&'roh2-3'!$A$1:$A$3927,0),MATCH('2'!$A67,'roh2-3'!$A$1:$FE$1,0)) -> 2939945 | C67: =IFERROR((IF($A67>Impressum!$C$13,"...",B67-B55)),".") -> -246984 | D67: =IF($A67>Impressum!$C$13,"-",IFERROR(IF(OR(100/B55*(B67-B55)>250,100/B55*(B67-B55)<-250),".X",100/B55*(B67-B55)),"X")) -> -7.749905944 | E67: =INDEX('roh2-3'!$A$1:$FE$3927,MATCH(Strg!$H$5&"N,Nicht Langzeitarbeitslos"&IF(Strg!$A$5=1,"Insgesamt",IF(Strg!$A$5=2,"III,SGB III","II,SGB II")),'roh2-3'!$B$1:$B$3927&'roh2-3'!$D$1:$D$3927&'roh2-3'!$A$1:$A$3927,0),MATCH('2'!$A67,'roh2-3'!$A$1:$FE$1,0)) -> 1872506 | F67: =IFERROR((IF($A67>Impressum!$C$13,"...",E67-E55)),".") -> -166679 | G67: =IF($A67>Impressum!$C$13,"-",IFERROR(IF(OR(100/E55*(E67-E55)>250,100/E55*(E67-E55)<-250),".X",100/E55*(E67-E55)),"X")) -> -8.173804731 | H67: =INDEX('roh2-3'!$A$1:$FE$3927,MATCH(Strg!$H$5&"J,Langzeitarbeitslos"&IF(Strg!$A$5=1,"Insgesamt",IF(Strg!$A$5=2,"III,SGB III","II,SGB II")),'roh2-3'!$B$1:$B$3927&'roh2-3'!$D$1:$D$3927&'roh2-3'!$A$1:$A$3927,0),MATCH('2'!$A67,'roh2-3'!$A$1:$FE$1,0)) -> 1067439 | I67: =IFERROR((IF($A67>Impressum!$C$13,"...",H67-H55)),".") -> -80305 | J67: =IF($A67>Impressum!$C$13,"-",IFERROR(IF(OR(100/H55*(H67-H55)>250,100/H55*(H67-H55)<-250),".X",100/H55*(H67-H55)),"X")) -> -6.996769314 | K67: =IF($A67>Impressum!$C$13,"-",IFERROR(100/B67*H67,"X")) -> 36.30812821 | L67: =IFERROR((IF($A67>Impressum!$C$13,"...",ROUND(100/(INDEX(Bzg!$A$1:$FC$438,MATCH(Strg!$H$5,Bzg!$A$1:$A$438,0),MATCH('2'!$A67,Bzg!$A$1:$FC$1,0)))*'2'!$B67,1))),".") -> 7 | M67: =IFERROR((IF($A67>Impressum!$C$13,"...",ROUND(100/(INDEX(Bzg!$A$1:$FC$438,MATCH(Strg!$H$5,Bzg!$A$1:$A$438,0),MATCH('2'!$A67,Bzg!$A$1:$FC$1,0)))*'2'!$H67,1))),".") -> 2.5
A68: 2011-08-01 | B68: =INDEX('roh2-3'!$A$1:$FE$3927,MATCH(Strg!$H$5&"Insgesamt"&IF(Strg!$A$5=1,"Insgesamt",IF(Strg!$A$5=2,"III,SGB III","II,SGB II")),'roh2-3'!$B$1:$B$3927&'roh2-3'!$D$1:$D$3927&'roh2-3'!$A$1:$A$3927,0),MATCH('2'!$A68,'roh2-3'!$A$1:$FE$1,0)) -> 2945545 | C68: =IFERROR((IF($A68>Impressum!$C$13,"...",B68-B56)),".") -> -237672 | D68: =IF($A68>Impressum!$C$13,"-",IFERROR(IF(OR(100/B56*(B68-B56)>250,100/B56*(B68-B56)<-250),".X",100/B56*(B68-B56)),"X")) -> -7.466408982 | E68: =INDEX('roh2-3'!$A$1:$FE$3927,MATCH(Strg!$H$5&"N,Nicht Langzeitarbeitslos"&IF(Strg!$A$5=1,"Insgesamt",IF(Strg!$A$5=2,"III,SGB III","II,SGB II")),'roh2-3'!$B$1:$B$3927&'roh2-3'!$D$1:$D$3927&'roh2-3'!$A$1:$A$3927,0),MATCH('2'!$A68,'roh2-3'!$A$1:$FE$1,0)) -> 1882610 | F68: =IFERROR((IF($A68>Impressum!$C$13,"...",E68-E56)),".") -> -159605 | G68: =IF($A68>Impressum!$C$13,"-",IFERROR(IF(OR(100/E56*(E68-E56)>250,100/E56*(E68-E56)<-250),".X",100/E56*(E68-E56)),"X")) -> -7.815288792 | H68: =INDEX('roh2-3'!$A$1:$FE$3927,MATCH(Strg!$H$5&"J,Langzeitarbeitslos"&IF(Strg!$A$5=1,"Insgesamt",IF(Strg!$A$5=2,"III,SGB III","II,SGB II")),'roh2-3'!$B$1:$B$3927&'roh2-3'!$D$1:$D$3927&'roh2-3'!$A$1:$A$3927,0),MATCH('2'!$A68,'roh2-3'!$A$1:$FE$1,0)) -> 1062935 | I68: =IFERROR((IF($A68>Impressum!$C$13,"...",H68-H56)),".") -> -78067 | J68: =IF($A68>Impressum!$C$13,"-",IFERROR(IF(OR(100/H56*(H68-H56)>250,100/H56*(H68-H56)<-250),".X",100/H56*(H68-H56)),"X")) -> -6.841968726 | K68: =IF($A68>Impressum!$C$13,"-",IFERROR(100/B68*H68,"X")) -> 36.08619118 | L68: =IFERROR((IF($A68>Impressum!$C$13,"...",ROUND(100/(INDEX(Bzg!$A$1:$FC$438,MATCH(Strg!$H$5,Bzg!$A$1:$A$438,0),MATCH('2'!$A68,Bzg!$A$1:$FC$1,0)))*'2'!$B68,1))),".") -> 7 | M68: =IFERROR((IF($A68>Impressum!$C$13,"...",ROUND(100/(INDEX(Bzg!$A$1:$FC$438,MATCH(Strg!$H$5,Bzg!$A$1:$A$438,0),MATCH('2'!$A68,Bzg!$A$1:$FC$1,0)))*'2'!$H68,1))),".") -> 2.5
A69: 2011-09-01 | B69: =INDEX('roh2-3'!$A$1:$FE$3927,MATCH(Strg!$H$5&"Insgesamt"&IF(Strg!$A$5=1,"Insgesamt",IF(Strg!$A$5=2,"III,SGB III","II,SGB II")),'roh2-3'!$B$1:$B$3927&'roh2-3'!$D$1:$D$3927&'roh2-3'!$A$1:$A$3927,0),MATCH('2'!$A69,'roh2-3'!$A$1:$FE$1,0)) -> 2796310 | C69: =IFERROR((IF($A69>Impressum!$C$13,"...",B69-B57)),".") -> -230520 | D69: =IF($A69>Impressum!$C$13,"-",IFERROR(IF(OR(100/B57*(B69-B57)>250,100/B57*(B69-B57)<-250),".X",100/B57*(B69-B57)),"X")) -> -7.61588857 | E69: =INDEX('roh2-3'!$A$1:$FE$3927,MATCH(Strg!$H$5&"N,Nicht Langzeitarbeitslos"&IF(Strg!$A$5=1,"Insgesamt",IF(Strg!$A$5=2,"III,SGB III","II,SGB II")),'roh2-3'!$B$1:$B$3927&'roh2-3'!$D$1:$D$3927&'roh2-3'!$A$1:$A$3927,0),MATCH('2'!$A69,'roh2-3'!$A$1:$FE$1,0)) -> 1756481 | F69: =IFERROR((IF($A69>Impressum!$C$13,"...",E69-E57)),".") -> -156913 | G69: =IF($A69>Impressum!$C$13,"-",IFERROR(IF(OR(100/E57*(E69-E57)>250,100/E57*(E69-E57)<-250),".X",100/E57*(E69-E57)),"X")) -> -8.20076785 | H69: =INDEX('roh2-3'!$A$1:$FE$3927,MATCH(Strg!$H$5&"J,Langzeitarbeitslos"&IF(Strg!$A$5=1,"Insgesamt",IF(Strg!$A$5=2,"III,SGB III","II,SGB II")),'roh2-3'!$B$1:$B$3927&'roh2-3'!$D$1:$D$3927&'roh2-3'!$A$1:$A$3927,0),MATCH('2'!$A69,'roh2-3'!$A$1:$FE$1,0)) -> 1039829 | I69: =IFERROR((IF($A69>Impressum!$C$13,"...",H69-H57)),".") -> -73607 | J69: =IF($A69>Impressum!$C$13,"-",IFERROR(IF(OR(100/H57*(H69-H57)>250,100/H57*(H69-H57)<-250),".X",100/H57*(H69-H57)),"X")) -> -6.610797567 | K69: =IF($A69>Impressum!$C$13,"-",IFERROR(100/B69*H69,"X")) -> 37.18575551 | L69: =IFERROR((IF($A69>Impressum!$C$13,"...",ROUND(100/(INDEX(Bzg!$A$1:$FC$438,MATCH(Strg!$H$5,Bzg!$A$1:$A$438,0),MATCH('2'!$A69,Bzg!$A$1:$FC$1,0)))*'2'!$B69,1))),".") -> 6.6 | M69: =IFERROR((IF($A69>Impressum!$C$13,"...",ROUND(100/(INDEX(Bzg!$A$1:$FC$438,MATCH(Strg!$H$5,Bzg!$A$1:$A$438,0),MATCH('2'!$A69,Bzg!$A$1:$FC$1,0)))*'2'!$H69,1))),".") -> 2.5
A70: 2011-10-01 | B70: =INDEX('roh2-3'!$A$1:$FE$3927,MATCH(Strg!$H$5&"Insgesamt"&IF(Strg!$A$5=1,"Insgesamt",IF(Strg!$A$5=2,"III,SGB III","II,SGB II")),'roh2-3'!$B$1:$B$3927&'roh2-3'!$D$1:$D$3927&'roh2-3'!$A$1:$A$3927,0),MATCH('2'!$A70,'roh2-3'!$A$1:$FE$1,0)) -> 2737666 | C70: =IFERROR((IF($A70>Impressum!$C$13,"...",B70-B58)),".") -> -203354 | D70: =IF($A70>Impressum!$C$13,"-",IFERROR(IF(OR(100/B58*(B70-B58)>250,100/B58*(B70-B58)<-250),".X",100/B58*(B70-B58)),"X")) -> -6.914403846 | E70: =INDEX('roh2-3'!$A$1:$FE$3927,MATCH(Strg!$H$5&"N,Nicht Langzeitarbeitslos"&IF(Strg!$A$5=1,"Insgesamt",IF(Strg!$A$5=2,"III,SGB III","II,SGB II")),'roh2-3'!$B$1:$B$3927&'roh2-3'!$D$1:$D$3927&'roh2-3'!$A$1:$A$3927,0),MATCH('2'!$A70,'roh2-3'!$A$1:$FE$1,0)) -> 1707534 | F70: =IFERROR((IF($A70>Impressum!$C$13,"...",E70-E58)),".") -> -140899 | G70: =IF($A70>Impressum!$C$13,"-",IFERROR(IF(OR(100/E58*(E70-E58)>250,100/E58*(E70-E58)<-250),".X",100/E58*(E70-E58)),"X")) -> -7.622618726 | H70: =INDEX('roh2-3'!$A$1:$FE$3927,MATCH(Strg!$H$5&"J,Langzeitarbeitslos"&IF(Strg!$A$5=1,"Insgesamt",IF(Strg!$A$5=2,"III,SGB III","II,SGB II")),'roh2-3'!$B$1:$B$3927&'roh2-3'!$D$1:$D$3927&'roh2-3'!$A$1:$A$3927,0),MATCH('2'!$A70,'roh2-3'!$A$1:$FE$1,0)) -> 1030132 | I70: =IFERROR((IF($A70>Impressum!$C$13,"...",H70-H58)),".") -> -62455 | J70: =IF($A70>Impressum!$C$13,"-",IFERROR(IF(OR(100/H58*(H70-H58)>250,100/H58*(H70-H58)<-250),".X",100/H58*(H70-H58)),"X")) -> -5.716249598 | K70: =IF($A70>Impressum!$C$13,"-",IFERROR(100/B70*H70,"X")) -> 37.62811095 | L70: =IFERROR((IF($A70>Impressum!$C$13,"...",ROUND(100/(INDEX(Bzg!$A$1:$FC$438,MATCH(Strg!$H$5,Bzg!$A$1:$A$438,0),MATCH('2'!$A70,Bzg!$A$1:$FC$1,0)))*'2'!$B70,1))),".") -> 6.5 | M70: =IFERROR((IF($A70>Impressum!$C$13,"...",ROUND(100/(INDEX(Bzg!$A$1:$FC$438,MATCH(Strg!$H$5,Bzg!$A$1:$A$438,0),MATCH('2'!$A70,Bzg!$A$1:$FC$1,0)))*'2'!$H70,1))),".") -> 2.4
A71: 2011-11-01 | B71: =INDEX('roh2-3'!$A$1:$FE$3927,MATCH(Strg!$H$5&"Insgesamt"&IF(Strg!$A$5=1,"Insgesamt",IF(Strg!$A$5=2,"III,SGB III","II,SGB II")),'roh2-3'!$B$1:$B$3927&'roh2-3'!$D$1:$D$3927&'roh2-3'!$A$1:$A$3927,0),MATCH('2'!$A71,'roh2-3'!$A$1:$FE$1,0)) -> 2713813 | C71: =IFERROR((IF($A71>Impressum!$C$13,"...",B71-B59)),".") -> -213158 | D71: =IF($A71>Impressum!$C$13,"-",IFERROR(IF(OR(100/B59*(B71-B59)>250,100/B59*(B71-B59)<-250),".X",100/B59*(B71-B59)),"X")) -> -7.282545676 | E71: =INDEX('roh2-3'!$A$1:$FE$3927,MATCH(Strg!$H$5&"N,Nicht Langzeitarbeitslos"&IF(Strg!$A$5=1,"Insgesamt",IF(Strg!$A$5=2,"III,SGB III","II,SGB II")),'roh2-3'!$B$1:$B$3927&'roh2-3'!$D$1:$D$3927&'roh2-3'!$A$1:$A$3927,0),MATCH('2'!$A71,'roh2-3'!$A$1:$FE$1,0)) -> 1689438 | F71: =IFERROR((IF($A71>Impressum!$C$13,"...",E71-E59)),".") -> -156608 | G71: =IF($A71>Impressum!$C$13,"-",IFERROR(IF(OR(100/E59*(E71-E59)>250,100/E59*(E71-E59)<-250),".X",100/E59*(E71-E59)),"X")) -> -8.483428907 | H71: =INDEX('roh2-3'!$A$1:$FE$3927,MATCH(Strg!$H$5&"J,Langzeitarbeitslos"&IF(Strg!$A$5=1,"Insgesamt",IF(Strg!$A$5=2,"III,SGB III","II,SGB II")),'roh2-3'!$B$1:$B$3927&'roh2-3'!$D$1:$D$3927&'roh2-3'!$A$1:$A$3927,0),MATCH('2'!$A71,'roh2-3'!$A$1:$FE$1,0)) -> 1024375 | I71: =IFERROR((IF($A71>Impressum!$C$13,"...",H71-H59)),".") -> -56550 | J71: =IF($A71>Impressum!$C$13,"-",IFERROR(IF(OR(100/H59*(H71-H59)>250,100/H59*(H71-H59)<-250),".X",100/H59*(H71-H59)),"X")) -> -5.231630317 | K71: =IF($A71>Impressum!$C$13,"-",IFERROR(100/B71*H71,"X")) -> 37.74670547 | L71: =IFERROR((IF($A71>Impressum!$C$13,"...",ROUND(100/(INDEX(Bzg!$A$1:$FC$438,MATCH(Strg!$H$5,Bzg!$A$1:$A$438,0),MATCH('2'!$A71,Bzg!$A$1:$FC$1,0)))*'2'!$B71,1))),".") -> 6.4 | M71: =IFERROR((IF($A71>Impressum!$C$13,"...",ROUND(100/(INDEX(Bzg!$A$1:$FC$438,MATCH(Strg!$H$5,Bzg!$A$1:$A$438,0),MATCH('2'!$A71,Bzg!$A$1:$FC$1,0)))*'2'!$H71,1))),".") -> 2.4
A72: 2011-12-01 | B72: =INDEX('roh2-3'!$A$1:$FE$3927,MATCH(Strg!$H$5&"Insgesamt"&IF(Strg!$A$5=1,"Insgesamt",IF(Strg!$A$5=2,"III,SGB III","II,SGB II")),'roh2-3'!$B$1:$B$3927&'roh2-3'!$D$1:$D$3927&'roh2-3'!$A$1:$A$3927,0),MATCH('2'!$A72,'roh2-3'!$A$1:$FE$1,0)) -> 2780984 | C72: =IFERROR((IF($A72>Impressum!$C$13,"...",B72-B60)),".") -> -230602 | D72: =IF($A72>Impressum!$C$13,"-",IFERROR(IF(OR(100/B60*(B72-B60)>250,100/B60*(B72-B60)<-250),".X",100/B60*(B72-B60)),"X")) -> -7.657161376 | E72: =INDEX('roh2-3'!$A$1:$FE$3927,MATCH(Strg!$H$5&"N,Nicht Langzeitarbeitslos"&IF(Strg!$A$5=1,"Insgesamt",IF(Strg!$A$5=2,"III,SGB III","II,SGB II")),'roh2-3'!$B$1:$B$3927&'roh2-3'!$D$1:$D$3927&'roh2-3'!$A$1:$A$3927,0),MATCH('2'!$A72,'roh2-3'!$A$1:$FE$1,0)) -> 1751768 | F72: =IFERROR((IF($A72>Impressum!$C$13,"...",E72-E60)),".") -> -181173 | G72: =IF($A72>Impressum!$C$13,"-",IFERROR(IF(OR(100/E60*(E72-E60)>250,100/E60*(E72-E60)<-250),".X",100/E60*(E72-E60)),"X")) -> -9.372919298 | H72: =INDEX('roh2-3'!$A$1:$FE$3927,MATCH(Strg!$H$5&"J,Langzeitarbeitslos"&IF(Strg!$A$5=1,"Insgesamt",IF(Strg!$A$5=2,"III,SGB III","II,SGB II")),'roh2-3'!$B$1:$B$3927&'roh2-3'!$D$1:$D$3927&'roh2-3'!$A$1:$A$3927,0),MATCH('2'!$A72,'roh2-3'!$A$1:$FE$1,0)) -> 1029216 | I72: =IFERROR((IF($A72>Impressum!$C$13,"...",H72-H60)),".") -> -49429 | J72: =IF($A72>Impressum!$C$13,"-",IFERROR(IF(OR(100/H60*(H72-H60)>250,100/H60*(H72-H60)<-250),".X",100/H60*(H72-H60)),"X")) -> -4.58250861 | K72: =IF($A72>Impressum!$C$13,"-",IFERROR(100/B72*H72,"X")) -> 37.00905866 | L72: =IFERROR((IF($A72>Impressum!$C$13,"...",ROUND(100/(INDEX(Bzg!$A$1:$FC$438,MATCH(Strg!$H$5,Bzg!$A$1:$A$438,0),MATCH('2'!$A72,Bzg!$A$1:$FC$1,0)))*'2'!$B72,1))),".") -> 6.6 | M72: =IFERROR((IF($A72>Impressum!$C$13,"...",ROUND(100/(INDEX(Bzg!$A$1:$FC$438,MATCH(Strg!$H$5,Bzg!$A$1:$A$438,0),MATCH('2'!$A72,Bzg!$A$1:$FC$1,0)))*'2'!$H72,1))),".") -> 2.4
A73: 2012-01-01 | B73: =INDEX('roh2-3'!$A$1:$FE$3927,MATCH(Strg!$H$5&"Insgesamt"&IF(Strg!$A$5=1,"Insgesamt",IF(Strg!$A$5=2,"III,SGB III","II,SGB II")),'roh2-3'!$B$1:$B$3927&'roh2-3'!$D$1:$D$3927&'roh2-3'!$A$1:$A$3927,0),MATCH('2'!$A73,'roh2-3'!$A$1:$FE$1,0)) -> 3084711 | C73: =IFERROR((IF($A73>Impressum!$C$13,"...",B73-B61)),".") -> -261263 | D73: =IF($A73>Impressum!$C$13,"-",IFERROR(IF(OR(100/B61*(B73-B61)>250,100/B61*(B73-B61)<-250),".X",100/B61*(B73-B61)),"X")) -> -7.808279443 | E73: =INDEX('roh2-3'!$A$1:$FE$3927,MATCH(Strg!$H$5&"N,Nicht Langzeitarbeitslos"&IF(Strg!$A$5=1,"Insgesamt",IF(Strg!$A$5=2,"III,SGB III","II,SGB II")),'roh2-3'!$B$1:$B$3927&'roh2-3'!$D$1:$D$3927&'roh2-3'!$A$1:$A$3927,0),MATCH('2'!$A73,'roh2-3'!$A$1:$FE$1,0)) -> 2014183 | F73: =IFERROR((IF($A73>Impressum!$C$13,"...",E73-E61)),".") -> -216529 | G73: =IF($A73>Impressum!$C$13,"-",IFERROR(IF(OR(100/E61*(E73-E61)>250,100/E61*(E73-E61)<-250),".X",100/E61*(E73-E61)),"X")) -> -9.706721441 | H73: =INDEX('roh2-3'!$A$1:$FE$3927,MATCH(Strg!$H$5&"J,Langzeitarbeitslos"&IF(Strg!$A$5=1,"Insgesamt",IF(Strg!$A$5=2,"III,SGB III","II,SGB II")),'roh2-3'!$B$1:$B$3927&'roh2-3'!$D$1:$D$3927&'roh2-3'!$A$1:$A$3927,0),MATCH('2'!$A73,'roh2-3'!$A$1:$FE$1,0)) -> 1070528 | I73: =IFERROR((IF($A73>Impressum!$C$13,"...",H73-H61)),".") -> -44734 | J73: =IF($A73>Impressum!$C$13,"-",IFERROR(IF(OR(100/H61*(H73-H61)>250,100/H61*(H73-H61)<-250),".X",100/H61*(H73-H61)),"X")) -> -4.011075424 | K73: =IF($A73>Impressum!$C$13,"-",IFERROR(100/B73*H73,"X")) -> 34.70432076 | L73: =IFERROR((IF($A73>Impressum!$C$13,"...",ROUND(100/(INDEX(Bzg!$A$1:$FC$438,MATCH(Strg!$H$5,Bzg!$A$1:$A$438,0),MATCH('2'!$A73,Bzg!$A$1:$FC$1,0)))*'2'!$B73,1))),".") -> 7.3 | M73: =IFERROR((IF($A73>Impressum!$C$13,"...",ROUND(100/(INDEX(Bzg!$A$1:$FC$438,MATCH(Strg!$H$5,Bzg!$A$1:$A$438,0),MATCH('2'!$A73,Bzg!$A$1:$FC$1,0)))*'2'!$H73,1))),".") -> 2.5
A74: 2012-02-01 | B74: =INDEX('roh2-3'!$A$1:$FE$3927,MATCH(Strg!$H$5&"Insgesamt"&IF(Strg!$A$5=1,"Insgesamt",IF(Strg!$A$5=2,"III,SGB III","II,SGB II")),'roh2-3'!$B$1:$B$3927&'roh2-3'!$D$1:$D$3927&'roh2-3'!$A$1:$A$3927,0),MATCH('2'!$A74,'roh2-3'!$A$1:$FE$1,0)) -> 3110442 | C74: =IFERROR((IF($A74>Impressum!$C$13,"...",B74-B62)),".") -> -202765 | D74: =IF($A74>Impressum!$C$13,"-",IFERROR(IF(OR(100/B62*(B74-B62)>250,100/B62*(B74-B62)<-250),".X",100/B62*(B74-B62)),"X")) -> -6.119901352 | E74: =INDEX('roh2-3'!$A$1:$FE$3927,MATCH(Strg!$H$5&"N,Nicht Langzeitarbeitslos"&IF(Strg!$A$5=1,"Insgesamt",IF(Strg!$A$5=2,"III,SGB III","II,SGB II")),'roh2-3'!$B$1:$B$3927&'roh2-3'!$D$1:$D$3927&'roh2-3'!$A$1:$A$3927,0),MATCH('2'!$A74,'roh2-3'!$A$1:$FE$1,0)) -> 2043044 | F74: =IFERROR((IF($A74>Impressum!$C$13,"...",E74-E62)),".") -> -163308 | G74: =IF($A74>Impressum!$C$13,"-",IFERROR(IF(OR(100/E62*(E74-E62)>250,100/E62*(E74-E62)<-250),".X",100/E62*(E74-E62)),"X")) -> -7.401720124 | H74: =INDEX('roh2-3'!$A$1:$FE$3927,MATCH(Strg!$H$5&"J,Langzeitarbeitslos"&IF(Strg!$A$5=1,"Insgesamt",IF(Strg!$A$5=2,"III,SGB III","II,SGB II")),'roh2-3'!$B$1:$B$3927&'roh2-3'!$D$1:$D$3927&'roh2-3'!$A$1:$A$3927,0),MATCH('2'!$A74,'roh2-3'!$A$1:$FE$1,0)) -> 1067398 | I74: =IFERROR((IF($A74>Impressum!$C$13,"...",H74-H62)),".") -> -39457 | J74: =IF($A74>Impressum!$C$13,"-",IFERROR(IF(OR(100/H62*(H74-H62)>250,100/H62*(H74-H62)<-250),".X",100/H62*(H74-H62)),"X")) -> -3.564784909 | K74: =IF($A74>Impressum!$C$13,"-",IFERROR(100/B74*H74,"X")) -> 34.31660195 | L74: =IFERROR((IF($A74>Impressum!$C$13,"...",ROUND(100/(INDEX(Bzg!$A$1:$FC$438,MATCH(Strg!$H$5,Bzg!$A$1:$A$438,0),MATCH('2'!$A74,Bzg!$A$1:$FC$1,0)))*'2'!$B74,1))),".") -> 7.4 | M74: =IFERROR((IF($A74>Impressum!$C$13,"...",ROUND(100/(INDEX(Bzg!$A$1:$FC$438,MATCH(Strg!$H$5,Bzg!$A$1:$A$438,0),MATCH('2'!$A74,Bzg!$A$1:$FC$1,0)))*'2'!$H74,1))),".") -> 2.5
A75: 2012-03-01 | B75: =INDEX('roh2-3'!$A$1:$FE$3927,MATCH(Strg!$H$5&"Insgesamt"&IF(Strg!$A$5=1,"Insgesamt",IF(Strg!$A$5=2,"III,SGB III","II,SGB II")),'roh2-3'!$B$1:$B$3927&'roh2-3'!$D$1:$D$3927&'roh2-3'!$A$1:$A$3927,0),MATCH('2'!$A75,'roh2-3'!$A$1:$FE$1,0)) -> 3028414 | C75: =IFERROR((IF($A75>Impressum!$C$13,"...",B75-B63)),".") -> -182815 | D75: =IF($A75>Impressum!$C$13,"-",IFERROR(IF(OR(100/B63*(B75-B63)>250,100/B63*(B75-B63)<-250),".X",100/B63*(B75-B63)),"X")) -> -5.692991686 | E75: =INDEX('roh2-3'!$A$1:$FE$3927,MATCH(Strg!$H$5&"N,Nicht Langzeitarbeitslos"&IF(Strg!$A$5=1,"Insgesamt",IF(Strg!$A$5=2,"III,SGB III","II,SGB II")),'roh2-3'!$B$1:$B$3927&'roh2-3'!$D$1:$D$3927&'roh2-3'!$A$1:$A$3927,0),MATCH('2'!$A75,'roh2-3'!$A$1:$FE$1,0)) -> 1967147 | F75: =IFERROR((IF($A75>Impressum!$C$13,"...",E75-E63)),".") -> -143491 | G75: =IF($A75>Impressum!$C$13,"-",IFERROR(IF(OR(100/E63*(E75-E63)>250,100/E63*(E75-E63)<-250),".X",100/E63*(E75-E63)),"X")) -> -6.798465677 | H75: =INDEX('roh2-3'!$A$1:$FE$3927,MATCH(Strg!$H$5&"J,Langzeitarbeitslos"&IF(Strg!$A$5=1,"Insgesamt",IF(Strg!$A$5=2,"III,SGB III","II,SGB II")),'roh2-3'!$B$1:$B$3927&'roh2-3'!$D$1:$D$3927&'roh2-3'!$A$1:$A$3927,0),MATCH('2'!$A75,'roh2-3'!$A$1:$FE$1,0)) -> 1061267 | I75: =IFERROR((IF($A75>Impressum!$C$13,"...",H75-H63)),".") -> -39324 | J75: =IF($A75>Impressum!$C$13,"-",IFERROR(IF(OR(100/H63*(H75-H63)>250,100/H63*(H75-H63)<-250),".X",100/H63*(H75-H63)),"X")) -> -3.572989421 | K75: =IF($A75>Impressum!$C$13,"-",IFERROR(100/B75*H75,"X")) -> 35.04365651 | L75: =IFERROR((IF($A75>Impressum!$C$13,"...",ROUND(100/(INDEX(Bzg!$A$1:$FC$438,MATCH(Strg!$H$5,Bzg!$A$1:$A$438,0),MATCH('2'!$A75,Bzg!$A$1:$FC$1,0)))*'2'!$B75,1))),".") -> 7.2 | M75: =IFERROR((IF($A75>Impressum!$C$13,"...",ROUND(100/(INDEX(Bzg!$A$1:$FC$438,MATCH(Strg!$H$5,Bzg!$A$1:$A$438,0),MATCH('2'!$A75,Bzg!$A$1:$FC$1,0)))*'2'!$H75,1))),".") -> 2.5
A76: 2012-04-01 | B76: =INDEX('roh2-3'!$A$1:$FE$3927,MATCH(Strg!$H$5&"Insgesamt"&IF(Strg!$A$5=1,"Insgesamt",IF(Strg!$A$5=2,"III,SGB III","II,SGB II")),'roh2-3'!$B$1:$B$3927&'roh2-3'!$D$1:$D$3927&'roh2-3'!$A$1:$A$3927,0),MATCH('2'!$A76,'roh2-3'!$A$1:$FE$1,0)) -> 2963570 | C76: =IFERROR((IF($A76>Impressum!$C$13,"...",B76-B64)),".") -> -114999 | D76: =IF($A76>Impressum!$C$13,"-",IFERROR(IF(OR(100/B64*(B76-B64)>250,100/B64*(B76-B64)<-250),".X",100/B64*(B76-B64)),"X")) -> -3.735469304 | E76: =INDEX('roh2-3'!$A$1:$FE$3927,MATCH(Strg!$H$5&"N,Nicht Langzeitarbeitslos"&IF(Strg!$A$5=1,"Insgesamt",IF(Strg!$A$5=2,"III,SGB III","II,SGB II")),'roh2-3'!$B$1:$B$3927&'roh2-3'!$D$1:$D$3927&'roh2-3'!$A$1:$A$3927,0),MATCH('2'!$A76,'roh2-3'!$A$1:$FE$1,0)) -> 1897236 | F76: =IFERROR((IF($A76>Impressum!$C$13,"...",E76-E64)),".") -> -91460 | G76: =IF($A76>Impressum!$C$13,"-",IFERROR(IF(OR(100/E64*(E76-E64)>250,100/E64*(E76-E64)<-250),".X",100/E64*(E76-E64)),"X")) -> -4.598993511 | H76: =INDEX('roh2-3'!$A$1:$FE$3927,MATCH(Strg!$H$5&"J,Langzeitarbeitslos"&IF(Strg!$A$5=1,"Insgesamt",IF(Strg!$A$5=2,"III,SGB III","II,SGB II")),'roh2-3'!$B$1:$B$3927&'roh2-3'!$D$1:$D$3927&'roh2-3'!$A$1:$A$3927,0),MATCH('2'!$A76,'roh2-3'!$A$1:$FE$1,0)) -> 1066334 | I76: =IFERROR((IF($A76>Impressum!$C$13,"...",H76-H64)),".") -> -23539 | J76: =IF($A76>Impressum!$C$13,"-",IFERROR(IF(OR(100/H64*(H76-H64)>250,100/H64*(H76-H64)<-250),".X",100/H64*(H76-H64)),"X")) -> -2.15979293 | K76: =IF($A76>Impressum!$C$13,"-",IFERROR(100/B76*H76,"X")) -> 35.98140081 | L76: =IFERROR((IF($A76>Impressum!$C$13,"...",ROUND(100/(INDEX(Bzg!$A$1:$FC$438,MATCH(Strg!$H$5,Bzg!$A$1:$A$438,0),MATCH('2'!$A76,Bzg!$A$1:$FC$1,0)))*'2'!$B76,1))),".") -> 7 | M76: =IFERROR((IF($A76>Impressum!$C$13,"...",ROUND(100/(INDEX(Bzg!$A$1:$FC$438,MATCH(Strg!$H$5,Bzg!$A$1:$A$438,0),MATCH('2'!$A76,Bzg!$A$1:$FC$1,0)))*'2'!$H76,1))),".") -> 2.5
A77: 2012-05-01 | B77: =INDEX('roh2-3'!$A$1:$FE$3927,MATCH(Strg!$H$5&"Insgesamt"&IF(Strg!$A$5=1,"Insgesamt",IF(Strg!$A$5=2,"III,SGB III","II,SGB II")),'roh2-3'!$B$1:$B$3927&'roh2-3'!$D$1:$D$3927&'roh2-3'!$A$1:$A$3927,0),MATCH('2'!$A77,'roh2-3'!$A$1:$FE$1,0)) -> 2855270 | C77: =IFERROR((IF($A77>Impressum!$C$13,"...",B77-B65)),".") -> -105350 | D77: =IF($A77>Impressum!$C$13,"-",IFERROR(IF(OR(100/B65*(B77-B65)>250,100/B65*(B77-B65)<-250),".X",100/B65*(B77-B65)),"X")) -> -3.558376286 | E77: =INDEX('roh2-3'!$A$1:$FE$3927,MATCH(Strg!$H$5&"N,Nicht Langzeitarbeitslos"&IF(Strg!$A$5=1,"Insgesamt",IF(Strg!$A$5=2,"III,SGB III","II,SGB II")),'roh2-3'!$B$1:$B$3927&'roh2-3'!$D$1:$D$3927&'roh2-3'!$A$1:$A$3927,0),MATCH('2'!$A77,'roh2-3'!$A$1:$FE$1,0)) -> 1800758 | F77: =IFERROR((IF($A77>Impressum!$C$13,"...",E77-E65)),".") -> -81221 | G77: =IF($A77>Impressum!$C$13,"-",IFERROR(IF(OR(100/E65*(E77-E65)>250,100/E65*(E77-E65)<-250),".X",100/E65*(E77-E65)),"X")) -> -4.31572297 | H77: =INDEX('roh2-3'!$A$1:$FE$3927,MATCH(Strg!$H$5&"J,Langzeitarbeitslos"&IF(Strg!$A$5=1,"Insgesamt",IF(Strg!$A$5=2,"III,SGB III","II,SGB II")),'roh2-3'!$B$1:$B$3927&'roh2-3'!$D$1:$D$3927&'roh2-3'!$A$1:$A$3927,0),MATCH('2'!$A77,'roh2-3'!$A$1:$FE$1,0)) -> 1054512 | I77: =IFERROR((IF($A77>Impressum!$C$13,"...",H77-H65)),".") -> -24129 | J77: =IF($A77>Impressum!$C$13,"-",IFERROR(IF(OR(100/H65*(H77-H65)>250,100/H65*(H77-H65)<-250),".X",100/H65*(H77-H65)),"X")) -> -2.236981535 | K77: =IF($A77>Impressum!$C$13,"-",IFERROR(100/B77*H77,"X")) -> 36.93212901 | L77: =IFERROR((IF($A77>Impressum!$C$13,"...",ROUND(100/(INDEX(Bzg!$A$1:$FC$438,MATCH(Strg!$H$5,Bzg!$A$1:$A$438,0),MATCH('2'!$A77,Bzg!$A$1:$FC$1,0)))*'2'!$B77,1))),".") -> 6.7 | M77: =IFERROR((IF($A77>Impressum!$C$13,"...",ROUND(100/(INDEX(Bzg!$A$1:$FC$438,MATCH(Strg!$H$5,Bzg!$A$1:$A$438,0),MATCH('2'!$A77,Bzg!$A$1:$FC$1,0)))*'2'!$H77,1))),".") -> 2.5
A78: 2012-06-01 | B78: =INDEX('roh2-3'!$A$1:$FE$3927,MATCH(Strg!$H$5&"Insgesamt"&IF(Strg!$A$5=1,"Insgesamt",IF(Strg!$A$5=2,"III,SGB III","II,SGB II")),'roh2-3'!$B$1:$B$3927&'roh2-3'!$D$1:$D$3927&'roh2-3'!$A$1:$A$3927,0),MATCH('2'!$A78,'roh2-3'!$A$1:$FE$1,0)) -> 2809107 | C78: =IFERROR((IF($A78>Impressum!$C$13,"...",B78-B66)),".") -> -84883 | D78: =IF($A78>Impressum!$C$13,"-",IFERROR(IF(OR(100/B66*(B78-B66)>250,100/B66*(B78-B66)<-250),".X",100/B66*(B78-B66)),"X")) -> -2.933078552 | E78: =INDEX('roh2-3'!$A$1:$FE$3927,MATCH(Strg!$H$5&"N,Nicht Langzeitarbeitslos"&IF(Strg!$A$5=1,"Insgesamt",IF(Strg!$A$5=2,"III,SGB III","II,SGB II")),'roh2-3'!$B$1:$B$3927&'roh2-3'!$D$1:$D$3927&'roh2-3'!$A$1:$A$3927,0),MATCH('2'!$A78,'roh2-3'!$A$1:$FE$1,0)) -> 1762965 | F78: =IFERROR((IF($A78>Impressum!$C$13,"...",E78-E66)),".") -> -58619 | G78: =IF($A78>Impressum!$C$13,"-",IFERROR(IF(OR(100/E66*(E78-E66)>250,100/E66*(E78-E66)<-250),".X",100/E66*(E78-E66)),"X")) -> -3.218023435 | H78: =INDEX('roh2-3'!$A$1:$FE$3927,MATCH(Strg!$H$5&"J,Langzeitarbeitslos"&IF(Strg!$A$5=1,"Insgesamt",IF(Strg!$A$5=2,"III,SGB III","II,SGB II")),'roh2-3'!$B$1:$B$3927&'roh2-3'!$D$1:$D$3927&'roh2-3'!$A$1:$A$3927,0),MATCH('2'!$A78,'roh2-3'!$A$1:$FE$1,0)) -> 1046142 | I78: =IFERROR((IF($A78>Impressum!$C$13,"...",H78-H66)),".") -> -26264 | J78: =IF($A78>Impressum!$C$13,"-",IFERROR(IF(OR(100/H66*(H78-H66)>250,100/H66*(H78-H66)<-250),".X",100/H66*(H78-H66)),"X")) -> -2.449072459 | K78: =IF($A78>Impressum!$C$13,"-",IFERROR(100/B78*H78,"X")) -> 37.24108765 | L78: =IFERROR((IF($A78>Impressum!$C$13,"...",ROUND(100/(INDEX(Bzg!$A$1:$FC$438,MATCH(Strg!$H$5,Bzg!$A$1:$A$438,0),MATCH('2'!$A78,Bzg!$A$1:$FC$1,0)))*'2'!$B78,1))),".") -> 6.6 | M78: =IFERROR((IF($A78>Impressum!$C$13,"...",ROUND(100/(INDEX(Bzg!$A$1:$FC$438,MATCH(Strg!$H$5,Bzg!$A$1:$A$438,0),MATCH('2'!$A78,Bzg!$A$1:$FC$1,0)))*'2'!$H78,1))),".") -> 2.5
A79: 2012-07-01 | B79: =INDEX('roh2-3'!$A$1:$FE$3927,MATCH(Strg!$H$5&"Insgesamt"&IF(Strg!$A$5=1,"Insgesamt",IF(Strg!$A$5=2,"III,SGB III","II,SGB II")),'roh2-3'!$B$1:$B$3927&'roh2-3'!$D$1:$D$3927&'roh2-3'!$A$1:$A$3927,0),MATCH('2'!$A79,'roh2-3'!$A$1:$FE$1,0)) -> 2875971 | C79: =IFERROR((IF($A79>Impressum!$C$13,"...",B79-B67)),".") -> -63974 | D79: =IF($A79>Impressum!$C$13,"-",IFERROR(IF(OR(100/B67*(B79-B67)>250,100/B67*(B79-B67)<-250),".X",100/B67*(B79-B67)),"X")) -> -2.176027103 | E79: =INDEX('roh2-3'!$A$1:$FE$3927,MATCH(Strg!$H$5&"N,Nicht Langzeitarbeitslos"&IF(Strg!$A$5=1,"Insgesamt",IF(Strg!$A$5=2,"III,SGB III","II,SGB II")),'roh2-3'!$B$1:$B$3927&'roh2-3'!$D$1:$D$3927&'roh2-3'!$A$1:$A$3927,0),MATCH('2'!$A79,'roh2-3'!$A$1:$FE$1,0)) -> 1829352 | F79: =IFERROR((IF($A79>Impressum!$C$13,"...",E79-E67)),".") -> -43154 | G79: =IF($A79>Impressum!$C$13,"-",IFERROR(IF(OR(100/E67*(E79-E67)>250,100/E67*(E79-E67)<-250),".X",100/E67*(E79-E67)),"X")) -> -2.304612108 | H79: =INDEX('roh2-3'!$A$1:$FE$3927,MATCH(Strg!$H$5&"J,Langzeitarbeitslos"&IF(Strg!$A$5=1,"Insgesamt",IF(Strg!$A$5=2,"III,SGB III","II,SGB II")),'roh2-3'!$B$1:$B$3927&'roh2-3'!$D$1:$D$3927&'roh2-3'!$A$1:$A$3927,0),MATCH('2'!$A79,'roh2-3'!$A$1:$FE$1,0)) -> 1046619 | I79: =IFERROR((IF($A79>Impressum!$C$13,"...",H79-H67)),".") -> -20820 | J79: =IF($A79>Impressum!$C$13,"-",IFERROR(IF(OR(100/H67*(H79-H67)>250,100/H67*(H79-H67)<-250),".X",100/H67*(H79-H67)),"X")) -> -1.950462743 | K79: =IF($A79>Impressum!$C$13,"-",IFERROR(100/B79*H79,"X")) -> 36.39184818 | L79: =IFERROR((IF($A79>Impressum!$C$13,"...",ROUND(100/(INDEX(Bzg!$A$1:$FC$438,MATCH(Strg!$H$5,Bzg!$A$1:$A$438,0),MATCH('2'!$A79,Bzg!$A$1:$FC$1,0)))*'2'!$B79,1))),".") -> 6.8 | M79: =IFERROR((IF($A79>Impressum!$C$13,"...",ROUND(100/(INDEX(Bzg!$A$1:$FC$438,MATCH(Strg!$H$5,Bzg!$A$1:$A$438,0),MATCH('2'!$A79,Bzg!$A$1:$FC$1,0)))*'2'!$H79,1))),".") -> 2.5
A80: 2012-08-01 | B80: =INDEX('roh2-3'!$A$1:$FE$3927,MATCH(Strg!$H$5&"Insgesamt"&IF(Strg!$A$5=1,"Insgesamt",IF(Strg!$A$5=2,"III,SGB III","II,SGB II")),'roh2-3'!$B$1:$B$3927&'roh2-3'!$D$1:$D$3927&'roh2-3'!$A$1:$A$3927,0),MATCH('2'!$A80,'roh2-3'!$A$1:$FE$1,0)) -> 2905113 | C80: =IFERROR((IF($A80>Impressum!$C$13,"...",B80-B68)),".") -> -40432 | D80: =IF($A80>Impressum!$C$13,"-",IFERROR(IF(OR(100/B68*(B80-B68)>250,100/B68*(B80-B68)<-250),".X",100/B68*(B80-B68)),"X")) -> -1.372649204 | E80: =INDEX('roh2-3'!$A$1:$FE$3927,MATCH(Strg!$H$5&"N,Nicht Langzeitarbeitslos"&IF(Strg!$A$5=1,"Insgesamt",IF(Strg!$A$5=2,"III,SGB III","II,SGB II")),'roh2-3'!$B$1:$B$3927&'roh2-3'!$D$1:$D$3927&'roh2-3'!$A$1:$A$3927,0),MATCH('2'!$A80,'roh2-3'!$A$1:$FE$1,0)) -> 1858853 | F80: =IFERROR((IF($A80>Impressum!$C$13,"...",E80-E68)),".") -> -23757 | G80: =IF($A80>Impressum!$C$13,"-",IFERROR(IF(OR(100/E68*(E80-E68)>250,100/E68*(E80-E68)<-250),".X",100/E68*(E80-E68)),"X")) -> -1.261918294 | H80: =INDEX('roh2-3'!$A$1:$FE$3927,MATCH(Strg!$H$5&"J,Langzeitarbeitslos"&IF(Strg!$A$5=1,"Insgesamt",IF(Strg!$A$5=2,"III,SGB III","II,SGB II")),'roh2-3'!$B$1:$B$3927&'roh2-3'!$D$1:$D$3927&'roh2-3'!$A$1:$A$3927,0),MATCH('2'!$A80,'roh2-3'!$A$1:$FE$1,0)) -> 1046260 | I80: =IFERROR((IF($A80>Impressum!$C$13,"...",H80-H68)),".") -> -16675 | J80: =IF($A80>Impressum!$C$13,"-",IFERROR(IF(OR(100/H68*(H80-H68)>250,100/H68*(H80-H68)<-250),".X",100/H68*(H80-H68)),"X")) -> -1.568769492 | K80: =IF($A80>Impressum!$C$13,"-",IFERROR(100/B80*H80,"X")) -> 36.01443386 | L80: =IFERROR((IF($A80>Impressum!$C$13,"...",ROUND(100/(INDEX(Bzg!$A$1:$FC$438,MATCH(Strg!$H$5,Bzg!$A$1:$A$438,0),MATCH('2'!$A80,Bzg!$A$1:$FC$1,0)))*'2'!$B80,1))),".") -> 6.8 | M80: =IFERROR((IF($A80>Impressum!$C$13,"...",ROUND(100/(INDEX(Bzg!$A$1:$FC$438,MATCH(Strg!$H$5,Bzg!$A$1:$A$438,0),MATCH('2'!$A80,Bzg!$A$1:$FC$1,0)))*'2'!$H80,1))),".") -> 2.5
A81: 2012-09-01 | B81: =INDEX('roh2-3'!$A$1:$FE$3927,MATCH(Strg!$H$5&"Insgesamt"&IF(Strg!$A$5=1,"Insgesamt",IF(Strg!$A$5=2,"III,SGB III","II,SGB II")),'roh2-3'!$B$1:$B$3927&'roh2-3'!$D$1:$D$3927&'roh2-3'!$A$1:$A$3927,0),MATCH('2'!$A81,'roh2-3'!$A$1:$FE$1,0)) -> 2788249 | C81: =IFERROR((IF($A81>Impressum!$C$13,"...",B81-B69)),".") -> -8061 | D81: =IF($A81>Impressum!$C$13,"-",IFERROR(IF(OR(100/B69*(B81-B69)>250,100/B69*(B81-B69)<-250),".X",100/B69*(B81-B69)),"X")) -> -0.2882727595 | E81: =INDEX('roh2-3'!$A$1:$FE$3927,MATCH(Strg!$H$5&"N,Nicht Langzeitarbeitslos"&IF(Strg!$A$5=1,"Insgesamt",IF(Strg!$A$5=2,"III,SGB III","II,SGB II")),'roh2-3'!$B$1:$B$3927&'roh2-3'!$D$1:$D$3927&'roh2-3'!$A$1:$A$3927,0),MATCH('2'!$A81,'roh2-3'!$A$1:$FE$1,0)) -> 1758657 | F81: =IFERROR((IF($A81>Impressum!$C$13,"...",E81-E69)),".") -> 2176 | G81: =IF($A81>Impressum!$C$13,"-",IFERROR(IF(OR(100/E69*(E81-E69)>250,100/E69*(E81-E69)<-250),".X",100/E69*(E81-E69)),"X")) -> 0.1238840614 | H81: =INDEX('roh2-3'!$A$1:$FE$3927,MATCH(Strg!$H$5&"J,Langzeitarbeitslos"&IF(Strg!$A$5=1,"Insgesamt",IF(Strg!$A$5=2,"III,SGB III","II,SGB II")),'roh2-3'!$B$1:$B$3927&'roh2-3'!$D$1:$D$3927&'roh2-3'!$A$1:$A$3927,0),MATCH('2'!$A81,'roh2-3'!$A$1:$FE$1,0)) -> 1029592 | I81: =IFERROR((IF($A81>Impressum!$C$13,"...",H81-H69)),".") -> -10237 | J81: =IF($A81>Impressum!$C$13,"-",IFERROR(IF(OR(100/H69*(H81-H69)>250,100/H69*(H81-H69)<-250),".X",100/H69*(H81-H69)),"X")) -> -0.9844887958 | K81: =IF($A81>Impressum!$C$13,"-",IFERROR(100/B81*H81,"X")) -> 36.92611384 | L81: =IFERROR((IF($A81>Impressum!$C$13,"...",ROUND(100/(INDEX(Bzg!$A$1:$FC$438,MATCH(Strg!$H$5,Bzg!$A$1:$A$438,0),MATCH('2'!$A81,Bzg!$A$1:$FC$1,0)))*'2'!$B81,1))),".") -> 6.5 | M81: =IFERROR((IF($A81>Impressum!$C$13,"...",ROUND(100/(INDEX(Bzg!$A$1:$FC$438,MATCH(Strg!$H$5,Bzg!$A$1:$A$438,0),MATCH('2'!$A81,Bzg!$A$1:$FC$1,0)))*'2'!$H81,1))),".") -> 2.4
A82: 2012-10-01 | B82: =INDEX('roh2-3'!$A$1:$FE$3927,MATCH(Strg!$H$5&"Insgesamt"&IF(Strg!$A$5=1,"Insgesamt",IF(Strg!$A$5=2,"III,SGB III","II,SGB II")),'roh2-3'!$B$1:$B$3927&'roh2-3'!$D$1:$D$3927&'roh2-3'!$A$1:$A$3927,0),MATCH('2'!$A82,'roh2-3'!$A$1:$FE$1,0)) -> 2753361 | C82: =IFERROR((IF($A82>Impressum!$C$13,"...",B82-B70)),".") -> 15695 | D82: =IF($A82>Impressum!$C$13,"-",IFERROR(IF(OR(100/B70*(B82-B70)>250,100/B70*(B82-B70)<-250),".X",100/B70*(B82-B70)),"X")) -> 0.5732985689 | E82: =INDEX('roh2-3'!$A$1:$FE$3927,MATCH(Strg!$H$5&"N,Nicht Langzeitarbeitslos"&IF(Strg!$A$5=1,"Insgesamt",IF(Strg!$A$5=2,"III,SGB III","II,SGB II")),'roh2-3'!$B$1:$B$3927&'roh2-3'!$D$1:$D$3927&'roh2-3'!$A$1:$A$3927,0),MATCH('2'!$A82,'roh2-3'!$A$1:$FE$1,0)) -> 1724628 | F82: =IFERROR((IF($A82>Impressum!$C$13,"...",E82-E70)),".") -> 17094 | G82: =IF($A82>Impressum!$C$13,"-",IFERROR(IF(OR(100/E70*(E82-E70)>250,100/E70*(E82-E70)<-250),".X",100/E70*(E82-E70)),"X")) -> 1.001092804 | H82: =INDEX('roh2-3'!$A$1:$FE$3927,MATCH(Strg!$H$5&"J,Langzeitarbeitslos"&IF(Strg!$A$5=1,"Insgesamt",IF(Strg!$A$5=2,"III,SGB III","II,SGB II")),'roh2-3'!$B$1:$B$3927&'roh2-3'!$D$1:$D$3927&'roh2-3'!$A$1:$A$3927,0),MATCH('2'!$A82,'roh2-3'!$A$1:$FE$1,0)) -> 1028733 | I82: =IFERROR((IF($A82>Impressum!$C$13,"...",H82-H70)),".") -> -1399 | J82: =IF($A82>Impressum!$C$13,"-",IFERROR(IF(OR(100/H70*(H82-H70)>250,100/H70*(H82-H70)<-250),".X",100/H70*(H82-H70)),"X")) -> -0.1358078382 | K82: =IF($A82>Impressum!$C$13,"-",IFERROR(100/B82*H82,"X")) -> 37.36280858 | L82: =IFERROR((IF($A82>Impressum!$C$13,"...",ROUND(100/(INDEX(Bzg!$A$1:$FC$438,MATCH(Strg!$H$5,Bzg!$A$1:$A$438,0),MATCH('2'!$A82,Bzg!$A$1:$FC$1,0)))*'2'!$B82,1))),".") -> 6.5 | M82: =IFERROR((IF($A82>Impressum!$C$13,"...",ROUND(100/(INDEX(Bzg!$A$1:$FC$438,MATCH(Strg!$H$5,Bzg!$A$1:$A$438,0),MATCH('2'!$A82,Bzg!$A$1:$FC$1,0)))*'2'!$H82,1))),".") -> 2.4
A83: 2012-11-01 | B83: =INDEX('roh2-3'!$A$1:$FE$3927,MATCH(Strg!$H$5&"Insgesamt"&IF(Strg!$A$5=1,"Insgesamt",IF(Strg!$A$5=2,"III,SGB III","II,SGB II")),'roh2-3'!$B$1:$B$3927&'roh2-3'!$D$1:$D$3927&'roh2-3'!$A$1:$A$3927,0),MATCH('2'!$A83,'roh2-3'!$A$1:$FE$1,0)) -> 2751485 | C83: =IFERROR((IF($A83>Impressum!$C$13,"...",B83-B71)),".") -> 37672 | D83: =IF($A83>Impressum!$C$13,"-",IFERROR(IF(OR(100/B71*(B83-B71)>250,100/B71*(B83-B71)<-250),".X",100/B71*(B83-B71)),"X")) -> 1.388157548 | E83: =INDEX('roh2-3'!$A$1:$FE$3927,MATCH(Strg!$H$5&"N,Nicht Langzeitarbeitslos"&IF(Strg!$A$5=1,"Insgesamt",IF(Strg!$A$5=2,"III,SGB III","II,SGB II")),'roh2-3'!$B$1:$B$3927&'roh2-3'!$D$1:$D$3927&'roh2-3'!$A$1:$A$3927,0),MATCH('2'!$A83,'roh2-3'!$A$1:$FE$1,0)) -> 1731477 | F83: =IFERROR((IF($A83>Impressum!$C$13,"...",E83-E71)),".") -> 42039 | G83: =IF($A83>Impressum!$C$13,"-",IFERROR(IF(OR(100/E71*(E83-E71)>250,100/E71*(E83-E71)<-250),".X",100/E71*(E83-E71)),"X")) -> 2.488342277 | H83: =INDEX('roh2-3'!$A$1:$FE$3927,MATCH(Strg!$H$5&"J,Langzeitarbeitslos"&IF(Strg!$A$5=1,"Insgesamt",IF(Strg!$A$5=2,"III,SGB III","II,SGB II")),'roh2-3'!$B$1:$B$3927&'roh2-3'!$D$1:$D$3927&'roh2-3'!$A$1:$A$3927,0),MATCH('2'!$A83,'roh2-3'!$A$1:$FE$1,0)) -> 1020008 | I83: =IFERROR((IF($A83>Impressum!$C$13,"...",H83-H71)),".") -> -4367 | J83: =IF($A83>Impressum!$C$13,"-",IFERROR(IF(OR(100/H71*(H83-H71)>250,100/H71*(H83-H71)<-250),".X",100/H71*(H83-H71)),"X")) -> -0.4263087248 | K83: =IF($A83>Impressum!$C$13,"-",IFERROR(100/B83*H83,"X")) -> 37.07118156 | L83: =IFERROR((IF($A83>Impressum!$C$13,"...",ROUND(100/(INDEX(Bzg!$A$1:$FC$438,MATCH(Strg!$H$5,Bzg!$A$1:$A$438,0),MATCH('2'!$A83,Bzg!$A$1:$FC$1,0)))*'2'!$B83,1))),".") -> 6.5 | M83: =IFERROR((IF($A83>Impressum!$C$13,"...",ROUND(100/(INDEX(Bzg!$A$1:$FC$438,MATCH(Strg!$H$5,Bzg!$A$1:$A$438,0),MATCH('2'!$A83,Bzg!$A$1:$FC$1,0)))*'2'!$H83,1))),".") -> 2.4
A84: 2012-12-01 | B84: =INDEX('roh2-3'!$A$1:$FE$3927,MATCH(Strg!$H$5&"Insgesamt"&IF(Strg!$A$5=1,"Insgesamt",IF(Strg!$A$5=2,"III,SGB III","II,SGB II")),'roh2-3'!$B$1:$B$3927&'roh2-3'!$D$1:$D$3927&'roh2-3'!$A$1:$A$3927,0),MATCH('2'!$A84,'roh2-3'!$A$1:$FE$1,0)) -> 2839824 | C84: =IFERROR((IF($A84>Impressum!$C$13,"...",B84-B72)),".") -> 58840 | D84: =IF($A84>Impressum!$C$13,"-",IFERROR(IF(OR(100/B72*(B84-B72)>250,100/B72*(B84-B72)<-250),".X",100/B72*(B84-B72)),"X")) -> 2.115797861 | E84: =INDEX('roh2-3'!$A$1:$FE$3927,MATCH(Strg!$H$5&"N,Nicht Langzeitarbeitslos"&IF(Strg!$A$5=1,"Insgesamt",IF(Strg!$A$5=2,"III,SGB III","II,SGB II")),'roh2-3'!$B$1:$B$3927&'roh2-3'!$D$1:$D$3927&'roh2-3'!$A$1:$A$3927,0),MATCH('2'!$A84,'roh2-3'!$A$1:$FE$1,0)) -> 1817592 | F84: =IFERROR((IF($A84>Impressum!$C$13,"...",E84-E72)),".") -> 65824 | G84: =IF($A84>Impressum!$C$13,"-",IFERROR(IF(OR(100/E72*(E84-E72)>250,100/E72*(E84-E72)<-250),".X",100/E72*(E84-E72)),"X")) -> 3.757575204 | H84: =INDEX('roh2-3'!$A$1:$FE$3927,MATCH(Strg!$H$5&"J,Langzeitarbeitslos"&IF(Strg!$A$5=1,"Insgesamt",IF(Strg!$A$5=2,"III,SGB III","II,SGB II")),'roh2-3'!$B$1:$B$3927&'roh2-3'!$D$1:$D$3927&'roh2-3'!$A$1:$A$3927,0),MATCH('2'!$A84,'roh2-3'!$A$1:$FE$1,0)) -> 1022232 | I84: =IFERROR((IF($A84>Impressum!$C$13,"...",H84-H72)),".") -> -6984 | J84: =IF($A84>Impressum!$C$13,"-",IFERROR(IF(OR(100/H72*(H84-H72)>250,100/H72*(H84-H72)<-250),".X",100/H72*(H84-H72)),"X")) -> -0.6785747598 | K84: =IF($A84>Impressum!$C$13,"-",IFERROR(100/B84*H84,"X")) -> 35.99631526 | L84: =IFERROR((IF($A84>Impressum!$C$13,"...",ROUND(100/(INDEX(Bzg!$A$1:$FC$438,MATCH(Strg!$H$5,Bzg!$A$1:$A$438,0),MATCH('2'!$A84,Bzg!$A$1:$FC$1,0)))*'2'!$B84,1))),".") -> 6.7 | M84: =IFERROR((IF($A84>Impressum!$C$13,"...",ROUND(100/(INDEX(Bzg!$A$1:$FC$438,MATCH(Strg!$H$5,Bzg!$A$1:$A$438,0),MATCH('2'!$A84,Bzg!$A$1:$FC$1,0)))*'2'!$H84,1))),".") -> 2.4
A85: 2013-01-01 | B85: =INDEX('roh2-3'!$A$1:$FE$3927,MATCH(Strg!$H$5&"Insgesamt"&IF(Strg!$A$5=1,"Insgesamt",IF(Strg!$A$5=2,"III,SGB III","II,SGB II")),'roh2-3'!$B$1:$B$3927&'roh2-3'!$D$1:$D$3927&'roh2-3'!$A$1:$A$3927,0),MATCH('2'!$A85,'roh2-3'!$A$1:$FE$1,0)) -> 3138232 | C85: =IFERROR((IF($A85>Impressum!$C$13,"...",B85-B73)),".") -> 53521 | D85: =IF($A85>Impressum!$C$13,"-",IFERROR(IF(OR(100/B73*(B85-B73)>250,100/B73*(B85-B73)<-250),".X",100/B73*(B85-B73)),"X")) -> 1.735040981 | E85: =INDEX('roh2-3'!$A$1:$FE$3927,MATCH(Strg!$H$5&"N,Nicht Langzeitarbeitslos"&IF(Strg!$A$5=1,"Insgesamt",IF(Strg!$A$5=2,"III,SGB III","II,SGB II")),'roh2-3'!$B$1:$B$3927&'roh2-3'!$D$1:$D$3927&'roh2-3'!$A$1:$A$3927,0),MATCH('2'!$A85,'roh2-3'!$A$1:$FE$1,0)) -> 2053763 | F85: =IFERROR((IF($A85>Impressum!$C$13,"...",E85-E73)),".") -> 39580 | G85: =IF($A85>Impressum!$C$13,"-",IFERROR(IF(OR(100/E73*(E85-E73)>250,100/E73*(E85-E73)<-250),".X",100/E73*(E85-E73)),"X")) -> 1.965064743 | H85: =INDEX('roh2-3'!$A$1:$FE$3927,MATCH(Strg!$H$5&"J,Langzeitarbeitslos"&IF(Strg!$A$5=1,"Insgesamt",IF(Strg!$A$5=2,"III,SGB III","II,SGB II")),'roh2-3'!$B$1:$B$3927&'roh2-3'!$D$1:$D$3927&'roh2-3'!$A$1:$A$3927,0),MATCH('2'!$A85,'roh2-3'!$A$1:$FE$1,0)) -> 1084469 | I85: =IFERROR((IF($A85>Impressum!$C$13,"...",H85-H73)),".") -> 13941 | J85: =IF($A85>Impressum!$C$13,"-",IFERROR(IF(OR(100/H73*(H85-H73)>250,100/H73*(H85-H73)<-250),".X",100/H73*(H85-H73)),"X")) -> 1.302254588 | K85: =IF($A85>Impressum!$C$13,"-",IFERROR(100/B85*H85,"X")) -> 34.55668669 | L85: =IFERROR((IF($A85>Impressum!$C$13,"...",ROUND(100/(INDEX(Bzg!$A$1:$FC$438,MATCH(Strg!$H$5,Bzg!$A$1:$A$438,0),MATCH('2'!$A85,Bzg!$A$1:$FC$1,0)))*'2'!$B85,1))),".") -> 7.4 | M85: =IFERROR((IF($A85>Impressum!$C$13,"...",ROUND(100/(INDEX(Bzg!$A$1:$FC$438,MATCH(Strg!$H$5,Bzg!$A$1:$A$438,0),MATCH('2'!$A85,Bzg!$A$1:$FC$1,0)))*'2'!$H85,1))),".") -> 2.5
A86: 2013-02-01 | B86: =INDEX('roh2-3'!$A$1:$FE$3927,MATCH(Strg!$H$5&"Insgesamt"&IF(Strg!$A$5=1,"Insgesamt",IF(Strg!$A$5=2,"III,SGB III","II,SGB II")),'roh2-3'!$B$1:$B$3927&'roh2-3'!$D$1:$D$3927&'roh2-3'!$A$1:$A$3927,0),MATCH('2'!$A86,'roh2-3'!$A$1:$FE$1,0)) -> 3156246 | C86: =IFERROR((IF($A86>Impressum!$C$13,"...",B86-B74)),".") -> 45804 | D86: =IF($A86>Impressum!$C$13,"-",IFERROR(IF(OR(100/B74*(B86-B74)>250,100/B74*(B86-B74)<-250),".X",100/B74*(B86-B74)),"X")) -> 1.47258814 | E86: =INDEX('roh2-3'!$A$1:$FE$3927,MATCH(Strg!$H$5&"N,Nicht Langzeitarbeitslos"&IF(Strg!$A$5=1,"Insgesamt",IF(Strg!$A$5=2,"III,SGB III","II,SGB II")),'roh2-3'!$B$1:$B$3927&'roh2-3'!$D$1:$D$3927&'roh2-3'!$A$1:$A$3927,0),MATCH('2'!$A86,'roh2-3'!$A$1:$FE$1,0)) -> 2074154 | F86: =IFERROR((IF($A86>Impressum!$C$13,"...",E86-E74)),".") -> 31110 | G86: =IF($A86>Impressum!$C$13,"-",IFERROR(IF(OR(100/E74*(E86-E74)>250,100/E74*(E86-E74)<-250),".X",100/E74*(E86-E74)),"X")) -> 1.522727851 | H86: =INDEX('roh2-3'!$A$1:$FE$3927,MATCH(Strg!$H$5&"J,Langzeitarbeitslos"&IF(Strg!$A$5=1,"Insgesamt",IF(Strg!$A$5=2,"III,SGB III","II,SGB II")),'roh2-3'!$B$1:$B$3927&'roh2-3'!$D$1:$D$3927&'roh2-3'!$A$1:$A$3927,0),MATCH('2'!$A86,'roh2-3'!$A$1:$FE$1,0)) -> 1082092 | I86: =IFERROR((IF($A86>Impressum!$C$13,"...",H86-H74)),".") -> 14694 | J86: =IF($A86>Impressum!$C$13,"-",IFERROR(IF(OR(100/H74*(H86-H74)>250,100/H74*(H86-H74)<-250),".X",100/H74*(H86-H74)),"X")) -> 1.376618656 | K86: =IF($A86>Impressum!$C$13,"-",IFERROR(100/B86*H86,"X")) -> 34.28414642 | L86: =IFERROR((IF($A86>Impressum!$C$13,"...",ROUND(100/(INDEX(Bzg!$A$1:$FC$438,MATCH(Strg!$H$5,Bzg!$A$1:$A$438,0),MATCH('2'!$A86,Bzg!$A$1:$FC$1,0)))*'2'!$B86,1))),".") -> 7.4 | M86: =IFERROR((IF($A86>Impressum!$C$13,"...",ROUND(100/(INDEX(Bzg!$A$1:$FC$438,MATCH(Strg!$H$5,Bzg!$A$1:$A$438,0),MATCH('2'!$A86,Bzg!$A$1:$FC$1,0)))*'2'!$H86,1))),".") -> 2.5
A87: 2013-03-01 | B87: =INDEX('roh2-3'!$A$1:$FE$3927,MATCH(Strg!$H$5&"Insgesamt"&IF(Strg!$A$5=1,"Insgesamt",IF(Strg!$A$5=2,"III,SGB III","II,SGB II")),'roh2-3'!$B$1:$B$3927&'roh2-3'!$D$1:$D$3927&'roh2-3'!$A$1:$A$3927,0),MATCH('2'!$A87,'roh2-3'!$A$1:$FE$1,0)) -> 3097817 | C87: =IFERROR((IF($A87>Impressum!$C$13,"...",B87-B75)),".") -> 69403 | D87: =IF($A87>Impressum!$C$13,"-",IFERROR(IF(OR(100/B75*(B87-B75)>250,100/B75*(B87-B75)<-250),".X",100/B75*(B87-B75)),"X")) -> 2.291727617 | E87: =INDEX('roh2-3'!$A$1:$FE$3927,MATCH(Strg!$H$5&"N,Nicht Langzeitarbeitslos"&IF(Strg!$A$5=1,"Insgesamt",IF(Strg!$A$5=2,"III,SGB III","II,SGB II")),'roh2-3'!$B$1:$B$3927&'roh2-3'!$D$1:$D$3927&'roh2-3'!$A$1:$A$3927,0),MATCH('2'!$A87,'roh2-3'!$A$1:$FE$1,0)) -> 2020289 | F87: =IFERROR((IF($A87>Impressum!$C$13,"...",E87-E75)),".") -> 53142 | G87: =IF($A87>Impressum!$C$13,"-",IFERROR(IF(OR(100/E75*(E87-E75)>250,100/E75*(E87-E75)<-250),".X",100/E75*(E87-E75)),"X")) -> 2.701475792 | H87: =INDEX('roh2-3'!$A$1:$FE$3927,MATCH(Strg!$H$5&"J,Langzeitarbeitslos"&IF(Strg!$A$5=1,"Insgesamt",IF(Strg!$A$5=2,"III,SGB III","II,SGB II")),'roh2-3'!$B$1:$B$3927&'roh2-3'!$D$1:$D$3927&'roh2-3'!$A$1:$A$3927,0),MATCH('2'!$A87,'roh2-3'!$A$1:$FE$1,0)) -> 1077528 | I87: =IFERROR((IF($A87>Impressum!$C$13,"...",H87-H75)),".") -> 16261 | J87: =IF($A87>Impressum!$C$13,"-",IFERROR(IF(OR(100/H75*(H87-H75)>250,100/H75*(H87-H75)<-250),".X",100/H75*(H87-H75)),"X")) -> 1.532225161 | K87: =IF($A87>Impressum!$C$13,"-",IFERROR(100/B87*H87,"X")) -> 34.78346203 | L87: =IFERROR((IF($A87>Impressum!$C$13,"...",ROUND(100/(INDEX(Bzg!$A$1:$FC$438,MATCH(Strg!$H$5,Bzg!$A$1:$A$438,0),MATCH('2'!$A87,Bzg!$A$1:$FC$1,0)))*'2'!$B87,1))),".") -> 7.3 | M87: =IFERROR((IF($A87>Impressum!$C$13,"...",ROUND(100/(INDEX(Bzg!$A$1:$FC$438,MATCH(Strg!$H$5,Bzg!$A$1:$A$438,0),MATCH('2'!$A87,Bzg!$A$1:$FC$1,0)))*'2'!$H87,1))),".") -> 2.5
A88: 2013-04-01 | B88: =INDEX('roh2-3'!$A$1:$FE$3927,MATCH(Strg!$H$5&"Insgesamt"&IF(Strg!$A$5=1,"Insgesamt",IF(Strg!$A$5=2,"III,SGB III","II,SGB II")),'roh2-3'!$B$1:$B$3927&'roh2-3'!$D$1:$D$3927&'roh2-3'!$A$1:$A$3927,0),MATCH('2'!$A88,'roh2-3'!$A$1:$FE$1,0)) -> 3020275 | C88: =IFERROR((IF($A88>Impressum!$C$13,"...",B88-B76)),".") -> 56705 | D88: =IF($A88>Impressum!$C$13,"-",IFERROR(IF(OR(100/B76*(B88-B76)>250,100/B76*(B88-B76)<-250),".X",100/B76*(B88-B76)),"X")) -> 1.913401742 | E88: =INDEX('roh2-3'!$A$1:$FE$3927,MATCH(Strg!$H$5&"N,Nicht Langzeitarbeitslos"&IF(Strg!$A$5=1,"Insgesamt",IF(Strg!$A$5=2,"III,SGB III","II,SGB II")),'roh2-3'!$B$1:$B$3927&'roh2-3'!$D$1:$D$3927&'roh2-3'!$A$1:$A$3927,0),MATCH('2'!$A88,'roh2-3'!$A$1:$FE$1,0)) -> 1941091 | F88: =IFERROR((IF($A88>Impressum!$C$13,"...",E88-E76)),".") -> 43855 | G88: =IF($A88>Impressum!$C$13,"-",IFERROR(IF(OR(100/E76*(E88-E76)>250,100/E76*(E88-E76)<-250),".X",100/E76*(E88-E76)),"X")) -> 2.311520549 | H88: =INDEX('roh2-3'!$A$1:$FE$3927,MATCH(Strg!$H$5&"J,Langzeitarbeitslos"&IF(Strg!$A$5=1,"Insgesamt",IF(Strg!$A$5=2,"III,SGB III","II,SGB II")),'roh2-3'!$B$1:$B$3927&'roh2-3'!$D$1:$D$3927&'roh2-3'!$A$1:$A$3927,0),MATCH('2'!$A88,'roh2-3'!$A$1:$FE$1,0)) -> 1079184 | I88: =IFERROR((IF($A88>Impressum!$C$13,"...",H88-H76)),".") -> 12850 | J88: =IF($A88>Impressum!$C$13,"-",IFERROR(IF(OR(100/H76*(H88-H76)>250,100/H76*(H88-H76)<-250),".X",100/H76*(H88-H76)),"X")) -> 1.205063329 | K88: =IF($A88>Impressum!$C$13,"-",IFERROR(100/B88*H88,"X")) -> 35.73131586 | L88: =IFERROR((IF($A88>Impressum!$C$13,"...",ROUND(100/(INDEX(Bzg!$A$1:$FC$438,MATCH(Strg!$H$5,Bzg!$A$1:$A$438,0),MATCH('2'!$A88,Bzg!$A$1:$FC$1,0)))*'2'!$B88,1))),".") -> 7.1 | M88: =IFERROR((IF($A88>Impressum!$C$13,"...",ROUND(100/(INDEX(Bzg!$A$1:$FC$438,MATCH(Strg!$H$5,Bzg!$A$1:$A$438,0),MATCH('2'!$A88,Bzg!$A$1:$FC$1,0)))*'2'!$H88,1))),".") -> 2.5
A89: 2013-05-01 | B89: =INDEX('roh2-3'!$A$1:$FE$3927,MATCH(Strg!$H$5&"Insgesamt"&IF(Strg!$A$5=1,"Insgesamt",IF(Strg!$A$5=2,"III,SGB III","II,SGB II")),'roh2-3'!$B$1:$B$3927&'roh2-3'!$D$1:$D$3927&'roh2-3'!$A$1:$A$3927,0),MATCH('2'!$A89,'roh2-3'!$A$1:$FE$1,0)) -> 2936915 | C89: =IFERROR((IF($A89>Impressum!$C$13,"...",B89-B77)),".") -> 81645 | D89: =IF($A89>Impressum!$C$13,"-",IFERROR(IF(OR(100/B77*(B89-B77)>250,100/B77*(B89-B77)<-250),".X",100/B77*(B89-B77)),"X")) -> 2.859449369 | E89: =INDEX('roh2-3'!$A$1:$FE$3927,MATCH(Strg!$H$5&"N,Nicht Langzeitarbeitslos"&IF(Strg!$A$5=1,"Insgesamt",IF(Strg!$A$5=2,"III,SGB III","II,SGB II")),'roh2-3'!$B$1:$B$3927&'roh2-3'!$D$1:$D$3927&'roh2-3'!$A$1:$A$3927,0),MATCH('2'!$A89,'roh2-3'!$A$1:$FE$1,0)) -> 1860336 | F89: =IFERROR((IF($A89>Impressum!$C$13,"...",E89-E77)),".") -> 59578 | G89: =IF($A89>Impressum!$C$13,"-",IFERROR(IF(OR(100/E77*(E89-E77)>250,100/E77*(E89-E77)<-250),".X",100/E77*(E89-E77)),"X")) -> 3.308495645 | H89: =INDEX('roh2-3'!$A$1:$FE$3927,MATCH(Strg!$H$5&"J,Langzeitarbeitslos"&IF(Strg!$A$5=1,"Insgesamt",IF(Strg!$A$5=2,"III,SGB III","II,SGB II")),'roh2-3'!$B$1:$B$3927&'roh2-3'!$D$1:$D$3927&'roh2-3'!$A$1:$A$3927,0),MATCH('2'!$A89,'roh2-3'!$A$1:$FE$1,0)) -> 1076579 | I89: =IFERROR((IF($A89>Impressum!$C$13,"...",H89-H77)),".") -> 22067 | J89: =IF($A89>Impressum!$C$13,"-",IFERROR(IF(OR(100/H77*(H89-H77)>250,100/H77*(H89-H77)<-250),".X",100/H77*(H89-H77)),"X")) -> 2.092626732 | K89: =IF($A89>Impressum!$C$13,"-",IFERROR(100/B89*H89,"X")) -> 36.65679803 | L89: =IFERROR((IF($A89>Impressum!$C$13,"...",ROUND(100/(INDEX(Bzg!$A$1:$FC$438,MATCH(Strg!$H$5,Bzg!$A$1:$A$438,0),MATCH('2'!$A89,Bzg!$A$1:$FC$1,0)))*'2'!$B89,1))),".") -> 6.8 | M89: =IFERROR((IF($A89>Impressum!$C$13,"...",ROUND(100/(INDEX(Bzg!$A$1:$FC$438,MATCH(Strg!$H$5,Bzg!$A$1:$A$438,0),MATCH('2'!$A89,Bzg!$A$1:$FC$1,0)))*'2'!$H89,1))),".") -> 2.5
A90: 2013-06-01 | B90: =INDEX('roh2-3'!$A$1:$FE$3927,MATCH(Strg!$H$5&"Insgesamt"&IF(Strg!$A$5=1,"Insgesamt",IF(Strg!$A$5=2,"III,SGB III","II,SGB II")),'roh2-3'!$B$1:$B$3927&'roh2-3'!$D$1:$D$3927&'roh2-3'!$A$1:$A$3927,0),MATCH('2'!$A90,'roh2-3'!$A$1:$FE$1,0)) -> 2864666 | C90: =IFERROR((IF($A90>Impressum!$C$13,"...",B90-B78)),".") -> 55559 | D90: =IF($A90>Impressum!$C$13,"-",IFERROR(IF(OR(100/B78*(B90-B78)>250,100/B78*(B90-B78)<-250),".X",100/B78*(B90-B78)),"X")) -> 1.97781715 | E90: =INDEX('roh2-3'!$A$1:$FE$3927,MATCH(Strg!$H$5&"N,Nicht Langzeitarbeitslos"&IF(Strg!$A$5=1,"Insgesamt",IF(Strg!$A$5=2,"III,SGB III","II,SGB II")),'roh2-3'!$B$1:$B$3927&'roh2-3'!$D$1:$D$3927&'roh2-3'!$A$1:$A$3927,0),MATCH('2'!$A90,'roh2-3'!$A$1:$FE$1,0)) -> 1802257 | F90: =IFERROR((IF($A90>Impressum!$C$13,"...",E90-E78)),".") -> 39292 | G90: =IF($A90>Impressum!$C$13,"-",IFERROR(IF(OR(100/E78*(E90-E78)>250,100/E78*(E90-E78)<-250),".X",100/E78*(E90-E78)),"X")) -> 2.228745324 | H90: =INDEX('roh2-3'!$A$1:$FE$3927,MATCH(Strg!$H$5&"J,Langzeitarbeitslos"&IF(Strg!$A$5=1,"Insgesamt",IF(Strg!$A$5=2,"III,SGB III","II,SGB II")),'roh2-3'!$B$1:$B$3927&'roh2-3'!$D$1:$D$3927&'roh2-3'!$A$1:$A$3927,0),MATCH('2'!$A90,'roh2-3'!$A$1:$FE$1,0)) -> 1062409 | I90: =IFERROR((IF($A90>Impressum!$C$13,"...",H90-H78)),".") -> 16267 | J90: =IF($A90>Impressum!$C$13,"-",IFERROR(IF(OR(100/H78*(H90-H78)>250,100/H78*(H90-H78)<-250),".X",100/H78*(H90-H78)),"X")) -> 1.554951431 | K90: =IF($A90>Impressum!$C$13,"-",IFERROR(100/B90*H90,"X")) -> 37.08666211 | L90: =IFERROR((IF($A90>Impressum!$C$13,"...",ROUND(100/(INDEX(Bzg!$A$1:$FC$438,MATCH(Strg!$H$5,Bzg!$A$1:$A$438,0),MATCH('2'!$A90,Bzg!$A$1:$FC$1,0)))*'2'!$B90,1))),".") -> 6.6 | M90: =IFERROR((IF($A90>Impressum!$C$13,"...",ROUND(100/(INDEX(Bzg!$A$1:$FC$438,MATCH(Strg!$H$5,Bzg!$A$1:$A$438,0),MATCH('2'!$A90,Bzg!$A$1:$FC$1,0)))*'2'!$H90,1))),".") -> 2.5
A91: 2013-07-01 | B91: =INDEX('roh2-3'!$A$1:$FE$3927,MATCH(Strg!$H$5&"Insgesamt"&IF(Strg!$A$5=1,"Insgesamt",IF(Strg!$A$5=2,"III,SGB III","II,SGB II")),'roh2-3'!$B$1:$B$3927&'roh2-3'!$D$1:$D$3927&'roh2-3'!$A$1:$A$3927,0),MATCH('2'!$A91,'roh2-3'!$A$1:$FE$1,0)) -> 2914096 | C91: =IFERROR((IF($A91>Impressum!$C$13,"...",B91-B79)),".") -> 38125 | D91: =IF($A91>Impressum!$C$13,"-",IFERROR(IF(OR(100/B79*(B91-B79)>250,100/B79*(B91-B79)<-250),".X",100/B79*(B91-B79)),"X")) -> 1.325639236 | E91: =INDEX('roh2-3'!$A$1:$FE$3927,MATCH(Strg!$H$5&"N,Nicht Langzeitarbeitslos"&IF(Strg!$A$5=1,"Insgesamt",IF(Strg!$A$5=2,"III,SGB III","II,SGB II")),'roh2-3'!$B$1:$B$3927&'roh2-3'!$D$1:$D$3927&'roh2-3'!$A$1:$A$3927,0),MATCH('2'!$A91,'roh2-3'!$A$1:$FE$1,0)) -> 1847819 | F91: =IFERROR((IF($A91>Impressum!$C$13,"...",E91-E79)),".") -> 18467 | G91: =IF($A91>Impressum!$C$13,"-",IFERROR(IF(OR(100/E79*(E91-E79)>250,100/E79*(E91-E79)<-250),".X",100/E79*(E91-E79)),"X")) -> 1.009483139 | H91: =INDEX('roh2-3'!$A$1:$FE$3927,MATCH(Strg!$H$5&"J,Langzeitarbeitslos"&IF(Strg!$A$5=1,"Insgesamt",IF(Strg!$A$5=2,"III,SGB III","II,SGB II")),'roh2-3'!$B$1:$B$3927&'roh2-3'!$D$1:$D$3927&'roh2-3'!$A$1:$A$3927,0),MATCH('2'!$A91,'roh2-3'!$A$1:$FE$1,0)) -> 1066277 | I91: =IFERROR((IF($A91>Impressum!$C$13,"...",H91-H79)),".") -> 19658 | J91: =IF($A91>Impressum!$C$13,"-",IFERROR(IF(OR(100/H79*(H91-H79)>250,100/H79*(H91-H79)<-250),".X",100/H79*(H91-H79)),"X")) -> 1.878238404 | K91: =IF($A91>Impressum!$C$13,"-",IFERROR(100/B91*H91,"X")) -> 36.59031823 | L91: =IFERROR((IF($A91>Impressum!$C$13,"...",ROUND(100/(INDEX(Bzg!$A$1:$FC$438,MATCH(Strg!$H$5,Bzg!$A$1:$A$438,0),MATCH('2'!$A91,Bzg!$A$1:$FC$1,0)))*'2'!$B91,1))),".") -> 6.8 | M91: =IFERROR((IF($A91>Impressum!$C$13,"...",ROUND(100/(INDEX(Bzg!$A$1:$FC$438,MATCH(Strg!$H$5,Bzg!$A$1:$A$438,0),MATCH('2'!$A91,Bzg!$A$1:$FC$1,0)))*'2'!$H91,1))),".") -> 2.5
A92: 2013-08-01 | B92: =INDEX('roh2-3'!$A$1:$FE$3927,MATCH(Strg!$H$5&"Insgesamt"&IF(Strg!$A$5=1,"Insgesamt",IF(Strg!$A$5=2,"III,SGB III","II,SGB II")),'roh2-3'!$B$1:$B$3927&'roh2-3'!$D$1:$D$3927&'roh2-3'!$A$1:$A$3927,0),MATCH('2'!$A92,'roh2-3'!$A$1:$FE$1,0)) -> 2945710 | C92: =IFERROR((IF($A92>Impressum!$C$13,"...",B92-B80)),".") -> 40597 | D92: =IF($A92>Impressum!$C$13,"-",IFERROR(IF(OR(100/B80*(B92-B80)>250,100/B80*(B92-B80)<-250),".X",100/B80*(B92-B80)),"X")) -> 1.397432733 | E92: =INDEX('roh2-3'!$A$1:$FE$3927,MATCH(Strg!$H$5&"N,Nicht Langzeitarbeitslos"&IF(Strg!$A$5=1,"Insgesamt",IF(Strg!$A$5=2,"III,SGB III","II,SGB II")),'roh2-3'!$B$1:$B$3927&'roh2-3'!$D$1:$D$3927&'roh2-3'!$A$1:$A$3927,0),MATCH('2'!$A92,'roh2-3'!$A$1:$FE$1,0)) -> 1875658 | F92: =IFERROR((IF($A92>Impressum!$C$13,"...",E92-E80)),".") -> 16805 | G92: =IF($A92>Impressum!$C$13,"-",IFERROR(IF(OR(100/E80*(E92-E80)>250,100/E80*(E92-E80)<-250),".X",100/E80*(E92-E80)),"X")) -> 0.9040521225 | H92: =INDEX('roh2-3'!$A$1:$FE$3927,MATCH(Strg!$H$5&"J,Langzeitarbeitslos"&IF(Strg!$A$5=1,"Insgesamt",IF(Strg!$A$5=2,"III,SGB III","II,SGB II")),'roh2-3'!$B$1:$B$3927&'roh2-3'!$D$1:$D$3927&'roh2-3'!$A$1:$A$3927,0),MATCH('2'!$A92,'roh2-3'!$A$1:$FE$1,0)) -> 1070052 | I92: =IFERROR((IF($A92>Impressum!$C$13,"...",H92-H80)),".") -> 23792 | J92: =IF($A92>Impressum!$C$13,"-",IFERROR(IF(OR(100/H80*(H92-H80)>250,100/H80*(H92-H80)<-250),".X",100/H80*(H92-H80)),"X")) -> 2.27400455 | K92: =IF($A92>Impressum!$C$13,"-",IFERROR(100/B92*H92,"X")) -> 36.32577545 | L92: =IFERROR((IF($A92>Impressum!$C$13,"...",ROUND(100/(INDEX(Bzg!$A$1:$FC$438,MATCH(Strg!$H$5,Bzg!$A$1:$A$438,0),MATCH('2'!$A92,Bzg!$A$1:$FC$1,0)))*'2'!$B92,1))),".") -> 6.8 | M92: =IFERROR((IF($A92>Impressum!$C$13,"...",ROUND(100/(INDEX(Bzg!$A$1:$FC$438,MATCH(Strg!$H$5,Bzg!$A$1:$A$438,0),MATCH('2'!$A92,Bzg!$A$1:$FC$1,0)))*'2'!$H92,1))),".") -> 2.5
A93: 2013-09-01 | B93: =INDEX('roh2-3'!$A$1:$FE$3927,MATCH(Strg!$H$5&"Insgesamt"&IF(Strg!$A$5=1,"Insgesamt",IF(Strg!$A$5=2,"III,SGB III","II,SGB II")),'roh2-3'!$B$1:$B$3927&'roh2-3'!$D$1:$D$3927&'roh2-3'!$A$1:$A$3927,0),MATCH('2'!$A93,'roh2-3'!$A$1:$FE$1,0)) -> 2848950 | C93: =IFERROR((IF($A93>Impressum!$C$13,"...",B93-B81)),".") -> 60701 | D93: =IF($A93>Impressum!$C$13,"-",IFERROR(IF(OR(100/B81*(B93-B81)>250,100/B81*(B93-B81)<-250),".X",100/B81*(B93-B81)),"X")) -> 2.177029383 | E93: =INDEX('roh2-3'!$A$1:$FE$3927,MATCH(Strg!$H$5&"N,Nicht Langzeitarbeitslos"&IF(Strg!$A$5=1,"Insgesamt",IF(Strg!$A$5=2,"III,SGB III","II,SGB II")),'roh2-3'!$B$1:$B$3927&'roh2-3'!$D$1:$D$3927&'roh2-3'!$A$1:$A$3927,0),MATCH('2'!$A93,'roh2-3'!$A$1:$FE$1,0)) -> 1789623 | F93: =IFERROR((IF($A93>Impressum!$C$13,"...",E93-E81)),".") -> 30966 | G93: =IF($A93>Impressum!$C$13,"-",IFERROR(IF(OR(100/E81*(E93-E81)>250,100/E81*(E93-E81)<-250),".X",100/E81*(E93-E81)),"X")) -> 1.76077541 | H93: =INDEX('roh2-3'!$A$1:$FE$3927,MATCH(Strg!$H$5&"J,Langzeitarbeitslos"&IF(Strg!$A$5=1,"Insgesamt",IF(Strg!$A$5=2,"III,SGB III","II,SGB II")),'roh2-3'!$B$1:$B$3927&'roh2-3'!$D$1:$D$3927&'roh2-3'!$A$1:$A$3927,0),MATCH('2'!$A93,'roh2-3'!$A$1:$FE$1,0)) -> 1059327 | I93: =IFERROR((IF($A93>Impressum!$C$13,"...",H93-H81)),".") -> 29735 | J93: =IF($A93>Impressum!$C$13,"-",IFERROR(IF(OR(100/H81*(H93-H81)>250,100/H81*(H93-H81)<-250),".X",100/H81*(H93-H81)),"X")) -> 2.888037203 | K93: =IF($A93>Impressum!$C$13,"-",IFERROR(100/B93*H93,"X")) -> 37.18306745 | L93: =IFERROR((IF($A93>Impressum!$C$13,"...",ROUND(100/(INDEX(Bzg!$A$1:$FC$438,MATCH(Strg!$H$5,Bzg!$A$1:$A$438,0),MATCH('2'!$A93,Bzg!$A$1:$FC$1,0)))*'2'!$B93,1))),".") -> 6.6 | M93: =IFERROR((IF($A93>Impressum!$C$13,"...",ROUND(100/(INDEX(Bzg!$A$1:$FC$438,MATCH(Strg!$H$5,Bzg!$A$1:$A$438,0),MATCH('2'!$A93,Bzg!$A$1:$FC$1,0)))*'2'!$H93,1))),".") -> 2.5
A94: 2013-10-01 | B94: =INDEX('roh2-3'!$A$1:$FE$3927,MATCH(Strg!$H$5&"Insgesamt"&IF(Strg!$A$5=1,"Insgesamt",IF(Strg!$A$5=2,"III,SGB III","II,SGB II")),'roh2-3'!$B$1:$B$3927&'roh2-3'!$D$1:$D$3927&'roh2-3'!$A$1:$A$3927,0),MATCH('2'!$A94,'roh2-3'!$A$1:$FE$1,0)) -> 2801191 | C94: =IFERROR((IF($A94>Impressum!$C$13,"...",B94-B82)),".") -> 47830 | D94: =IF($A94>Impressum!$C$13,"-",IFERROR(IF(OR(100/B82*(B94-B82)>250,100/B82*(B94-B82)<-250),".X",100/B82*(B94-B82)),"X")) -> 1.737149615 | E94: =INDEX('roh2-3'!$A$1:$FE$3927,MATCH(Strg!$H$5&"N,Nicht Langzeitarbeitslos"&IF(Strg!$A$5=1,"Insgesamt",IF(Strg!$A$5=2,"III,SGB III","II,SGB II")),'roh2-3'!$B$1:$B$3927&'roh2-3'!$D$1:$D$3927&'roh2-3'!$A$1:$A$3927,0),MATCH('2'!$A94,'roh2-3'!$A$1:$FE$1,0)) -> 1740788 | F94: =IFERROR((IF($A94>Impressum!$C$13,"...",E94-E82)),".") -> 16160 | G94: =IF($A94>Impressum!$C$13,"-",IFERROR(IF(OR(100/E82*(E94-E82)>250,100/E82*(E94-E82)<-250),".X",100/E82*(E94-E82)),"X")) -> 0.9370136632 | H94: =INDEX('roh2-3'!$A$1:$FE$3927,MATCH(Strg!$H$5&"J,Langzeitarbeitslos"&IF(Strg!$A$5=1,"Insgesamt",IF(Strg!$A$5=2,"III,SGB III","II,SGB II")),'roh2-3'!$B$1:$B$3927&'roh2-3'!$D$1:$D$3927&'roh2-3'!$A$1:$A$3927,0),MATCH('2'!$A94,'roh2-3'!$A$1:$FE$1,0)) -> 1060403 | I94: =IFERROR((IF($A94>Impressum!$C$13,"...",H94-H82)),".") -> 31670 | J94: =IF($A94>Impressum!$C$13,"-",IFERROR(IF(OR(100/H82*(H94-H82)>250,100/H82*(H94-H82)<-250),".X",100/H82*(H94-H82)),"X")) -> 3.07854419 | K94: =IF($A94>Impressum!$C$13,"-",IFERROR(100/B94*H94,"X")) -> 37.85543364 | L94: =IFERROR((IF($A94>Impressum!$C$13,"...",ROUND(100/(INDEX(Bzg!$A$1:$FC$438,MATCH(Strg!$H$5,Bzg!$A$1:$A$438,0),MATCH('2'!$A94,Bzg!$A$1:$FC$1,0)))*'2'!$B94,1))),".") -> 6.5 | M94: =IFERROR((IF($A94>Impressum!$C$13,"...",ROUND(100/(INDEX(Bzg!$A$1:$FC$438,MATCH(Strg!$H$5,Bzg!$A$1:$A$438,0),MATCH('2'!$A94,Bzg!$A$1:$FC$1,0)))*'2'!$H94,1))),".") -> 2.5
A95: 2013-11-01 | B95: =INDEX('roh2-3'!$A$1:$FE$3927,MATCH(Strg!$H$5&"Insgesamt"&IF(Strg!$A$5=1,"Insgesamt",IF(Strg!$A$5=2,"III,SGB III","II,SGB II")),'roh2-3'!$B$1:$B$3927&'roh2-3'!$D$1:$D$3927&'roh2-3'!$A$1:$A$3927,0),MATCH('2'!$A95,'roh2-3'!$A$1:$FE$1,0)) -> 2806146 | C95: =IFERROR((IF($A95>Impressum!$C$13,"...",B95-B83)),".") -> 54661 | D95: =IF($A95>Impressum!$C$13,"-",IFERROR(IF(OR(100/B83*(B95-B83)>250,100/B83*(B95-B83)<-250),".X",100/B83*(B95-B83)),"X")) -> 1.986599963 | E95: =INDEX('roh2-3'!$A$1:$FE$3927,MATCH(Strg!$H$5&"N,Nicht Langzeitarbeitslos"&IF(Strg!$A$5=1,"Insgesamt",IF(Strg!$A$5=2,"III,SGB III","II,SGB II")),'roh2-3'!$B$1:$B$3927&'roh2-3'!$D$1:$D$3927&'roh2-3'!$A$1:$A$3927,0),MATCH('2'!$A95,'roh2-3'!$A$1:$FE$1,0)) -> 1750296 | F95: =IFERROR((IF($A95>Impressum!$C$13,"...",E95-E83)),".") -> 18819 | G95: =IF($A95>Impressum!$C$13,"-",IFERROR(IF(OR(100/E83*(E95-E83)>250,100/E83*(E95-E83)<-250),".X",100/E83*(E95-E83)),"X")) -> 1.08687554 | H95: =INDEX('roh2-3'!$A$1:$FE$3927,MATCH(Strg!$H$5&"J,Langzeitarbeitslos"&IF(Strg!$A$5=1,"Insgesamt",IF(Strg!$A$5=2,"III,SGB III","II,SGB II")),'roh2-3'!$B$1:$B$3927&'roh2-3'!$D$1:$D$3927&'roh2-3'!$A$1:$A$3927,0),MATCH('2'!$A95,'roh2-3'!$A$1:$FE$1,0)) -> 1055850 | I95: =IFERROR((IF($A95>Impressum!$C$13,"...",H95-H83)),".") -> 35842 | J95: =IF($A95>Impressum!$C$13,"-",IFERROR(IF(OR(100/H83*(H95-H83)>250,100/H83*(H95-H83)<-250),".X",100/H83*(H95-H83)),"X")) -> 3.513894009 | K95: =IF($A95>Impressum!$C$13,"-",IFERROR(100/B95*H95,"X")) -> 37.62633876 | L95: =IFERROR((IF($A95>Impressum!$C$13,"...",ROUND(100/(INDEX(Bzg!$A$1:$FC$438,MATCH(Strg!$H$5,Bzg!$A$1:$A$438,0),MATCH('2'!$A95,Bzg!$A$1:$FC$1,0)))*'2'!$B95,1))),".") -> 6.5 | M95: =IFERROR((IF($A95>Impressum!$C$13,"...",ROUND(100/(INDEX(Bzg!$A$1:$FC$438,MATCH(Strg!$H$5,Bzg!$A$1:$A$438,0),MATCH('2'!$A95,Bzg!$A$1:$FC$1,0)))*'2'!$H95,1))),".") -> 2.4
A96: 2013-12-01 | B96: =INDEX('roh2-3'!$A$1:$FE$3927,MATCH(Strg!$H$5&"Insgesamt"&IF(Strg!$A$5=1,"Insgesamt",IF(Strg!$A$5=2,"III,SGB III","II,SGB II")),'roh2-3'!$B$1:$B$3927&'roh2-3'!$D$1:$D$3927&'roh2-3'!$A$1:$A$3927,0),MATCH('2'!$A96,'roh2-3'!$A$1:$FE$1,0)) -> 2873806 | C96: =IFERROR((IF($A96>Impressum!$C$13,"...",B96-B84)),".") -> 33982 | D96: =IF($A96>Impressum!$C$13,"-",IFERROR(IF(OR(100/B84*(B96-B84)>250,100/B84*(B96-B84)<-250),".X",100/B84*(B96-B84)),"X")) -> 1.196623453 | E96: =INDEX('roh2-3'!$A$1:$FE$3927,MATCH(Strg!$H$5&"N,Nicht Langzeitarbeitslos"&IF(Strg!$A$5=1,"Insgesamt",IF(Strg!$A$5=2,"III,SGB III","II,SGB II")),'roh2-3'!$B$1:$B$3927&'roh2-3'!$D$1:$D$3927&'roh2-3'!$A$1:$A$3927,0),MATCH('2'!$A96,'roh2-3'!$A$1:$FE$1,0)) -> 1811322 | F96: =IFERROR((IF($A96>Impressum!$C$13,"...",E96-E84)),".") -> -6270 | G96: =IF($A96>Impressum!$C$13,"-",IFERROR(IF(OR(100/E84*(E96-E84)>250,100/E84*(E96-E84)<-250),".X",100/E84*(E96-E84)),"X")) -> -0.3449619056 | H96: =INDEX('roh2-3'!$A$1:$FE$3927,MATCH(Strg!$H$5&"J,Langzeitarbeitslos"&IF(Strg!$A$5=1,"Insgesamt",IF(Strg!$A$5=2,"III,SGB III","II,SGB II")),'roh2-3'!$B$1:$B$3927&'roh2-3'!$D$1:$D$3927&'roh2-3'!$A$1:$A$3927,0),MATCH('2'!$A96,'roh2-3'!$A$1:$FE$1,0)) -> 1062484 | I96: =IFERROR((IF($A96>Impressum!$C$13,"...",H96-H84)),".") -> 40252 | J96: =IF($A96>Impressum!$C$13,"-",IFERROR(IF(OR(100/H84*(H96-H84)>250,100/H84*(H96-H84)<-250),".X",100/H84*(H96-H84)),"X")) -> 3.937657988 | K96: =IF($A96>Impressum!$C$13,"-",IFERROR(100/B96*H96,"X")) -> 36.97131957 | L96: =IFERROR((IF($A96>Impressum!$C$13,"...",ROUND(100/(INDEX(Bzg!$A$1:$FC$438,MATCH(Strg!$H$5,Bzg!$A$1:$A$438,0),MATCH('2'!$A96,Bzg!$A$1:$FC$1,0)))*'2'!$B96,1))),".") -> 6.7 | M96: =IFERROR((IF($A96>Impressum!$C$13,"...",ROUND(100/(INDEX(Bzg!$A$1:$FC$438,MATCH(Strg!$H$5,Bzg!$A$1:$A$438,0),MATCH('2'!$A96,Bzg!$A$1:$FC$1,0)))*'2'!$H96,1))),".") -> 2.5
A97: 2014-01-01 | B97: =INDEX('roh2-3'!$A$1:$FE$3927,MATCH(Strg!$H$5&"Insgesamt"&IF(Strg!$A$5=1,"Insgesamt",IF(Strg!$A$5=2,"III,SGB III","II,SGB II")),'roh2-3'!$B$1:$B$3927&'roh2-3'!$D$1:$D$3927&'roh2-3'!$A$1:$A$3927,0),MATCH('2'!$A97,'roh2-3'!$A$1:$FE$1,0)) -> 3135802 | C97: =IFERROR((IF($A97>Impressum!$C$13,"...",B97-B85)),".") -> -2430 | D97: =IF($A97>Impressum!$C$13,"-",IFERROR(IF(OR(100/B85*(B97-B85)>250,100/B85*(B97-B85)<-250),".X",100/B85*(B97-B85)),"X")) -> -0.07743213376 | E97: =INDEX('roh2-3'!$A$1:$FE$3927,MATCH(Strg!$H$5&"N,Nicht Langzeitarbeitslos"&IF(Strg!$A$5=1,"Insgesamt",IF(Strg!$A$5=2,"III,SGB III","II,SGB II")),'roh2-3'!$B$1:$B$3927&'roh2-3'!$D$1:$D$3927&'roh2-3'!$A$1:$A$3927,0),MATCH('2'!$A97,'roh2-3'!$A$1:$FE$1,0)) -> 2028902 | F97: =IFERROR((IF($A97>Impressum!$C$13,"...",E97-E85)),".") -> -24861 | G97: =IF($A97>Impressum!$C$13,"-",IFERROR(IF(OR(100/E85*(E97-E85)>250,100/E85*(E97-E85)<-250),".X",100/E85*(E97-E85)),"X")) -> -1.210509684 | H97: =INDEX('roh2-3'!$A$1:$FE$3927,MATCH(Strg!$H$5&"J,Langzeitarbeitslos"&IF(Strg!$A$5=1,"Insgesamt",IF(Strg!$A$5=2,"III,SGB III","II,SGB II")),'roh2-3'!$B$1:$B$3927&'roh2-3'!$D$1:$D$3927&'roh2-3'!$A$1:$A$3927,0),MATCH('2'!$A97,'roh2-3'!$A$1:$FE$1,0)) -> 1106900 | I97: =IFERROR((IF($A97>Impressum!$C$13,"...",H97-H85)),".") -> 22431 | J97: =IF($A97>Impressum!$C$13,"-",IFERROR(IF(OR(100/H85*(H97-H85)>250,100/H85*(H97-H85)<-250),".X",100/H85*(H97-H85)),"X")) -> 2.068385542 | K97: =IF($A97>Impressum!$C$13,"-",IFERROR(100/B97*H97,"X")) -> 35.29878481 | L97: =IFERROR((IF($A97>Impressum!$C$13,"...",ROUND(100/(INDEX(Bzg!$A$1:$FC$438,MATCH(Strg!$H$5,Bzg!$A$1:$A$438,0),MATCH('2'!$A97,Bzg!$A$1:$FC$1,0)))*'2'!$B97,1))),".") -> 7.3 | M97: =IFERROR((IF($A97>Impressum!$C$13,"...",ROUND(100/(INDEX(Bzg!$A$1:$FC$438,MATCH(Strg!$H$5,Bzg!$A$1:$A$438,0),MATCH('2'!$A97,Bzg!$A$1:$FC$1,0)))*'2'!$H97,1))),".") -> 2.6
A98: 2014-02-01 | B98: =INDEX('roh2-3'!$A$1:$FE$3927,MATCH(Strg!$H$5&"Insgesamt"&IF(Strg!$A$5=1,"Insgesamt",IF(Strg!$A$5=2,"III,SGB III","II,SGB II")),'roh2-3'!$B$1:$B$3927&'roh2-3'!$D$1:$D$3927&'roh2-3'!$A$1:$A$3927,0),MATCH('2'!$A98,'roh2-3'!$A$1:$FE$1,0)) -> 3137867 | C98: =IFERROR((IF($A98>Impressum!$C$13,"...",B98-B86)),".") -> -18379 | D98: =IF($A98>Impressum!$C$13,"-",IFERROR(IF(OR(100/B86*(B98-B86)>250,100/B86*(B98-B86)<-250),".X",100/B86*(B98-B86)),"X")) -> -0.5823056885 | E98: =INDEX('roh2-3'!$A$1:$FE$3927,MATCH(Strg!$H$5&"N,Nicht Langzeitarbeitslos"&IF(Strg!$A$5=1,"Insgesamt",IF(Strg!$A$5=2,"III,SGB III","II,SGB II")),'roh2-3'!$B$1:$B$3927&'roh2-3'!$D$1:$D$3927&'roh2-3'!$A$1:$A$3927,0),MATCH('2'!$A98,'roh2-3'!$A$1:$FE$1,0)) -> 2038181 | F98: =IFERROR((IF($A98>Impressum!$C$13,"...",E98-E86)),".") -> -35973 | G98: =IF($A98>Impressum!$C$13,"-",IFERROR(IF(OR(100/E86*(E98-E86)>250,100/E86*(E98-E86)<-250),".X",100/E86*(E98-E86)),"X")) -> -1.734345666 | H98: =INDEX('roh2-3'!$A$1:$FE$3927,MATCH(Strg!$H$5&"J,Langzeitarbeitslos"&IF(Strg!$A$5=1,"Insgesamt",IF(Strg!$A$5=2,"III,SGB III","II,SGB II")),'roh2-3'!$B$1:$B$3927&'roh2-3'!$D$1:$D$3927&'roh2-3'!$A$1:$A$3927,0),MATCH('2'!$A98,'roh2-3'!$A$1:$FE$1,0)) -> 1099686 | I98: =IFERROR((IF($A98>Impressum!$C$13,"...",H98-H86)),".") -> 17594 | J98: =IF($A98>Impressum!$C$13,"-",IFERROR(IF(OR(100/H86*(H98-H86)>250,100/H86*(H98-H86)<-250),".X",100/H86*(H98-H86)),"X")) -> 1.625924598 | K98: =IF($A98>Impressum!$C$13,"-",IFERROR(100/B98*H98,"X")) -> 35.04565362 | L98: =IFERROR((IF($A98>Impressum!$C$13,"...",ROUND(100/(INDEX(Bzg!$A$1:$FC$438,MATCH(Strg!$H$5,Bzg!$A$1:$A$438,0),MATCH('2'!$A98,Bzg!$A$1:$FC$1,0)))*'2'!$B98,1))),".") -> 7.3 | M98: =IFERROR((IF($A98>Impressum!$C$13,"...",ROUND(100/(INDEX(Bzg!$A$1:$FC$438,MATCH(Strg!$H$5,Bzg!$A$1:$A$438,0),MATCH('2'!$A98,Bzg!$A$1:$FC$1,0)))*'2'!$H98,1))),".") -> 2.5
A99: 2014-03-01 | B99: =INDEX('roh2-3'!$A$1:$FE$3927,MATCH(Strg!$H$5&"Insgesamt"&IF(Strg!$A$5=1,"Insgesamt",IF(Strg!$A$5=2,"III,SGB III","II,SGB II")),'roh2-3'!$B$1:$B$3927&'roh2-3'!$D$1:$D$3927&'roh2-3'!$A$1:$A$3927,0),MATCH('2'!$A99,'roh2-3'!$A$1:$FE$1,0)) -> 3054722 | C99: =IFERROR((IF($A99>Impressum!$C$13,"...",B99-B87)),".") -> -43095 | D99: =IF($A99>Impressum!$C$13,"-",IFERROR(IF(OR(100/B87*(B99-B87)>250,100/B87*(B99-B87)<-250),".X",100/B87*(B99-B87)),"X")) -> -1.391140923 | E99: =INDEX('roh2-3'!$A$1:$FE$3927,MATCH(Strg!$H$5&"N,Nicht Langzeitarbeitslos"&IF(Strg!$A$5=1,"Insgesamt",IF(Strg!$A$5=2,"III,SGB III","II,SGB II")),'roh2-3'!$B$1:$B$3927&'roh2-3'!$D$1:$D$3927&'roh2-3'!$A$1:$A$3927,0),MATCH('2'!$A99,'roh2-3'!$A$1:$FE$1,0)) -> 1957855 | F99: =IFERROR((IF($A99>Impressum!$C$13,"...",E99-E87)),".") -> -62434 | G99: =IF($A99>Impressum!$C$13,"-",IFERROR(IF(OR(100/E87*(E99-E87)>250,100/E87*(E99-E87)<-250),".X",100/E87*(E99-E87)),"X")) -> -3.090349945 | H99: =INDEX('roh2-3'!$A$1:$FE$3927,MATCH(Strg!$H$5&"J,Langzeitarbeitslos"&IF(Strg!$A$5=1,"Insgesamt",IF(Strg!$A$5=2,"III,SGB III","II,SGB II")),'roh2-3'!$B$1:$B$3927&'roh2-3'!$D$1:$D$3927&'roh2-3'!$A$1:$A$3927,0),MATCH('2'!$A99,'roh2-3'!$A$1:$FE$1,0)) -> 1096867 | I99: =IFERROR((IF($A99>Impressum!$C$13,"...",H99-H87)),".") -> 19339 | J99: =IF($A99>Impressum!$C$13,"-",IFERROR(IF(OR(100/H87*(H99-H87)>250,100/H87*(H99-H87)<-250),".X",100/H87*(H99-H87)),"X")) -> 1.794756146 | K99: =IF($A99>Impressum!$C$13,"-",IFERROR(100/B99*H99,"X")) -> 35.90726096 | L99: =IFERROR((IF($A99>Impressum!$C$13,"...",ROUND(100/(INDEX(Bzg!$A$1:$FC$438,MATCH(Strg!$H$5,Bzg!$A$1:$A$438,0),MATCH('2'!$A99,Bzg!$A$1:$FC$1,0)))*'2'!$B99,1))),".") -> 7.1 | M99: =IFERROR((IF($A99>Impressum!$C$13,"...",ROUND(100/(INDEX(Bzg!$A$1:$FC$438,MATCH(Strg!$H$5,Bzg!$A$1:$A$438,0),MATCH('2'!$A99,Bzg!$A$1:$FC$1,0)))*'2'!$H99,1))),".") -> 2.5
A100: 2014-04-01 | B100: =INDEX('roh2-3'!$A$1:$FE$3927,MATCH(Strg!$H$5&"Insgesamt"&IF(Strg!$A$5=1,"Insgesamt",IF(Strg!$A$5=2,"III,SGB III","II,SGB II")),'roh2-3'!$B$1:$B$3927&'roh2-3'!$D$1:$D$3927&'roh2-3'!$A$1:$A$3927,0),MATCH('2'!$A100,'roh2-3'!$A$1:$FE$1,0)) -> 2943335 | C100: =IFERROR((IF($A100>Impressum!$C$13,"...",B100-B88)),".") -> -76940 | D100: =IF($A100>Impressum!$C$13,"-",IFERROR(IF(OR(100/B88*(B100-B88)>250,100/B88*(B100-B88)<-250),".X",100/B88*(B100-B88)),"X")) -> -2.547450149 | E100: =INDEX('roh2-3'!$A$1:$FE$3927,MATCH(Strg!$H$5&"N,Nicht Langzeitarbeitslos"&IF(Strg!$A$5=1,"Insgesamt",IF(Strg!$A$5=2,"III,SGB III","II,SGB II")),'roh2-3'!$B$1:$B$3927&'roh2-3'!$D$1:$D$3927&'roh2-3'!$A$1:$A$3927,0),MATCH('2'!$A100,'roh2-3'!$A$1:$FE$1,0)) -> 1853418 | F100: =IFERROR((IF($A100>Impressum!$C$13,"...",E100-E88)),".") -> -87673 | G100: =IF($A100>Impressum!$C$13,"-",IFERROR(IF(OR(100/E88*(E100-E88)>250,100/E88*(E100-E88)<-250),".X",100/E88*(E100-E88)),"X")) -> -4.51668675 | H100: =INDEX('roh2-3'!$A$1:$FE$3927,MATCH(Strg!$H$5&"J,Langzeitarbeitslos"&IF(Strg!$A$5=1,"Insgesamt",IF(Strg!$A$5=2,"III,SGB III","II,SGB II")),'roh2-3'!$B$1:$B$3927&'roh2-3'!$D$1:$D$3927&'roh2-3'!$A$1:$A$3927,0),MATCH('2'!$A100,'roh2-3'!$A$1:$FE$1,0)) -> 1089917 | I100: =IFERROR((IF($A100>Impressum!$C$13,"...",H100-H88)),".") -> 10733 | J100: =IF($A100>Impressum!$C$13,"-",IFERROR(IF(OR(100/H88*(H100-H88)>250,100/H88*(H100-H88)<-250),".X",100/H88*(H100-H88)),"X")) -> 0.9945477324 | K100: =IF($A100>Impressum!$C$13,"-",IFERROR(100/B100*H100,"X")) -> 37.03000168 | L100: =IFERROR((IF($A100>Impressum!$C$13,"...",ROUND(100/(INDEX(Bzg!$A$1:$FC$438,MATCH(Strg!$H$5,Bzg!$A$1:$A$438,0),MATCH('2'!$A100,Bzg!$A$1:$FC$1,0)))*'2'!$B100,1))),".") -> 6.8 | M100: =IFERROR((IF($A100>Impressum!$C$13,"...",ROUND(100/(INDEX(Bzg!$A$1:$FC$438,MATCH(Strg!$H$5,Bzg!$A$1:$A$438,0),MATCH('2'!$A100,Bzg!$A$1:$FC$1,0)))*'2'!$H100,1))),".") -> 2.5
A101: 2014-05-01 | B101: =INDEX('roh2-3'!$A$1:$FE$3927,MATCH(Strg!$H$5&"Insgesamt"&IF(Strg!$A$5=1,"Insgesamt",IF(Strg!$A$5=2,"III,SGB III","II,SGB II")),'roh2-3'!$B$1:$B$3927&'roh2-3'!$D$1:$D$3927&'roh2-3'!$A$1:$A$3927,0),MATCH('2'!$A101,'roh2-3'!$A$1:$FE$1,0)) -> 2882029 | C101: =IFERROR((IF($A101>Impressum!$C$13,"...",B101-B89)),".") -> -54886 | D101: =IF($A101>Impressum!$C$13,"-",IFERROR(IF(OR(100/B89*(B101-B89)>250,100/B89*(B101-B89)<-250),".X",100/B89*(B101-B89)),"X")) -> -1.86883175 | E101: =INDEX('roh2-3'!$A$1:$FE$3927,MATCH(Strg!$H$5&"N,Nicht Langzeitarbeitslos"&IF(Strg!$A$5=1,"Insgesamt",IF(Strg!$A$5=2,"III,SGB III","II,SGB II")),'roh2-3'!$B$1:$B$3927&'roh2-3'!$D$1:$D$3927&'roh2-3'!$A$1:$A$3927,0),MATCH('2'!$A101,'roh2-3'!$A$1:$FE$1,0)) -> 1792827 | F101: =IFERROR((IF($A101>Impressum!$C$13,"...",E101-E89)),".") -> -67509 | G101: =IF($A101>Impressum!$C$13,"-",IFERROR(IF(OR(100/E89*(E101-E89)>250,100/E89*(E101-E89)<-250),".X",100/E89*(E101-E89)),"X")) -> -3.628860593 | H101: =INDEX('roh2-3'!$A$1:$FE$3927,MATCH(Strg!$H$5&"J,Langzeitarbeitslos"&IF(Strg!$A$5=1,"Insgesamt",IF(Strg!$A$5=2,"III,SGB III","II,SGB II")),'roh2-3'!$B$1:$B$3927&'roh2-3'!$D$1:$D$3927&'roh2-3'!$A$1:$A$3927,0),MATCH('2'!$A101,'roh2-3'!$A$1:$FE$1,0)) -> 1089202 | I101: =IFERROR((IF($A101>Impressum!$C$13,"...",H101-H89)),".") -> 12623 | J101: =IF($A101>Impressum!$C$13,"-",IFERROR(IF(OR(100/H89*(H101-H89)>250,100/H89*(H101-H89)<-250),".X",100/H89*(H101-H89)),"X")) -> 1.172510331 | K101: =IF($A101>Impressum!$C$13,"-",IFERROR(100/B101*H101,"X")) -> 37.79288827 | L101: =IFERROR((IF($A101>Impressum!$C$13,"...",ROUND(100/(INDEX(Bzg!$A$1:$FC$438,MATCH(Strg!$H$5,Bzg!$A$1:$A$438,0),MATCH('2'!$A101,Bzg!$A$1:$FC$1,0)))*'2'!$B101,1))),".") -> 6.6 | M101: =IFERROR((IF($A101>Impressum!$C$13,"...",ROUND(100/(INDEX(Bzg!$A$1:$FC$438,MATCH(Strg!$H$5,Bzg!$A$1:$A$438,0),MATCH('2'!$A101,Bzg!$A$1:$FC$1,0)))*'2'!$H101,1))),".") -> 2.5
A102: 2014-06-01 | B102: =INDEX('roh2-3'!$A$1:$FE$3927,MATCH(Strg!$H$5&"Insgesamt"&IF(Strg!$A$5=1,"Insgesamt",IF(Strg!$A$5=2,"III,SGB III","II,SGB II")),'roh2-3'!$B$1:$B$3927&'roh2-3'!$D$1:$D$3927&'roh2-3'!$A$1:$A$3927,0),MATCH('2'!$A102,'roh2-3'!$A$1:$FE$1,0)) -> 2832780 | C102: =IFERROR((IF($A102>Impressum!$C$13,"...",B102-B90)),".") -> -31886 | D102: =IF($A102>Impressum!$C$13,"-",IFERROR(IF(OR(100/B90*(B102-B90)>250,100/B90*(B102-B90)<-250),".X",100/B90*(B102-B90)),"X")) -> -1.113079151 | E102: =INDEX('roh2-3'!$A$1:$FE$3927,MATCH(Strg!$H$5&"N,Nicht Langzeitarbeitslos"&IF(Strg!$A$5=1,"Insgesamt",IF(Strg!$A$5=2,"III,SGB III","II,SGB II")),'roh2-3'!$B$1:$B$3927&'roh2-3'!$D$1:$D$3927&'roh2-3'!$A$1:$A$3927,0),MATCH('2'!$A102,'roh2-3'!$A$1:$FE$1,0)) -> 1752236 | F102: =IFERROR((IF($A102>Impressum!$C$13,"...",E102-E90)),".") -> -50021 | G102: =IF($A102>Impressum!$C$13,"-",IFERROR(IF(OR(100/E90*(E102-E90)>250,100/E90*(E102-E90)<-250),".X",100/E90*(E102-E90)),"X")) -> -2.775464321 | H102: =INDEX('roh2-3'!$A$1:$FE$3927,MATCH(Strg!$H$5&"J,Langzeitarbeitslos"&IF(Strg!$A$5=1,"Insgesamt",IF(Strg!$A$5=2,"III,SGB III","II,SGB II")),'roh2-3'!$B$1:$B$3927&'roh2-3'!$D$1:$D$3927&'roh2-3'!$A$1:$A$3927,0),MATCH('2'!$A102,'roh2-3'!$A$1:$FE$1,0)) -> 1080544 | I102: =IFERROR((IF($A102>Impressum!$C$13,"...",H102-H90)),".") -> 18135 | J102: =IF($A102>Impressum!$C$13,"-",IFERROR(IF(OR(100/H90*(H102-H90)>250,100/H90*(H102-H90)<-250),".X",100/H90*(H102-H90)),"X")) -> 1.706969726 | K102: =IF($A102>Impressum!$C$13,"-",IFERROR(100/B102*H102,"X")) -> 38.14429642 | L102: =IFERROR((IF($A102>Impressum!$C$13,"...",ROUND(100/(INDEX(Bzg!$A$1:$FC$438,MATCH(Strg!$H$5,Bzg!$A$1:$A$438,0),MATCH('2'!$A102,Bzg!$A$1:$FC$1,0)))*'2'!$B102,1))),".") -> 6.5 | M102: =IFERROR((IF($A102>Impressum!$C$13,"...",ROUND(100/(INDEX(Bzg!$A$1:$FC$438,MATCH(Strg!$H$5,Bzg!$A$1:$A$438,0),MATCH('2'!$A102,Bzg!$A$1:$FC$1,0)))*'2'!$H102,1))),".") -> 2.5
A103: 2014-07-01 | B103: =INDEX('roh2-3'!$A$1:$FE$3927,MATCH(Strg!$H$5&"Insgesamt"&IF(Strg!$A$5=1,"Insgesamt",IF(Strg!$A$5=2,"III,SGB III","II,SGB II")),'roh2-3'!$B$1:$B$3927&'roh2-3'!$D$1:$D$3927&'roh2-3'!$A$1:$A$3927,0),MATCH('2'!$A103,'roh2-3'!$A$1:$FE$1,0)) -> 2871351 | C103: =IFERROR((IF($A103>Impressum!$C$13,"...",B103-B91)),".") -> -42745 | D103: =IF($A103>Impressum!$C$13,"-",IFERROR(IF(OR(100/B91*(B103-B91)>250,100/B91*(B103-B91)<-250),".X",100/B91*(B103-B91)),"X")) -> -1.466835684 | E103: =INDEX('roh2-3'!$A$1:$FE$3927,MATCH(Strg!$H$5&"N,Nicht Langzeitarbeitslos"&IF(Strg!$A$5=1,"Insgesamt",IF(Strg!$A$5=2,"III,SGB III","II,SGB II")),'roh2-3'!$B$1:$B$3927&'roh2-3'!$D$1:$D$3927&'roh2-3'!$A$1:$A$3927,0),MATCH('2'!$A103,'roh2-3'!$A$1:$FE$1,0)) -> 1786354 | F103: =IFERROR((IF($A103>Impressum!$C$13,"...",E103-E91)),".") -> -61465 | G103: =IF($A103>Impressum!$C$13,"-",IFERROR(IF(OR(100/E91*(E103-E91)>250,100/E91*(E103-E91)<-250),".X",100/E91*(E103-E91)),"X")) -> -3.326353934 | H103: =INDEX('roh2-3'!$A$1:$FE$3927,MATCH(Strg!$H$5&"J,Langzeitarbeitslos"&IF(Strg!$A$5=1,"Insgesamt",IF(Strg!$A$5=2,"III,SGB III","II,SGB II")),'roh2-3'!$B$1:$B$3927&'roh2-3'!$D$1:$D$3927&'roh2-3'!$A$1:$A$3927,0),MATCH('2'!$A103,'roh2-3'!$A$1:$FE$1,0)) -> 1084997 | I103: =IFERROR((IF($A103>Impressum!$C$13,"...",H103-H91)),".") -> 18720 | J103: =IF($A103>Impressum!$C$13,"-",IFERROR(IF(OR(100/H91*(H103-H91)>250,100/H91*(H103-H91)<-250),".X",100/H91*(H103-H91)),"X")) -> 1.755641358 | K103: =IF($A103>Impressum!$C$13,"-",IFERROR(100/B103*H103,"X")) -> 37.78698599 | L103: =IFERROR((IF($A103>Impressum!$C$13,"...",ROUND(100/(INDEX(Bzg!$A$1:$FC$438,MATCH(Strg!$H$5,Bzg!$A$1:$A$438,0),MATCH('2'!$A103,Bzg!$A$1:$FC$1,0)))*'2'!$B103,1))),".") -> 6.6 | M103: =IFERROR((IF($A103>Impressum!$C$13,"...",ROUND(100/(INDEX(Bzg!$A$1:$FC$438,MATCH(Strg!$H$5,Bzg!$A$1:$A$438,0),MATCH('2'!$A103,Bzg!$A$1:$FC$1,0)))*'2'!$H103,1))),".") -> 2.5
A104: 2014-08-01 | B104: =INDEX('roh2-3'!$A$1:$FE$3927,MATCH(Strg!$H$5&"Insgesamt"&IF(Strg!$A$5=1,"Insgesamt",IF(Strg!$A$5=2,"III,SGB III","II,SGB II")),'roh2-3'!$B$1:$B$3927&'roh2-3'!$D$1:$D$3927&'roh2-3'!$A$1:$A$3927,0),MATCH('2'!$A104,'roh2-3'!$A$1:$FE$1,0)) -> 2901823 | C104: =IFERROR((IF($A104>Impressum!$C$13,"...",B104-B92)),".") -> -43887 | D104: =IF($A104>Impressum!$C$13,"-",IFERROR(IF(OR(100/B92*(B104-B92)>250,100/B92*(B104-B92)<-250),".X",100/B92*(B104-B92)),"X")) -> -1.489861527 | E104: =INDEX('roh2-3'!$A$1:$FE$3927,MATCH(Strg!$H$5&"N,Nicht Langzeitarbeitslos"&IF(Strg!$A$5=1,"Insgesamt",IF(Strg!$A$5=2,"III,SGB III","II,SGB II")),'roh2-3'!$B$1:$B$3927&'roh2-3'!$D$1:$D$3927&'roh2-3'!$A$1:$A$3927,0),MATCH('2'!$A104,'roh2-3'!$A$1:$FE$1,0)) -> 1824459 | F104: =IFERROR((IF($A104>Impressum!$C$13,"...",E104-E92)),".") -> -51199 | G104: =IF($A104>Impressum!$C$13,"-",IFERROR(IF(OR(100/E92*(E104-E92)>250,100/E92*(E104-E92)<-250),".X",100/E92*(E104-E92)),"X")) -> -2.729655406 | H104: =INDEX('roh2-3'!$A$1:$FE$3927,MATCH(Strg!$H$5&"J,Langzeitarbeitslos"&IF(Strg!$A$5=1,"Insgesamt",IF(Strg!$A$5=2,"III,SGB III","II,SGB II")),'roh2-3'!$B$1:$B$3927&'roh2-3'!$D$1:$D$3927&'roh2-3'!$A$1:$A$3927,0),MATCH('2'!$A104,'roh2-3'!$A$1:$FE$1,0)) -> 1077364 | I104: =IFERROR((IF($A104>Impressum!$C$13,"...",H104-H92)),".") -> 7312 | J104: =IF($A104>Impressum!$C$13,"-",IFERROR(IF(OR(100/H92*(H104-H92)>250,100/H92*(H104-H92)<-250),".X",100/H92*(H104-H92)),"X")) -> 0.6833312774 | K104: =IF($A104>Impressum!$C$13,"-",IFERROR(100/B104*H104,"X")) -> 37.12714387 | L104: =IFERROR((IF($A104>Impressum!$C$13,"...",ROUND(100/(INDEX(Bzg!$A$1:$FC$438,MATCH(Strg!$H$5,Bzg!$A$1:$A$438,0),MATCH('2'!$A104,Bzg!$A$1:$FC$1,0)))*'2'!$B104,1))),".") -> 6.7 | M104: =IFERROR((IF($A104>Impressum!$C$13,"...",ROUND(100/(INDEX(Bzg!$A$1:$FC$438,MATCH(Strg!$H$5,Bzg!$A$1:$A$438,0),MATCH('2'!$A104,Bzg!$A$1:$FC$1,0)))*'2'!$H104,1))),".") -> 2.5
A105: 2014-09-01 | B105: =INDEX('roh2-3'!$A$1:$FE$3927,MATCH(Strg!$H$5&"Insgesamt"&IF(Strg!$A$5=1,"Insgesamt",IF(Strg!$A$5=2,"III,SGB III","II,SGB II")),'roh2-3'!$B$1:$B$3927&'roh2-3'!$D$1:$D$3927&'roh2-3'!$A$1:$A$3927,0),MATCH('2'!$A105,'roh2-3'!$A$1:$FE$1,0)) -> 2807806 | C105: =IFERROR((IF($A105>Impressum!$C$13,"...",B105-B93)),".") -> -41144 | D105: =IF($A105>Impressum!$C$13,"-",IFERROR(IF(OR(100/B93*(B105-B93)>250,100/B93*(B105-B93)<-250),".X",100/B93*(B105-B93)),"X")) -> -1.44418119 | E105: =INDEX('roh2-3'!$A$1:$FE$3927,MATCH(Strg!$H$5&"N,Nicht Langzeitarbeitslos"&IF(Strg!$A$5=1,"Insgesamt",IF(Strg!$A$5=2,"III,SGB III","II,SGB II")),'roh2-3'!$B$1:$B$3927&'roh2-3'!$D$1:$D$3927&'roh2-3'!$A$1:$A$3927,0),MATCH('2'!$A105,'roh2-3'!$A$1:$FE$1,0)) -> 1745049 | F105: =IFERROR((IF($A105>Impressum!$C$13,"...",E105-E93)),".") -> -44574 | G105: =IF($A105>Impressum!$C$13,"-",IFERROR(IF(OR(100/E93*(E105-E93)>250,100/E93*(E105-E93)<-250),".X",100/E93*(E105-E93)),"X")) -> -2.490692174 | H105: =INDEX('roh2-3'!$A$1:$FE$3927,MATCH(Strg!$H$5&"J,Langzeitarbeitslos"&IF(Strg!$A$5=1,"Insgesamt",IF(Strg!$A$5=2,"III,SGB III","II,SGB II")),'roh2-3'!$B$1:$B$3927&'roh2-3'!$D$1:$D$3927&'roh2-3'!$A$1:$A$3927,0),MATCH('2'!$A105,'roh2-3'!$A$1:$FE$1,0)) -> 1062757 | I105: =IFERROR((IF($A105>Impressum!$C$13,"...",H105-H93)),".") -> 3430 | J105: =IF($A105>Impressum!$C$13,"-",IFERROR(IF(OR(100/H93*(H105-H93)>250,100/H93*(H105-H93)<-250),".X",100/H93*(H105-H93)),"X")) -> 0.3237904821 | K105: =IF($A105>Impressum!$C$13,"-",IFERROR(100/B105*H105,"X")) -> 37.85008651 | L105: =IFERROR((IF($A105>Impressum!$C$13,"...",ROUND(100/(INDEX(Bzg!$A$1:$FC$438,MATCH(Strg!$H$5,Bzg!$A$1:$A$438,0),MATCH('2'!$A105,Bzg!$A$1:$FC$1,0)))*'2'!$B105,1))),".") -> 6.5 | M105: =IFERROR((IF($A105>Impressum!$C$13,"...",ROUND(100/(INDEX(Bzg!$A$1:$FC$438,MATCH(Strg!$H$5,Bzg!$A$1:$A$438,0),MATCH('2'!$A105,Bzg!$A$1:$FC$1,0)))*'2'!$H105,1))),".") -> 2.4
A106: 2014-10-01 | B106: =INDEX('roh2-3'!$A$1:$FE$3927,MATCH(Strg!$H$5&"Insgesamt"&IF(Strg!$A$5=1,"Insgesamt",IF(Strg!$A$5=2,"III,SGB III","II,SGB II")),'roh2-3'!$B$1:$B$3927&'roh2-3'!$D$1:$D$3927&'roh2-3'!$A$1:$A$3927,0),MATCH('2'!$A106,'roh2-3'!$A$1:$FE$1,0)) -> 2732769 | C106: =IFERROR((IF($A106>Impressum!$C$13,"...",B106-B94)),".") -> -68422 | D106: =IF($A106>Impressum!$C$13,"-",IFERROR(IF(OR(100/B94*(B106-B94)>250,100/B94*(B106-B94)<-250),".X",100/B94*(B106-B94)),"X")) -> -2.442603878 | E106: =INDEX('roh2-3'!$A$1:$FE$3927,MATCH(Strg!$H$5&"N,Nicht Langzeitarbeitslos"&IF(Strg!$A$5=1,"Insgesamt",IF(Strg!$A$5=2,"III,SGB III","II,SGB II")),'roh2-3'!$B$1:$B$3927&'roh2-3'!$D$1:$D$3927&'roh2-3'!$A$1:$A$3927,0),MATCH('2'!$A106,'roh2-3'!$A$1:$FE$1,0)) -> 1678308 | F106: =IFERROR((IF($A106>Impressum!$C$13,"...",E106-E94)),".") -> -62480 | G106: =IF($A106>Impressum!$C$13,"-",IFERROR(IF(OR(100/E94*(E106-E94)>250,100/E94*(E106-E94)<-250),".X",100/E94*(E106-E94)),"X")) -> -3.589179153 | H106: =INDEX('roh2-3'!$A$1:$FE$3927,MATCH(Strg!$H$5&"J,Langzeitarbeitslos"&IF(Strg!$A$5=1,"Insgesamt",IF(Strg!$A$5=2,"III,SGB III","II,SGB II")),'roh2-3'!$B$1:$B$3927&'roh2-3'!$D$1:$D$3927&'roh2-3'!$A$1:$A$3927,0),MATCH('2'!$A106,'roh2-3'!$A$1:$FE$1,0)) -> 1054461 | I106: =IFERROR((IF($A106>Impressum!$C$13,"...",H106-H94)),".") -> -5942 | J106: =IF($A106>Impressum!$C$13,"-",IFERROR(IF(OR(100/H94*(H106-H94)>250,100/H94*(H106-H94)<-250),".X",100/H94*(H106-H94)),"X")) -> -0.5603529979 | K106: =IF($A106>Impressum!$C$13,"-",IFERROR(100/B106*H106,"X")) -> 38.58580802 | L106: =IFERROR((IF($A106>Impressum!$C$13,"...",ROUND(100/(INDEX(Bzg!$A$1:$FC$438,MATCH(Strg!$H$5,Bzg!$A$1:$A$438,0),MATCH('2'!$A106,Bzg!$A$1:$FC$1,0)))*'2'!$B106,1))),".") -> 6.3 | M106: =IFERROR((IF($A106>Impressum!$C$13,"...",ROUND(100/(INDEX(Bzg!$A$1:$FC$438,MATCH(Strg!$H$5,Bzg!$A$1:$A$438,0),MATCH('2'!$A106,Bzg!$A$1:$FC$1,0)))*'2'!$H106,1))),".") -> 2.4
A107: 2014-11-01 | B107: =INDEX('roh2-3'!$A$1:$FE$3927,MATCH(Strg!$H$5&"Insgesamt"&IF(Strg!$A$5=1,"Insgesamt",IF(Strg!$A$5=2,"III,SGB III","II,SGB II")),'roh2-3'!$B$1:$B$3927&'roh2-3'!$D$1:$D$3927&'roh2-3'!$A$1:$A$3927,0),MATCH('2'!$A107,'roh2-3'!$A$1:$FE$1,0)) -> 2716852 | C107: =IFERROR((IF($A107>Impressum!$C$13,"...",B107-B95)),".") -> -89294 | D107: =IF($A107>Impressum!$C$13,"-",IFERROR(IF(OR(100/B95*(B107-B95)>250,100/B95*(B107-B95)<-250),".X",100/B95*(B107-B95)),"X")) -> -3.182086748 | E107: =INDEX('roh2-3'!$A$1:$FE$3927,MATCH(Strg!$H$5&"N,Nicht Langzeitarbeitslos"&IF(Strg!$A$5=1,"Insgesamt",IF(Strg!$A$5=2,"III,SGB III","II,SGB II")),'roh2-3'!$B$1:$B$3927&'roh2-3'!$D$1:$D$3927&'roh2-3'!$A$1:$A$3927,0),MATCH('2'!$A107,'roh2-3'!$A$1:$FE$1,0)) -> 1675834 | F107: =IFERROR((IF($A107>Impressum!$C$13,"...",E107-E95)),".") -> -74462 | G107: =IF($A107>Impressum!$C$13,"-",IFERROR(IF(OR(100/E95*(E107-E95)>250,100/E95*(E107-E95)<-250),".X",100/E95*(E107-E95)),"X")) -> -4.254251852 | H107: =INDEX('roh2-3'!$A$1:$FE$3927,MATCH(Strg!$H$5&"J,Langzeitarbeitslos"&IF(Strg!$A$5=1,"Insgesamt",IF(Strg!$A$5=2,"III,SGB III","II,SGB II")),'roh2-3'!$B$1:$B$3927&'roh2-3'!$D$1:$D$3927&'roh2-3'!$A$1:$A$3927,0),MATCH('2'!$A107,'roh2-3'!$A$1:$FE$1,0)) -> 1041018 | I107: =IFERROR((IF($A107>Impressum!$C$13,"...",H107-H95)),".") -> -14832 | J107: =IF($A107>Impressum!$C$13,"-",IFERROR(IF(OR(100/H95*(H107-H95)>250,100/H95*(H107-H95)<-250),".X",100/H95*(H107-H95)),"X")) -> -1.404744992 | K107: =IF($A107>Impressum!$C$13,"-",IFERROR(100/B107*H107,"X")) -> 38.31706696 | L107: =IFERROR((IF($A107>Impressum!$C$13,"...",ROUND(100/(INDEX(Bzg!$A$1:$FC$438,MATCH(Strg!$H$5,Bzg!$A$1:$A$438,0),MATCH('2'!$A107,Bzg!$A$1:$FC$1,0)))*'2'!$B107,1))),".") -> 6.3 | M107: =IFERROR((IF($A107>Impressum!$C$13,"...",ROUND(100/(INDEX(Bzg!$A$1:$FC$438,MATCH(Strg!$H$5,Bzg!$A$1:$A$438,0),MATCH('2'!$A107,Bzg!$A$1:$FC$1,0)))*'2'!$H107,1))),".") -> 2.4
A108: 2014-12-01 | B108: =INDEX('roh2-3'!$A$1:$FE$3927,MATCH(Strg!$H$5&"Insgesamt"&IF(Strg!$A$5=1,"Insgesamt",IF(Strg!$A$5=2,"III,SGB III","II,SGB II")),'roh2-3'!$B$1:$B$3927&'roh2-3'!$D$1:$D$3927&'roh2-3'!$A$1:$A$3927,0),MATCH('2'!$A108,'roh2-3'!$A$1:$FE$1,0)) -> 2763521 | C108: =IFERROR((IF($A108>Impressum!$C$13,"...",B108-B96)),".") -> -110285 | D108: =IF($A108>Impressum!$C$13,"-",IFERROR(IF(OR(100/B96*(B108-B96)>250,100/B96*(B108-B96)<-250),".X",100/B96*(B108-B96)),"X")) -> -3.837593769 | E108: =INDEX('roh2-3'!$A$1:$FE$3927,MATCH(Strg!$H$5&"N,Nicht Langzeitarbeitslos"&IF(Strg!$A$5=1,"Insgesamt",IF(Strg!$A$5=2,"III,SGB III","II,SGB II")),'roh2-3'!$B$1:$B$3927&'roh2-3'!$D$1:$D$3927&'roh2-3'!$A$1:$A$3927,0),MATCH('2'!$A108,'roh2-3'!$A$1:$FE$1,0)) -> 1726215 | F108: =IFERROR((IF($A108>Impressum!$C$13,"...",E108-E96)),".") -> -85107 | G108: =IF($A108>Impressum!$C$13,"-",IFERROR(IF(OR(100/E96*(E108-E96)>250,100/E96*(E108-E96)<-250),".X",100/E96*(E108-E96)),"X")) -> -4.698612395 | H108: =INDEX('roh2-3'!$A$1:$FE$3927,MATCH(Strg!$H$5&"J,Langzeitarbeitslos"&IF(Strg!$A$5=1,"Insgesamt",IF(Strg!$A$5=2,"III,SGB III","II,SGB II")),'roh2-3'!$B$1:$B$3927&'roh2-3'!$D$1:$D$3927&'roh2-3'!$A$1:$A$3927,0),MATCH('2'!$A108,'roh2-3'!$A$1:$FE$1,0)) -> 1037306 | I108: =IFERROR((IF($A108>Impressum!$C$13,"...",H108-H96)),".") -> -25178 | J108: =IF($A108>Impressum!$C$13,"-",IFERROR(IF(OR(100/H96*(H108-H96)>250,100/H96*(H108-H96)<-250),".X",100/H96*(H108-H96)),"X")) -> -2.369729803 | K108: =IF($A108>Impressum!$C$13,"-",IFERROR(100/B108*H108,"X")) -> 37.53566555 | L108: =IFERROR((IF($A108>Impressum!$C$13,"...",ROUND(100/(INDEX(Bzg!$A$1:$FC$438,MATCH(Strg!$H$5,Bzg!$A$1:$A$438,0),MATCH('2'!$A108,Bzg!$A$1:$FC$1,0)))*'2'!$B108,1))),".") -> 6.4 | M108: =IFERROR((IF($A108>Impressum!$C$13,"...",ROUND(100/(INDEX(Bzg!$A$1:$FC$438,MATCH(Strg!$H$5,Bzg!$A$1:$A$438,0),MATCH('2'!$A108,Bzg!$A$1:$FC$1,0)))*'2'!$H108,1))),".") -> 2.4
A109: 2015-01-01 | B109: =INDEX('roh2-3'!$A$1:$FE$3927,MATCH(Strg!$H$5&"Insgesamt"&IF(Strg!$A$5=1,"Insgesamt",IF(Strg!$A$5=2,"III,SGB III","II,SGB II")),'roh2-3'!$B$1:$B$3927&'roh2-3'!$D$1:$D$3927&'roh2-3'!$A$1:$A$3927,0),MATCH('2'!$A109,'roh2-3'!$A$1:$FE$1,0)) -> 3031604 | C109: =IFERROR((IF($A109>Impressum!$C$13,"...",B109-B97)),".") -> -104198 | D109: =IF($A109>Impressum!$C$13,"-",IFERROR(IF(OR(100/B97*(B109-B97)>250,100/B97*(B109-B97)<-250),".X",100/B97*(B109-B97)),"X")) -> -3.322850103 | E109: =INDEX('roh2-3'!$A$1:$FE$3927,MATCH(Strg!$H$5&"N,Nicht Langzeitarbeitslos"&IF(Strg!$A$5=1,"Insgesamt",IF(Strg!$A$5=2,"III,SGB III","II,SGB II")),'roh2-3'!$B$1:$B$3927&'roh2-3'!$D$1:$D$3927&'roh2-3'!$A$1:$A$3927,0),MATCH('2'!$A109,'roh2-3'!$A$1:$FE$1,0)) -> 1957705 | F109: =IFERROR((IF($A109>Impressum!$C$13,"...",E109-E97)),".") -> -71197 | G109: =IF($A109>Impressum!$C$13,"-",IFERROR(IF(OR(100/E97*(E109-E97)>250,100/E97*(E109-E97)<-250),".X",100/E97*(E109-E97)),"X")) -> -3.509139426 | H109: =INDEX('roh2-3'!$A$1:$FE$3927,MATCH(Strg!$H$5&"J,Langzeitarbeitslos"&IF(Strg!$A$5=1,"Insgesamt",IF(Strg!$A$5=2,"III,SGB III","II,SGB II")),'roh2-3'!$B$1:$B$3927&'roh2-3'!$D$1:$D$3927&'roh2-3'!$A$1:$A$3927,0),MATCH('2'!$A109,'roh2-3'!$A$1:$FE$1,0)) -> 1073899 | I109: =IFERROR((IF($A109>Impressum!$C$13,"...",H109-H97)),".") -> -33001 | J109: =IF($A109>Impressum!$C$13,"-",IFERROR(IF(OR(100/H97*(H109-H97)>250,100/H97*(H109-H97)<-250),".X",100/H97*(H109-H97)),"X")) -> -2.981389466 | K109: =IF($A109>Impressum!$C$13,"-",IFERROR(100/B109*H109,"X")) -> 35.423459 | L109: =IFERROR((IF($A109>Impressum!$C$13,"...",ROUND(100/(INDEX(Bzg!$A$1:$FC$438,MATCH(Strg!$H$5,Bzg!$A$1:$A$438,0),MATCH('2'!$A109,Bzg!$A$1:$FC$1,0)))*'2'!$B109,1))),".") -> 7 | M109: =IFERROR((IF($A109>Impressum!$C$13,"...",ROUND(100/(INDEX(Bzg!$A$1:$FC$438,MATCH(Strg!$H$5,Bzg!$A$1:$A$438,0),MATCH('2'!$A109,Bzg!$A$1:$FC$1,0)))*'2'!$H109,1))),".") -> 2.5
A110: 2015-02-01 | B110: =INDEX('roh2-3'!$A$1:$FE$3927,MATCH(Strg!$H$5&"Insgesamt"&IF(Strg!$A$5=1,"Insgesamt",IF(Strg!$A$5=2,"III,SGB III","II,SGB II")),'roh2-3'!$B$1:$B$3927&'roh2-3'!$D$1:$D$3927&'roh2-3'!$A$1:$A$3927,0),MATCH('2'!$A110,'roh2-3'!$A$1:$FE$1,0)) -> 3017003 | C110: =IFERROR((IF($A110>Impressum!$C$13,"...",B110-B98)),".") -> -120864 | D110: =IF($A110>Impressum!$C$13,"-",IFERROR(IF(OR(100/B98*(B110-B98)>250,100/B98*(B110-B98)<-250),".X",100/B98*(B110-B98)),"X")) -> -3.851788492 | E110: =INDEX('roh2-3'!$A$1:$FE$3927,MATCH(Strg!$H$5&"N,Nicht Langzeitarbeitslos"&IF(Strg!$A$5=1,"Insgesamt",IF(Strg!$A$5=2,"III,SGB III","II,SGB II")),'roh2-3'!$B$1:$B$3927&'roh2-3'!$D$1:$D$3927&'roh2-3'!$A$1:$A$3927,0),MATCH('2'!$A110,'roh2-3'!$A$1:$FE$1,0)) -> 1957163 | F110: =IFERROR((IF($A110>Impressum!$C$13,"...",E110-E98)),".") -> -81018 | G110: =IF($A110>Impressum!$C$13,"-",IFERROR(IF(OR(100/E98*(E110-E98)>250,100/E98*(E110-E98)<-250),".X",100/E98*(E110-E98)),"X")) -> -3.975014977 | H110: =INDEX('roh2-3'!$A$1:$FE$3927,MATCH(Strg!$H$5&"J,Langzeitarbeitslos"&IF(Strg!$A$5=1,"Insgesamt",IF(Strg!$A$5=2,"III,SGB III","II,SGB II")),'roh2-3'!$B$1:$B$3927&'roh2-3'!$D$1:$D$3927&'roh2-3'!$A$1:$A$3927,0),MATCH('2'!$A110,'roh2-3'!$A$1:$FE$1,0)) -> 1059840 | I110: =IFERROR((IF($A110>Impressum!$C$13,"...",H110-H98)),".") -> -39846 | J110: =IF($A110>Impressum!$C$13,"-",IFERROR(IF(OR(100/H98*(H110-H98)>250,100/H98*(H110-H98)<-250),".X",100/H98*(H110-H98)),"X")) -> -3.623397952 | K110: =IF($A110>Impressum!$C$13,"-",IFERROR(100/B110*H110,"X")) -> 35.1289011 | L110: =IFERROR((IF($A110>Impressum!$C$13,"...",ROUND(100/(INDEX(Bzg!$A$1:$FC$438,MATCH(Strg!$H$5,Bzg!$A$1:$A$438,0),MATCH('2'!$A110,Bzg!$A$1:$FC$1,0)))*'2'!$B110,1))),".") -> 6.9 | M110: =IFERROR((IF($A110>Impressum!$C$13,"...",ROUND(100/(INDEX(Bzg!$A$1:$FC$438,MATCH(Strg!$H$5,Bzg!$A$1:$A$438,0),MATCH('2'!$A110,Bzg!$A$1:$FC$1,0)))*'2'!$H110,1))),".") -> 2.4
A111: 2015-03-01 | B111: =INDEX('roh2-3'!$A$1:$FE$3927,MATCH(Strg!$H$5&"Insgesamt"&IF(Strg!$A$5=1,"Insgesamt",IF(Strg!$A$5=2,"III,SGB III","II,SGB II")),'roh2-3'!$B$1:$B$3927&'roh2-3'!$D$1:$D$3927&'roh2-3'!$A$1:$A$3927,0),MATCH('2'!$A111,'roh2-3'!$A$1:$FE$1,0)) -> 2931505 | C111: =IFERROR((IF($A111>Impressum!$C$13,"...",B111-B99)),".") -> -123217 | D111: =IF($A111>Impressum!$C$13,"-",IFERROR(IF(OR(100/B99*(B111-B99)>250,100/B99*(B111-B99)<-250),".X",100/B99*(B111-B99)),"X")) -> -4.033656745 | E111: =INDEX('roh2-3'!$A$1:$FE$3927,MATCH(Strg!$H$5&"N,Nicht Langzeitarbeitslos"&IF(Strg!$A$5=1,"Insgesamt",IF(Strg!$A$5=2,"III,SGB III","II,SGB II")),'roh2-3'!$B$1:$B$3927&'roh2-3'!$D$1:$D$3927&'roh2-3'!$A$1:$A$3927,0),MATCH('2'!$A111,'roh2-3'!$A$1:$FE$1,0)) -> 1882248 | F111: =IFERROR((IF($A111>Impressum!$C$13,"...",E111-E99)),".") -> -75607 | G111: =IF($A111>Impressum!$C$13,"-",IFERROR(IF(OR(100/E99*(E111-E99)>250,100/E99*(E111-E99)<-250),".X",100/E99*(E111-E99)),"X")) -> -3.861726226 | H111: =INDEX('roh2-3'!$A$1:$FE$3927,MATCH(Strg!$H$5&"J,Langzeitarbeitslos"&IF(Strg!$A$5=1,"Insgesamt",IF(Strg!$A$5=2,"III,SGB III","II,SGB II")),'roh2-3'!$B$1:$B$3927&'roh2-3'!$D$1:$D$3927&'roh2-3'!$A$1:$A$3927,0),MATCH('2'!$A111,'roh2-3'!$A$1:$FE$1,0)) -> 1049257 | I111: =IFERROR((IF($A111>Impressum!$C$13,"...",H111-H99)),".") -> -47610 | J111: =IF($A111>Impressum!$C$13,"-",IFERROR(IF(OR(100/H99*(H111-H99)>250,100/H99*(H111-H99)<-250),".X",100/H99*(H111-H99)),"X")) -> -4.340544478 | K111: =IF($A111>Impressum!$C$13,"-",IFERROR(100/B111*H111,"X")) -> 35.79243426 | L111: =IFERROR((IF($A111>Impressum!$C$13,"...",ROUND(100/(INDEX(Bzg!$A$1:$FC$438,MATCH(Strg!$H$5,Bzg!$A$1:$A$438,0),MATCH('2'!$A111,Bzg!$A$1:$FC$1,0)))*'2'!$B111,1))),".") -> 6.8 | M111: =IFERROR((IF($A111>Impressum!$C$13,"...",ROUND(100/(INDEX(Bzg!$A$1:$FC$438,MATCH(Strg!$H$5,Bzg!$A$1:$A$438,0),MATCH('2'!$A111,Bzg!$A$1:$FC$1,0)))*'2'!$H111,1))),".") -> 2.4
A112: 2015-04-01 | B112: =INDEX('roh2-3'!$A$1:$FE$3927,MATCH(Strg!$H$5&"Insgesamt"&IF(Strg!$A$5=1,"Insgesamt",IF(Strg!$A$5=2,"III,SGB III","II,SGB II")),'roh2-3'!$B$1:$B$3927&'roh2-3'!$D$1:$D$3927&'roh2-3'!$A$1:$A$3927,0),MATCH('2'!$A112,'roh2-3'!$A$1:$FE$1,0)) -> 2842844 | C112: =IFERROR((IF($A112>Impressum!$C$13,"...",B112-B100)),".") -> -100491 | D112: =IF($A112>Impressum!$C$13,"-",IFERROR(IF(OR(100/B100*(B112-B100)>250,100/B100*(B112-B100)<-250),".X",100/B100*(B112-B100)),"X")) -> -3.414188327 | E112: =INDEX('roh2-3'!$A$1:$FE$3927,MATCH(Strg!$H$5&"N,Nicht Langzeitarbeitslos"&IF(Strg!$A$5=1,"Insgesamt",IF(Strg!$A$5=2,"III,SGB III","II,SGB II")),'roh2-3'!$B$1:$B$3927&'roh2-3'!$D$1:$D$3927&'roh2-3'!$A$1:$A$3927,0),MATCH('2'!$A112,'roh2-3'!$A$1:$FE$1,0)) -> 1788529 | F112: =IFERROR((IF($A112>Impressum!$C$13,"...",E112-E100)),".") -> -64889 | G112: =IF($A112>Impressum!$C$13,"-",IFERROR(IF(OR(100/E100*(E112-E100)>250,100/E100*(E112-E100)<-250),".X",100/E100*(E112-E100)),"X")) -> -3.501045096 | H112: =INDEX('roh2-3'!$A$1:$FE$3927,MATCH(Strg!$H$5&"J,Langzeitarbeitslos"&IF(Strg!$A$5=1,"Insgesamt",IF(Strg!$A$5=2,"III,SGB III","II,SGB II")),'roh2-3'!$B$1:$B$3927&'roh2-3'!$D$1:$D$3927&'roh2-3'!$A$1:$A$3927,0),MATCH('2'!$A112,'roh2-3'!$A$1:$FE$1,0)) -> 1054315 | I112: =IFERROR((IF($A112>Impressum!$C$13,"...",H112-H100)),".") -> -35602 | J112: =IF($A112>Impressum!$C$13,"-",IFERROR(IF(OR(100/H100*(H112-H100)>250,100/H100*(H112-H100)<-250),".X",100/H100*(H112-H100)),"X")) -> -3.266487265 | K112: =IF($A112>Impressum!$C$13,"-",IFERROR(100/B112*H112,"X")) -> 37.08662874 | L112: =IFERROR((IF($A112>Impressum!$C$13,"...",ROUND(100/(INDEX(Bzg!$A$1:$FC$438,MATCH(Strg!$H$5,Bzg!$A$1:$A$438,0),MATCH('2'!$A112,Bzg!$A$1:$FC$1,0)))*'2'!$B112,1))),".") -> 6.5 | M112: =IFERROR((IF($A112>Impressum!$C$13,"...",ROUND(100/(INDEX(Bzg!$A$1:$FC$438,MATCH(Strg!$H$5,Bzg!$A$1:$A$438,0),MATCH('2'!$A112,Bzg!$A$1:$FC$1,0)))*'2'!$H112,1))),".") -> 2.4
A113: 2015-05-01 | B113: =INDEX('roh2-3'!$A$1:$FE$3927,MATCH(Strg!$H$5&"Insgesamt"&IF(Strg!$A$5=1,"Insgesamt",IF(Strg!$A$5=2,"III,SGB III","II,SGB II")),'roh2-3'!$B$1:$B$3927&'roh2-3'!$D$1:$D$3927&'roh2-3'!$A$1:$A$3927,0),MATCH('2'!$A113,'roh2-3'!$A$1:$FE$1,0)) -> 2761696 | C113: =IFERROR((IF($A113>Impressum!$C$13,"...",B113-B101)),".") -> -120333 | D113: =IF($A113>Impressum!$C$13,"-",IFERROR(IF(OR(100/B101*(B113-B101)>250,100/B101*(B113-B101)<-250),".X",100/B101*(B113-B101)),"X")) -> -4.175287619 | E113: =INDEX('roh2-3'!$A$1:$FE$3927,MATCH(Strg!$H$5&"N,Nicht Langzeitarbeitslos"&IF(Strg!$A$5=1,"Insgesamt",IF(Strg!$A$5=2,"III,SGB III","II,SGB II")),'roh2-3'!$B$1:$B$3927&'roh2-3'!$D$1:$D$3927&'roh2-3'!$A$1:$A$3927,0),MATCH('2'!$A113,'roh2-3'!$A$1:$FE$1,0)) -> 1720743 | F113: =IFERROR((IF($A113>Impressum!$C$13,"...",E113-E101)),".") -> -72084 | G113: =IF($A113>Impressum!$C$13,"-",IFERROR(IF(OR(100/E101*(E113-E101)>250,100/E101*(E113-E101)<-250),".X",100/E101*(E113-E101)),"X")) -> -4.020689113 | H113: =INDEX('roh2-3'!$A$1:$FE$3927,MATCH(Strg!$H$5&"J,Langzeitarbeitslos"&IF(Strg!$A$5=1,"Insgesamt",IF(Strg!$A$5=2,"III,SGB III","II,SGB II")),'roh2-3'!$B$1:$B$3927&'roh2-3'!$D$1:$D$3927&'roh2-3'!$A$1:$A$3927,0),MATCH('2'!$A113,'roh2-3'!$A$1:$FE$1,0)) -> 1040953 | I113: =IFERROR((IF($A113>Impressum!$C$13,"...",H113-H101)),".") -> -48249 | J113: =IF($A113>Impressum!$C$13,"-",IFERROR(IF(OR(100/H101*(H113-H101)>250,100/H101*(H113-H101)<-250),".X",100/H101*(H113-H101)),"X")) -> -4.429756831 | K113: =IF($A113>Impressum!$C$13,"-",IFERROR(100/B113*H113,"X")) -> 37.69252662 | L113: =IFERROR((IF($A113>Impressum!$C$13,"...",ROUND(100/(INDEX(Bzg!$A$1:$FC$438,MATCH(Strg!$H$5,Bzg!$A$1:$A$438,0),MATCH('2'!$A113,Bzg!$A$1:$FC$1,0)))*'2'!$B113,1))),".") -> 6.3 | M113: =IFERROR((IF($A113>Impressum!$C$13,"...",ROUND(100/(INDEX(Bzg!$A$1:$FC$438,MATCH(Strg!$H$5,Bzg!$A$1:$A$438,0),MATCH('2'!$A113,Bzg!$A$1:$FC$1,0)))*'2'!$H113,1))),".") -> 2.4
A114: 2015-06-01 | B114: =INDEX('roh2-3'!$A$1:$FE$3927,MATCH(Strg!$H$5&"Insgesamt"&IF(Strg!$A$5=1,"Insgesamt",IF(Strg!$A$5=2,"III,SGB III","II,SGB II")),'roh2-3'!$B$1:$B$3927&'roh2-3'!$D$1:$D$3927&'roh2-3'!$A$1:$A$3927,0),MATCH('2'!$A114,'roh2-3'!$A$1:$FE$1,0)) -> 2711187 | C114: =IFERROR((IF($A114>Impressum!$C$13,"...",B114-B102)),".") -> -121593 | D114: =IF($A114>Impressum!$C$13,"-",IFERROR(IF(OR(100/B102*(B114-B102)>250,100/B102*(B114-B102)<-250),".X",100/B102*(B114-B102)),"X")) -> -4.292355919 | E114: =INDEX('roh2-3'!$A$1:$FE$3927,MATCH(Strg!$H$5&"N,Nicht Langzeitarbeitslos"&IF(Strg!$A$5=1,"Insgesamt",IF(Strg!$A$5=2,"III,SGB III","II,SGB II")),'roh2-3'!$B$1:$B$3927&'roh2-3'!$D$1:$D$3927&'roh2-3'!$A$1:$A$3927,0),MATCH('2'!$A114,'roh2-3'!$A$1:$FE$1,0)) -> 1674417 | F114: =IFERROR((IF($A114>Impressum!$C$13,"...",E114-E102)),".") -> -77819 | G114: =IF($A114>Impressum!$C$13,"-",IFERROR(IF(OR(100/E102*(E114-E102)>250,100/E102*(E114-E102)<-250),".X",100/E102*(E114-E102)),"X")) -> -4.44112551 | H114: =INDEX('roh2-3'!$A$1:$FE$3927,MATCH(Strg!$H$5&"J,Langzeitarbeitslos"&IF(Strg!$A$5=1,"Insgesamt",IF(Strg!$A$5=2,"III,SGB III","II,SGB II")),'roh2-3'!$B$1:$B$3927&'roh2-3'!$D$1:$D$3927&'roh2-3'!$A$1:$A$3927,0),MATCH('2'!$A114,'roh2-3'!$A$1:$FE$1,0)) -> 1036770 | I114: =IFERROR((IF($A114>Impressum!$C$13,"...",H114-H102)),".") -> -43774 | J114: =IF($A114>Impressum!$C$13,"-",IFERROR(IF(OR(100/H102*(H114-H102)>250,100/H102*(H114-H102)<-250),".X",100/H102*(H114-H102)),"X")) -> -4.05110759 | K114: =IF($A114>Impressum!$C$13,"-",IFERROR(100/B114*H114,"X")) -> 38.24044597 | L114: =IFERROR((IF($A114>Impressum!$C$13,"...",ROUND(100/(INDEX(Bzg!$A$1:$FC$438,MATCH(Strg!$H$5,Bzg!$A$1:$A$438,0),MATCH('2'!$A114,Bzg!$A$1:$FC$1,0)))*'2'!$B114,1))),".") -> 6.2 | M114: =IFERROR((IF($A114>Impressum!$C$13,"...",ROUND(100/(INDEX(Bzg!$A$1:$FC$438,MATCH(Strg!$H$5,Bzg!$A$1:$A$438,0),MATCH('2'!$A114,Bzg!$A$1:$FC$1,0)))*'2'!$H114,1))),".") -> 2.4
A115: 2015-07-01 | B115: =INDEX('roh2-3'!$A$1:$FE$3927,MATCH(Strg!$H$5&"Insgesamt"&IF(Strg!$A$5=1,"Insgesamt",IF(Strg!$A$5=2,"III,SGB III","II,SGB II")),'roh2-3'!$B$1:$B$3927&'roh2-3'!$D$1:$D$3927&'roh2-3'!$A$1:$A$3927,0),MATCH('2'!$A115,'roh2-3'!$A$1:$FE$1,0)) -> 2772642 | C115: =IFERROR((IF($A115>Impressum!$C$13,"...",B115-B103)),".") -> -98709 | D115: =IF($A115>Impressum!$C$13,"-",IFERROR(IF(OR(100/B103*(B115-B103)>250,100/B103*(B115-B103)<-250),".X",100/B103*(B115-B103)),"X")) -> -3.437719735 | E115: =INDEX('roh2-3'!$A$1:$FE$3927,MATCH(Strg!$H$5&"N,Nicht Langzeitarbeitslos"&IF(Strg!$A$5=1,"Insgesamt",IF(Strg!$A$5=2,"III,SGB III","II,SGB II")),'roh2-3'!$B$1:$B$3927&'roh2-3'!$D$1:$D$3927&'roh2-3'!$A$1:$A$3927,0),MATCH('2'!$A115,'roh2-3'!$A$1:$FE$1,0)) -> 1731715 | F115: =IFERROR((IF($A115>Impressum!$C$13,"...",E115-E103)),".") -> -54639 | G115: =IF($A115>Impressum!$C$13,"-",IFERROR(IF(OR(100/E103*(E115-E103)>250,100/E103*(E115-E103)<-250),".X",100/E103*(E115-E103)),"X")) -> -3.058688256 | H115: =INDEX('roh2-3'!$A$1:$FE$3927,MATCH(Strg!$H$5&"J,Langzeitarbeitslos"&IF(Strg!$A$5=1,"Insgesamt",IF(Strg!$A$5=2,"III,SGB III","II,SGB II")),'roh2-3'!$B$1:$B$3927&'roh2-3'!$D$1:$D$3927&'roh2-3'!$A$1:$A$3927,0),MATCH('2'!$A115,'roh2-3'!$A$1:$FE$1,0)) -> 1040927 | I115: =IFERROR((IF($A115>Impressum!$C$13,"...",H115-H103)),".") -> -44070 | J115: =IF($A115>Impressum!$C$13,"-",IFERROR(IF(OR(100/H103*(H115-H103)>250,100/H103*(H115-H103)<-250),".X",100/H103*(H115-H103)),"X")) -> -4.061762383 | K115: =IF($A115>Impressum!$C$13,"-",IFERROR(100/B115*H115,"X")) -> 37.5427841 | L115: =IFERROR((IF($A115>Impressum!$C$13,"...",ROUND(100/(INDEX(Bzg!$A$1:$FC$438,MATCH(Strg!$H$5,Bzg!$A$1:$A$438,0),MATCH('2'!$A115,Bzg!$A$1:$FC$1,0)))*'2'!$B115,1))),".") -> 6.3 | M115: =IFERROR((IF($A115>Impressum!$C$13,"...",ROUND(100/(INDEX(Bzg!$A$1:$FC$438,MATCH(Strg!$H$5,Bzg!$A$1:$A$438,0),MATCH('2'!$A115,Bzg!$A$1:$FC$1,0)))*'2'!$H115,1))),".") -> 2.4
A116: 2015-08-01 | B116: =INDEX('roh2-3'!$A$1:$FE$3927,MATCH(Strg!$H$5&"Insgesamt"&IF(Strg!$A$5=1,"Insgesamt",IF(Strg!$A$5=2,"III,SGB III","II,SGB II")),'roh2-3'!$B$1:$B$3927&'roh2-3'!$D$1:$D$3927&'roh2-3'!$A$1:$A$3927,0),MATCH('2'!$A116,'roh2-3'!$A$1:$FE$1,0)) -> 2795597 | C116: =IFERROR((IF($A116>Impressum!$C$13,"...",B116-B104)),".") -> -106226 | D116: =IF($A116>Impressum!$C$13,"-",IFERROR(IF(OR(100/B104*(B116-B104)>250,100/B104*(B116-B104)<-250),".X",100/B104*(B116-B104)),"X")) -> -3.660664348 | E116: =INDEX('roh2-3'!$A$1:$FE$3927,MATCH(Strg!$H$5&"N,Nicht Langzeitarbeitslos"&IF(Strg!$A$5=1,"Insgesamt",IF(Strg!$A$5=2,"III,SGB III","II,SGB II")),'roh2-3'!$B$1:$B$3927&'roh2-3'!$D$1:$D$3927&'roh2-3'!$A$1:$A$3927,0),MATCH('2'!$A116,'roh2-3'!$A$1:$FE$1,0)) -> 1759260 | F116: =IFERROR((IF($A116>Impressum!$C$13,"...",E116-E104)),".") -> -65199 | G116: =IF($A116>Impressum!$C$13,"-",IFERROR(IF(OR(100/E104*(E116-E104)>250,100/E104*(E116-E104)<-250),".X",100/E104*(E116-E104)),"X")) -> -3.573607299 | H116: =INDEX('roh2-3'!$A$1:$FE$3927,MATCH(Strg!$H$5&"J,Langzeitarbeitslos"&IF(Strg!$A$5=1,"Insgesamt",IF(Strg!$A$5=2,"III,SGB III","II,SGB II")),'roh2-3'!$B$1:$B$3927&'roh2-3'!$D$1:$D$3927&'roh2-3'!$A$1:$A$3927,0),MATCH('2'!$A116,'roh2-3'!$A$1:$FE$1,0)) -> 1036337 | I116: =IFERROR((IF($A116>Impressum!$C$13,"...",H116-H104)),".") -> -41027 | J116: =IF($A116>Impressum!$C$13,"-",IFERROR(IF(OR(100/H104*(H116-H104)>250,100/H104*(H116-H104)<-250),".X",100/H104*(H116-H104)),"X")) -> -3.808090859 | K116: =IF($A116>Impressum!$C$13,"-",IFERROR(100/B116*H116,"X")) -> 37.07032881 | L116: =IFERROR((IF($A116>Impressum!$C$13,"...",ROUND(100/(INDEX(Bzg!$A$1:$FC$438,MATCH(Strg!$H$5,Bzg!$A$1:$A$438,0),MATCH('2'!$A116,Bzg!$A$1:$FC$1,0)))*'2'!$B116,1))),".") -> 6.4 | M116: =IFERROR((IF($A116>Impressum!$C$13,"...",ROUND(100/(INDEX(Bzg!$A$1:$FC$438,MATCH(Strg!$H$5,Bzg!$A$1:$A$438,0),MATCH('2'!$A116,Bzg!$A$1:$FC$1,0)))*'2'!$H116,1))),".") -> 2.4
A117: 2015-09-01 | B117: =INDEX('roh2-3'!$A$1:$FE$3927,MATCH(Strg!$H$5&"Insgesamt"&IF(Strg!$A$5=1,"Insgesamt",IF(Strg!$A$5=2,"III,SGB III","II,SGB II")),'roh2-3'!$B$1:$B$3927&'roh2-3'!$D$1:$D$3927&'roh2-3'!$A$1:$A$3927,0),MATCH('2'!$A117,'roh2-3'!$A$1:$FE$1,0)) -> 2708043 | C117: =IFERROR((IF($A117>Impressum!$C$13,"...",B117-B105)),".") -> -99763 | D117: =IF($A117>Impressum!$C$13,"-",IFERROR(IF(OR(100/B105*(B117-B105)>250,100/B105*(B117-B105)<-250),".X",100/B105*(B117-B105)),"X")) -> -3.553058865 | E117: =INDEX('roh2-3'!$A$1:$FE$3927,MATCH(Strg!$H$5&"N,Nicht Langzeitarbeitslos"&IF(Strg!$A$5=1,"Insgesamt",IF(Strg!$A$5=2,"III,SGB III","II,SGB II")),'roh2-3'!$B$1:$B$3927&'roh2-3'!$D$1:$D$3927&'roh2-3'!$A$1:$A$3927,0),MATCH('2'!$A117,'roh2-3'!$A$1:$FE$1,0)) -> 1677021 | F117: =IFERROR((IF($A117>Impressum!$C$13,"...",E117-E105)),".") -> -68028 | G117: =IF($A117>Impressum!$C$13,"-",IFERROR(IF(OR(100/E105*(E117-E105)>250,100/E105*(E117-E105)<-250),".X",100/E105*(E117-E105)),"X")) -> -3.898343256 | H117: =INDEX('roh2-3'!$A$1:$FE$3927,MATCH(Strg!$H$5&"J,Langzeitarbeitslos"&IF(Strg!$A$5=1,"Insgesamt",IF(Strg!$A$5=2,"III,SGB III","II,SGB II")),'roh2-3'!$B$1:$B$3927&'roh2-3'!$D$1:$D$3927&'roh2-3'!$A$1:$A$3927,0),MATCH('2'!$A117,'roh2-3'!$A$1:$FE$1,0)) -> 1031022 | I117: =IFERROR((IF($A117>Impressum!$C$13,"...",H117-H105)),".") -> -31735 | J117: =IF($A117>Impressum!$C$13,"-",IFERROR(IF(OR(100/H105*(H117-H105)>250,100/H105*(H117-H105)<-250),".X",100/H105*(H117-H105)),"X")) -> -2.986101244 | K117: =IF($A117>Impressum!$C$13,"-",IFERROR(100/B117*H117,"X")) -> 38.072586 | L117: =IFERROR((IF($A117>Impressum!$C$13,"...",ROUND(100/(INDEX(Bzg!$A$1:$FC$438,MATCH(Strg!$H$5,Bzg!$A$1:$A$438,0),MATCH('2'!$A117,Bzg!$A$1:$FC$1,0)))*'2'!$B117,1))),".") -> 6.2 | M117: =IFERROR((IF($A117>Impressum!$C$13,"...",ROUND(100/(INDEX(Bzg!$A$1:$FC$438,MATCH(Strg!$H$5,Bzg!$A$1:$A$438,0),MATCH('2'!$A117,Bzg!$A$1:$FC$1,0)))*'2'!$H117,1))),".") -> 2.4
A118: 2015-10-01 | B118: =INDEX('roh2-3'!$A$1:$FE$3927,MATCH(Strg!$H$5&"Insgesamt"&IF(Strg!$A$5=1,"Insgesamt",IF(Strg!$A$5=2,"III,SGB III","II,SGB II")),'roh2-3'!$B$1:$B$3927&'roh2-3'!$D$1:$D$3927&'roh2-3'!$A$1:$A$3927,0),MATCH('2'!$A118,'roh2-3'!$A$1:$FE$1,0)) -> 2649277 | C118: =IFERROR((IF($A118>Impressum!$C$13,"...",B118-B106)),".") -> -83492 | D118: =IF($A118>Impressum!$C$13,"-",IFERROR(IF(OR(100/B106*(B118-B106)>250,100/B106*(B118-B106)<-250),".X",100/B106*(B118-B106)),"X")) -> -3.055216156 | E118: =INDEX('roh2-3'!$A$1:$FE$3927,MATCH(Strg!$H$5&"N,Nicht Langzeitarbeitslos"&IF(Strg!$A$5=1,"Insgesamt",IF(Strg!$A$5=2,"III,SGB III","II,SGB II")),'roh2-3'!$B$1:$B$3927&'roh2-3'!$D$1:$D$3927&'roh2-3'!$A$1:$A$3927,0),MATCH('2'!$A118,'roh2-3'!$A$1:$FE$1,0)) -> 1626433 | F118: =IFERROR((IF($A118>Impressum!$C$13,"...",E118-E106)),".") -> -51875 | G118: =IF($A118>Impressum!$C$13,"-",IFERROR(IF(OR(100/E106*(E118-E106)>250,100/E106*(E118-E106)<-250),".X",100/E106*(E118-E106)),"X")) -> -3.090910608 | H118: =INDEX('roh2-3'!$A$1:$FE$3927,MATCH(Strg!$H$5&"J,Langzeitarbeitslos"&IF(Strg!$A$5=1,"Insgesamt",IF(Strg!$A$5=2,"III,SGB III","II,SGB II")),'roh2-3'!$B$1:$B$3927&'roh2-3'!$D$1:$D$3927&'roh2-3'!$A$1:$A$3927,0),MATCH('2'!$A118,'roh2-3'!$A$1:$FE$1,0)) -> 1022844 | I118: =IFERROR((IF($A118>Impressum!$C$13,"...",H118-H106)),".") -> -31617 | J118: =IF($A118>Impressum!$C$13,"-",IFERROR(IF(OR(100/H106*(H118-H106)>250,100/H106*(H118-H106)<-250),".X",100/H106*(H118-H106)),"X")) -> -2.998403924 | K118: =IF($A118>Impressum!$C$13,"-",IFERROR(100/B118*H118,"X")) -> 38.60842034 | L118: =IFERROR((IF($A118>Impressum!$C$13,"...",ROUND(100/(INDEX(Bzg!$A$1:$FC$438,MATCH(Strg!$H$5,Bzg!$A$1:$A$438,0),MATCH('2'!$A118,Bzg!$A$1:$FC$1,0)))*'2'!$B118,1))),".") -> 6 | M118: =IFERROR((IF($A118>Impressum!$C$13,"...",ROUND(100/(INDEX(Bzg!$A$1:$FC$438,MATCH(Strg!$H$5,Bzg!$A$1:$A$438,0),MATCH('2'!$A118,Bzg!$A$1:$FC$1,0)))*'2'!$H118,1))),".") -> 2.3
A119: 2015-11-01 | B119: =INDEX('roh2-3'!$A$1:$FE$3927,MATCH(Strg!$H$5&"Insgesamt"&IF(Strg!$A$5=1,"Insgesamt",IF(Strg!$A$5=2,"III,SGB III","II,SGB II")),'roh2-3'!$B$1:$B$3927&'roh2-3'!$D$1:$D$3927&'roh2-3'!$A$1:$A$3927,0),MATCH('2'!$A119,'roh2-3'!$A$1:$FE$1,0)) -> 2633157 | C119: =IFERROR((IF($A119>Impressum!$C$13,"...",B119-B107)),".") -> -83695 | D119: =IF($A119>Impressum!$C$13,"-",IFERROR(IF(OR(100/B107*(B119-B107)>250,100/B107*(B119-B107)<-250),".X",100/B107*(B119-B107)),"X")) -> -3.080587386 | E119: =INDEX('roh2-3'!$A$1:$FE$3927,MATCH(Strg!$H$5&"N,Nicht Langzeitarbeitslos"&IF(Strg!$A$5=1,"Insgesamt",IF(Strg!$A$5=2,"III,SGB III","II,SGB II")),'roh2-3'!$B$1:$B$3927&'roh2-3'!$D$1:$D$3927&'roh2-3'!$A$1:$A$3927,0),MATCH('2'!$A119,'roh2-3'!$A$1:$FE$1,0)) -> 1620082 | F119: =IFERROR((IF($A119>Impressum!$C$13,"...",E119-E107)),".") -> -55752 | G119: =IF($A119>Impressum!$C$13,"-",IFERROR(IF(OR(100/E107*(E119-E107)>250,100/E107*(E119-E107)<-250),".X",100/E107*(E119-E107)),"X")) -> -3.326821153 | H119: =INDEX('roh2-3'!$A$1:$FE$3927,MATCH(Strg!$H$5&"J,Langzeitarbeitslos"&IF(Strg!$A$5=1,"Insgesamt",IF(Strg!$A$5=2,"III,SGB III","II,SGB II")),'roh2-3'!$B$1:$B$3927&'roh2-3'!$D$1:$D$3927&'roh2-3'!$A$1:$A$3927,0),MATCH('2'!$A119,'roh2-3'!$A$1:$FE$1,0)) -> 1013075 | I119: =IFERROR((IF($A119>Impressum!$C$13,"...",H119-H107)),".") -> -27943 | J119: =IF($A119>Impressum!$C$13,"-",IFERROR(IF(OR(100/H107*(H119-H107)>250,100/H107*(H119-H107)<-250),".X",100/H107*(H119-H107)),"X")) -> -2.684199505 | K119: =IF($A119>Impressum!$C$13,"-",IFERROR(100/B119*H119,"X")) -> 38.47377881 | L119: =IFERROR((IF($A119>Impressum!$C$13,"...",ROUND(100/(INDEX(Bzg!$A$1:$FC$438,MATCH(Strg!$H$5,Bzg!$A$1:$A$438,0),MATCH('2'!$A119,Bzg!$A$1:$FC$1,0)))*'2'!$B119,1))),".") -> 6 | M119: =IFERROR((IF($A119>Impressum!$C$13,"...",ROUND(100/(INDEX(Bzg!$A$1:$FC$438,MATCH(Strg!$H$5,Bzg!$A$1:$A$438,0),MATCH('2'!$A119,Bzg!$A$1:$FC$1,0)))*'2'!$H119,1))),".") -> 2.3
A120: 2015-12-01 | B120: =INDEX('roh2-3'!$A$1:$FE$3927,MATCH(Strg!$H$5&"Insgesamt"&IF(Strg!$A$5=1,"Insgesamt",IF(Strg!$A$5=2,"III,SGB III","II,SGB II")),'roh2-3'!$B$1:$B$3927&'roh2-3'!$D$1:$D$3927&'roh2-3'!$A$1:$A$3927,0),MATCH('2'!$A120,'roh2-3'!$A$1:$FE$1,0)) -> 2681415 | C120: =IFERROR((IF($A120>Impressum!$C$13,"...",B120-B108)),".") -> -82106 | D120: =IF($A120>Impressum!$C$13,"-",IFERROR(IF(OR(100/B108*(B120-B108)>250,100/B108*(B120-B108)<-250),".X",100/B108*(B120-B108)),"X")) -> -2.971064812 | E120: =INDEX('roh2-3'!$A$1:$FE$3927,MATCH(Strg!$H$5&"N,Nicht Langzeitarbeitslos"&IF(Strg!$A$5=1,"Insgesamt",IF(Strg!$A$5=2,"III,SGB III","II,SGB II")),'roh2-3'!$B$1:$B$3927&'roh2-3'!$D$1:$D$3927&'roh2-3'!$A$1:$A$3927,0),MATCH('2'!$A120,'roh2-3'!$A$1:$FE$1,0)) -> 1669282 | F120: =IFERROR((IF($A120>Impressum!$C$13,"...",E120-E108)),".") -> -56933 | G120: =IF($A120>Impressum!$C$13,"-",IFERROR(IF(OR(100/E108*(E120-E108)>250,100/E108*(E120-E108)<-250),".X",100/E108*(E120-E108)),"X")) -> -3.29814073 | H120: =INDEX('roh2-3'!$A$1:$FE$3927,MATCH(Strg!$H$5&"J,Langzeitarbeitslos"&IF(Strg!$A$5=1,"Insgesamt",IF(Strg!$A$5=2,"III,SGB III","II,SGB II")),'roh2-3'!$B$1:$B$3927&'roh2-3'!$D$1:$D$3927&'roh2-3'!$A$1:$A$3927,0),MATCH('2'!$A120,'roh2-3'!$A$1:$FE$1,0)) -> 1012133 | I120: =IFERROR((IF($A120>Impressum!$C$13,"...",H120-H108)),".") -> -25173 | J120: =IF($A120>Impressum!$C$13,"-",IFERROR(IF(OR(100/H108*(H120-H108)>250,100/H108*(H120-H108)<-250),".X",100/H108*(H120-H108)),"X")) -> -2.426767029 | K120: =IF($A120>Impressum!$C$13,"-",IFERROR(100/B120*H120,"X")) -> 37.74622727 | L120: =IFERROR((IF($A120>Impressum!$C$13,"...",ROUND(100/(INDEX(Bzg!$A$1:$FC$438,MATCH(Strg!$H$5,Bzg!$A$1:$A$438,0),MATCH('2'!$A120,Bzg!$A$1:$FC$1,0)))*'2'!$B120,1))),".") -> 6.1 | M120: =IFERROR((IF($A120>Impressum!$C$13,"...",ROUND(100/(INDEX(Bzg!$A$1:$FC$438,MATCH(Strg!$H$5,Bzg!$A$1:$A$438,0),MATCH('2'!$A120,Bzg!$A$1:$FC$1,0)))*'2'!$H120,1))),".") -> 2.3
A121: 2016-01-01 | B121: =INDEX('roh2-3'!$A$1:$FE$3927,MATCH(Strg!$H$5&"Insgesamt"&IF(Strg!$A$5=1,"Insgesamt",IF(Strg!$A$5=2,"III,SGB III","II,SGB II")),'roh2-3'!$B$1:$B$3927&'roh2-3'!$D$1:$D$3927&'roh2-3'!$A$1:$A$3927,0),MATCH('2'!$A121,'roh2-3'!$A$1:$FE$1,0)) -> 2920421 | C121: =IFERROR((IF($A121>Impressum!$C$13,"...",B121-B109)),".") -> -111183 | D121: =IF($A121>Impressum!$C$13,"-",IFERROR(IF(OR(100/B109*(B121-B109)>250,100/B109*(B121-B109)<-250),".X",100/B109*(B121-B109)),"X")) -> -3.667464484 | E121: =INDEX('roh2-3'!$A$1:$FE$3927,MATCH(Strg!$H$5&"N,Nicht Langzeitarbeitslos"&IF(Strg!$A$5=1,"Insgesamt",IF(Strg!$A$5=2,"III,SGB III","II,SGB II")),'roh2-3'!$B$1:$B$3927&'roh2-3'!$D$1:$D$3927&'roh2-3'!$A$1:$A$3927,0),MATCH('2'!$A121,'roh2-3'!$A$1:$FE$1,0)) -> 1871195 | F121: =IFERROR((IF($A121>Impressum!$C$13,"...",E121-E109)),".") -> -86510 | G121: =IF($A121>Impressum!$C$13,"-",IFERROR(IF(OR(100/E109*(E121-E109)>250,100/E109*(E121-E109)<-250),".X",100/E109*(E121-E109)),"X")) -> -4.41894974 | H121: =INDEX('roh2-3'!$A$1:$FE$3927,MATCH(Strg!$H$5&"J,Langzeitarbeitslos"&IF(Strg!$A$5=1,"Insgesamt",IF(Strg!$A$5=2,"III,SGB III","II,SGB II")),'roh2-3'!$B$1:$B$3927&'roh2-3'!$D$1:$D$3927&'roh2-3'!$A$1:$A$3927,0),MATCH('2'!$A121,'roh2-3'!$A$1:$FE$1,0)) -> 1049226 | I121: =IFERROR((IF($A121>Impressum!$C$13,"...",H121-H109)),".") -> -24673 | J121: =IF($A121>Impressum!$C$13,"-",IFERROR(IF(OR(100/H109*(H121-H109)>250,100/H109*(H121-H109)<-250),".X",100/H109*(H121-H109)),"X")) -> -2.297515874 | K121: =IF($A121>Impressum!$C$13,"-",IFERROR(100/B121*H121,"X")) -> 35.92721734 | L121: =IFERROR((IF($A121>Impressum!$C$13,"...",ROUND(100/(INDEX(Bzg!$A$1:$FC$438,MATCH(Strg!$H$5,Bzg!$A$1:$A$438,0),MATCH('2'!$A121,Bzg!$A$1:$FC$1,0)))*'2'!$B121,1))),".") -> 6.7 | M121: =IFERROR((IF($A121>Impressum!$C$13,"...",ROUND(100/(INDEX(Bzg!$A$1:$FC$438,MATCH(Strg!$H$5,Bzg!$A$1:$A$438,0),MATCH('2'!$A121,Bzg!$A$1:$FC$1,0)))*'2'!$H121,1))),".") -> 2.4
A122: 2016-02-01 | B122: =INDEX('roh2-3'!$A$1:$FE$3927,MATCH(Strg!$H$5&"Insgesamt"&IF(Strg!$A$5=1,"Insgesamt",IF(Strg!$A$5=2,"III,SGB III","II,SGB II")),'roh2-3'!$B$1:$B$3927&'roh2-3'!$D$1:$D$3927&'roh2-3'!$A$1:$A$3927,0),MATCH('2'!$A122,'roh2-3'!$A$1:$FE$1,0)) -> 2911165 | C122: =IFERROR((IF($A122>Impressum!$C$13,"...",B122-B110)),".") -> -105838 | D122: =IF($A122>Impressum!$C$13,"-",IFERROR(IF(OR(100/B110*(B122-B110)>250,100/B110*(B122-B110)<-250),".X",100/B110*(B122-B110)),"X")) -> -3.50805087 | E122: =INDEX('roh2-3'!$A$1:$FE$3927,MATCH(Strg!$H$5&"N,Nicht Langzeitarbeitslos"&IF(Strg!$A$5=1,"Insgesamt",IF(Strg!$A$5=2,"III,SGB III","II,SGB II")),'roh2-3'!$B$1:$B$3927&'roh2-3'!$D$1:$D$3927&'roh2-3'!$A$1:$A$3927,0),MATCH('2'!$A122,'roh2-3'!$A$1:$FE$1,0)) -> 1866847 | F122: =IFERROR((IF($A122>Impressum!$C$13,"...",E122-E110)),".") -> -90316 | G122: =IF($A122>Impressum!$C$13,"-",IFERROR(IF(OR(100/E110*(E122-E110)>250,100/E110*(E122-E110)<-250),".X",100/E110*(E122-E110)),"X")) -> -4.614638638 | H122: =INDEX('roh2-3'!$A$1:$FE$3927,MATCH(Strg!$H$5&"J,Langzeitarbeitslos"&IF(Strg!$A$5=1,"Insgesamt",IF(Strg!$A$5=2,"III,SGB III","II,SGB II")),'roh2-3'!$B$1:$B$3927&'roh2-3'!$D$1:$D$3927&'roh2-3'!$A$1:$A$3927,0),MATCH('2'!$A122,'roh2-3'!$A$1:$FE$1,0)) -> 1044318 | I122: =IFERROR((IF($A122>Impressum!$C$13,"...",H122-H110)),".") -> -15522 | J122: =IF($A122>Impressum!$C$13,"-",IFERROR(IF(OR(100/H110*(H122-H110)>250,100/H110*(H122-H110)<-250),".X",100/H110*(H122-H110)),"X")) -> -1.464560688 | K122: =IF($A122>Impressum!$C$13,"-",IFERROR(100/B122*H122,"X")) -> 35.87285503 | L122: =IFERROR((IF($A122>Impressum!$C$13,"...",ROUND(100/(INDEX(Bzg!$A$1:$FC$438,MATCH(Strg!$H$5,Bzg!$A$1:$A$438,0),MATCH('2'!$A122,Bzg!$A$1:$FC$1,0)))*'2'!$B122,1))),".") -> 6.6 | M122: =IFERROR((IF($A122>Impressum!$C$13,"...",ROUND(100/(INDEX(Bzg!$A$1:$FC$438,MATCH(Strg!$H$5,Bzg!$A$1:$A$438,0),MATCH('2'!$A122,Bzg!$A$1:$FC$1,0)))*'2'!$H122,1))),".") -> 2.4
A123: 2016-03-01 | B123: =INDEX('roh2-3'!$A$1:$FE$3927,MATCH(Strg!$H$5&"Insgesamt"&IF(Strg!$A$5=1,"Insgesamt",IF(Strg!$A$5=2,"III,SGB III","II,SGB II")),'roh2-3'!$B$1:$B$3927&'roh2-3'!$D$1:$D$3927&'roh2-3'!$A$1:$A$3927,0),MATCH('2'!$A123,'roh2-3'!$A$1:$FE$1,0)) -> 2844891 | C123: =IFERROR((IF($A123>Impressum!$C$13,"...",B123-B111)),".") -> -86614 | D123: =IF($A123>Impressum!$C$13,"-",IFERROR(IF(OR(100/B111*(B123-B111)>250,100/B111*(B123-B111)<-250),".X",100/B111*(B123-B111)),"X")) -> -2.954591584 | E123: =INDEX('roh2-3'!$A$1:$FE$3927,MATCH(Strg!$H$5&"N,Nicht Langzeitarbeitslos"&IF(Strg!$A$5=1,"Insgesamt",IF(Strg!$A$5=2,"III,SGB III","II,SGB II")),'roh2-3'!$B$1:$B$3927&'roh2-3'!$D$1:$D$3927&'roh2-3'!$A$1:$A$3927,0),MATCH('2'!$A123,'roh2-3'!$A$1:$FE$1,0)) -> 1806176 | F123: =IFERROR((IF($A123>Impressum!$C$13,"...",E123-E111)),".") -> -76072 | G123: =IF($A123>Impressum!$C$13,"-",IFERROR(IF(OR(100/E111*(E123-E111)>250,100/E111*(E123-E111)<-250),".X",100/E111*(E123-E111)),"X")) -> -4.041550316 | H123: =INDEX('roh2-3'!$A$1:$FE$3927,MATCH(Strg!$H$5&"J,Langzeitarbeitslos"&IF(Strg!$A$5=1,"Insgesamt",IF(Strg!$A$5=2,"III,SGB III","II,SGB II")),'roh2-3'!$B$1:$B$3927&'roh2-3'!$D$1:$D$3927&'roh2-3'!$A$1:$A$3927,0),MATCH('2'!$A123,'roh2-3'!$A$1:$FE$1,0)) -> 1038715 | I123: =IFERROR((IF($A123>Impressum!$C$13,"...",H123-H111)),".") -> -10542 | J123: =IF($A123>Impressum!$C$13,"-",IFERROR(IF(OR(100/H111*(H123-H111)>250,100/H111*(H123-H111)<-250),".X",100/H111*(H123-H111)),"X")) -> -1.004710953 | K123: =IF($A123>Impressum!$C$13,"-",IFERROR(100/B123*H123,"X")) -> 36.51159218 | L123: =IFERROR((IF($A123>Impressum!$C$13,"...",ROUND(100/(INDEX(Bzg!$A$1:$FC$438,MATCH(Strg!$H$5,Bzg!$A$1:$A$438,0),MATCH('2'!$A123,Bzg!$A$1:$FC$1,0)))*'2'!$B123,1))),".") -> 6.5 | M123: =IFERROR((IF($A123>Impressum!$C$13,"...",ROUND(100/(INDEX(Bzg!$A$1:$FC$438,MATCH(Strg!$H$5,Bzg!$A$1:$A$438,0),MATCH('2'!$A123,Bzg!$A$1:$FC$1,0)))*'2'!$H123,1))),".") -> 2.4
A124: 2016-04-01 | B124: =INDEX('roh2-3'!$A$1:$FE$3927,MATCH(Strg!$H$5&"Insgesamt"&IF(Strg!$A$5=1,"Insgesamt",IF(Strg!$A$5=2,"III,SGB III","II,SGB II")),'roh2-3'!$B$1:$B$3927&'roh2-3'!$D$1:$D$3927&'roh2-3'!$A$1:$A$3927,0),MATCH('2'!$A124,'roh2-3'!$A$1:$FE$1,0)) -> 2743864 | C124: =IFERROR((IF($A124>Impressum!$C$13,"...",B124-B112)),".") -> -98980 | D124: =IF($A124>Impressum!$C$13,"-",IFERROR(IF(OR(100/B112*(B124-B112)>250,100/B112*(B124-B112)<-250),".X",100/B112*(B124-B112)),"X")) -> -3.481724639 | E124: =INDEX('roh2-3'!$A$1:$FE$3927,MATCH(Strg!$H$5&"N,Nicht Langzeitarbeitslos"&IF(Strg!$A$5=1,"Insgesamt",IF(Strg!$A$5=2,"III,SGB III","II,SGB II")),'roh2-3'!$B$1:$B$3927&'roh2-3'!$D$1:$D$3927&'roh2-3'!$A$1:$A$3927,0),MATCH('2'!$A124,'roh2-3'!$A$1:$FE$1,0)) -> 1716525 | F124: =IFERROR((IF($A124>Impressum!$C$13,"...",E124-E112)),".") -> -72004 | G124: =IF($A124>Impressum!$C$13,"-",IFERROR(IF(OR(100/E112*(E124-E112)>250,100/E112*(E124-E112)<-250),".X",100/E112*(E124-E112)),"X")) -> -4.02587825 | H124: =INDEX('roh2-3'!$A$1:$FE$3927,MATCH(Strg!$H$5&"J,Langzeitarbeitslos"&IF(Strg!$A$5=1,"Insgesamt",IF(Strg!$A$5=2,"III,SGB III","II,SGB II")),'roh2-3'!$B$1:$B$3927&'roh2-3'!$D$1:$D$3927&'roh2-3'!$A$1:$A$3927,0),MATCH('2'!$A124,'roh2-3'!$A$1:$FE$1,0)) -> 1027339 | I124: =IFERROR((IF($A124>Impressum!$C$13,"...",H124-H112)),".") -> -26976 | J124: =IF($A124>Impressum!$C$13,"-",IFERROR(IF(OR(100/H112*(H124-H112)>250,100/H112*(H124-H112)<-250),".X",100/H112*(H124-H112)),"X")) -> -2.558628114 | K124: =IF($A124>Impressum!$C$13,"-",IFERROR(100/B124*H124,"X")) -> 37.44132362 | L124: =IFERROR((IF($A124>Impressum!$C$13,"...",ROUND(100/(INDEX(Bzg!$A$1:$FC$438,MATCH(Strg!$H$5,Bzg!$A$1:$A$438,0),MATCH('2'!$A124,Bzg!$A$1:$FC$1,0)))*'2'!$B124,1))),".") -> 6.3 | M124: =IFERROR((IF($A124>Impressum!$C$13,"...",ROUND(100/(INDEX(Bzg!$A$1:$FC$438,MATCH(Strg!$H$5,Bzg!$A$1:$A$438,0),MATCH('2'!$A124,Bzg!$A$1:$FC$1,0)))*'2'!$H124,1))),".") -> 2.3
A125: 2016-05-01 | B125: =INDEX('roh2-3'!$A$1:$FE$3927,MATCH(Strg!$H$5&"Insgesamt"&IF(Strg!$A$5=1,"Insgesamt",IF(Strg!$A$5=2,"III,SGB III","II,SGB II")),'roh2-3'!$B$1:$B$3927&'roh2-3'!$D$1:$D$3927&'roh2-3'!$A$1:$A$3927,0),MATCH('2'!$A125,'roh2-3'!$A$1:$FE$1,0)) -> 2664014 | C125: =IFERROR((IF($A125>Impressum!$C$13,"...",B125-B113)),".") -> -97682 | D125: =IF($A125>Impressum!$C$13,"-",IFERROR(IF(OR(100/B113*(B125-B113)>250,100/B113*(B125-B113)<-250),".X",100/B113*(B125-B113)),"X")) -> -3.53702942 | E125: =INDEX('roh2-3'!$A$1:$FE$3927,MATCH(Strg!$H$5&"N,Nicht Langzeitarbeitslos"&IF(Strg!$A$5=1,"Insgesamt",IF(Strg!$A$5=2,"III,SGB III","II,SGB II")),'roh2-3'!$B$1:$B$3927&'roh2-3'!$D$1:$D$3927&'roh2-3'!$A$1:$A$3927,0),MATCH('2'!$A125,'roh2-3'!$A$1:$FE$1,0)) -> 1657338 | F125: =IFERROR((IF($A125>Impressum!$C$13,"...",E125-E113)),".") -> -63405 | G125: =IF($A125>Impressum!$C$13,"-",IFERROR(IF(OR(100/E113*(E125-E113)>250,100/E113*(E125-E113)<-250),".X",100/E113*(E125-E113)),"X")) -> -3.684745485 | H125: =INDEX('roh2-3'!$A$1:$FE$3927,MATCH(Strg!$H$5&"J,Langzeitarbeitslos"&IF(Strg!$A$5=1,"Insgesamt",IF(Strg!$A$5=2,"III,SGB III","II,SGB II")),'roh2-3'!$B$1:$B$3927&'roh2-3'!$D$1:$D$3927&'roh2-3'!$A$1:$A$3927,0),MATCH('2'!$A125,'roh2-3'!$A$1:$FE$1,0)) -> 1006676 | I125: =IFERROR((IF($A125>Impressum!$C$13,"...",H125-H113)),".") -> -34277 | J125: =IF($A125>Impressum!$C$13,"-",IFERROR(IF(OR(100/H113*(H125-H113)>250,100/H113*(H125-H113)<-250),".X",100/H113*(H125-H113)),"X")) -> -3.292847996 | K125: =IF($A125>Impressum!$C$13,"-",IFERROR(100/B125*H125,"X")) -> 37.78793955 | L125: =IFERROR((IF($A125>Impressum!$C$13,"...",ROUND(100/(INDEX(Bzg!$A$1:$FC$438,MATCH(Strg!$H$5,Bzg!$A$1:$A$438,0),MATCH('2'!$A125,Bzg!$A$1:$FC$1,0)))*'2'!$B125,1))),".") -> 6 | M125: =IFERROR((IF($A125>Impressum!$C$13,"...",ROUND(100/(INDEX(Bzg!$A$1:$FC$438,MATCH(Strg!$H$5,Bzg!$A$1:$A$438,0),MATCH('2'!$A125,Bzg!$A$1:$FC$1,0)))*'2'!$H125,1))),".") -> 2.3
A126: 2016-06-01 | B126: =INDEX('roh2-3'!$A$1:$FE$3927,MATCH(Strg!$H$5&"Insgesamt"&IF(Strg!$A$5=1,"Insgesamt",IF(Strg!$A$5=2,"III,SGB III","II,SGB II")),'roh2-3'!$B$1:$B$3927&'roh2-3'!$D$1:$D$3927&'roh2-3'!$A$1:$A$3927,0),MATCH('2'!$A126,'roh2-3'!$A$1:$FE$1,0)) -> 2614217 | C126: =IFERROR((IF($A126>Impressum!$C$13,"...",B126-B114)),".") -> -96970 | D126: =IF($A126>Impressum!$C$13,"-",IFERROR(IF(OR(100/B114*(B126-B114)>250,100/B114*(B126-B114)<-250),".X",100/B114*(B126-B114)),"X")) -> -3.576662178 | E126: =INDEX('roh2-3'!$A$1:$FE$3927,MATCH(Strg!$H$5&"N,Nicht Langzeitarbeitslos"&IF(Strg!$A$5=1,"Insgesamt",IF(Strg!$A$5=2,"III,SGB III","II,SGB II")),'roh2-3'!$B$1:$B$3927&'roh2-3'!$D$1:$D$3927&'roh2-3'!$A$1:$A$3927,0),MATCH('2'!$A126,'roh2-3'!$A$1:$FE$1,0)) -> 1620228 | F126: =IFERROR((IF($A126>Impressum!$C$13,"...",E126-E114)),".") -> -54189 | G126: =IF($A126>Impressum!$C$13,"-",IFERROR(IF(OR(100/E114*(E126-E114)>250,100/E114*(E126-E114)<-250),".X",100/E114*(E126-E114)),"X")) -> -3.236290601 | H126: =INDEX('roh2-3'!$A$1:$FE$3927,MATCH(Strg!$H$5&"J,Langzeitarbeitslos"&IF(Strg!$A$5=1,"Insgesamt",IF(Strg!$A$5=2,"III,SGB III","II,SGB II")),'roh2-3'!$B$1:$B$3927&'roh2-3'!$D$1:$D$3927&'roh2-3'!$A$1:$A$3927,0),MATCH('2'!$A126,'roh2-3'!$A$1:$FE$1,0)) -> 993989 | I126: =IFERROR((IF($A126>Impressum!$C$13,"...",H126-H114)),".") -> -42781 | J126: =IF($A126>Impressum!$C$13,"-",IFERROR(IF(OR(100/H114*(H126-H114)>250,100/H114*(H126-H114)<-250),".X",100/H114*(H126-H114)),"X")) -> -4.126373255 | K126: =IF($A126>Impressum!$C$13,"-",IFERROR(100/B126*H126,"X")) -> 38.02243655 | L126: =IFERROR((IF($A126>Impressum!$C$13,"...",ROUND(100/(INDEX(Bzg!$A$1:$FC$438,MATCH(Strg!$H$5,Bzg!$A$1:$A$438,0),MATCH('2'!$A126,Bzg!$A$1:$FC$1,0)))*'2'!$B126,1))),".") -> 5.9 | M126: =IFERROR((IF($A126>Impressum!$C$13,"...",ROUND(100/(INDEX(Bzg!$A$1:$FC$438,MATCH(Strg!$H$5,Bzg!$A$1:$A$438,0),MATCH('2'!$A126,Bzg!$A$1:$FC$1,0)))*'2'!$H126,1))),".") -> 2.3
A127: 2016-07-01 | B127: =INDEX('roh2-3'!$A$1:$FE$3927,MATCH(Strg!$H$5&"Insgesamt"&IF(Strg!$A$5=1,"Insgesamt",IF(Strg!$A$5=2,"III,SGB III","II,SGB II")),'roh2-3'!$B$1:$B$3927&'roh2-3'!$D$1:$D$3927&'roh2-3'!$A$1:$A$3927,0),MATCH('2'!$A127,'roh2-3'!$A$1:$FE$1,0)) -> 2661042 | C127: =IFERROR((IF($A127>Impressum!$C$13,"...",B127-B115)),".") -> -111600 | D127: =IF($A127>Impressum!$C$13,"-",IFERROR(IF(OR(100/B115*(B127-B115)>250,100/B115*(B127-B115)<-250),".X",100/B115*(B127-B115)),"X")) -> -4.025041819 | E127: =INDEX('roh2-3'!$A$1:$FE$3927,MATCH(Strg!$H$5&"N,Nicht Langzeitarbeitslos"&IF(Strg!$A$5=1,"Insgesamt",IF(Strg!$A$5=2,"III,SGB III","II,SGB II")),'roh2-3'!$B$1:$B$3927&'roh2-3'!$D$1:$D$3927&'roh2-3'!$A$1:$A$3927,0),MATCH('2'!$A127,'roh2-3'!$A$1:$FE$1,0)) -> 1675822 | F127: =IFERROR((IF($A127>Impressum!$C$13,"...",E127-E115)),".") -> -55893 | G127: =IF($A127>Impressum!$C$13,"-",IFERROR(IF(OR(100/E115*(E127-E115)>250,100/E115*(E127-E115)<-250),".X",100/E115*(E127-E115)),"X")) -> -3.227609624 | H127: =INDEX('roh2-3'!$A$1:$FE$3927,MATCH(Strg!$H$5&"J,Langzeitarbeitslos"&IF(Strg!$A$5=1,"Insgesamt",IF(Strg!$A$5=2,"III,SGB III","II,SGB II")),'roh2-3'!$B$1:$B$3927&'roh2-3'!$D$1:$D$3927&'roh2-3'!$A$1:$A$3927,0),MATCH('2'!$A127,'roh2-3'!$A$1:$FE$1,0)) -> 985220 | I127: =IFERROR((IF($A127>Impressum!$C$13,"...",H127-H115)),".") -> -55707 | J127: =IF($A127>Impressum!$C$13,"-",IFERROR(IF(OR(100/H115*(H127-H115)>250,100/H115*(H127-H115)<-250),".X",100/H115*(H127-H115)),"X")) -> -5.351672115 | K127: =IF($A127>Impressum!$C$13,"-",IFERROR(100/B127*H127,"X")) -> 37.02384254 | L127: =IFERROR((IF($A127>Impressum!$C$13,"...",ROUND(100/(INDEX(Bzg!$A$1:$FC$438,MATCH(Strg!$H$5,Bzg!$A$1:$A$438,0),MATCH('2'!$A127,Bzg!$A$1:$FC$1,0)))*'2'!$B127,1))),".") -> 6 | M127: =IFERROR((IF($A127>Impressum!$C$13,"...",ROUND(100/(INDEX(Bzg!$A$1:$FC$438,MATCH(Strg!$H$5,Bzg!$A$1:$A$438,0),MATCH('2'!$A127,Bzg!$A$1:$FC$1,0)))*'2'!$H127,1))),".") -> 2.2
A128: 2016-08-01 | B128: =INDEX('roh2-3'!$A$1:$FE$3927,MATCH(Strg!$H$5&"Insgesamt"&IF(Strg!$A$5=1,"Insgesamt",IF(Strg!$A$5=2,"III,SGB III","II,SGB II")),'roh2-3'!$B$1:$B$3927&'roh2-3'!$D$1:$D$3927&'roh2-3'!$A$1:$A$3927,0),MATCH('2'!$A128,'roh2-3'!$A$1:$FE$1,0)) -> 2684289 | C128: =IFERROR((IF($A128>Impressum!$C$13,"...",B128-B116)),".") -> -111308 | D128: =IF($A128>Impressum!$C$13,"-",IFERROR(IF(OR(100/B116*(B128-B116)>250,100/B116*(B128-B116)<-250),".X",100/B116*(B128-B116)),"X")) -> -3.981546696 | E128: =INDEX('roh2-3'!$A$1:$FE$3927,MATCH(Strg!$H$5&"N,Nicht Langzeitarbeitslos"&IF(Strg!$A$5=1,"Insgesamt",IF(Strg!$A$5=2,"III,SGB III","II,SGB II")),'roh2-3'!$B$1:$B$3927&'roh2-3'!$D$1:$D$3927&'roh2-3'!$A$1:$A$3927,0),MATCH('2'!$A128,'roh2-3'!$A$1:$FE$1,0)) -> 1708433 | F128: =IFERROR((IF($A128>Impressum!$C$13,"...",E128-E116)),".") -> -50827 | G128: =IF($A128>Impressum!$C$13,"-",IFERROR(IF(OR(100/E116*(E128-E116)>250,100/E116*(E128-E116)<-250),".X",100/E116*(E128-E116)),"X")) -> -2.889112468 | H128: =INDEX('roh2-3'!$A$1:$FE$3927,MATCH(Strg!$H$5&"J,Langzeitarbeitslos"&IF(Strg!$A$5=1,"Insgesamt",IF(Strg!$A$5=2,"III,SGB III","II,SGB II")),'roh2-3'!$B$1:$B$3927&'roh2-3'!$D$1:$D$3927&'roh2-3'!$A$1:$A$3927,0),MATCH('2'!$A128,'roh2-3'!$A$1:$FE$1,0)) -> 975856 | I128: =IFERROR((IF($A128>Impressum!$C$13,"...",H128-H116)),".") -> -60481 | J128: =IF($A128>Impressum!$C$13,"-",IFERROR(IF(OR(100/H116*(H128-H116)>250,100/H116*(H128-H116)<-250),".X",100/H116*(H128-H116)),"X")) -> -5.836035961 | K128: =IF($A128>Impressum!$C$13,"-",IFERROR(100/B128*H128,"X")) -> 36.35435678 | L128: =IFERROR((IF($A128>Impressum!$C$13,"...",ROUND(100/(INDEX(Bzg!$A$1:$FC$438,MATCH(Strg!$H$5,Bzg!$A$1:$A$438,0),MATCH('2'!$A128,Bzg!$A$1:$FC$1,0)))*'2'!$B128,1))),".") -> 6.1 | M128: =IFERROR((IF($A128>Impressum!$C$13,"...",ROUND(100/(INDEX(Bzg!$A$1:$FC$438,MATCH(Strg!$H$5,Bzg!$A$1:$A$438,0),MATCH('2'!$A128,Bzg!$A$1:$FC$1,0)))*'2'!$H128,1))),".") -> 2.2
A129: 2016-09-01 | B129: =INDEX('roh2-3'!$A$1:$FE$3927,MATCH(Strg!$H$5&"Insgesamt"&IF(Strg!$A$5=1,"Insgesamt",IF(Strg!$A$5=2,"III,SGB III","II,SGB II")),'roh2-3'!$B$1:$B$3927&'roh2-3'!$D$1:$D$3927&'roh2-3'!$A$1:$A$3927,0),MATCH('2'!$A129,'roh2-3'!$A$1:$FE$1,0)) -> 2607607 | C129: =IFERROR((IF($A129>Impressum!$C$13,"...",B129-B117)),".") -> -100436 | D129: =IF($A129>Impressum!$C$13,"-",IFERROR(IF(OR(100/B117*(B129-B117)>250,100/B117*(B129-B117)<-250),".X",100/B117*(B129-B117)),"X")) -> -3.708803738 | E129: =INDEX('roh2-3'!$A$1:$FE$3927,MATCH(Strg!$H$5&"N,Nicht Langzeitarbeitslos"&IF(Strg!$A$5=1,"Insgesamt",IF(Strg!$A$5=2,"III,SGB III","II,SGB II")),'roh2-3'!$B$1:$B$3927&'roh2-3'!$D$1:$D$3927&'roh2-3'!$A$1:$A$3927,0),MATCH('2'!$A129,'roh2-3'!$A$1:$FE$1,0)) -> 1642349 | F129: =IFERROR((IF($A129>Impressum!$C$13,"...",E129-E117)),".") -> -34672 | G129: =IF($A129>Impressum!$C$13,"-",IFERROR(IF(OR(100/E117*(E129-E117)>250,100/E117*(E129-E117)<-250),".X",100/E117*(E129-E117)),"X")) -> -2.067475601 | H129: =INDEX('roh2-3'!$A$1:$FE$3927,MATCH(Strg!$H$5&"J,Langzeitarbeitslos"&IF(Strg!$A$5=1,"Insgesamt",IF(Strg!$A$5=2,"III,SGB III","II,SGB II")),'roh2-3'!$B$1:$B$3927&'roh2-3'!$D$1:$D$3927&'roh2-3'!$A$1:$A$3927,0),MATCH('2'!$A129,'roh2-3'!$A$1:$FE$1,0)) -> 965258 | I129: =IFERROR((IF($A129>Impressum!$C$13,"...",H129-H117)),".") -> -65764 | J129: =IF($A129>Impressum!$C$13,"-",IFERROR(IF(OR(100/H117*(H129-H117)>250,100/H117*(H129-H117)<-250),".X",100/H117*(H129-H117)),"X")) -> -6.378525385 | K129: =IF($A129>Impressum!$C$13,"-",IFERROR(100/B129*H129,"X")) -> 37.01700448 | L129: =IFERROR((IF($A129>Impressum!$C$13,"...",ROUND(100/(INDEX(Bzg!$A$1:$FC$438,MATCH(Strg!$H$5,Bzg!$A$1:$A$438,0),MATCH('2'!$A129,Bzg!$A$1:$FC$1,0)))*'2'!$B129,1))),".") -> 5.9 | M129: =IFERROR((IF($A129>Impressum!$C$13,"...",ROUND(100/(INDEX(Bzg!$A$1:$FC$438,MATCH(Strg!$H$5,Bzg!$A$1:$A$438,0),MATCH('2'!$A129,Bzg!$A$1:$FC$1,0)))*'2'!$H129,1))),".") -> 2.2
A130: 2016-10-01 | B130: =INDEX('roh2-3'!$A$1:$FE$3927,MATCH(Strg!$H$5&"Insgesamt"&IF(Strg!$A$5=1,"Insgesamt",IF(Strg!$A$5=2,"III,SGB III","II,SGB II")),'roh2-3'!$B$1:$B$3927&'roh2-3'!$D$1:$D$3927&'roh2-3'!$A$1:$A$3927,0),MATCH('2'!$A130,'roh2-3'!$A$1:$FE$1,0)) -> 2539939 | C130: =IFERROR((IF($A130>Impressum!$C$13,"...",B130-B118)),".") -> -109338 | D130: =IF($A130>Impressum!$C$13,"-",IFERROR(IF(OR(100/B118*(B130-B118)>250,100/B118*(B130-B118)<-250),".X",100/B118*(B130-B118)),"X")) -> -4.127088258 | E130: =INDEX('roh2-3'!$A$1:$FE$3927,MATCH(Strg!$H$5&"N,Nicht Langzeitarbeitslos"&IF(Strg!$A$5=1,"Insgesamt",IF(Strg!$A$5=2,"III,SGB III","II,SGB II")),'roh2-3'!$B$1:$B$3927&'roh2-3'!$D$1:$D$3927&'roh2-3'!$A$1:$A$3927,0),MATCH('2'!$A130,'roh2-3'!$A$1:$FE$1,0)) -> 1588855 | F130: =IFERROR((IF($A130>Impressum!$C$13,"...",E130-E118)),".") -> -37578 | G130: =IF($A130>Impressum!$C$13,"-",IFERROR(IF(OR(100/E118*(E130-E118)>250,100/E118*(E130-E118)<-250),".X",100/E118*(E130-E118)),"X")) -> -2.310454842 | H130: =INDEX('roh2-3'!$A$1:$FE$3927,MATCH(Strg!$H$5&"J,Langzeitarbeitslos"&IF(Strg!$A$5=1,"Insgesamt",IF(Strg!$A$5=2,"III,SGB III","II,SGB II")),'roh2-3'!$B$1:$B$3927&'roh2-3'!$D$1:$D$3927&'roh2-3'!$A$1:$A$3927,0),MATCH('2'!$A130,'roh2-3'!$A$1:$FE$1,0)) -> 951084 | I130: =IFERROR((IF($A130>Impressum!$C$13,"...",H130-H118)),".") -> -71760 | J130: =IF($A130>Impressum!$C$13,"-",IFERROR(IF(OR(100/H118*(H130-H118)>250,100/H118*(H130-H118)<-250),".X",100/H118*(H130-H118)),"X")) -> -7.015732604 | K130: =IF($A130>Impressum!$C$13,"-",IFERROR(100/B130*H130,"X")) -> 37.44515124 | L130: =IFERROR((IF($A130>Impressum!$C$13,"...",ROUND(100/(INDEX(Bzg!$A$1:$FC$438,MATCH(Strg!$H$5,Bzg!$A$1:$A$438,0),MATCH('2'!$A130,Bzg!$A$1:$FC$1,0)))*'2'!$B130,1))),".") -> 5.8 | M130: =IFERROR((IF($A130>Impressum!$C$13,"...",ROUND(100/(INDEX(Bzg!$A$1:$FC$438,MATCH(Strg!$H$5,Bzg!$A$1:$A$438,0),MATCH('2'!$A130,Bzg!$A$1:$FC$1,0)))*'2'!$H130,1))),".") -> 2.2
A131: 2016-11-01 | B131: =INDEX('roh2-3'!$A$1:$FE$3927,MATCH(Strg!$H$5&"Insgesamt"&IF(Strg!$A$5=1,"Insgesamt",IF(Strg!$A$5=2,"III,SGB III","II,SGB II")),'roh2-3'!$B$1:$B$3927&'roh2-3'!$D$1:$D$3927&'roh2-3'!$A$1:$A$3927,0),MATCH('2'!$A131,'roh2-3'!$A$1:$FE$1,0)) -> 2531975 | C131: =IFERROR((IF($A131>Impressum!$C$13,"...",B131-B119)),".") -> -101182 | D131: =IF($A131>Impressum!$C$13,"-",IFERROR(IF(OR(100/B119*(B131-B119)>250,100/B119*(B131-B119)<-250),".X",100/B119*(B131-B119)),"X")) -> -3.842611739 | E131: =INDEX('roh2-3'!$A$1:$FE$3927,MATCH(Strg!$H$5&"N,Nicht Langzeitarbeitslos"&IF(Strg!$A$5=1,"Insgesamt",IF(Strg!$A$5=2,"III,SGB III","II,SGB II")),'roh2-3'!$B$1:$B$3927&'roh2-3'!$D$1:$D$3927&'roh2-3'!$A$1:$A$3927,0),MATCH('2'!$A131,'roh2-3'!$A$1:$FE$1,0)) -> 1588639 | F131: =IFERROR((IF($A131>Impressum!$C$13,"...",E131-E119)),".") -> -31443 | G131: =IF($A131>Impressum!$C$13,"-",IFERROR(IF(OR(100/E119*(E131-E119)>250,100/E119*(E131-E119)<-250),".X",100/E119*(E131-E119)),"X")) -> -1.940827686 | H131: =INDEX('roh2-3'!$A$1:$FE$3927,MATCH(Strg!$H$5&"J,Langzeitarbeitslos"&IF(Strg!$A$5=1,"Insgesamt",IF(Strg!$A$5=2,"III,SGB III","II,SGB II")),'roh2-3'!$B$1:$B$3927&'roh2-3'!$D$1:$D$3927&'roh2-3'!$A$1:$A$3927,0),MATCH('2'!$A131,'roh2-3'!$A$1:$FE$1,0)) -> 943336 | I131: =IFERROR((IF($A131>Impressum!$C$13,"...",H131-H119)),".") -> -69739 | J131: =IF($A131>Impressum!$C$13,"-",IFERROR(IF(OR(100/H119*(H131-H119)>250,100/H119*(H131-H119)<-250),".X",100/H119*(H131-H119)),"X")) -> -6.883893098 | K131: =IF($A131>Impressum!$C$13,"-",IFERROR(100/B131*H131,"X")) -> 37.25692394 | L131: =IFERROR((IF($A131>Impressum!$C$13,"...",ROUND(100/(INDEX(Bzg!$A$1:$FC$438,MATCH(Strg!$H$5,Bzg!$A$1:$A$438,0),MATCH('2'!$A131,Bzg!$A$1:$FC$1,0)))*'2'!$B131,1))),".") -> 5.7 | M131: =IFERROR((IF($A131>Impressum!$C$13,"...",ROUND(100/(INDEX(Bzg!$A$1:$FC$438,MATCH(Strg!$H$5,Bzg!$A$1:$A$438,0),MATCH('2'!$A131,Bzg!$A$1:$FC$1,0)))*'2'!$H131,1))),".") -> 2.1
A132: 2016-12-01 | B132: =INDEX('roh2-3'!$A$1:$FE$3927,MATCH(Strg!$H$5&"Insgesamt"&IF(Strg!$A$5=1,"Insgesamt",IF(Strg!$A$5=2,"III,SGB III","II,SGB II")),'roh2-3'!$B$1:$B$3927&'roh2-3'!$D$1:$D$3927&'roh2-3'!$A$1:$A$3927,0),MATCH('2'!$A132,'roh2-3'!$A$1:$FE$1,0)) -> 2568273 | C132: =IFERROR((IF($A132>Impressum!$C$13,"...",B132-B120)),".") -> -113142 | D132: =IF($A132>Impressum!$C$13,"-",IFERROR(IF(OR(100/B120*(B132-B120)>250,100/B120*(B132-B120)<-250),".X",100/B120*(B132-B120)),"X")) -> -4.219488591 | E132: =INDEX('roh2-3'!$A$1:$FE$3927,MATCH(Strg!$H$5&"N,Nicht Langzeitarbeitslos"&IF(Strg!$A$5=1,"Insgesamt",IF(Strg!$A$5=2,"III,SGB III","II,SGB II")),'roh2-3'!$B$1:$B$3927&'roh2-3'!$D$1:$D$3927&'roh2-3'!$A$1:$A$3927,0),MATCH('2'!$A132,'roh2-3'!$A$1:$FE$1,0)) -> 1632418 | F132: =IFERROR((IF($A132>Impressum!$C$13,"...",E132-E120)),".") -> -36864 | G132: =IF($A132>Impressum!$C$13,"-",IFERROR(IF(OR(100/E120*(E132-E120)>250,100/E120*(E132-E120)<-250),".X",100/E120*(E132-E120)),"X")) -> -2.208374619 | H132: =INDEX('roh2-3'!$A$1:$FE$3927,MATCH(Strg!$H$5&"J,Langzeitarbeitslos"&IF(Strg!$A$5=1,"Insgesamt",IF(Strg!$A$5=2,"III,SGB III","II,SGB II")),'roh2-3'!$B$1:$B$3927&'roh2-3'!$D$1:$D$3927&'roh2-3'!$A$1:$A$3927,0),MATCH('2'!$A132,'roh2-3'!$A$1:$FE$1,0)) -> 935855 | I132: =IFERROR((IF($A132>Impressum!$C$13,"...",H132-H120)),".") -> -76278 | J132: =IF($A132>Impressum!$C$13,"-",IFERROR(IF(OR(100/H120*(H132-H120)>250,100/H120*(H132-H120)<-250),".X",100/H120*(H132-H120)),"X")) -> -7.536361328 | K132: =IF($A132>Impressum!$C$13,"-",IFERROR(100/B132*H132,"X")) -> 36.43907793 | L132: =IFERROR((IF($A132>Impressum!$C$13,"...",ROUND(100/(INDEX(Bzg!$A$1:$FC$438,MATCH(Strg!$H$5,Bzg!$A$1:$A$438,0),MATCH('2'!$A132,Bzg!$A$1:$FC$1,0)))*'2'!$B132,1))),".") -> 5.8 | M132: =IFERROR((IF($A132>Impressum!$C$13,"...",ROUND(100/(INDEX(Bzg!$A$1:$FC$438,MATCH(Strg!$H$5,Bzg!$A$1:$A$438,0),MATCH('2'!$A132,Bzg!$A$1:$FC$1,0)))*'2'!$H132,1))),".") -> 2.1
A133: 2017-01-01 | B133: =INDEX('roh2-3'!$A$1:$FE$3927,MATCH(Strg!$H$5&"Insgesamt"&IF(Strg!$A$5=1,"Insgesamt",IF(Strg!$A$5=2,"III,SGB III","II,SGB II")),'roh2-3'!$B$1:$B$3927&'roh2-3'!$D$1:$D$3927&'roh2-3'!$A$1:$A$3927,0),MATCH('2'!$A133,'roh2-3'!$A$1:$FE$1,0)) -> 2777387 | C133: =IFERROR((IF($A133>Impressum!$C$13,"...",B133-B121)),".") -> -143034 | D133: =IF($A133>Impressum!$C$13,"-",IFERROR(IF(OR(100/B121*(B133-B121)>250,100/B121*(B133-B121)<-250),".X",100/B121*(B133-B121)),"X")) -> -4.897718514 | E133: =INDEX('roh2-3'!$A$1:$FE$3927,MATCH(Strg!$H$5&"N,Nicht Langzeitarbeitslos"&IF(Strg!$A$5=1,"Insgesamt",IF(Strg!$A$5=2,"III,SGB III","II,SGB II")),'roh2-3'!$B$1:$B$3927&'roh2-3'!$D$1:$D$3927&'roh2-3'!$A$1:$A$3927,0),MATCH('2'!$A133,'roh2-3'!$A$1:$FE$1,0)) -> 1823980 | F133: =IFERROR((IF($A133>Impressum!$C$13,"...",E133-E121)),".") -> -47215 | G133: =IF($A133>Impressum!$C$13,"-",IFERROR(IF(OR(100/E121*(E133-E121)>250,100/E121*(E133-E121)<-250),".X",100/E121*(E133-E121)),"X")) -> -2.523253856 | H133: =INDEX('roh2-3'!$A$1:$FE$3927,MATCH(Strg!$H$5&"J,Langzeitarbeitslos"&IF(Strg!$A$5=1,"Insgesamt",IF(Strg!$A$5=2,"III,SGB III","II,SGB II")),'roh2-3'!$B$1:$B$3927&'roh2-3'!$D$1:$D$3927&'roh2-3'!$A$1:$A$3927,0),MATCH('2'!$A133,'roh2-3'!$A$1:$FE$1,0)) -> 953407 | I133: =IFERROR((IF($A133>Impressum!$C$13,"...",H133-H121)),".") -> -95819 | J133: =IF($A133>Impressum!$C$13,"-",IFERROR(IF(OR(100/H121*(H133-H121)>250,100/H121*(H133-H121)<-250),".X",100/H121*(H133-H121)),"X")) -> -9.132350895 | K133: =IF($A133>Impressum!$C$13,"-",IFERROR(100/B133*H133,"X")) -> 34.32748119 | L133: =IFERROR((IF($A133>Impressum!$C$13,"...",ROUND(100/(INDEX(Bzg!$A$1:$FC$438,MATCH(Strg!$H$5,Bzg!$A$1:$A$438,0),MATCH('2'!$A133,Bzg!$A$1:$FC$1,0)))*'2'!$B133,1))),".") -> 6.3 | M133: =IFERROR((IF($A133>Impressum!$C$13,"...",ROUND(100/(INDEX(Bzg!$A$1:$FC$438,MATCH(Strg!$H$5,Bzg!$A$1:$A$438,0),MATCH('2'!$A133,Bzg!$A$1:$FC$1,0)))*'2'!$H133,1))),".") -> 2.2
A134: 2017-02-01 | B134: =INDEX('roh2-3'!$A$1:$FE$3927,MATCH(Strg!$H$5&"Insgesamt"&IF(Strg!$A$5=1,"Insgesamt",IF(Strg!$A$5=2,"III,SGB III","II,SGB II")),'roh2-3'!$B$1:$B$3927&'roh2-3'!$D$1:$D$3927&'roh2-3'!$A$1:$A$3927,0),MATCH('2'!$A134,'roh2-3'!$A$1:$FE$1,0)) -> 2762095 | C134: =IFERROR((IF($A134>Impressum!$C$13,"...",B134-B122)),".") -> -149070 | D134: =IF($A134>Impressum!$C$13,"-",IFERROR(IF(OR(100/B122*(B134-B122)>250,100/B122*(B134-B122)<-250),".X",100/B122*(B134-B122)),"X")) -> -5.120630401 | E134: =INDEX('roh2-3'!$A$1:$FE$3927,MATCH(Strg!$H$5&"N,Nicht Langzeitarbeitslos"&IF(Strg!$A$5=1,"Insgesamt",IF(Strg!$A$5=2,"III,SGB III","II,SGB II")),'roh2-3'!$B$1:$B$3927&'roh2-3'!$D$1:$D$3927&'roh2-3'!$A$1:$A$3927,0),MATCH('2'!$A134,'roh2-3'!$A$1:$FE$1,0)) -> 1820559 | F134: =IFERROR((IF($A134>Impressum!$C$13,"...",E134-E122)),".") -> -46288 | G134: =IF($A134>Impressum!$C$13,"-",IFERROR(IF(OR(100/E122*(E134-E122)>250,100/E122*(E134-E122)<-250),".X",100/E122*(E134-E122)),"X")) -> -2.479474751 | H134: =INDEX('roh2-3'!$A$1:$FE$3927,MATCH(Strg!$H$5&"J,Langzeitarbeitslos"&IF(Strg!$A$5=1,"Insgesamt",IF(Strg!$A$5=2,"III,SGB III","II,SGB II")),'roh2-3'!$B$1:$B$3927&'roh2-3'!$D$1:$D$3927&'roh2-3'!$A$1:$A$3927,0),MATCH('2'!$A134,'roh2-3'!$A$1:$FE$1,0)) -> 941536 | I134: =IFERROR((IF($A134>Impressum!$C$13,"...",H134-H122)),".") -> -102782 | J134: =IF($A134>Impressum!$C$13,"-",IFERROR(IF(OR(100/H122*(H134-H122)>250,100/H122*(H134-H122)<-250),".X",100/H122*(H134-H122)),"X")) -> -9.8420213 | K134: =IF($A134>Impressum!$C$13,"-",IFERROR(100/B134*H134,"X")) -> 34.08774861 | L134: =IFERROR((IF($A134>Impressum!$C$13,"...",ROUND(100/(INDEX(Bzg!$A$1:$FC$438,MATCH(Strg!$H$5,Bzg!$A$1:$A$438,0),MATCH('2'!$A134,Bzg!$A$1:$FC$1,0)))*'2'!$B134,1))),".") -> 6.3 | M134: =IFERROR((IF($A134>Impressum!$C$13,"...",ROUND(100/(INDEX(Bzg!$A$1:$FC$438,MATCH(Strg!$H$5,Bzg!$A$1:$A$438,0),MATCH('2'!$A134,Bzg!$A$1:$FC$1,0)))*'2'!$H134,1))),".") -> 2.1
A135: 2017-03-01 | B135: =INDEX('roh2-3'!$A$1:$FE$3927,MATCH(Strg!$H$5&"Insgesamt"&IF(Strg!$A$5=1,"Insgesamt",IF(Strg!$A$5=2,"III,SGB III","II,SGB II")),'roh2-3'!$B$1:$B$3927&'roh2-3'!$D$1:$D$3927&'roh2-3'!$A$1:$A$3927,0),MATCH('2'!$A135,'roh2-3'!$A$1:$FE$1,0)) -> 2662111 | C135: =IFERROR((IF($A135>Impressum!$C$13,"...",B135-B123)),".") -> -182780 | D135: =IF($A135>Impressum!$C$13,"-",IFERROR(IF(OR(100/B123*(B135-B123)>250,100/B123*(B135-B123)<-250),".X",100/B123*(B135-B123)),"X")) -> -6.424850724 | E135: =INDEX('roh2-3'!$A$1:$FE$3927,MATCH(Strg!$H$5&"N,Nicht Langzeitarbeitslos"&IF(Strg!$A$5=1,"Insgesamt",IF(Strg!$A$5=2,"III,SGB III","II,SGB II")),'roh2-3'!$B$1:$B$3927&'roh2-3'!$D$1:$D$3927&'roh2-3'!$A$1:$A$3927,0),MATCH('2'!$A135,'roh2-3'!$A$1:$FE$1,0)) -> 1733251 | F135: =IFERROR((IF($A135>Impressum!$C$13,"...",E135-E123)),".") -> -72925 | G135: =IF($A135>Impressum!$C$13,"-",IFERROR(IF(OR(100/E123*(E135-E123)>250,100/E123*(E135-E123)<-250),".X",100/E123*(E135-E123)),"X")) -> -4.037535655 | H135: =INDEX('roh2-3'!$A$1:$FE$3927,MATCH(Strg!$H$5&"J,Langzeitarbeitslos"&IF(Strg!$A$5=1,"Insgesamt",IF(Strg!$A$5=2,"III,SGB III","II,SGB II")),'roh2-3'!$B$1:$B$3927&'roh2-3'!$D$1:$D$3927&'roh2-3'!$A$1:$A$3927,0),MATCH('2'!$A135,'roh2-3'!$A$1:$FE$1,0)) -> 928860 | I135: =IFERROR((IF($A135>Impressum!$C$13,"...",H135-H123)),".") -> -109855 | J135: =IF($A135>Impressum!$C$13,"-",IFERROR(IF(OR(100/H123*(H135-H123)>250,100/H123*(H135-H123)<-250),".X",100/H123*(H135-H123)),"X")) -> -10.57604829 | K135: =IF($A135>Impressum!$C$13,"-",IFERROR(100/B135*H135,"X")) -> 34.89185838 | L135: =IFERROR((IF($A135>Impressum!$C$13,"...",ROUND(100/(INDEX(Bzg!$A$1:$FC$438,MATCH(Strg!$H$5,Bzg!$A$1:$A$438,0),MATCH('2'!$A135,Bzg!$A$1:$FC$1,0)))*'2'!$B135,1))),".") -> 6 | M135: =IFERROR((IF($A135>Impressum!$C$13,"...",ROUND(100/(INDEX(Bzg!$A$1:$FC$438,MATCH(Strg!$H$5,Bzg!$A$1:$A$438,0),MATCH('2'!$A135,Bzg!$A$1:$FC$1,0)))*'2'!$H135,1))),".") -> 2.1
A136: 2017-04-01 | B136: =INDEX('roh2-3'!$A$1:$FE$3927,MATCH(Strg!$H$5&"Insgesamt"&IF(Strg!$A$5=1,"Insgesamt",IF(Strg!$A$5=2,"III,SGB III","II,SGB II")),'roh2-3'!$B$1:$B$3927&'roh2-3'!$D$1:$D$3927&'roh2-3'!$A$1:$A$3927,0),MATCH('2'!$A136,'roh2-3'!$A$1:$FE$1,0)) -> 2568612 | C136: =IFERROR((IF($A136>Impressum!$C$13,"...",B136-B124)),".") -> -175252 | D136: =IF($A136>Impressum!$C$13,"-",IFERROR(IF(OR(100/B124*(B136-B124)>250,100/B124*(B136-B124)<-250),".X",100/B124*(B136-B124)),"X")) -> -6.387051253 | E136: =INDEX('roh2-3'!$A$1:$FE$3927,MATCH(Strg!$H$5&"N,Nicht Langzeitarbeitslos"&IF(Strg!$A$5=1,"Insgesamt",IF(Strg!$A$5=2,"III,SGB III","II,SGB II")),'roh2-3'!$B$1:$B$3927&'roh2-3'!$D$1:$D$3927&'roh2-3'!$A$1:$A$3927,0),MATCH('2'!$A136,'roh2-3'!$A$1:$FE$1,0)) -> 1652760 | F136: =IFERROR((IF($A136>Impressum!$C$13,"...",E136-E124)),".") -> -63765 | G136: =IF($A136>Impressum!$C$13,"-",IFERROR(IF(OR(100/E124*(E136-E124)>250,100/E124*(E136-E124)<-250),".X",100/E124*(E136-E124)),"X")) -> -3.714772578 | H136: =INDEX('roh2-3'!$A$1:$FE$3927,MATCH(Strg!$H$5&"J,Langzeitarbeitslos"&IF(Strg!$A$5=1,"Insgesamt",IF(Strg!$A$5=2,"III,SGB III","II,SGB II")),'roh2-3'!$B$1:$B$3927&'roh2-3'!$D$1:$D$3927&'roh2-3'!$A$1:$A$3927,0),MATCH('2'!$A136,'roh2-3'!$A$1:$FE$1,0)) -> 915852 | I136: =IFERROR((IF($A136>Impressum!$C$13,"...",H136-H124)),".") -> -111487 | J136: =IF($A136>Impressum!$C$13,"-",IFERROR(IF(OR(100/H124*(H136-H124)>250,100/H124*(H136-H124)<-250),".X",100/H124*(H136-H124)),"X")) -> -10.85201672 | K136: =IF($A136>Impressum!$C$13,"-",IFERROR(100/B136*H136,"X")) -> 35.65552135 | L136: =IFERROR((IF($A136>Impressum!$C$13,"...",ROUND(100/(INDEX(Bzg!$A$1:$FC$438,MATCH(Strg!$H$5,Bzg!$A$1:$A$438,0),MATCH('2'!$A136,Bzg!$A$1:$FC$1,0)))*'2'!$B136,1))),".") -> 5.8 | M136: =IFERROR((IF($A136>Impressum!$C$13,"...",ROUND(100/(INDEX(Bzg!$A$1:$FC$438,MATCH(Strg!$H$5,Bzg!$A$1:$A$438,0),MATCH('2'!$A136,Bzg!$A$1:$FC$1,0)))*'2'!$H136,1))),".") -> 2.1
A137: 2017-05-01 | B137: =INDEX('roh2-3'!$A$1:$FE$3927,MATCH(Strg!$H$5&"Insgesamt"&IF(Strg!$A$5=1,"Insgesamt",IF(Strg!$A$5=2,"III,SGB III","II,SGB II")),'roh2-3'!$B$1:$B$3927&'roh2-3'!$D$1:$D$3927&'roh2-3'!$A$1:$A$3927,0),MATCH('2'!$A137,'roh2-3'!$A$1:$FE$1,0)) -> 2497718 | C137: =IFERROR((IF($A137>Impressum!$C$13,"...",B137-B125)),".") -> -166296 | D137: =IF($A137>Impressum!$C$13,"-",IFERROR(IF(OR(100/B125*(B137-B125)>250,100/B125*(B137-B125)<-250),".X",100/B125*(B137-B125)),"X")) -> -6.242309537 | E137: =INDEX('roh2-3'!$A$1:$FE$3927,MATCH(Strg!$H$5&"N,Nicht Langzeitarbeitslos"&IF(Strg!$A$5=1,"Insgesamt",IF(Strg!$A$5=2,"III,SGB III","II,SGB II")),'roh2-3'!$B$1:$B$3927&'roh2-3'!$D$1:$D$3927&'roh2-3'!$A$1:$A$3927,0),MATCH('2'!$A137,'roh2-3'!$A$1:$FE$1,0)) -> 1587711 | F137: =IFERROR((IF($A137>Impressum!$C$13,"...",E137-E125)),".") -> -69627 | G137: =IF($A137>Impressum!$C$13,"-",IFERROR(IF(OR(100/E125*(E137-E125)>250,100/E125*(E137-E125)<-250),".X",100/E125*(E137-E125)),"X")) -> -4.201134591 | H137: =INDEX('roh2-3'!$A$1:$FE$3927,MATCH(Strg!$H$5&"J,Langzeitarbeitslos"&IF(Strg!$A$5=1,"Insgesamt",IF(Strg!$A$5=2,"III,SGB III","II,SGB II")),'roh2-3'!$B$1:$B$3927&'roh2-3'!$D$1:$D$3927&'roh2-3'!$A$1:$A$3927,0),MATCH('2'!$A137,'roh2-3'!$A$1:$FE$1,0)) -> 910007 | I137: =IFERROR((IF($A137>Impressum!$C$13,"...",H137-H125)),".") -> -96669 | J137: =IF($A137>Impressum!$C$13,"-",IFERROR(IF(OR(100/H125*(H137-H125)>250,100/H125*(H137-H125)<-250),".X",100/H125*(H137-H125)),"X")) -> -9.602791762 | K137: =IF($A137>Impressum!$C$13,"-",IFERROR(100/B137*H137,"X")) -> 36.43353653 | L137: =IFERROR((IF($A137>Impressum!$C$13,"...",ROUND(100/(INDEX(Bzg!$A$1:$FC$438,MATCH(Strg!$H$5,Bzg!$A$1:$A$438,0),MATCH('2'!$A137,Bzg!$A$1:$FC$1,0)))*'2'!$B137,1))),".") -> 5.6 | M137: =IFERROR((IF($A137>Impressum!$C$13,"...",ROUND(100/(INDEX(Bzg!$A$1:$FC$438,MATCH(Strg!$H$5,Bzg!$A$1:$A$438,0),MATCH('2'!$A137,Bzg!$A$1:$FC$1,0)))*'2'!$H137,1))),".") -> 2
A138: 2017-06-01 | B138: =INDEX('roh2-3'!$A$1:$FE$3927,MATCH(Strg!$H$5&"Insgesamt"&IF(Strg!$A$5=1,"Insgesamt",IF(Strg!$A$5=2,"III,SGB III","II,SGB II")),'roh2-3'!$B$1:$B$3927&'roh2-3'!$D$1:$D$3927&'roh2-3'!$A$1:$A$3927,0),MATCH('2'!$A138,'roh2-3'!$A$1:$FE$1,0)) -> 2472642 | C138: =IFERROR((IF($A138>Impressum!$C$13,"...",B138-B126)),".") -> -141575 | D138: =IF($A138>Impressum!$C$13,"-",IFERROR(IF(OR(100/B126*(B138-B126)>250,100/B126*(B138-B126)<-250),".X",100/B126*(B138-B126)),"X")) -> -5.415579502 | E138: =INDEX('roh2-3'!$A$1:$FE$3927,MATCH(Strg!$H$5&"N,Nicht Langzeitarbeitslos"&IF(Strg!$A$5=1,"Insgesamt",IF(Strg!$A$5=2,"III,SGB III","II,SGB II")),'roh2-3'!$B$1:$B$3927&'roh2-3'!$D$1:$D$3927&'roh2-3'!$A$1:$A$3927,0),MATCH('2'!$A138,'roh2-3'!$A$1:$FE$1,0)) -> 1569597 | F138: =IFERROR((IF($A138>Impressum!$C$13,"...",E138-E126)),".") -> -50631 | G138: =IF($A138>Impressum!$C$13,"-",IFERROR(IF(OR(100/E126*(E138-E126)>250,100/E126*(E138-E126)<-250),".X",100/E126*(E138-E126)),"X")) -> -3.124930565 | H138: =INDEX('roh2-3'!$A$1:$FE$3927,MATCH(Strg!$H$5&"J,Langzeitarbeitslos"&IF(Strg!$A$5=1,"Insgesamt",IF(Strg!$A$5=2,"III,SGB III","II,SGB II")),'roh2-3'!$B$1:$B$3927&'roh2-3'!$D$1:$D$3927&'roh2-3'!$A$1:$A$3927,0),MATCH('2'!$A138,'roh2-3'!$A$1:$FE$1,0)) -> 903045 | I138: =IFERROR((IF($A138>Impressum!$C$13,"...",H138-H126)),".") -> -90944 | J138: =IF($A138>Impressum!$C$13,"-",IFERROR(IF(OR(100/H126*(H138-H126)>250,100/H126*(H138-H126)<-250),".X",100/H126*(H138-H126)),"X")) -> -9.149397026 | K138: =IF($A138>Impressum!$C$13,"-",IFERROR(100/B138*H138,"X")) -> 36.52146166 | L138: =IFERROR((IF($A138>Impressum!$C$13,"...",ROUND(100/(INDEX(Bzg!$A$1:$FC$438,MATCH(Strg!$H$5,Bzg!$A$1:$A$438,0),MATCH('2'!$A138,Bzg!$A$1:$FC$1,0)))*'2'!$B138,1))),".") -> 5.5 | M138: =IFERROR((IF($A138>Impressum!$C$13,"...",ROUND(100/(INDEX(Bzg!$A$1:$FC$438,MATCH(Strg!$H$5,Bzg!$A$1:$A$438,0),MATCH('2'!$A138,Bzg!$A$1:$FC$1,0)))*'2'!$H138,1))),".") -> 2
A139: 2017-07-01 | B139: =INDEX('roh2-3'!$A$1:$FE$3927,MATCH(Strg!$H$5&"Insgesamt"&IF(Strg!$A$5=1,"Insgesamt",IF(Strg!$A$5=2,"III,SGB III","II,SGB II")),'roh2-3'!$B$1:$B$3927&'roh2-3'!$D$1:$D$3927&'roh2-3'!$A$1:$A$3927,0),MATCH('2'!$A139,'roh2-3'!$A$1:$FE$1,0)) -> 2517645 | C139: =IFERROR((IF($A139>Impressum!$C$13,"...",B139-B127)),".") -> -143397 | D139: =IF($A139>Impressum!$C$13,"-",IFERROR(IF(OR(100/B127*(B139-B127)>250,100/B127*(B139-B127)<-250),".X",100/B127*(B139-B127)),"X")) -> -5.388753729 | E139: =INDEX('roh2-3'!$A$1:$FE$3927,MATCH(Strg!$H$5&"N,Nicht Langzeitarbeitslos"&IF(Strg!$A$5=1,"Insgesamt",IF(Strg!$A$5=2,"III,SGB III","II,SGB II")),'roh2-3'!$B$1:$B$3927&'roh2-3'!$D$1:$D$3927&'roh2-3'!$A$1:$A$3927,0),MATCH('2'!$A139,'roh2-3'!$A$1:$FE$1,0)) -> 1619066 | F139: =IFERROR((IF($A139>Impressum!$C$13,"...",E139-E127)),".") -> -56756 | G139: =IF($A139>Impressum!$C$13,"-",IFERROR(IF(OR(100/E127*(E139-E127)>250,100/E127*(E139-E127)<-250),".X",100/E127*(E139-E127)),"X")) -> -3.386755873 | H139: =INDEX('roh2-3'!$A$1:$FE$3927,MATCH(Strg!$H$5&"J,Langzeitarbeitslos"&IF(Strg!$A$5=1,"Insgesamt",IF(Strg!$A$5=2,"III,SGB III","II,SGB II")),'roh2-3'!$B$1:$B$3927&'roh2-3'!$D$1:$D$3927&'roh2-3'!$A$1:$A$3927,0),MATCH('2'!$A139,'roh2-3'!$A$1:$FE$1,0)) -> 898579 | I139: =IFERROR((IF($A139>Impressum!$C$13,"...",H139-H127)),".") -> -86641 | J139: =IF($A139>Impressum!$C$13,"-",IFERROR(IF(OR(100/H127*(H139-H127)>250,100/H127*(H139-H127)<-250),".X",100/H127*(H139-H127)),"X")) -> -8.79407645 | K139: =IF($A139>Impressum!$C$13,"-",IFERROR(100/B139*H139,"X")) -> 35.69125115 | L139: =IFERROR((IF($A139>Impressum!$C$13,"...",ROUND(100/(INDEX(Bzg!$A$1:$FC$438,MATCH(Strg!$H$5,Bzg!$A$1:$A$438,0),MATCH('2'!$A139,Bzg!$A$1:$FC$1,0)))*'2'!$B139,1))),".") -> 5.6 | M139: =IFERROR((IF($A139>Impressum!$C$13,"...",ROUND(100/(INDEX(Bzg!$A$1:$FC$438,MATCH(Strg!$H$5,Bzg!$A$1:$A$438,0),MATCH('2'!$A139,Bzg!$A$1:$FC$1,0)))*'2'!$H139,1))),".") -> 2
A140: 2017-08-01 | B140: =INDEX('roh2-3'!$A$1:$FE$3927,MATCH(Strg!$H$5&"Insgesamt"&IF(Strg!$A$5=1,"Insgesamt",IF(Strg!$A$5=2,"III,SGB III","II,SGB II")),'roh2-3'!$B$1:$B$3927&'roh2-3'!$D$1:$D$3927&'roh2-3'!$A$1:$A$3927,0),MATCH('2'!$A140,'roh2-3'!$A$1:$FE$1,0)) -> 2544845 | C140: =IFERROR((IF($A140>Impressum!$C$13,"...",B140-B128)),".") -> -139444 | D140: =IF($A140>Impressum!$C$13,"-",IFERROR(IF(OR(100/B128*(B140-B128)>250,100/B128*(B140-B128)<-250),".X",100/B128*(B140-B128)),"X")) -> -5.194820677 | E140: =INDEX('roh2-3'!$A$1:$FE$3927,MATCH(Strg!$H$5&"N,Nicht Langzeitarbeitslos"&IF(Strg!$A$5=1,"Insgesamt",IF(Strg!$A$5=2,"III,SGB III","II,SGB II")),'roh2-3'!$B$1:$B$3927&'roh2-3'!$D$1:$D$3927&'roh2-3'!$A$1:$A$3927,0),MATCH('2'!$A140,'roh2-3'!$A$1:$FE$1,0)) -> 1649667 | F140: =IFERROR((IF($A140>Impressum!$C$13,"...",E140-E128)),".") -> -58766 | G140: =IF($A140>Impressum!$C$13,"-",IFERROR(IF(OR(100/E128*(E140-E128)>250,100/E128*(E140-E128)<-250),".X",100/E128*(E140-E128)),"X")) -> -3.439760295 | H140: =INDEX('roh2-3'!$A$1:$FE$3927,MATCH(Strg!$H$5&"J,Langzeitarbeitslos"&IF(Strg!$A$5=1,"Insgesamt",IF(Strg!$A$5=2,"III,SGB III","II,SGB II")),'roh2-3'!$B$1:$B$3927&'roh2-3'!$D$1:$D$3927&'roh2-3'!$A$1:$A$3927,0),MATCH('2'!$A140,'roh2-3'!$A$1:$FE$1,0)) -> 895178 | I140: =IFERROR((IF($A140>Impressum!$C$13,"...",H140-H128)),".") -> -80678 | J140: =IF($A140>Impressum!$C$13,"-",IFERROR(IF(OR(100/H128*(H140-H128)>250,100/H128*(H140-H128)<-250),".X",100/H128*(H140-H128)),"X")) -> -8.267408306 | K140: =IF($A140>Impressum!$C$13,"-",IFERROR(100/B140*H140,"X")) -> 35.17613057 | L140: =IFERROR((IF($A140>Impressum!$C$13,"...",ROUND(100/(INDEX(Bzg!$A$1:$FC$438,MATCH(Strg!$H$5,Bzg!$A$1:$A$438,0),MATCH('2'!$A140,Bzg!$A$1:$FC$1,0)))*'2'!$B140,1))),".") -> 5.7 | M140: =IFERROR((IF($A140>Impressum!$C$13,"...",ROUND(100/(INDEX(Bzg!$A$1:$FC$438,MATCH(Strg!$H$5,Bzg!$A$1:$A$438,0),MATCH('2'!$A140,Bzg!$A$1:$FC$1,0)))*'2'!$H140,1))),".") -> 2
A141: 2017-09-01 | B141: =INDEX('roh2-3'!$A$1:$FE$3927,MATCH(Strg!$H$5&"Insgesamt"&IF(Strg!$A$5=1,"Insgesamt",IF(Strg!$A$5=2,"III,SGB III","II,SGB II")),'roh2-3'!$B$1:$B$3927&'roh2-3'!$D$1:$D$3927&'roh2-3'!$A$1:$A$3927,0),MATCH('2'!$A141,'roh2-3'!$A$1:$FE$1,0)) -> 2448910 | C141: =IFERROR((IF($A141>Impressum!$C$13,"...",B141-B129)),".") -> -158697 | D141: =IF($A141>Impressum!$C$13,"-",IFERROR(IF(OR(100/B129*(B141-B129)>250,100/B129*(B141-B129)<-250),".X",100/B129*(B141-B129)),"X")) -> -6.085924758 | E141: =INDEX('roh2-3'!$A$1:$FE$3927,MATCH(Strg!$H$5&"N,Nicht Langzeitarbeitslos"&IF(Strg!$A$5=1,"Insgesamt",IF(Strg!$A$5=2,"III,SGB III","II,SGB II")),'roh2-3'!$B$1:$B$3927&'roh2-3'!$D$1:$D$3927&'roh2-3'!$A$1:$A$3927,0),MATCH('2'!$A141,'roh2-3'!$A$1:$FE$1,0)) -> 1568840 | F141: =IFERROR((IF($A141>Impressum!$C$13,"...",E141-E129)),".") -> -73509 | G141: =IF($A141>Impressum!$C$13,"-",IFERROR(IF(OR(100/E129*(E141-E129)>250,100/E129*(E141-E129)<-250),".X",100/E129*(E141-E129)),"X")) -> -4.475845268 | H141: =INDEX('roh2-3'!$A$1:$FE$3927,MATCH(Strg!$H$5&"J,Langzeitarbeitslos"&IF(Strg!$A$5=1,"Insgesamt",IF(Strg!$A$5=2,"III,SGB III","II,SGB II")),'roh2-3'!$B$1:$B$3927&'roh2-3'!$D$1:$D$3927&'roh2-3'!$A$1:$A$3927,0),MATCH('2'!$A141,'roh2-3'!$A$1:$FE$1,0)) -> 880070 | I141: =IFERROR((IF($A141>Impressum!$C$13,"...",H141-H129)),".") -> -85188 | J141: =IF($A141>Impressum!$C$13,"-",IFERROR(IF(OR(100/H129*(H141-H129)>250,100/H129*(H141-H129)<-250),".X",100/H129*(H141-H129)),"X")) -> -8.82541248 | K141: =IF($A141>Impressum!$C$13,"-",IFERROR(100/B141*H141,"X")) -> 35.93721288 | L141: =IFERROR((IF($A141>Impressum!$C$13,"...",ROUND(100/(INDEX(Bzg!$A$1:$FC$438,MATCH(Strg!$H$5,Bzg!$A$1:$A$438,0),MATCH('2'!$A141,Bzg!$A$1:$FC$1,0)))*'2'!$B141,1))),".") -> 5.5 | M141: =IFERROR((IF($A141>Impressum!$C$13,"...",ROUND(100/(INDEX(Bzg!$A$1:$FC$438,MATCH(Strg!$H$5,Bzg!$A$1:$A$438,0),MATCH('2'!$A141,Bzg!$A$1:$FC$1,0)))*'2'!$H141,1))),".") -> 2
A142: 2017-10-01 | B142: =INDEX('roh2-3'!$A$1:$FE$3927,MATCH(Strg!$H$5&"Insgesamt"&IF(Strg!$A$5=1,"Insgesamt",IF(Strg!$A$5=2,"III,SGB III","II,SGB II")),'roh2-3'!$B$1:$B$3927&'roh2-3'!$D$1:$D$3927&'roh2-3'!$A$1:$A$3927,0),MATCH('2'!$A142,'roh2-3'!$A$1:$FE$1,0)) -> 2388711 | C142: =IFERROR((IF($A142>Impressum!$C$13,"...",B142-B130)),".") -> -151228 | D142: =IF($A142>Impressum!$C$13,"-",IFERROR(IF(OR(100/B130*(B142-B130)>250,100/B130*(B142-B130)<-250),".X",100/B130*(B142-B130)),"X")) -> -5.954001258 | E142: =INDEX('roh2-3'!$A$1:$FE$3927,MATCH(Strg!$H$5&"N,Nicht Langzeitarbeitslos"&IF(Strg!$A$5=1,"Insgesamt",IF(Strg!$A$5=2,"III,SGB III","II,SGB II")),'roh2-3'!$B$1:$B$3927&'roh2-3'!$D$1:$D$3927&'roh2-3'!$A$1:$A$3927,0),MATCH('2'!$A142,'roh2-3'!$A$1:$FE$1,0)) -> 1519830 | F142: =IFERROR((IF($A142>Impressum!$C$13,"...",E142-E130)),".") -> -69025 | G142: =IF($A142>Impressum!$C$13,"-",IFERROR(IF(OR(100/E130*(E142-E130)>250,100/E130*(E142-E130)<-250),".X",100/E130*(E142-E130)),"X")) -> -4.344323428 | H142: =INDEX('roh2-3'!$A$1:$FE$3927,MATCH(Strg!$H$5&"J,Langzeitarbeitslos"&IF(Strg!$A$5=1,"Insgesamt",IF(Strg!$A$5=2,"III,SGB III","II,SGB II")),'roh2-3'!$B$1:$B$3927&'roh2-3'!$D$1:$D$3927&'roh2-3'!$A$1:$A$3927,0),MATCH('2'!$A142,'roh2-3'!$A$1:$FE$1,0)) -> 868881 | I142: =IFERROR((IF($A142>Impressum!$C$13,"...",H142-H130)),".") -> -82203 | J142: =IF($A142>Impressum!$C$13,"-",IFERROR(IF(OR(100/H130*(H142-H130)>250,100/H130*(H142-H130)<-250),".X",100/H130*(H142-H130)),"X")) -> -8.643085153 | K142: =IF($A142>Impressum!$C$13,"-",IFERROR(100/B142*H142,"X")) -> 36.37447142 | L142: =IFERROR((IF($A142>Impressum!$C$13,"...",ROUND(100/(INDEX(Bzg!$A$1:$FC$438,MATCH(Strg!$H$5,Bzg!$A$1:$A$438,0),MATCH('2'!$A142,Bzg!$A$1:$FC$1,0)))*'2'!$B142,1))),".") -> 5.4 | M142: =IFERROR((IF($A142>Impressum!$C$13,"...",ROUND(100/(INDEX(Bzg!$A$1:$FC$438,MATCH(Strg!$H$5,Bzg!$A$1:$A$438,0),MATCH('2'!$A142,Bzg!$A$1:$FC$1,0)))*'2'!$H142,1))),".") -> 1.9
A143: 2017-11-01 | B143: =IF($A143>Impressum!$C$13,"...",INDEX('roh2-3'!$A$1:$FE$3927,MATCH(Strg!$H$5&"Insgesamt"&IF(Strg!$A$5=1,"Insgesamt",IF(Strg!$A$5=2,"III,SGB III","II,SGB II")),'roh2-3'!$B$1:$B$3927&'roh2-3'!$D$1:$D$3927&'roh2-3'!$A$1:$A$3927,0),MATCH('2'!$A143,'roh2-3'!$A$1:$FE$1,0))) -> 2368411 | C143: =IFERROR((IF($A143>Impressum!$C$13,"...",B143-B131)),".") -> -163564 | D143: =IF($A143>Impressum!$C$13,"...",IFERROR(IF(OR(100/B131*(B143-B131)>250,100/B131*(B143-B131)<-250),".X",100/B131*(B143-B131)),"X")) -> -6.459937401 | E143: =IF($A143>Impressum!$C$13,"...",INDEX('roh2-3'!$A$1:$FE$3927,MATCH(Strg!$H$5&"N,Nicht Langzeitarbeitslos"&IF(Strg!$A$5=1,"Insgesamt",IF(Strg!$A$5=2,"III,SGB III","II,SGB II")),'roh2-3'!$B$1:$B$3927&'roh2-3'!$D$1:$D$3927&'roh2-3'!$A$1:$A$3927,0),MATCH('2'!$A143,'roh2-3'!$A$1:$FE$1,0))) -> 1506759 | F143: =IFERROR((IF($A143>Impressum!$C$13,"...",E143-E131)),".") -> -81880 | G143: =IF($A143>Impressum!$C$13,"...",IFERROR(IF(OR(100/E131*(E143-E131)>250,100/E131*(E143-E131)<-250),".X",100/E131*(E143-E131)),"X")) -> -5.154097312 | H143: =IF($A143>Impressum!$C$13,"...",INDEX('roh2-3'!$A$1:$FE$3927,MATCH(Strg!$H$5&"J,Langzeitarbeitslos"&IF(Strg!$A$5=1,"Insgesamt",IF(Strg!$A$5=2,"III,SGB III","II,SGB II")),'roh2-3'!$B$1:$B$3927&'roh2-3'!$D$1:$D$3927&'roh2-3'!$A$1:$A$3927,0),MATCH('2'!$A143,'roh2-3'!$A$1:$FE$1,0))) -> 861652 | I143: =IFERROR((IF($A143>Impressum!$C$13,"...",H143-H131)),".") -> -81684 | J143: =IF($A143>Impressum!$C$13,"...",IFERROR(IF(OR(100/H131*(H143-H131)>250,100/H131*(H143-H131)<-250),".X",100/H131*(H143-H131)),"X")) -> -8.659056794 | K143: =IF($A143>Impressum!$C$13,"...",IFERROR(100/B143*H143,"X")) -> 36.38101664 | L143: =IFERROR((IF($A143>Impressum!$C$13,"...",ROUND(100/(INDEX(Bzg!$A$1:$FC$438,MATCH(Strg!$H$5,Bzg!$A$1:$A$438,0),MATCH('2'!$A143,Bzg!$A$1:$FC$1,0)))*'2'!$B143,1))),".") -> 5.3 | M143: =IFERROR((IF($A143>Impressum!$C$13,"...",ROUND(100/(INDEX(Bzg!$A$1:$FC$438,MATCH(Strg!$H$5,Bzg!$A$1:$A$438,0),MATCH('2'!$A143,Bzg!$A$1:$FC$1,0)))*'2'!$H143,1))),".") -> 1.9
A144: 2017-12-01 | B144: =IF($A144>Impressum!$C$13,"...",INDEX('roh2-3'!$A$1:$FE$3927,MATCH(Strg!$H$5&"Insgesamt"&IF(Strg!$A$5=1,"Insgesamt",IF(Strg!$A$5=2,"III,SGB III","II,SGB II")),'roh2-3'!$B$1:$B$3927&'roh2-3'!$D$1:$D$3927&'roh2-3'!$A$1:$A$3927,0),MATCH('2'!$A144,'roh2-3'!$A$1:$FE$1,0))) -> 2384961 | C144: =IFERROR((IF($A144>Impressum!$C$13,"...",B144-B132)),".") -> -183312 | D144: =IF($A144>Impressum!$C$13,"...",IFERROR(IF(OR(100/B132*(B144-B132)>250,100/B132*(B144-B132)<-250),".X",100/B132*(B144-B132)),"X")) -> -7.137558974 | E144: =IF($A144>Impressum!$C$13,"...",INDEX('roh2-3'!$A$1:$FE$3927,MATCH(Strg!$H$5&"N,Nicht Langzeitarbeitslos"&IF(Strg!$A$5=1,"Insgesamt",IF(Strg!$A$5=2,"III,SGB III","II,SGB II")),'roh2-3'!$B$1:$B$3927&'roh2-3'!$D$1:$D$3927&'roh2-3'!$A$1:$A$3927,0),MATCH('2'!$A144,'roh2-3'!$A$1:$FE$1,0))) -> 1533090 | F144: =IFERROR((IF($A144>Impressum!$C$13,"...",E144-E132)),".") -> -99328 | G144: =IF($A144>Impressum!$C$13,"...",IFERROR(IF(OR(100/E132*(E144-E132)>250,100/E132*(E144-E132)<-250),".X",100/E132*(E144-E132)),"X")) -> -6.084716047 | H144: =IF($A144>Impressum!$C$13,"...",INDEX('roh2-3'!$A$1:$FE$3927,MATCH(Strg!$H$5&"J,Langzeitarbeitslos"&IF(Strg!$A$5=1,"Insgesamt",IF(Strg!$A$5=2,"III,SGB III","II,SGB II")),'roh2-3'!$B$1:$B$3927&'roh2-3'!$D$1:$D$3927&'roh2-3'!$A$1:$A$3927,0),MATCH('2'!$A144,'roh2-3'!$A$1:$FE$1,0))) -> 851871 | I144: =IFERROR((IF($A144>Impressum!$C$13,"...",H144-H132)),".") -> -83984 | J144: =IF($A144>Impressum!$C$13,"...",IFERROR(IF(OR(100/H132*(H144-H132)>250,100/H132*(H144-H132)<-250),".X",100/H132*(H144-H132)),"X")) -> -8.974039782 | K144: =IF($A144>Impressum!$C$13,"...",IFERROR(100/B144*H144,"X")) -> 35.71844571 | L144: =IFERROR((IF($A144>Impressum!$C$13,"...",ROUND(100/(INDEX(Bzg!$A$1:$FC$438,MATCH(Strg!$H$5,Bzg!$A$1:$A$438,0),MATCH('2'!$A144,Bzg!$A$1:$FC$1,0)))*'2'!$B144,1))),".") -> 5.3 | M144: =IFERROR((IF($A144>Impressum!$C$13,"...",ROUND(100/(INDEX(Bzg!$A$1:$FC$438,MATCH(Strg!$H$5,Bzg!$A$1:$A$438,0),MATCH('2'!$A144,Bzg!$A$1:$FC$1,0)))*'2'!$H144,1))),".") -> 1.9
A145: 2018-01-01 | B145: =IF($A145>Impressum!$C$13,"...",INDEX('roh2-3'!$A$1:$FE$3927,MATCH(Strg!$H$5&"Insgesamt"&IF(Strg!$A$5=1,"Insgesamt",IF(Strg!$A$5=2,"III,SGB III","II,SGB II")),'roh2-3'!$B$1:$B$3927&'roh2-3'!$D$1:$D$3927&'roh2-3'!$A$1:$A$3927,0),MATCH('2'!$A145,'roh2-3'!$A$1:$FE$1,0))) -> 2570311 | C145: =IFERROR((IF($A145>Impressum!$C$13,"...",B145-B133)),".") -> -207076 | D145: =IF($A145>Impressum!$C$13,"...",IFERROR(IF(OR(100/B133*(B145-B133)>250,100/B133*(B145-B133)<-250),".X",100/B133*(B145-B133)),"X")) -> -7.45578488 | E145: =IF($A145>Impressum!$C$13,"...",INDEX('roh2-3'!$A$1:$FE$3927,MATCH(Strg!$H$5&"N,Nicht Langzeitarbeitslos"&IF(Strg!$A$5=1,"Insgesamt",IF(Strg!$A$5=2,"III,SGB III","II,SGB II")),'roh2-3'!$B$1:$B$3927&'roh2-3'!$D$1:$D$3927&'roh2-3'!$A$1:$A$3927,0),MATCH('2'!$A145,'roh2-3'!$A$1:$FE$1,0))) -> 1701466 | F145: =IFERROR((IF($A145>Impressum!$C$13,"...",E145-E133)),".") -> -122514 | G145: =IF($A145>Impressum!$C$13,"...",IFERROR(IF(OR(100/E133*(E145-E133)>250,100/E133*(E145-E133)<-250),".X",100/E133*(E145-E133)),"X")) -> -6.716849965 | H145: =IF($A145>Impressum!$C$13,"...",INDEX('roh2-3'!$A$1:$FE$3927,MATCH(Strg!$H$5&"J,Langzeitarbeitslos"&IF(Strg!$A$5=1,"Insgesamt",IF(Strg!$A$5=2,"III,SGB III","II,SGB II")),'roh2-3'!$B$1:$B$3927&'roh2-3'!$D$1:$D$3927&'roh2-3'!$A$1:$A$3927,0),MATCH('2'!$A145,'roh2-3'!$A$1:$FE$1,0))) -> 868845 | I145: =IFERROR((IF($A145>Impressum!$C$13,"...",H145-H133)),".") -> -84562 | J145: =IF($A145>Impressum!$C$13,"...",IFERROR(IF(OR(100/H133*(H145-H133)>250,100/H133*(H145-H133)<-250),".X",100/H133*(H145-H133)),"X")) -> -8.869454493 | K145: =IF($A145>Impressum!$C$13,"...",IFERROR(100/B145*H145,"X")) -> 33.80310787 | L145: =IFERROR((IF($A145>Impressum!$C$13,"...",ROUND(100/(INDEX(Bzg!$A$1:$FC$438,MATCH(Strg!$H$5,Bzg!$A$1:$A$438,0),MATCH('2'!$A145,Bzg!$A$1:$FC$1,0)))*'2'!$B145,1))),".") -> 5.8 | M145: =IFERROR((IF($A145>Impressum!$C$13,"...",ROUND(100/(INDEX(Bzg!$A$1:$FC$438,MATCH(Strg!$H$5,Bzg!$A$1:$A$438,0),MATCH('2'!$A145,Bzg!$A$1:$FC$1,0)))*'2'!$H145,1))),".") -> 1.9
A146: 2018-02-01 | B146: =IF($A146>Impressum!$C$13,"...",INDEX('roh2-3'!$A$1:$FE$3927,MATCH(Strg!$H$5&"Insgesamt"&IF(Strg!$A$5=1,"Insgesamt",IF(Strg!$A$5=2,"III,SGB III","II,SGB II")),'roh2-3'!$B$1:$B$3927&'roh2-3'!$D$1:$D$3927&'roh2-3'!$A$1:$A$3927,0),MATCH('2'!$A146,'roh2-3'!$A$1:$FE$1,0))) -> 2545936 | C146: =IFERROR((IF($A146>Impressum!$C$13,"...",B146-B134)),".") -> -216159 | D146: =IF($A146>Impressum!$C$13,"...",IFERROR(IF(OR(100/B134*(B146-B134)>250,100/B134*(B146-B134)<-250),".X",100/B134*(B146-B134)),"X")) -> -7.825907509 | E146: =IF($A146>Impressum!$C$13,"...",INDEX('roh2-3'!$A$1:$FE$3927,MATCH(Strg!$H$5&"N,Nicht Langzeitarbeitslos"&IF(Strg!$A$5=1,"Insgesamt",IF(Strg!$A$5=2,"III,SGB III","II,SGB II")),'roh2-3'!$B$1:$B$3927&'roh2-3'!$D$1:$D$3927&'roh2-3'!$A$1:$A$3927,0),MATCH('2'!$A146,'roh2-3'!$A$1:$FE$1,0))) -> 1688961 | F146: =IFERROR((IF($A146>Impressum!$C$13,"...",E146-E134)),".") -> -131598 | G146: =IF($A146>Impressum!$C$13,"...",IFERROR(IF(OR(100/E134*(E146-E134)>250,100/E134*(E146-E134)<-250),".X",100/E134*(E146-E134)),"X")) -> -7.228439177 | H146: =IF($A146>Impressum!$C$13,"...",INDEX('roh2-3'!$A$1:$FE$3927,MATCH(Strg!$H$5&"J,Langzeitarbeitslos"&IF(Strg!$A$5=1,"Insgesamt",IF(Strg!$A$5=2,"III,SGB III","II,SGB II")),'roh2-3'!$B$1:$B$3927&'roh2-3'!$D$1:$D$3927&'roh2-3'!$A$1:$A$3927,0),MATCH('2'!$A146,'roh2-3'!$A$1:$FE$1,0))) -> 856975 | I146: =IFERROR((IF($A146>Impressum!$C$13,"...",H146-H134)),".") -> -84561 | J146: =IF($A146>Impressum!$C$13,"...",IFERROR(IF(OR(100/H134*(H146-H134)>250,100/H134*(H146-H134)<-250),".X",100/H134*(H146-H134)),"X")) -> -8.981175441 | K146: =IF($A146>Impressum!$C$13,"...",IFERROR(100/B146*H146,"X")) -> 33.66050836 | L146: =IFERROR((IF($A146>Impressum!$C$13,"...",ROUND(100/(INDEX(Bzg!$A$1:$FC$438,MATCH(Strg!$H$5,Bzg!$A$1:$A$438,0),MATCH('2'!$A146,Bzg!$A$1:$FC$1,0)))*'2'!$B146,1))),".") -> 5.7 | M146: =IFERROR((IF($A146>Impressum!$C$13,"...",ROUND(100/(INDEX(Bzg!$A$1:$FC$438,MATCH(Strg!$H$5,Bzg!$A$1:$A$438,0),MATCH('2'!$A146,Bzg!$A$1:$FC$1,0)))*'2'!$H146,1))),".") -> 1.9
A147: 2018-03-01 | B147: =IF($A147>Impressum!$C$13,"...",INDEX('roh2-3'!$A$1:$FE$3927,MATCH(Strg!$H$5&"Insgesamt"&IF(Strg!$A$5=1,"Insgesamt",IF(Strg!$A$5=2,"III,SGB III","II,SGB II")),'roh2-3'!$B$1:$B$3927&'roh2-3'!$D$1:$D$3927&'roh2-3'!$A$1:$A$3927,0),MATCH('2'!$A147,'roh2-3'!$A$1:$FE$1,0))) -> 2458110 | C147: =IFERROR((IF($A147>Impressum!$C$13,"...",B147-B135)),".") -> -204001 | D147: =IF($A147>Impressum!$C$13,"...",IFERROR(IF(OR(100/B135*(B147-B135)>250,100/B135*(B147-B135)<-250),".X",100/B135*(B147-B135)),"X")) -> -7.663128998 | E147: =IF($A147>Impressum!$C$13,"...",INDEX('roh2-3'!$A$1:$FE$3927,MATCH(Strg!$H$5&"N,Nicht Langzeitarbeitslos"&IF(Strg!$A$5=1,"Insgesamt",IF(Strg!$A$5=2,"III,SGB III","II,SGB II")),'roh2-3'!$B$1:$B$3927&'roh2-3'!$D$1:$D$3927&'roh2-3'!$A$1:$A$3927,0),MATCH('2'!$A147,'roh2-3'!$A$1:$FE$1,0))) -> 1613514 | F147: =IFERROR((IF($A147>Impressum!$C$13,"...",E147-E135)),".") -> -119737 | G147: =IF($A147>Impressum!$C$13,"...",IFERROR(IF(OR(100/E135*(E147-E135)>250,100/E135*(E147-E135)<-250),".X",100/E135*(E147-E135)),"X")) -> -6.908231987 | H147: =IF($A147>Impressum!$C$13,"...",INDEX('roh2-3'!$A$1:$FE$3927,MATCH(Strg!$H$5&"J,Langzeitarbeitslos"&IF(Strg!$A$5=1,"Insgesamt",IF(Strg!$A$5=2,"III,SGB III","II,SGB II")),'roh2-3'!$B$1:$B$3927&'roh2-3'!$D$1:$D$3927&'roh2-3'!$A$1:$A$3927,0),MATCH('2'!$A147,'roh2-3'!$A$1:$FE$1,0))) -> 844596 | I147: =IFERROR((IF($A147>Impressum!$C$13,"...",H147-H135)),".") -> -84264 | J147: =IF($A147>Impressum!$C$13,"...",IFERROR(IF(OR(100/H135*(H147-H135)>250,100/H135*(H147-H135)<-250),".X",100/H135*(H147-H135)),"X")) -> -9.07176539 | K147: =IF($A147>Impressum!$C$13,"...",IFERROR(100/B147*H147,"X")) -> 34.35956894 | L147: =IFERROR((IF($A147>Impressum!$C$13,"...",ROUND(100/(INDEX(Bzg!$A$1:$FC$438,MATCH(Strg!$H$5,Bzg!$A$1:$A$438,0),MATCH('2'!$A147,Bzg!$A$1:$FC$1,0)))*'2'!$B147,1))),".") -> 5.5 | M147: =IFERROR((IF($A147>Impressum!$C$13,"...",ROUND(100/(INDEX(Bzg!$A$1:$FC$438,MATCH(Strg!$H$5,Bzg!$A$1:$A$438,0),MATCH('2'!$A147,Bzg!$A$1:$FC$1,0)))*'2'!$H147,1))),".") -> 1.9
A148: 2018-04-01 | B148: =IF($A148>Impressum!$C$13,"...",INDEX('roh2-3'!$A$1:$FE$3927,MATCH(Strg!$H$5&"Insgesamt"&IF(Strg!$A$5=1,"Insgesamt",IF(Strg!$A$5=2,"III,SGB III","II,SGB II")),'roh2-3'!$B$1:$B$3927&'roh2-3'!$D$1:$D$3927&'roh2-3'!$A$1:$A$3927,0),MATCH('2'!$A148,'roh2-3'!$A$1:$FE$1,0))) -> 2383752 | C148: =IFERROR((IF($A148>Impressum!$C$13,"...",B148-B136)),".") -> -184860 | D148: =IF($A148>Impressum!$C$13,"...",IFERROR(IF(OR(100/B136*(B148-B136)>250,100/B136*(B148-B136)<-250),".X",100/B136*(B148-B136)),"X")) -> -7.196882986 | E148: =IF($A148>Impressum!$C$13,"...",INDEX('roh2-3'!$A$1:$FE$3927,MATCH(Strg!$H$5&"N,Nicht Langzeitarbeitslos"&IF(Strg!$A$5=1,"Insgesamt",IF(Strg!$A$5=2,"III,SGB III","II,SGB II")),'roh2-3'!$B$1:$B$3927&'roh2-3'!$D$1:$D$3927&'roh2-3'!$A$1:$A$3927,0),MATCH('2'!$A148,'roh2-3'!$A$1:$FE$1,0))) -> 1542196 | F148: =IFERROR((IF($A148>Impressum!$C$13,"...",E148-E136)),".") -> -110564 | G148: =IF($A148>Impressum!$C$13,"...",IFERROR(IF(OR(100/E136*(E148-E136)>250,100/E136*(E148-E136)<-250),".X",100/E136*(E148-E136)),"X")) -> -6.689658511 | H148: =IF($A148>Impressum!$C$13,"...",INDEX('roh2-3'!$A$1:$FE$3927,MATCH(Strg!$H$5&"J,Langzeitarbeitslos"&IF(Strg!$A$5=1,"Insgesamt",IF(Strg!$A$5=2,"III,SGB III","II,SGB II")),'roh2-3'!$B$1:$B$3927&'roh2-3'!$D$1:$D$3927&'roh2-3'!$A$1:$A$3927,0),MATCH('2'!$A148,'roh2-3'!$A$1:$FE$1,0))) -> 841556 | I148: =IFERROR((IF($A148>Impressum!$C$13,"...",H148-H136)),".") -> -74296 | J148: =IF($A148>Impressum!$C$13,"...",IFERROR(IF(OR(100/H136*(H148-H136)>250,100/H136*(H148-H136)<-250),".X",100/H136*(H148-H136)),"X")) -> -8.11222774 | K148: =IF($A148>Impressum!$C$13,"...",IFERROR(100/B148*H148,"X")) -> 35.30384033 | L148: =IFERROR((IF($A148>Impressum!$C$13,"...",ROUND(100/(INDEX(Bzg!$A$1:$FC$438,MATCH(Strg!$H$5,Bzg!$A$1:$A$438,0),MATCH('2'!$A148,Bzg!$A$1:$FC$1,0)))*'2'!$B148,1))),".") -> 5.3 | M148: =IFERROR((IF($A148>Impressum!$C$13,"...",ROUND(100/(INDEX(Bzg!$A$1:$FC$438,MATCH(Strg!$H$5,Bzg!$A$1:$A$438,0),MATCH('2'!$A148,Bzg!$A$1:$FC$1,0)))*'2'!$H148,1))),".") -> 1.9
A149: 2018-05-01 | B149: =IF($A149>Impressum!$C$13,"...",INDEX('roh2-3'!$A$1:$FE$3927,MATCH(Strg!$H$5&"Insgesamt"&IF(Strg!$A$5=1,"Insgesamt",IF(Strg!$A$5=2,"III,SGB III","II,SGB II")),'roh2-3'!$B$1:$B$3927&'roh2-3'!$D$1:$D$3927&'roh2-3'!$A$1:$A$3927,0),MATCH('2'!$A149,'roh2-3'!$A$1:$FE$1,0))) -> 2315487 | C149: =IFERROR((IF($A149>Impressum!$C$13,"...",B149-B137)),".") -> -182231 | D149: =IF($A149>Impressum!$C$13,"...",IFERROR(IF(OR(100/B137*(B149-B137)>250,100/B137*(B149-B137)<-250),".X",100/B137*(B149-B137)),"X")) -> -7.295899697 | E149: =IF($A149>Impressum!$C$13,"...",INDEX('roh2-3'!$A$1:$FE$3927,MATCH(Strg!$H$5&"N,Nicht Langzeitarbeitslos"&IF(Strg!$A$5=1,"Insgesamt",IF(Strg!$A$5=2,"III,SGB III","II,SGB II")),'roh2-3'!$B$1:$B$3927&'roh2-3'!$D$1:$D$3927&'roh2-3'!$A$1:$A$3927,0),MATCH('2'!$A149,'roh2-3'!$A$1:$FE$1,0))) -> 1484724 | F149: =IFERROR((IF($A149>Impressum!$C$13,"...",E149-E137)),".") -> -102987 | G149: =IF($A149>Impressum!$C$13,"...",IFERROR(IF(OR(100/E137*(E149-E137)>250,100/E137*(E149-E137)<-250),".X",100/E137*(E149-E137)),"X")) -> -6.486507935 | H149: =IF($A149>Impressum!$C$13,"...",INDEX('roh2-3'!$A$1:$FE$3927,MATCH(Strg!$H$5&"J,Langzeitarbeitslos"&IF(Strg!$A$5=1,"Insgesamt",IF(Strg!$A$5=2,"III,SGB III","II,SGB II")),'roh2-3'!$B$1:$B$3927&'roh2-3'!$D$1:$D$3927&'roh2-3'!$A$1:$A$3927,0),MATCH('2'!$A149,'roh2-3'!$A$1:$FE$1,0))) -> 830763 | I149: =IFERROR((IF($A149>Impressum!$C$13,"...",H149-H137)),".") -> -79244 | J149: =IF($A149>Impressum!$C$13,"...",IFERROR(IF(OR(100/H137*(H149-H137)>250,100/H137*(H149-H137)<-250),".X",100/H137*(H149-H137)),"X")) -> -8.708064883 | K149: =IF($A149>Impressum!$C$13,"...",IFERROR(100/B149*H149,"X")) -> 35.87854305 | L149: =IFERROR((IF($A149>Impressum!$C$13,"...",ROUND(100/(INDEX(Bzg!$A$1:$FC$438,MATCH(Strg!$H$5,Bzg!$A$1:$A$438,0),MATCH('2'!$A149,Bzg!$A$1:$FC$1,0)))*'2'!$B149,1))),".") -> 5.1 | M149: =IFERROR((IF($A149>Impressum!$C$13,"...",ROUND(100/(INDEX(Bzg!$A$1:$FC$438,MATCH(Strg!$H$5,Bzg!$A$1:$A$438,0),MATCH('2'!$A149,Bzg!$A$1:$FC$1,0)))*'2'!$H149,1))),".") -> 1.8
A150: 2018-06-01 | B150: =IF($A150>Impressum!$C$13,"...",INDEX('roh2-3'!$A$1:$FE$3927,MATCH(Strg!$H$5&"Insgesamt"&IF(Strg!$A$5=1,"Insgesamt",IF(Strg!$A$5=2,"III,SGB III","II,SGB II")),'roh2-3'!$B$1:$B$3927&'roh2-3'!$D$1:$D$3927&'roh2-3'!$A$1:$A$3927,0),MATCH('2'!$A150,'roh2-3'!$A$1:$FE$1,0))) -> 2275787 | C150: =IFERROR((IF($A150>Impressum!$C$13,"...",B150-B138)),".") -> -196855 | D150: =IF($A150>Impressum!$C$13,"...",IFERROR(IF(OR(100/B138*(B150-B138)>250,100/B138*(B150-B138)<-250),".X",100/B138*(B150-B138)),"X")) -> -7.961322343 | E150: =IF($A150>Impressum!$C$13,"...",INDEX('roh2-3'!$A$1:$FE$3927,MATCH(Strg!$H$5&"N,Nicht Langzeitarbeitslos"&IF(Strg!$A$5=1,"Insgesamt",IF(Strg!$A$5=2,"III,SGB III","II,SGB II")),'roh2-3'!$B$1:$B$3927&'roh2-3'!$D$1:$D$3927&'roh2-3'!$A$1:$A$3927,0),MATCH('2'!$A150,'roh2-3'!$A$1:$FE$1,0))) -> 1457539 | F150: =IFERROR((IF($A150>Impressum!$C$13,"...",E150-E138)),".") -> -112058 | G150: =IF($A150>Impressum!$C$13,"...",IFERROR(IF(OR(100/E138*(E150-E138)>250,100/E138*(E150-E138)<-250),".X",100/E138*(E150-E138)),"X")) -> -7.139284797 | H150: =IF($A150>Impressum!$C$13,"...",INDEX('roh2-3'!$A$1:$FE$3927,MATCH(Strg!$H$5&"J,Langzeitarbeitslos"&IF(Strg!$A$5=1,"Insgesamt",IF(Strg!$A$5=2,"III,SGB III","II,SGB II")),'roh2-3'!$B$1:$B$3927&'roh2-3'!$D$1:$D$3927&'roh2-3'!$A$1:$A$3927,0),MATCH('2'!$A150,'roh2-3'!$A$1:$FE$1,0))) -> 818248 | I150: =IFERROR((IF($A150>Impressum!$C$13,"...",H150-H138)),".") -> -84797 | J150: =IF($A150>Impressum!$C$13,"...",IFERROR(IF(OR(100/H138*(H150-H138)>250,100/H138*(H150-H138)<-250),".X",100/H138*(H150-H138)),"X")) -> -9.390118986 | K150: =IF($A150>Impressum!$C$13,"...",IFERROR(100/B150*H150,"X")) -> 35.95450717 | L150: =IFERROR((IF($A150>Impressum!$C$13,"...",ROUND(100/(INDEX(Bzg!$A$1:$FC$438,MATCH(Strg!$H$5,Bzg!$A$1:$A$438,0),MATCH('2'!$A150,Bzg!$A$1:$FC$1,0)))*'2'!$B150,1))),".") -> 5 | M150: =IFERROR((IF($A150>Impressum!$C$13,"...",ROUND(100/(INDEX(Bzg!$A$1:$FC$438,MATCH(Strg!$H$5,Bzg!$A$1:$A$438,0),MATCH('2'!$A150,Bzg!$A$1:$FC$1,0)))*'2'!$H150,1))),".") -> 1.8
A151: 2018-07-01 | B151: =IF($A151>Impressum!$C$13,"...",INDEX('roh2-3'!$A$1:$FE$3927,MATCH(Strg!$H$5&"Insgesamt"&IF(Strg!$A$5=1,"Insgesamt",IF(Strg!$A$5=2,"III,SGB III","II,SGB II")),'roh2-3'!$B$1:$B$3927&'roh2-3'!$D$1:$D$3927&'roh2-3'!$A$1:$A$3927,0),MATCH('2'!$A151,'roh2-3'!$A$1:$FE$1,0))) -> 2324746 | C151: =IFERROR((IF($A151>Impressum!$C$13,"...",B151-B139)),".") -> -192899 | D151: =IF($A151>Impressum!$C$13,"...",IFERROR(IF(OR(100/B139*(B151-B139)>250,100/B139*(B151-B139)<-250),".X",100/B139*(B151-B139)),"X")) -> -7.661882434 | E151: =IF($A151>Impressum!$C$13,"...",INDEX('roh2-3'!$A$1:$FE$3927,MATCH(Strg!$H$5&"N,Nicht Langzeitarbeitslos"&IF(Strg!$A$5=1,"Insgesamt",IF(Strg!$A$5=2,"III,SGB III","II,SGB II")),'roh2-3'!$B$1:$B$3927&'roh2-3'!$D$1:$D$3927&'roh2-3'!$A$1:$A$3927,0),MATCH('2'!$A151,'roh2-3'!$A$1:$FE$1,0))) -> 1514954 | F151: =IFERROR((IF($A151>Impressum!$C$13,"...",E151-E139)),".") -> -104112 | G151: =IF($A151>Impressum!$C$13,"...",IFERROR(IF(OR(100/E139*(E151-E139)>250,100/E139*(E151-E139)<-250),".X",100/E139*(E151-E139)),"X")) -> -6.430374055 | H151: =IF($A151>Impressum!$C$13,"...",INDEX('roh2-3'!$A$1:$FE$3927,MATCH(Strg!$H$5&"J,Langzeitarbeitslos"&IF(Strg!$A$5=1,"Insgesamt",IF(Strg!$A$5=2,"III,SGB III","II,SGB II")),'roh2-3'!$B$1:$B$3927&'roh2-3'!$D$1:$D$3927&'roh2-3'!$A$1:$A$3927,0),MATCH('2'!$A151,'roh2-3'!$A$1:$FE$1,0))) -> 809792 | I151: =IFERROR((IF($A151>Impressum!$C$13,"...",H151-H139)),".") -> -88787 | J151: =IF($A151>Impressum!$C$13,"...",IFERROR(IF(OR(100/H139*(H151-H139)>250,100/H139*(H151-H139)<-250),".X",100/H139*(H151-H139)),"X")) -> -9.880822944 | K151: =IF($A151>Impressum!$C$13,"...",IFERROR(100/B151*H151,"X")) -> 34.83356891 | L151: =IFERROR((IF($A151>Impressum!$C$13,"...",ROUND(100/(INDEX(Bzg!$A$1:$FC$438,MATCH(Strg!$H$5,Bzg!$A$1:$A$438,0),MATCH('2'!$A151,Bzg!$A$1:$FC$1,0)))*'2'!$B151,1))),".") -> 5.1 | M151: =IFERROR((IF($A151>Impressum!$C$13,"...",ROUND(100/(INDEX(Bzg!$A$1:$FC$438,MATCH(Strg!$H$5,Bzg!$A$1:$A$438,0),MATCH('2'!$A151,Bzg!$A$1:$FC$1,0)))*'2'!$H151,1))),".") -> 1.8
A152: 2018-08-01 | B152: =IF($A152>Impressum!$C$13,"...",INDEX('roh2-3'!$A$1:$FE$3927,MATCH(Strg!$H$5&"Insgesamt"&IF(Strg!$A$5=1,"Insgesamt",IF(Strg!$A$5=2,"III,SGB III","II,SGB II")),'roh2-3'!$B$1:$B$3927&'roh2-3'!$D$1:$D$3927&'roh2-3'!$A$1:$A$3927,0),MATCH('2'!$A152,'roh2-3'!$A$1:$FE$1,0))) -> 2350876 | C152: =IFERROR((IF($A152>Impressum!$C$13,"...",B152-B140)),".") -> -193969 | D152: =IF($A152>Impressum!$C$13,"...",IFERROR(IF(OR(100/B140*(B152-B140)>250,100/B140*(B152-B140)<-250),".X",100/B140*(B152-B140)),"X")) -> -7.62203592 | E152: =IF($A152>Impressum!$C$13,"...",INDEX('roh2-3'!$A$1:$FE$3927,MATCH(Strg!$H$5&"N,Nicht Langzeitarbeitslos"&IF(Strg!$A$5=1,"Insgesamt",IF(Strg!$A$5=2,"III,SGB III","II,SGB II")),'roh2-3'!$B$1:$B$3927&'roh2-3'!$D$1:$D$3927&'roh2-3'!$A$1:$A$3927,0),MATCH('2'!$A152,'roh2-3'!$A$1:$FE$1,0))) -> 1543797 | F152: =IFERROR((IF($A152>Impressum!$C$13,"...",E152-E140)),".") -> -105870 | G152: =IF($A152>Impressum!$C$13,"...",IFERROR(IF(OR(100/E140*(E152-E140)>250,100/E140*(E152-E140)<-250),".X",100/E140*(E152-E140)),"X")) -> -6.417658837 | H152: =IF($A152>Impressum!$C$13,"...",INDEX('roh2-3'!$A$1:$FE$3927,MATCH(Strg!$H$5&"J,Langzeitarbeitslos"&IF(Strg!$A$5=1,"Insgesamt",IF(Strg!$A$5=2,"III,SGB III","II,SGB II")),'roh2-3'!$B$1:$B$3927&'roh2-3'!$D$1:$D$3927&'roh2-3'!$A$1:$A$3927,0),MATCH('2'!$A152,'roh2-3'!$A$1:$FE$1,0))) -> 807079 | I152: =IFERROR((IF($A152>Impressum!$C$13,"...",H152-H140)),".") -> -88099 | J152: =IF($A152>Impressum!$C$13,"...",IFERROR(IF(OR(100/H140*(H152-H140)>250,100/H140*(H152-H140)<-250),".X",100/H140*(H152-H140)),"X")) -> -9.841506382 | K152: =IF($A152>Impressum!$C$13,"...",IFERROR(100/B152*H152,"X")) -> 34.33098981 | L152: =IFERROR((IF($A152>Impressum!$C$13,"...",ROUND(100/(INDEX(Bzg!$A$1:$FC$438,MATCH(Strg!$H$5,Bzg!$A$1:$A$438,0),MATCH('2'!$A152,Bzg!$A$1:$FC$1,0)))*'2'!$B152,1))),".") -> 5.2 | M152: =IFERROR((IF($A152>Impressum!$C$13,"...",ROUND(100/(INDEX(Bzg!$A$1:$FC$438,MATCH(Strg!$H$5,Bzg!$A$1:$A$438,0),MATCH('2'!$A152,Bzg!$A$1:$FC$1,0)))*'2'!$H152,1))),".") -> 1.8
A153: 2018-09-01 | B153: =IF($A153>Impressum!$C$13,"...",INDEX('roh2-3'!$A$1:$FE$3927,MATCH(Strg!$H$5&"Insgesamt"&IF(Strg!$A$5=1,"Insgesamt",IF(Strg!$A$5=2,"III,SGB III","II,SGB II")),'roh2-3'!$B$1:$B$3927&'roh2-3'!$D$1:$D$3927&'roh2-3'!$A$1:$A$3927,0),MATCH('2'!$A153,'roh2-3'!$A$1:$FE$1,0))) -> 2256473 | C153: =IFERROR((IF($A153>Impressum!$C$13,"...",B153-B141)),".") -> -192437 | D153: =IF($A153>Impressum!$C$13,"...",IFERROR(IF(OR(100/B141*(B153-B141)>250,100/B141*(B153-B141)<-250),".X",100/B141*(B153-B141)),"X")) -> -7.858067467 | E153: =IF($A153>Impressum!$C$13,"...",INDEX('roh2-3'!$A$1:$FE$3927,MATCH(Strg!$H$5&"N,Nicht Langzeitarbeitslos"&IF(Strg!$A$5=1,"Insgesamt",IF(Strg!$A$5=2,"III,SGB III","II,SGB II")),'roh2-3'!$B$1:$B$3927&'roh2-3'!$D$1:$D$3927&'roh2-3'!$A$1:$A$3927,0),MATCH('2'!$A153,'roh2-3'!$A$1:$FE$1,0))) -> 1467784 | F153: =IFERROR((IF($A153>Impressum!$C$13,"...",E153-E141)),".") -> -101056 | G153: =IF($A153>Impressum!$C$13,"...",IFERROR(IF(OR(100/E141*(E153-E141)>250,100/E141*(E153-E141)<-250),".X",100/E141*(E153-E141)),"X")) -> -6.441447184 | H153: =IF($A153>Impressum!$C$13,"...",INDEX('roh2-3'!$A$1:$FE$3927,MATCH(Strg!$H$5&"J,Langzeitarbeitslos"&IF(Strg!$A$5=1,"Insgesamt",IF(Strg!$A$5=2,"III,SGB III","II,SGB II")),'roh2-3'!$B$1:$B$3927&'roh2-3'!$D$1:$D$3927&'roh2-3'!$A$1:$A$3927,0),MATCH('2'!$A153,'roh2-3'!$A$1:$FE$1,0))) -> 788689 | I153: =IFERROR((IF($A153>Impressum!$C$13,"...",H153-H141)),".") -> -91381 | J153: =IF($A153>Impressum!$C$13,"...",IFERROR(IF(OR(100/H141*(H153-H141)>250,100/H141*(H153-H141)<-250),".X",100/H141*(H153-H141)),"X")) -> -10.38337859 | K153: =IF($A153>Impressum!$C$13,"...",IFERROR(100/B153*H153,"X")) -> 34.95229059 | L153: =IFERROR((IF($A153>Impressum!$C$13,"...",ROUND(100/(INDEX(Bzg!$A$1:$FC$438,MATCH(Strg!$H$5,Bzg!$A$1:$A$438,0),MATCH('2'!$A153,Bzg!$A$1:$FC$1,0)))*'2'!$B153,1))),".") -> 5 | M153: =IFERROR((IF($A153>Impressum!$C$13,"...",ROUND(100/(INDEX(Bzg!$A$1:$FC$438,MATCH(Strg!$H$5,Bzg!$A$1:$A$438,0),MATCH('2'!$A153,Bzg!$A$1:$FC$1,0)))*'2'!$H153,1))),".") -> 1.7
A154: 2018-10-01 | B154: =IF($A154>Impressum!$C$13,"...",INDEX('roh2-3'!$A$1:$FE$3927,MATCH(Strg!$H$5&"Insgesamt"&IF(Strg!$A$5=1,"Insgesamt",IF(Strg!$A$5=2,"III,SGB III","II,SGB II")),'roh2-3'!$B$1:$B$3927&'roh2-3'!$D$1:$D$3927&'roh2-3'!$A$1:$A$3927,0),MATCH('2'!$A154,'roh2-3'!$A$1:$FE$1,0))) -> 2203851 | C154: =IFERROR((IF($A154>Impressum!$C$13,"...",B154-B142)),".") -> -184860 | D154: =IF($A154>Impressum!$C$13,"...",IFERROR(IF(OR(100/B142*(B154-B142)>250,100/B142*(B154-B142)<-250),".X",100/B142*(B154-B142)),"X")) -> -7.73890186 | E154: =IF($A154>Impressum!$C$13,"...",INDEX('roh2-3'!$A$1:$FE$3927,MATCH(Strg!$H$5&"N,Nicht Langzeitarbeitslos"&IF(Strg!$A$5=1,"Insgesamt",IF(Strg!$A$5=2,"III,SGB III","II,SGB II")),'roh2-3'!$B$1:$B$3927&'roh2-3'!$D$1:$D$3927&'roh2-3'!$A$1:$A$3927,0),MATCH('2'!$A154,'roh2-3'!$A$1:$FE$1,0))) -> 1428015 | F154: =IFERROR((IF($A154>Impressum!$C$13,"...",E154-E142)),".") -> -91815 | G154: =IF($A154>Impressum!$C$13,"...",IFERROR(IF(OR(100/E142*(E154-E142)>250,100/E142*(E154-E142)<-250),".X",100/E142*(E154-E142)),"X")) -> -6.04113618 | H154: =IF($A154>Impressum!$C$13,"...",INDEX('roh2-3'!$A$1:$FE$3927,MATCH(Strg!$H$5&"J,Langzeitarbeitslos"&IF(Strg!$A$5=1,"Insgesamt",IF(Strg!$A$5=2,"III,SGB III","II,SGB II")),'roh2-3'!$B$1:$B$3927&'roh2-3'!$D$1:$D$3927&'roh2-3'!$A$1:$A$3927,0),MATCH('2'!$A154,'roh2-3'!$A$1:$FE$1,0))) -> 775836 | I154: =IFERROR((IF($A154>Impressum!$C$13,"...",H154-H142)),".") -> -93045 | J154: =IF($A154>Impressum!$C$13,"...",IFERROR(IF(OR(100/H142*(H154-H142)>250,100/H142*(H154-H142)<-250),".X",100/H142*(H154-H142)),"X")) -> -10.70860106 | K154: =IF($A154>Impressum!$C$13,"...",IFERROR(100/B154*H154,"X")) -> 35.20365034 | L154: =IFERROR((IF($A154>Impressum!$C$13,"...",ROUND(100/(INDEX(Bzg!$A$1:$FC$438,MATCH(Strg!$H$5,Bzg!$A$1:$A$438,0),MATCH('2'!$A154,Bzg!$A$1:$FC$1,0)))*'2'!$B154,1))),".") -> 4.9 | M154: =IFERROR((IF($A154>Impressum!$C$13,"...",ROUND(100/(INDEX(Bzg!$A$1:$FC$438,MATCH(Strg!$H$5,Bzg!$A$1:$A$438,0),MATCH('2'!$A154,Bzg!$A$1:$FC$1,0)))*'2'!$H154,1))),".") -> 1.7
A155: 2018-11-01 | B155: =IF($A155>Impressum!$C$13,"...",INDEX('roh2-3'!$A$1:$FE$3927,MATCH(Strg!$H$5&"Insgesamt"&IF(Strg!$A$5=1,"Insgesamt",IF(Strg!$A$5=2,"III,SGB III","II,SGB II")),'roh2-3'!$B$1:$B$3927&'roh2-3'!$D$1:$D$3927&'roh2-3'!$A$1:$A$3927,0),MATCH('2'!$A155,'roh2-3'!$A$1:$FE$1,0))) -> 2186109 | C155: =IFERROR((IF($A155>Impressum!$C$13,"...",B155-B143)),".") -> -182302 | D155: =IF($A155>Impressum!$C$13,"...",IFERROR(IF(OR(100/B143*(B155-B143)>250,100/B143*(B155-B143)<-250),".X",100/B143*(B155-B143)),"X")) -> -7.697228226 | E155: =IF($A155>Impressum!$C$13,"...",INDEX('roh2-3'!$A$1:$FE$3927,MATCH(Strg!$H$5&"N,Nicht Langzeitarbeitslos"&IF(Strg!$A$5=1,"Insgesamt",IF(Strg!$A$5=2,"III,SGB III","II,SGB II")),'roh2-3'!$B$1:$B$3927&'roh2-3'!$D$1:$D$3927&'roh2-3'!$A$1:$A$3927,0),MATCH('2'!$A155,'roh2-3'!$A$1:$FE$1,0))) -> 1421656 | F155: =IFERROR((IF($A155>Impressum!$C$13,"...",E155-E143)),".") -> -85103 | G155: =IF($A155>Impressum!$C$13,"...",IFERROR(IF(OR(100/E143*(E155-E143)>250,100/E143*(E155-E143)<-250),".X",100/E143*(E155-E143)),"X")) -> -5.648083071 | H155: =IF($A155>Impressum!$C$13,"...",INDEX('roh2-3'!$A$1:$FE$3927,MATCH(Strg!$H$5&"J,Langzeitarbeitslos"&IF(Strg!$A$5=1,"Insgesamt",IF(Strg!$A$5=2,"III,SGB III","II,SGB II")),'roh2-3'!$B$1:$B$3927&'roh2-3'!$D$1:$D$3927&'roh2-3'!$A$1:$A$3927,0),MATCH('2'!$A155,'roh2-3'!$A$1:$FE$1,0))) -> 764453 | I155: =IFERROR((IF($A155>Impressum!$C$13,"...",H155-H143)),".") -> -97199 | J155: =IF($A155>Impressum!$C$13,"...",IFERROR(IF(OR(100/H143*(H155-H143)>250,100/H143*(H155-H143)<-250),".X",100/H143*(H155-H143)),"X")) -> -11.28054017 | K155: =IF($A155>Impressum!$C$13,"...",IFERROR(100/B155*H155,"X")) -> 34.96865893 | L155: =IFERROR((IF($A155>Impressum!$C$13,"...",ROUND(100/(INDEX(Bzg!$A$1:$FC$438,MATCH(Strg!$H$5,Bzg!$A$1:$A$438,0),MATCH('2'!$A155,Bzg!$A$1:$FC$1,0)))*'2'!$B155,1))),".") -> 4.8 | M155: =IFERROR((IF($A155>Impressum!$C$13,"...",ROUND(100/(INDEX(Bzg!$A$1:$FC$438,MATCH(Strg!$H$5,Bzg!$A$1:$A$438,0),MATCH('2'!$A155,Bzg!$A$1:$FC$1,0)))*'2'!$H155,1))),".") -> 1.7
A156: 2018-12-01 | B156: =IF($A156>Impressum!$C$13,"...",INDEX('roh2-3'!$A$1:$FE$3927,MATCH(Strg!$H$5&"Insgesamt"&IF(Strg!$A$5=1,"Insgesamt",IF(Strg!$A$5=2,"III,SGB III","II,SGB II")),'roh2-3'!$B$1:$B$3927&'roh2-3'!$D$1:$D$3927&'roh2-3'!$A$1:$A$3927,0),MATCH('2'!$A156,'roh2-3'!$A$1:$FE$1,0))) -> ... | C156: =IFERROR((IF($A156>Impressum!$C$13,"...",B156-B144)),".") -> ... | D156: =IF($A156>Impressum!$C$13,"...",IFERROR(IF(OR(100/B144*(B156-B144)>250,100/B144*(B156-B144)<-250),".X",100/B144*(B156-B144)),"X")) -> ... | E156: =IF($A156>Impressum!$C$13,"...",INDEX('roh2-3'!$A$1:$FE$3927,MATCH(Strg!$H$5&"N,Nicht Langzeitarbeitslos"&IF(Strg!$A$5=1,"Insgesamt",IF(Strg!$A$5=2,"III,SGB III","II,SGB II")),'roh2-3'!$B$1:$B$3927&'roh2-3'!$D$1:$D$3927&'roh2-3'!$A$1:$A$3927,0),MATCH('2'!$A156,'roh2-3'!$A$1:$FE$1,0))) -> ... | F156: =IFERROR((IF($A156>Impressum!$C$13,"...",E156-E144)),".") -> ... | G156: =IF($A156>Impressum!$C$13,"...",IFERROR(IF(OR(100/E144*(E156-E144)>250,100/E144*(E156-E144)<-250),".X",100/E144*(E156-E144)),"X")) -> ... | H156: =IF($A156>Impressum!$C$13,"...",INDEX('roh2-3'!$A$1:$FE$3927,MATCH(Strg!$H$5&"J,Langzeitarbeitslos"&IF(Strg!$A$5=1,"Insgesamt",IF(Strg!$A$5=2,"III,SGB III","II,SGB II")),'roh2-3'!$B$1:$B$3927&'roh2-3'!$D$1:$D$3927&'roh2-3'!$A$1:$A$3927,0),MATCH('2'!$A156,'roh2-3'!$A$1:$FE$1,0))) -> ... | I156: =IFERROR((IF($A156>Impressum!$C$13,"...",H156-H144)),".") -> ... | J156: =IF($A156>Impressum!$C$13,"...",IFERROR(IF(OR(100/H144*(H156-H144)>250,100/H144*(H156-H144)<-250),".X",100/H144*(H156-H144)),"X")) -> ... | K156: =IF($A156>Impressum!$C$13,"...",IFERROR(100/B156*H156,"X")) -> ... | L156: =IFERROR((IF($A156>Impressum!$C$13,"...",ROUND(100/(INDEX(Bzg!$A$1:$FC$438,MATCH(Strg!$H$5,Bzg!$A$1:$A$438,0),MATCH('2'!$A156,Bzg!$A$1:$FC$1,0)))*'2'!$B156,1))),".") -> ... | M156: =IFERROR((IF($A156>Impressum!$C$13,"...",ROUND(100/(INDEX(Bzg!$A$1:$FC$438,MATCH(Strg!$H$5,Bzg!$A$1:$A$438,0),MATCH('2'!$A156,Bzg!$A$1:$FC$1,0)))*'2'!$H156,1))),".") -> ...
A157: ='1'!A52 -> Erstellungsdatum: 28.11.2018, Statistik der Bundesagentur für Arbeit | M157: © Statistik der Bundesagentur für Arbeit
A159: 1) Seit dem 1. Januar 2017 werden die sog. „Aufstocker“ (Parallelbezieher von Alg und Alg II) vermittlerisch durch die Arbeitsagenturen betreut und deshalb künftig im Rechtskreis SGB III als arbeitslos gezählt (zuvor: im SGB II). Das muss bei der Interpretation von Vergleichen mit davor liegenden Zeiträumen berücksichtigt werden.
A160: 2) Arbeitslosenquote bezogen auf alle zivilen Erwerbspersonen. Die Arbeitslosenquote kann in die beiden Komponenten anteilige Arbeitslosenquote SGB II und anteilige Arbeitslosenquote SGB III zerlegt werden. Dabei werden die Arbeitslosen aus dem Rechtskreis SGB II und SGB III jeweils auf alle zivilen Erwerbspersonen bezogen. Die Summe der beiden anteiligen Einzelquoten ergibt die Gesamtquote. Die anteiligen Quoten beantworten die Frage, wie sich die Arbeitslosigkeit auf die beiden Rechtskreise verteilt.
A161: 3) Arbeitslosenquote bezogen auf alle zivilen Erwerbspersonen. Bei der anteiligen Langzeitarbeitslosenquote werden die Langzeitarbeitslosen auf alle zivilen Erwerbspersonen bezogen.
A162: *) Aus Datenschutzgründen und Gründen der statistischen Geheimhaltung werden Zahlenwerte von 1 oder 2 und Daten, aus denen rechnerisch auf einen solchen Zahlenwert geschlossen werden kann, anonymisiert.
A163: x) Bei unvollständigen oder unplausiblen Datenlieferungen zugelassener kommunaler Träger (zkT) werden nicht alle Merkmale geschätzt. Sie werden in diesem Fall der Ausprägung "keine/ohne Angabe" zugeordnet. Näheres kann den Methodischen Hinweisen "Schätzungen in der Statistik der Arbeitslosen und Arbeitsuchenden" entnommen werden.

Sheet 3
R1: Langzeitarbeitslosigkeit
A3: ="3. Entwicklung der Arbeitslosigkeit nach Landkreisen "&CHAR(151)&" "&OFFSET(Strg!A6,Strg!A5-1,0) -> 3. Entwicklung der Arbeitslosigkeit nach Landkreisen — Rechtskreis Insgesamt
A4: ="Deutschland, Länder und Kreise, (Gebietsstand "&TEXT(Impressum!C13,"MMMM JJJJ")&")" -> Deutschland, Länder und Kreise, (Gebietsstand November 2018)
A5: November 2018, Datenstand: November 2018
A7: Datenrevisionen können zu Abweichungen gegenüber Auswertungen mit früherem Erstellungsdatum führen.
A9: Region | D9: Arbeitslose1) | F9: Vorjahresveränderung | H9: dar. (Sp. 1) | J9: Vorjahresveränderung | L9: dar. (Sp. 1) | N9: Vorjahresveränderung | P9: Anteil Langzeit- arbeitslose an Insgesamt (Sp. 7 an Sp. 1) | Q9: Arbeitslosen- quote2) | R9: Anteilige LZA-Quote3)
E10: =EDATE(Impressum!$C$13,-12) -> 2017-11-01 | F10: absolut | G10: in % | H10: Nicht-Langzeit- arbeitslose | I10: =EDATE(Impressum!$C$13,-12) -> 2017-11-01 | J10: absolut | K10: in % | L10: Langzeit- arbeitslose | M10: =EDATE(Impressum!$C$13,-12) -> 2017-11-01 | N10: absolut | O10: in %
D11: 1 | F11: 2 | G11: 3 | H11: 4 | J11: 5 | K11: 6 | L11: 7 | N11: 8 | O11: 9 | P11: 10 | Q11: 11 | R11: 12
A12: Deutschland | C12: 0 | D12: =INDEX('roh2-3'!$A$1:$FE$3927,MATCH($C12&"Insgesamt"&IF(Strg!$A$5=1,"Insgesamt",IF(Strg!$A$5=2,"III,SGB III","II,SGB II")),'roh2-3'!$B$1:$B$3927&'roh2-3'!$D$1:$D$3927&'roh2-3'!$A$1:$A$3927,0),MATCH(Impressum!$C$13,'roh2-3'!$A$1:$FE$1,0)) -> 2186109 | E12: =INDEX('roh2-3'!$A$1:$FE$3927,MATCH($C12&"Insgesamt"&IF(Strg!$A$5=1,"Insgesamt",IF(Strg!$A$5=2,"III,SGB III","II,SGB II")),'roh2-3'!$B$1:$B$3927&'roh2-3'!$D$1:$D$3927&'roh2-3'!$A$1:$A$3927,0),MATCH(E$10,'roh2-3'!$A$1:$FE$1,0)) -> 2368411 | F12: =IFERROR(D12-E12,"X") -> -182302 | G12: =IFERROR(IF(OR(100/E12*(D12-E12)>250,100/E12*(D12-E12)<-250),".X",100/E12*(D12-E12)),"X") -> -7.697228226 | H12: =INDEX('roh2-3'!$A$1:$FE$3927,MATCH($C12&"N,Nicht Langzeitarbeitslos"&IF(Strg!$A$5=1,"Insgesamt",IF(Strg!$A$5=2,"III,SGB III","II,SGB II")),'roh2-3'!$B$1:$B$3927&'roh2-3'!$D$1:$D$3927&'roh2-3'!$A$1:$A$3927,0),MATCH(Impressum!$C$13,'roh2-3'!$A$1:$FE$1,0)) -> 1421656 | I12: =INDEX('roh2-3'!$A$1:$FE$3927,MATCH($C12&"N,Nicht Langzeitarbeitslos"&IF(Strg!$A$5=1,"Insgesamt",IF(Strg!$A$5=2,"III,SGB III","II,SGB II")),'roh2-3'!$B$1:$B$3927&'roh2-3'!$D$1:$D$3927&'roh2-3'!$A$1:$A$3927,0),MATCH(I$10,'roh2-3'!$A$1:$FE$1,0)) -> 1506759 | J12: =IFERROR(H12-I12,"X") -> -85103 | K12: =IFERROR(IF(OR(100/I12*(H12-I12)>250,100/I12*(H12-I12)<-250),".X",100/I12*(H12-I12)),"X") -> -5.648083071 | L12: =INDEX('roh2-3'!$A$1:$FE$3927,MATCH($C12&"J,Langzeitarbeitslos"&IF(Strg!$A$5=1,"Insgesamt",IF(Strg!$A$5=2,"III,SGB III","II,SGB II")),'roh2-3'!$B$1:$B$3927&'roh2-3'!$D$1:$D$3927&'roh2-3'!$A$1:$A$3927,0),MATCH(Impressum!$C$13,'roh2-3'!$A$1:$FE$1,0)) -> 764453 | M12: =INDEX('roh2-3'!$A$1:$FE$3927,MATCH($C12&"J,Langzeitarbeitslos"&IF(Strg!$A$5=1,"Insgesamt",IF(Strg!$A$5=2,"III,SGB III","II,SGB II")),'roh2-3'!$B$1:$B$3927&'roh2-3'!$D$1:$D$3927&'roh2-3'!$A$1:$A$3927,0),MATCH(M$10,'roh2-3'!$A$1:$FE$1,0)) -> 861652 | N12: =IFERROR(L12-M12,"X") -> -97199 | O12: =IFERROR(IF(OR(100/M12*(L12-M12)>250,100/M12*(L12-M12)<-250),".X",100/M12*(L12-M12)),"X") -> -11.28054017 | P12: =IFERROR(100/D12*L12,"X") -> 34.96865893 | Q12: =ROUND(100/(INDEX(Bzg!$A$1:$FC$438,MATCH($C12,Bzg!$A$1:$A$438,0),MATCH(Impressum!$C$13,Bzg!$A$1:$FC$1,0)))*$D12,1) -> 4.8 | R12: =ROUND(100/(INDEX(Bzg!$A$1:$FC$438,MATCH($C12,Bzg!$A$1:$A$438,0),MATCH(Impressum!$C$13,Bzg!$A$1:$FC$1,0)))*$L12,1) -> 1.7
A13: 01 Schleswig-Holstein | C13: 01000000 | D13: =INDEX('roh2-3'!$A$1:$FE$3927,MATCH($C13&"Insgesamt"&IF(Strg!$A$5=1,"Insgesamt",IF(Strg!$A$5=2,"III,SGB III","II,SGB II")),'roh2-3'!$B$1:$B$3927&'roh2-3'!$D$1:$D$3927&'roh2-3'!$A$1:$A$3927,0),MATCH(Impressum!$C$13,'roh2-3'!$A$1:$FE$1,0)) -> 77707 | E13: =INDEX('roh2-3'!$A$1:$FE$3927,MATCH($C13&"Insgesamt"&IF(Strg!$A$5=1,"Insgesamt",IF(Strg!$A$5=2,"III,SGB III","II,SGB II")),'roh2-3'!$B$1:$B$3927&'roh2-3'!$D$1:$D$3927&'roh2-3'!$A$1:$A$3927,0),MATCH(E$10,'roh2-3'!$A$1:$FE$1,0)) -> 87926 | F13: =IFERROR(D13-E13,"X") -> -10219 | G13: =IFERROR(IF(OR(100/E13*(D13-E13)>250,100/E13*(D13-E13)<-250),".X",100/E13*(D13-E13)),"X") -> -11.62227328 | H13: =INDEX('roh2-3'!$A$1:$FE$3927,MATCH($C13&"N,Nicht Langzeitarbeitslos"&IF(Strg!$A$5=1,"Insgesamt",IF(Strg!$A$5=2,"III,SGB III","II,SGB II")),'roh2-3'!$B$1:$B$3927&'roh2-3'!$D$1:$D$3927&'roh2-3'!$A$1:$A$3927,0),MATCH(Impressum!$C$13,'roh2-3'!$A$1:$FE$1,0)) -> 51186 | I13: =INDEX('roh2-3'!$A$1:$FE$3927,MATCH($C13&"N,Nicht Langzeitarbeitslos"&IF(Strg!$A$5=1,"Insgesamt",IF(Strg!$A$5=2,"III,SGB III","II,SGB II")),'roh2-3'!$B$1:$B$3927&'roh2-3'!$D$1:$D$3927&'roh2-3'!$A$1:$A$3927,0),MATCH(I$10,'roh2-3'!$A$1:$FE$1,0)) -> 56422 | J13: =IFERROR(H13-I13,"X") -> -5236 | K13: =IFERROR(IF(OR(100/I13*(H13-I13)>250,100/I13*(H13-I13)<-250),".X",100/I13*(H13-I13)),"X") -> -9.280068059 | L13: =INDEX('roh2-3'!$A$1:$FE$3927,MATCH($C13&"J,Langzeitarbeitslos"&IF(Strg!$A$5=1,"Insgesamt",IF(Strg!$A$5=2,"III,SGB III","II,SGB II")),'roh2-3'!$B$1:$B$3927&'roh2-3'!$D$1:$D$3927&'roh2-3'!$A$1:$A$3927,0),MATCH(Impressum!$C$13,'roh2-3'!$A$1:$FE$1,0)) -> 26521 | M13: =INDEX('roh2-3'!$A$1:$FE$3927,MATCH($C13&"J,Langzeitarbeitslos"&IF(Strg!$A$5=1,"Insgesamt",IF(Strg!$A$5=2,"III,SGB III","II,SGB II")),'roh2-3'!$B$1:$B$3927&'roh2-3'!$D$1:$D$3927&'roh2-3'!$A$1:$A$3927,0),MATCH(M$10,'roh2-3'!$A$1:$FE$1,0)) -> 31504 | N13: =IFERROR(L13-M13,"X") -> -4983 | O13: =IFERROR(IF(OR(100/M13*(L13-M13)>250,100/M13*(L13-M13)<-250),".X",100/M13*(L13-M13)),"X") -> -15.81703911 | P13: =IFERROR(100/D13*L13,"X") -> 34.1294864 | Q13: =ROUND(100/(INDEX(Bzg!$A$1:$FC$438,MATCH($C13,Bzg!$A$1:$A$438,0),MATCH(Impressum!$C$13,Bzg!$A$1:$FC$1,0)))*$D13,1) -> 5 | R13: =ROUND(100/(INDEX(Bzg!$A$1:$FC$438,MATCH($C13,Bzg!$A$1:$A$438,0),MATCH(Impressum!$C$13,Bzg!$A$1:$FC$1,0)))*$L13,1) -> 1.7
